Workbook

Sheet Hoja2 (hidden)
A1: =CA!D5 -> Parcela y Emplazamiento. | B1: =CA!F5 -> 0.1427224143
A2: =CA!D29 -> Energía y Atmósfera. | B2: =CA!F29 -> 0.2310594153
A3: =CA!D47 -> Recursos Naturales. | B3: =CA!F47 -> 0.2452059101
A4: =CA!D76 -> Calidad del Ambiente Interior. | B4: =CA!F76 -> 0.1886199308
A5: =CA!D92 -> Aspectos Sociales y Económicos. | B5: =CA!F92 -> 0.04715498271
A6: =CA!D103 -> Concepto de Calidad. | B6: =CA!F103 -> 0.1452373467

Sheet Matriz para imagen (hidden)
D1: Cambio climático | E1: Emisiones a la atmósfera, tierra y agua | F1: Cambios en la biodiversidad | G1: Agotamiento de energía no renovable | H1: Agotamiento de agua potable | I1: Agotamiento de recursos materiales | J1: Generación de residuos | K1: Impactos sobre el vecindario | L1: Accesibilidad | M1: Salud y confort | N1: Aspectos económicos del resultado | O1: Ahorro en el coste del ciclo de vida
B2: Parcela y Emplazamiento
B3: PyE 01 | C3: Proximidad al transporte publico. | L3: 1 | M3: 1 | N3: 1
B4: PyE 02 | C4: Proximidad a equipamiento y servicios. | L4: 1 | M4: 1 | N4: 1
B5: PyE 03 | C5: Facilidades para la bicicleta. | L5: 1 | M5: 1 | N5: 1
B6: PyE 04 | C6: Clasificación de RSU | I6: 1 | J6: 2
B7: PyE 05 | C7: Gestión y Restauración del hábitat | F7: 1 | I7: 1 | K7: 1 | N7: 1
B8: PyE 06 | C8: Uso de plantas para crear sombras | D8: 0.15 | F8: 1 | K8: 1 | M8: 1
B9: PyE 07 | C9: Efecto isla de calor | D9: 0.75 | F9: 1 | K9: 1
B10: PyE 08 | C10: Contaminación lumínica. | F10: 2 | K10: 1
B11: Energía y Atmósfera
B12: EyA 01 | C12: Demanda de calefacción y refrigeración | D12: 1 | E12: 1 | G12: 1 | M12: 2 | N12: 1 | O12: 2
B13: EyA 02 | C13: Consumo de energía primaria no renovable | D13: 1 | E13: 1 | G13: 2 | O13: 1
B14: EyA 03 | C14: Emisiones de CO2 por procesos de climatización y ACS | D14: 2 | E14: 2
B15: EyA 04 | C15: Demanda de energía eléctrica en fase de uso | D15: 0.25 | E15: 0.25 | G15: 0.25 | O15: 0.25
B16: EyA 05 | C16: Emisión de NOx en calderas de combustión. | E16: 1 | M16: 1
B17: EyA 06 | C17: Elección responsable de refrigerantes | D17: 1 | E17: 2 | F17: 1
B18: Recursos Naturales
B19: RN 01 | C19: Consumo de agua en aparatos sanitarios | E19: 1 | H19: 2 | O19: 2
B20: RN 02 | C20: Necesidades de riego en jardines | H20: 1 | N20: 1 | O20: 1
B21: RN 03 | C21: Consumo de agua en zonas comunes | H21: 0.5 | O21: 1
B22: RN 04 | C22: Uso de aguas no potables. | H22: 1 | N22: 1 | O22: 1
B23: RN 05 | C23: Uso de materiales reciclados. | I23: 1 | J23: 1
B24: RN 06 | C24: Uso de materiales obtenidos de recursos sostenibles. | I24: 0.5 | N24: 1
B25: RN 07 | C25: Uso de materiales locales. | K25: 1 | N25: 3
B26: RN 08 | C26: Planificación de una estrategia de demolición selectiva, | I26: 1 | J26: 1 | O26: 1
B27: RN 09 | C27: Gestión de los residuos de la construcción. | I27: 1 | J27: 1
B28: RN 10 | C28: Impacto de los materiales de la construcción. | E28: 2 | G28: 1 | H28: 1 | I28: 1 | J28: 1
B29: RN 11 | C29: Ecoetiquetado de producto. | I29: 1 | N29: 3
B30: Calidad del Ambiente Interior
B31: CAI 01 | C31: Limitación en las emisiones de COVs. | M31: 2 | N31: 1
B32: CAI 02 | C32: Eficacia de la ventilación natural. | M32: 3 | N32: 1
B33: CAI 03 | C33: Iluminación natural. | M33: 3 | N33: 2
B34: CAI 04 | C34: Protección frente al ruido. | M34: 3 | N34: 1
B35: Aspectos Sociales y Económicos
B36: ASE 01 | C36: Acceso universal. | K36: 1 | L36: 3 | N36: 2
B37: ASE 02 | C37: Derecho al sol. | M37: 2 | N37: 1
B38: ASE 03 | C38: Acceso a espacios abiertos privados. | M38: 1 | N38: 1
B39: ASE 04 | C39: Derecho a la intimidad. | M39: 1 | N39: 1
B40: ASE 05 | C40: Coste de construcción. | O40: 3
B41: Concepto de Calidad
B42: CC 01 | C42: Eficiencia de los espacios. | N42: 2 | O42: 1
B43: CC 02 | C43: Disponibilidad de un sistema de gestión del edificio (BMS). | G43: 1 | H43: 1 | N43: 2 | O43: 1
B44: CC 03 | C44: Custodia de la documentación del proyecto | N44: 3
B45: CC 04 | C45: El edificio como una herramienta para la educación | K45: 1 | N45: 3

Sheet Matriz VERDE-GBCe (hidden)
H1: Lista de criterios | M1: Cambio climático | N1: Emisiones a la atmósfera, tierra y agua | O1: Cambios en la biodiversidad | P1: Agotamiento de energía no renovable | Q1: Agotamiento de agua potable | R1: Agotamiento de recursos materiales | S1: Generación de residuos | T1: Impactos sobre el vecindario | U1: Accesibilidad | V1: Salud y confort | W1: Aspectos económicos del resultado | X1: Ahorro en el coste del ciclo de vida | Z1: Cambio climático | AA1: Emisiones a la atmósfera, tierra y agua | AB1: Cambios en la biodiversidad | AC1: Agotamiento de energía no renovable | AD1: Agotamiento de agua potable | AE1: Agotamiento de recursos materiales | AF1: Generación de residuos | AG1: Impactos sobre el vecindario | AH1: Accesibilidad | AI1: Salud y confort | AJ1: Aspectos económicos del resultado | AK1: Ahorro en el coste del ciclo de vida | AM1: Cambio climático | AN1: Emisiones a la atmósfera, tierra y agua | AO1: Cambios en la biodiversidad | AP1: Agotamiento de energía no renovable | AQ1: Agotamiento de agua potable | AR1: Agotamiento de recursos materiales | AS1: Generación de residuos | AT1: Impactos sobre el vecindario | AU1: Accesibilidad | AV1: Salud y confort | AW1: Aspectos económicos del resultado | AX1: Ahorro en el coste del ciclo de vida
M2: 3 | N2: 2 | O2: 1 | P2: 3 | Q2: 2 | R2: 2 | S2: 1 | T2: 2 | U2: 1 | V2: 4 | W2: 2 | X2: 2 | Z2: 4 | AA2: 2 | AB2: 1 | AC2: 3 | AD2: 2 | AE2: 2 | AF2: 1 | AG2: 1 | AH2: 1 | AI2: 3 | AJ2: 1 | AK2: 2 | AM2: 4 | AN2: 2 | AO2: 1 | AP2: 3 | AQ2: 2 | AR2: 2 | AS2: 1 | AT2: 1 | AU2: 1 | AV2: 3 | AW2: 1 | AX2: 2
A3: INTERIORES | B3: Nueva Edificación | C3: Rehabilitación | D3: Existente | E3: Mixto | F3: NOTAS DE APLICABILIDAD | M3: =M2/SUM($M2:$X2) -> 0.12 | N3: =N2/SUM($M2:$X2) -> 0.08 | O3: 0.04 | P3: 0.12 | Q3: 0.08 | R3: 0.08 | S3: 0.04 | T3: 0.08 | U3: 0.04 | V3: 0.16 | W3: 0.08 | X3: 0.08 | Z3: =Z2/SUM($M2:$X2) -> 0.16 | AA3: =AA2/SUM($M2:$X2) -> 0.08 | AB3: 0.04 | AC3: 0.12 | AD3: 0.08 | AE3: 0.08 | AF3: 0.04 | AG3: 0.04 | AH3: 0.04 | AI3: 0.12 | AJ3: 0.04 | AK3: 0.08 | AM3: =AM2/SUM($M2:$X2) -> 0.16 | AN3: =AN2/SUM($M2:$X2) -> 0.08 | AO3: 0.04 | AP3: 0.12 | AQ3: 0.08 | AR3: 0.08 | AS3: 0.04 | AT3: 0.04 | AU3: 0.04 | AV3: 0.12 | AW3: 0.04 | AX3: 0.08
G4: PyE | H4: Parcela y Emplazamiento. | J4: =SUM(J5:J13) -> 0.1427224143
A5: x | F5: Industrial menos de 20 trabajadores | G5: =VLOOKUP(H5,CA!$D$10:$K$125,5,FALSE) -> a | H5: PyE 01 | I5: Proximidad al transporte publico. | J5: =IF(K$51=0,0,K5/K$51) -> 0.0220056586 | K5: =IF(G5="a",SUMPRODUCT(M5:X5,M$3:X$3),"0") -> 0.28 | L5: ='Informe resultados'!M29 -> 0 | U5: 1 | V5: 1 | W5: 1 | Z5: =(M5*M$3)*$J5/SUMPRODUCT($M5:$X5,$M$3:$X$3) -> 0 | AA5: =(N5*N$3)*$J5/SUMPRODUCT($M5:$X5,$M$3:$X$3) -> 0 | AB5: 0 | AC5: 0 | AD5: 0 | AE5: 0 | AF5: 0 | AG5: 0 | AH5: 0.003143665514 | AI5: 0.01257466206 | AJ5: 0.006287331028 | AK5: 0 | AM5: =(M5*M$3)*$L5/SUMPRODUCT($M5:$X5,$M$3:$X$3) -> 0 | AN5: =(N5*N$3)*$L5/SUMPRODUCT($M5:$X5,$M$3:$X$3) -> 0 | AO5: 0 | AP5: 0 | AQ5: 0 | AR5: 0 | AS5: 0 | AT5: 0 | AU5: 0 | AV5: 0 | AW5: 0 | AX5: 0
A6: x | F6: Industrial menos de 20 trabajadores | G6: =VLOOKUP(H6,CA!$D$10:$K$125,5,FALSE) -> a | H6: PyE 02 | I6: Proximidad a equipamiento y servicios. | J6: 0.0220056586 | K6: 0.28 | L6: ='Informe resultados'!M30 -> 0 | U6: 1 | V6: 1 | W6: 1 | Z6: =(M6*M$3)*$J6/SUMPRODUCT($M6:$X6,$M$3:$X$3) -> 0 | AA6: =(N6*N$3)*$J6/SUMPRODUCT($M6:$X6,$M$3:$X$3) -> 0 | AB6: =(O6*O$3)*$J6/SUMPRODUCT($M6:$X6,$M$3:$X$3) -> 0 | AC6: =(P6*P$3)*$J6/SUMPRODUCT($M6:$X6,$M$3:$X$3) -> 0 | AD6: =(Q6*Q$3)*$J6/SUMPRODUCT($M6:$X6,$M$3:$X$3) -> 0 | AE6: =(R6*R$3)*$J6/SUMPRODUCT($M6:$X6,$M$3:$X$3) -> 0 | AF6: =(S6*S$3)*$J6/SUMPRODUCT($M6:$X6,$M$3:$X$3) -> 0 | AG6: =(T6*T$3)*$J6/SUMPRODUCT($M6:$X6,$M$3:$X$3) -> 0 | AH6: =(U6*U$3)*$J6/SUMPRODUCT($M6:$X6,$M$3:$X$3) -> 0.003143665514 | AI6: =(V6*V$3)*$J6/SUMPRODUCT($M6:$X6,$M$3:$X$3) -> 0.01257466206 | AJ6: =(W6*W$3)*$J6/SUMPRODUCT($M6:$X6,$M$3:$X$3) -> 0.006287331028 | AK6: =(X6*X$3)*$J6/SUMPRODUCT($M6:$X6,$M$3:$X$3) -> 0 | AM6: =(M6*M$3)*$L6/SUMPRODUCT($M6:$X6,$M$3:$X$3) -> 0 | AN6: =(N6*N$3)*$L6/SUMPRODUCT($M6:$X6,$M$3:$X$3) -> 0 | AO6: =(O6*O$3)*$L6/SUMPRODUCT($M6:$X6,$M$3:$X$3) -> 0 | AP6: =(P6*P$3)*$L6/SUMPRODUCT($M6:$X6,$M$3:$X$3) -> 0 | AQ6: =(Q6*Q$3)*$L6/SUMPRODUCT($M6:$X6,$M$3:$X$3) -> 0 | AR6: =(R6*R$3)*$L6/SUMPRODUCT($M6:$X6,$M$3:$X$3) -> 0 | AS6: =(S6*S$3)*$L6/SUMPRODUCT($M6:$X6,$M$3:$X$3) -> 0 | AT6: =(T6*T$3)*$L6/SUMPRODUCT($M6:$X6,$M$3:$X$3) -> 0 | AU6: =(U6*U$3)*$L6/SUMPRODUCT($M6:$X6,$M$3:$X$3) -> 0 | AV6: =(V6*V$3)*$L6/SUMPRODUCT($M6:$X6,$M$3:$X$3) -> 0 | AW6: =(W6*W$3)*$L6/SUMPRODUCT($M6:$X6,$M$3:$X$3) -> 0 | AX6: =(X6*X$3)*$L6/SUMPRODUCT($M6:$X6,$M$3:$X$3) -> 0
A7: x | F7: Industrial menos de 20 trabajadores | G7: =VLOOKUP(H7,CA!$D$10:$K$125,5,FALSE) -> a | H7: PyE 03 | I7: Facilidades para la bicicleta. | J7: 0.0220056586 | K7: 0.28 | L7: ='Informe resultados'!M31 -> 0 | U7: 1 | V7: 1 | W7: 1 | Z7: 0 | AA7: 0 | AB7: 0 | AC7: 0 | AD7: 0 | AE7: 0 | AF7: 0 | AG7: 0 | AH7: 0.003143665514 | AI7: 0.01257466206 | AJ7: 0.006287331028 | AK7: 0 | AM7: 0 | AN7: 0 | AO7: 0 | AP7: 0 | AQ7: 0 | AR7: 0 | AS7: 0 | AT7: 0 | AU7: 0 | AV7: 0 | AW7: 0 | AX7: 0
F8: Edificios sin aparcamiento | G8: =IF(OR(DG!E25="Local o parte de un edificio",PyE!H104="NO",DG!E39="NO"),"",VLOOKUP(H8,CA!$D$10:$K$125,5,FALSE)) -> a | H8: PyE 04 | I8: Capacidad de carga de vehículos eléctricos. | J8: 0.0116315624 | K8: =IF(G8="a",SUMPRODUCT(M8:X8,M$3:X$3),"0") -> 0.148 | L8: ='Informe resultados'!M33 -> 0 | M8: 0.15 | N8: 0.15 | P8: 0.15 | T8: 0.5 | U8: 0.5 | W8: 0.5 | Z8: =(M8*M$3)*$J8/SUMPRODUCT($M8:$X8,$M$3:$X$3) -> 0.001414649481 | AA8: =(N8*N$3)*$J8/SUMPRODUCT($M8:$X8,$M$3:$X$3) -> 0.0009430996542 | AB8: =(O8*O$3)*$J8/SUMPRODUCT($M8:$X8,$M$3:$X$3) -> 0 | AC8: =(P8*P$3)*$J8/SUMPRODUCT($M8:$X8,$M$3:$X$3) -> 0.001414649481 | AD8: =(Q8*Q$3)*$J8/SUMPRODUCT($M8:$X8,$M$3:$X$3) -> 0 | AE8: =(R8*R$3)*$J8/SUMPRODUCT($M8:$X8,$M$3:$X$3) -> 0 | AF8: =(S8*S$3)*$J8/SUMPRODUCT($M8:$X8,$M$3:$X$3) -> 0 | AG8: =(T8*T$3)*$J8/SUMPRODUCT($M8:$X8,$M$3:$X$3) -> 0.003143665514 | AH8: =(U8*U$3)*$J8/SUMPRODUCT($M8:$X8,$M$3:$X$3) -> 0.001571832757 | AI8: =(V8*V$3)*$J8/SUMPRODUCT($M8:$X8,$M$3:$X$3) -> 0 | AJ8: =(W8*W$3)*$J8/SUMPRODUCT($M8:$X8,$M$3:$X$3) -> 0.003143665514 | AK8: =(X8*X$3)*$J8/SUMPRODUCT($M8:$X8,$M$3:$X$3) -> 0 | AM8: =(M8*M$3)*$L8/SUMPRODUCT($M8:$X8,$M$3:$X$3) -> 0 | AN8: =(N8*N$3)*$L8/SUMPRODUCT($M8:$X8,$M$3:$X$3) -> 0 | AO8: =(O8*O$3)*$L8/SUMPRODUCT($M8:$X8,$M$3:$X$3) -> 0 | AP8: =(P8*P$3)*$L8/SUMPRODUCT($M8:$X8,$M$3:$X$3) -> 0 | AQ8: =(Q8*Q$3)*$L8/SUMPRODUCT($M8:$X8,$M$3:$X$3) -> 0 | AR8: =(R8*R$3)*$L8/SUMPRODUCT($M8:$X8,$M$3:$X$3) -> 0 | AS8: =(S8*S$3)*$L8/SUMPRODUCT($M8:$X8,$M$3:$X$3) -> 0 | AT8: =(T8*T$3)*$L8/SUMPRODUCT($M8:$X8,$M$3:$X$3) -> 0 | AU8: =(U8*U$3)*$L8/SUMPRODUCT($M8:$X8,$M$3:$X$3) -> 0 | AV8: =(V8*V$3)*$L8/SUMPRODUCT($M8:$X8,$M$3:$X$3) -> 0 | AW8: =(W8*W$3)*$L8/SUMPRODUCT($M8:$X8,$M$3:$X$3) -> 0 | AX8: =(X8*X$3)*$L8/SUMPRODUCT($M8:$X8,$M$3:$X$3) -> 0
A9: x | F9: Industrial con oficina de más de 50 m2 | G9: =IF(DG!E62="NO","",VLOOKUP(H9,CA!$D$10:$K$125,5,FALSE)) -> a | H9: PyE 05 | I9: Clasificación de RSU. | J9: 0.01257466206 | K9: 0.16 | L9: ='Informe resultados'!M33 -> 0 | R9: 1 | S9: 2 | Z9: 0 | AA9: 0 | AB9: 0 | AC9: 0 | AD9: 0 | AE9: 0.006287331028 | AF9: 0.006287331028 | AG9: 0 | AH9: 0 | AI9: 0 | AJ9: 0 | AK9: 0 | AM9: 0 | AN9: 0 | AO9: 0 | AP9: 0 | AQ9: 0 | AR9: 0 | AS9: 0 | AT9: 0 | AU9: 0 | AV9: 0 | AW9: 0 | AX9: 0
F10: Sin superficie libre de parcela | G10: =IF(OR(DG!E25="Local o parte de un edificio",DG!E41<50),"",VLOOKUP(H10,CA!$D$10:$K$125,5,FALSE)) ->  | H10: PyE 06 | I10: Gestión y Restauración del hábitat. | J10: 0 | K10: 0 | L10: ='Informe resultados'!M34 -> 0 | O10: 1 | R10: 1 | T10: 1 | W10: 1 | Z10: 0 | AA10: 0 | AB10: 0 | AC10: 0 | AD10: 0 | AE10: 0 | AF10: 0 | AG10: 0 | AH10: 0 | AI10: 0 | AJ10: 0 | AK10: 0 | AM10: 0 | AN10: 0 | AO10: 0 | AP10: 0 | AQ10: 0 | AR10: 0 | AS10: 0 | AT10: 0 | AU10: 0 | AV10: 0 | AW10: 0 | AX10: 0
F11: Industrial no aplica | G11: =IF(OR(DG!E25="Local o parte de un edificio",DG!E25=DG!K30),"",VLOOKUP(H11,CA!$D$10:$K$125,5,FALSE)) -> a | H11: PyE 07 | I11: Uso de plantas para crear sombras. | J11: 0.02342030808 | K11: 0.298 | L11: ='Informe resultados'!M35 -> 0 | M11: 0.15 | O11: 1 | T11: 1 | V11: 1 | Z11: 0.001414649481 | AA11: 0 | AB11: 0.003143665514 | AC11: 0 | AD11: 0 | AE11: 0 | AF11: 0 | AG11: 0.006287331028 | AH11: 0 | AI11: 0.01257466206 | AJ11: 0 | AK11: 0 | AM11: 0 | AN11: 0 | AO11: 0 | AP11: 0 | AQ11: 0 | AR11: 0 | AS11: 0 | AT11: 0 | AU11: 0 | AV11: 0 | AW11: 0 | AX11: 0
F12: Todos los casos | G12: =IF(DG!E25="Local o parte de un edificio","",VLOOKUP(H12,CA!$D$10:$K$125,5,FALSE)) -> a | H12: PyE 08 | I12: Efecto isla de calor. | J12: 0.01650424395 | K12: 0.21 | L12: ='Informe resultados'!M36 -> 0 | M12: 0.75 | O12: 1 | T12: 1 | Z12: 0.007073247406 | AA12: 0 | AB12: 0.003143665514 | AC12: 0 | AD12: 0 | AE12: 0 | AF12: 0 | AG12: 0.006287331028 | AH12: 0 | AI12: 0 | AJ12: 0 | AK12: 0 | AM12: 0 | AN12: 0 | AO12: 0 | AP12: 0 | AQ12: 0 | AR12: 0 | AS12: 0 | AT12: 0 | AU12: 0 | AV12: 0 | AW12: 0 | AX12: 0
F13: Todos los casos | G13: =IF(DG!E25="Local o parte de un edificio","",VLOOKUP(H13,CA!$D$10:$K$125,5,FALSE)) -> a | H13: PyE 09 | I13: Contaminación lumínica. | J13: 0.01257466206 | K13: 0.16 | L13: ='Informe resultados'!M37 -> 0 | O13: 2 | T13: 1 | Z13: 0 | AA13: 0 | AB13: 0.006287331028 | AC13: 0 | AD13: 0 | AE13: 0 | AF13: 0 | AG13: 0.006287331028 | AH13: 0 | AI13: 0 | AJ13: 0 | AK13: 0 | AM13: 0 | AN13: 0 | AO13: 0 | AP13: 0 | AQ13: 0 | AR13: 0 | AS13: 0 | AT13: 0 | AU13: 0 | AV13: 0 | AW13: 0 | AX13: 0
G14: EyA | H14: Energía y Atmósfera. | J14: =SUM(J15:J20) -> 0.2310594153
A15: x | F15: Deportivo consultar y Industrial con oficina de más de 50 m2 | G15: =IF(DG!E62="NO","",VLOOKUP(H15,CA!$D$10:$K$125,5,FALSE)) -> a | H15: EyA 01 | I15: Demanda de calefacción y refrigeración. | J15: =IF(K$51=0,0,K15/K$51) -> 0.08487896888 | K15: =IF(G15="a",SUMPRODUCT(M15:X15,M$3:X$3),"0") -> 1.08 | L15: ='Informe resultados'!M38 -> 0 | M15: 2 | N15: 2 | P15: 1 | V15: 2 | W15: 1 | X15: 2 | Z15: =(M15*M$3)*$J15/SUMPRODUCT($M15:$X15,$M$3:$X$3) -> 0.01886199308 | AA15: =(N15*N$3)*$J15/SUMPRODUCT($M15:$X15,$M$3:$X$3) -> 0.01257466206 | AB15: =(O15*O$3)*$J15/SUMPRODUCT($M15:$X15,$M$3:$X$3) -> 0 | AC15: =(P15*P$3)*$J15/SUMPRODUCT($M15:$X15,$M$3:$X$3) -> 0.009430996542 | AD15: =(Q15*Q$3)*$J15/SUMPRODUCT($M15:$X15,$M$3:$X$3) -> 0 | AE15: =(R15*R$3)*$J15/SUMPRODUCT($M15:$X15,$M$3:$X$3) -> 0 | AF15: =(S15*S$3)*$J15/SUMPRODUCT($M15:$X15,$M$3:$X$3) -> 0 | AG15: =(T15*T$3)*$J15/SUMPRODUCT($M15:$X15,$M$3:$X$3) -> 0 | AH15: =(U15*U$3)*$J15/SUMPRODUCT($M15:$X15,$M$3:$X$3) -> 0 | AI15: =(V15*V$3)*$J15/SUMPRODUCT($M15:$X15,$M$3:$X$3) -> 0.02514932411 | AJ15: =(W15*W$3)*$J15/SUMPRODUCT($M15:$X15,$M$3:$X$3) -> 0.006287331028 | AK15: =(X15*X$3)*$J15/SUMPRODUCT($M15:$X15,$M$3:$X$3) -> 0.01257466206 | AM15: =(M15*M$3)*$L15/SUMPRODUCT($M15:$X15,$M$3:$X$3) -> 0 | AN15: =(N15*N$3)*$L15/SUMPRODUCT($M15:$X15,$M$3:$X$3) -> 0 | AO15: =(O15*O$3)*$L15/SUMPRODUCT($M15:$X15,$M$3:$X$3) -> 0 | AP15: =(P15*P$3)*$L15/SUMPRODUCT($M15:$X15,$M$3:$X$3) -> 0 | AQ15: =(Q15*Q$3)*$L15/SUMPRODUCT($M15:$X15,$M$3:$X$3) -> 0 | AR15: =(R15*R$3)*$L15/SUMPRODUCT($M15:$X15,$M$3:$X$3) -> 0 | AS15: =(S15*S$3)*$L15/SUMPRODUCT($M15:$X15,$M$3:$X$3) -> 0 | AT15: =(T15*T$3)*$L15/SUMPRODUCT($M15:$X15,$M$3:$X$3) -> 0 | AU15: =(U15*U$3)*$L15/SUMPRODUCT($M15:$X15,$M$3:$X$3) -> 0 | AV15: =(V15*V$3)*$L15/SUMPRODUCT($M15:$X15,$M$3:$X$3) -> 0 | AW15: =(W15*W$3)*$L15/SUMPRODUCT($M15:$X15,$M$3:$X$3) -> 0 | AX15: =(X15*X$3)*$L15/SUMPRODUCT($M15:$X15,$M$3:$X$3) -> 0
A16: x | F16: Deportivo consultar y Industrial con oficina de más de 50 m2 | G16: =IF(DG!E62="NO","",VLOOKUP(H16,CA!$D$10:$K$125,5,FALSE)) -> a | H16: EyA 02 | I16: Consumo de energía primaria no renovable. | J16: 0.05029864822 | K16: 0.64 | L16: ='Informe resultados'!M39 -> 0 | M16: 2 | N16: 1 | P16: 2 | X16: 1 | Z16: 0.01886199308 | AA16: 0.006287331028 | AB16: 0 | AC16: 0.01886199308 | AD16: 0 | AE16: 0 | AF16: 0 | AG16: 0 | AH16: 0 | AI16: 0 | AJ16: 0 | AK16: 0.006287331028 | AM16: 0 | AN16: 0 | AO16: 0 | AP16: 0 | AQ16: 0 | AR16: 0 | AS16: 0 | AT16: 0 | AU16: 0 | AV16: 0 | AW16: 0 | AX16: 0
A17: x | F17: Deportivo consultar y Industrial con oficina de más de 50 m2 | G17: =IF(DG!E62="NO","",VLOOKUP(H17,CA!$D$10:$K$125,5,FALSE)) -> a | H17: EyA 03 | I17: Emisiones de CO2 | J17: 0.03143665514 | K17: 0.4 | L17: ='Informe resultados'!M40 -> 0 | M17: 2 | N17: 2 | Z17: 0.01886199308 | AA17: 0.01257466206 | AB17: 0 | AC17: 0 | AD17: 0 | AE17: 0 | AF17: 0 | AG17: 0 | AH17: 0 | AI17: 0 | AJ17: 0 | AK17: 0 | AM17: 0 | AN17: 0 | AO17: 0 | AP17: 0 | AQ17: 0 | AR17: 0 | AS17: 0 | AT17: 0 | AU17: 0 | AV17: 0 | AW17: 0 | AX17: 0
F18: Con uso de ascensores | G18: =IF(OR(DG!E25="Local o parte de un edificio",DG!E52="no"),"",VLOOKUP(H18,CA!$D$10:$K$125,5,FALSE)) -> a | H18: EyA 04 | I18: Consumo en sistemas de comunicación mecánicos. | J18: 0.01414649481 | K18: 0.18 | L18: ='Informe resultados'!M41 -> 0 | M18: 0.5 | N18: 0.5 | P18: 0.5 | X18: 0.25 | Z18: 0.004715498271 | AA18: 0.003143665514 | AB18: 0 | AC18: 0.004715498271 | AD18: 0 | AE18: 0 | AF18: 0 | AG18: 0 | AH18: 0 | AI18: 0 | AJ18: 0 | AK18: 0.001571832757 | AM18: 0 | AN18: 0 | AO18: 0 | AP18: 0 | AQ18: 0 | AR18: 0 | AS18: 0 | AT18: 0 | AU18: 0 | AV18: 0 | AW18: 0 | AX18: 0
A19: x | F19: Con gases refrigerantes | G19: =IF(DG!E50="no","",VLOOKUP(H19,CA!$D$10:$K$125,5,FALSE)) -> a | H19: EyA 05 | I19: Elección responsable de refrigerantes. | J19: 0.02514932411 | K19: 0.32 | L19: ='Informe resultados'!M42 -> 0 | M19: 1 | N19: 2 | O19: 1 | Z19: 0.009430996542 | AA19: 0.01257466206 | AB19: 0.003143665514 | AC19: 0 | AD19: 0 | AE19: 0 | AF19: 0 | AG19: 0 | AH19: 0 | AI19: 0 | AJ19: 0 | AK19: 0 | AM19: 0 | AN19: 0 | AO19: 0 | AP19: 0 | AQ19: 0 | AR19: 0 | AS19: 0 | AT19: 0 | AU19: 0 | AV19: 0 | AW19: 0 | AX19: 0
F20: Con sistemas frigoríficos | G20: =IF(OR(DG!E25="Local o parte de un edificio",DG!E54="no"),"",VLOOKUP(H20,CA!$D$10:$K$125,5,FALSE)) -> a | H20: EyA 06 | I20: Frío industrial | J20: 0.02514932411 | K20: =IF(G20="a",SUMPRODUCT(M20:X20,M$3:X$3),"0") -> 0.32 | L20: ='Informe resultados'!M43 -> 0 | M20: 1 | N20: 2 | O20: 1 | Z20: =(M20*M$3)*$J20/SUMPRODUCT($M20:$X20,$M$3:$X$3) -> 0.009430996542 | AA20: =(N20*N$3)*$J20/SUMPRODUCT($M20:$X20,$M$3:$X$3) -> 0.01257466206 | AB20: =(O20*O$3)*$J20/SUMPRODUCT($M20:$X20,$M$3:$X$3) -> 0.003143665514 | AC20: =(P20*P$3)*$J20/SUMPRODUCT($M20:$X20,$M$3:$X$3) -> 0 | AD20: =(Q20*Q$3)*$J20/SUMPRODUCT($M20:$X20,$M$3:$X$3) -> 0 | AE20: =(R20*R$3)*$J20/SUMPRODUCT($M20:$X20,$M$3:$X$3) -> 0 | AF20: =(S20*S$3)*$J20/SUMPRODUCT($M20:$X20,$M$3:$X$3) -> 0 | AG20: =(T20*T$3)*$J20/SUMPRODUCT($M20:$X20,$M$3:$X$3) -> 0 | AH20: =(U20*U$3)*$J20/SUMPRODUCT($M20:$X20,$M$3:$X$3) -> 0 | AI20: =(V20*V$3)*$J20/SUMPRODUCT($M20:$X20,$M$3:$X$3) -> 0 | AJ20: =(W20*W$3)*$J20/SUMPRODUCT($M20:$X20,$M$3:$X$3) -> 0 | AK20: =(X20*X$3)*$J20/SUMPRODUCT($M20:$X20,$M$3:$X$3) -> 0 | AM20: =(M20*M$3)*$L20/SUMPRODUCT($M20:$X20,$M$3:$X$3) -> 0 | AN20: =(N20*N$3)*$L20/SUMPRODUCT($M20:$X20,$M$3:$X$3) -> 0 | AO20: =(O20*O$3)*$L20/SUMPRODUCT($M20:$X20,$M$3:$X$3) -> 0 | AP20: =(P20*P$3)*$L20/SUMPRODUCT($M20:$X20,$M$3:$X$3) -> 0 | AQ20: =(Q20*Q$3)*$L20/SUMPRODUCT($M20:$X20,$M$3:$X$3) -> 0 | AR20: =(R20*R$3)*$L20/SUMPRODUCT($M20:$X20,$M$3:$X$3) -> 0 | AS20: =(S20*S$3)*$L20/SUMPRODUCT($M20:$X20,$M$3:$X$3) -> 0 | AT20: =(T20*T$3)*$L20/SUMPRODUCT($M20:$X20,$M$3:$X$3) -> 0 | AU20: =(U20*U$3)*$L20/SUMPRODUCT($M20:$X20,$M$3:$X$3) -> 0 | AV20: =(V20*V$3)*$L20/SUMPRODUCT($M20:$X20,$M$3:$X$3) -> 0 | AW20: =(W20*W$3)*$L20/SUMPRODUCT($M20:$X20,$M$3:$X$3) -> 0 | AX20: =(X20*X$3)*$L20/SUMPRODUCT($M20:$X20,$M$3:$X$3) -> 0
G21: RN | H21: Recursos Naturales. | J21: =SUM(J22:J32) -> 0.2452059101
A22: x | F22: Todos los casos | G22: =VLOOKUP(H22,CA!$D$10:$K$125,5,FALSE) -> a | H22: RN 01 | I22: Consumo de agua en aparatos sanitarios. | J22: =IF(K$51=0,0,K22/K$51) -> 0.03143665514 | K22: =IF(G22="a",SUMPRODUCT(M22:X22,M$3:X$3),"0") -> 0.4 | L22: ='Informe resultados'!M43 -> 0 | N22: 1 | Q22: 2 | X22: 2 | Z22: =(M22*M$3)*$J22/SUMPRODUCT($M22:$X22,$M$3:$X$3) -> 0 | AA22: =(N22*N$3)*$J22/SUMPRODUCT($M22:$X22,$M$3:$X$3) -> 0.006287331028 | AB22: =(O22*O$3)*$J22/SUMPRODUCT($M22:$X22,$M$3:$X$3) -> 0 | AC22: =(P22*P$3)*$J22/SUMPRODUCT($M22:$X22,$M$3:$X$3) -> 0 | AD22: =(Q22*Q$3)*$J22/SUMPRODUCT($M22:$X22,$M$3:$X$3) -> 0.01257466206 | AE22: =(R22*R$3)*$J22/SUMPRODUCT($M22:$X22,$M$3:$X$3) -> 0 | AF22: =(S22*S$3)*$J22/SUMPRODUCT($M22:$X22,$M$3:$X$3) -> 0 | AG22: =(T22*T$3)*$J22/SUMPRODUCT($M22:$X22,$M$3:$X$3) -> 0 | AH22: =(U22*U$3)*$J22/SUMPRODUCT($M22:$X22,$M$3:$X$3) -> 0 | AI22: =(V22*V$3)*$J22/SUMPRODUCT($M22:$X22,$M$3:$X$3) -> 0 | AJ22: =(W22*W$3)*$J22/SUMPRODUCT($M22:$X22,$M$3:$X$3) -> 0 | AK22: =(X22*X$3)*$J22/SUMPRODUCT($M22:$X22,$M$3:$X$3) -> 0.01257466206 | AM22: =(M22*M$3)*$L22/SUMPRODUCT($M22:$X22,$M$3:$X$3) -> 0 | AN22: =(N22*N$3)*$L22/SUMPRODUCT($M22:$X22,$M$3:$X$3) -> 0 | AO22: =(O22*O$3)*$L22/SUMPRODUCT($M22:$X22,$M$3:$X$3) -> 0 | AP22: =(P22*P$3)*$L22/SUMPRODUCT($M22:$X22,$M$3:$X$3) -> 0 | AQ22: =(Q22*Q$3)*$L22/SUMPRODUCT($M22:$X22,$M$3:$X$3) -> 0 | AR22: =(R22*R$3)*$L22/SUMPRODUCT($M22:$X22,$M$3:$X$3) -> 0 | AS22: =(S22*S$3)*$L22/SUMPRODUCT($M22:$X22,$M$3:$X$3) -> 0 | AT22: =(T22*T$3)*$L22/SUMPRODUCT($M22:$X22,$M$3:$X$3) -> 0 | AU22: =(U22*U$3)*$L22/SUMPRODUCT($M22:$X22,$M$3:$X$3) -> 0 | AV22: =(V22*V$3)*$L22/SUMPRODUCT($M22:$X22,$M$3:$X$3) -> 0 | AW22: =(W22*W$3)*$L22/SUMPRODUCT($M22:$X22,$M$3:$X$3) -> 0 | AX22: =(X22*X$3)*$L22/SUMPRODUCT($M22:$X22,$M$3:$X$3) -> 0
F23: Zona ajardinada superior a 20 m2 | G23: =IF(OR(DG!E25="Local o parte de un edificio",DG!E43<20),"",VLOOKUP(H23,CA!$D$10:$K$125,5,FALSE)) ->  | H23: RN 02 | I23: Necesidades de riego en jardines. | J23: 0 | K23: =IF(G23="a",IF(RN!H33="no",0,SUMPRODUCT(M23:X23,M$3:X$3)),"0") -> 0 | L23: ='Informe resultados'!M44 ->  | Q23: 1 | W23: 1 | X23: 1 | Z23: 0 | AA23: 0 | AB23: 0 | AC23: 0 | AD23: 0 | AE23: 0 | AF23: 0 | AG23: 0 | AH23: 0 | AI23: 0 | AJ23: 0 | AK23: 0
F24: edificios con elementos singulares | G24: =IF(OR(DG!E25="Local o parte de un edificio",DG!E47="no"),"",VLOOKUP(H24,CA!$D$10:$K$125,5,FALSE)) -> a | H24: RN 03 | I24: Consumo de agua en elementos singulares | J24: 0.01886199308 | K24: =IF(G24="a",SUMPRODUCT(M24:X24,M$3:X$3),"0") -> 0.24 | L24: ='Informe resultados'!M45 -> 0 | Q24: 1 | W24: 1 | X24: 1
F25: Todos los casos | G25: =IF(DG!E25="Local o parte de un edificio","",VLOOKUP(H25,CA!$D$10:$K$125,5,FALSE)) -> a | H25: RN 04 | I25: Uso de agua no potable. | J25: 0.01886199308 | K25: =IF(G25="a",SUMPRODUCT(M25:X25,M$3:X$3),"0") -> 0.24 | L25: ='Informe resultados'!M45 -> 0 | Q25: 1 | W25: 1 | X25: 1 | Z25: 0 | AA25: 0 | AB25: 0 | AC25: 0 | AD25: 0.006287331028 | AE25: 0 | AF25: 0 | AG25: 0 | AH25: 0 | AI25: 0 | AJ25: 0.006287331028 | AK25: 0.006287331028 | AM25: 0 | AN25: 0 | AO25: 0 | AP25: 0 | AQ25: 0 | AR25: 0 | AS25: 0 | AT25: 0 | AU25: 0 | AV25: 0 | AW25: 0 | AX25: 0
F26: Todos los casos | G26: =IF(OR(DG!E25="Local o parte de un edificio",DG!E27="Edificio existente"),"",VLOOKUP(H26,CA!$D$10:$K$125,5,FALSE)) -> a | H26: RN 05 | I26: Uso de materiales reciclados. | J26: 0.01571832757 | K26: 0.2 | L26: ='Informe resultados'!M46 -> 0 | R26: 2 | S26: 1 | Z26: 0 | AA26: 0 | AB26: 0 | AC26: 0 | AD26: 0 | AE26: 0.01257466206 | AF26: 0.003143665514 | AG26: 0 | AH26: 0 | AI26: 0 | AJ26: 0 | AK26: 0 | AM26: 0 | AN26: 0 | AO26: 0 | AP26: 0 | AQ26: 0 | AR26: 0 | AS26: 0 | AT26: 0 | AU26: 0 | AV26: 0 | AW26: 0 | AX26: 0
F27: Todos los casos | G27: =IF(OR(DG!E25="Local o parte de un edificio",DG!E$27="Edificio existente"),"",VLOOKUP(H27,CA!$D$10:$K$125,5,FALSE)) -> a | H27: RN 06 | I27: Uso de materiales obtenidos de recursos sostenibles. | J27: 0.01257466206 | K27: 0.16 | L27: ='Informe resultados'!M47 -> 0 | R27: 1 | W27: 1 | Z27: 0 | AA27: 0 | AB27: 0 | AC27: 0 | AD27: 0 | AE27: 0.006287331028 | AF27: 0 | AG27: 0 | AH27: 0 | AI27: 0 | AJ27: 0.006287331028 | AK27: 0 | AM27: 0 | AN27: 0 | AO27: 0 | AP27: 0 | AQ27: 0 | AR27: 0 | AS27: 0 | AT27: 0 | AU27: 0 | AV27: 0 | AW27: 0 | AX27: 0
F28: Todos los casos | G28: =IF(OR(DG!E25="Local o parte de un edificio",DG!E$27="Edificio existente"),"",VLOOKUP(H28,CA!$D$10:$K$125,5,FALSE)) -> a | H28: RN 07 | I28: Uso de materiales locales. | J28: 0.02514932411 | K28: 0.32 | L28: ='Informe resultados'!M48 -> 0 | T28: 1 | W28: 3 | Z28: 0 | AA28: 0 | AB28: 0 | AC28: 0 | AD28: 0 | AE28: 0 | AF28: 0 | AG28: 0.006287331028 | AH28: 0 | AI28: 0 | AJ28: 0.01886199308 | AK28: 0 | AM28: 0 | AN28: 0 | AO28: 0 | AP28: 0 | AQ28: 0 | AR28: 0 | AS28: 0 | AT28: 0 | AU28: 0 | AV28: 0 | AW28: 0 | AX28: 0
F29: Todos los casos | G29: =IF(OR(DG!E25="Local o parte de un edificio",DG!E$27="Edificio existente"),"",VLOOKUP(H29,CA!$D$10:$K$125,5,FALSE)) -> a | H29: RN 08 | I29: Planificación de una estrategia de demolición selectiva. | J29: 0.01571832757 | K29: 0.2 | L29: ='Informe resultados'!M49 -> 0 | R29: 1 | S29: 1 | X29: 1 | Z29: 0 | AA29: 0 | AB29: 0 | AC29: 0 | AD29: 0 | AE29: 0.006287331028 | AF29: 0.003143665514 | AG29: 0 | AH29: 0 | AI29: 0 | AJ29: 0 | AK29: 0.006287331028 | AM29: 0 | AN29: 0 | AO29: 0 | AP29: 0 | AQ29: 0 | AR29: 0 | AS29: 0 | AT29: 0 | AU29: 0 | AV29: 0 | AW29: 0 | AX29: 0
F30: Todos los casos | G30: =IF(OR(DG!E25="Local o parte de un edificio",DG!E$27="Edificio existente"),"",VLOOKUP(H30,CA!$D$10:$K$125,5,FALSE)) -> a | H30: RN 09 | I30: Gestión de los residuos de la construcción. | J30: 0.01257466206 | K30: 0.16 | L30: ='Informe resultados'!M50 -> 0 | R30: 1 | S30: 2 | Z30: 0 | AA30: 0 | AB30: 0 | AC30: 0 | AD30: 0 | AE30: 0.006287331028 | AF30: 0.006287331028 | AG30: 0 | AH30: 0 | AI30: 0 | AJ30: 0 | AK30: 0 | AM30: 0 | AN30: 0 | AO30: 0 | AP30: 0 | AQ30: 0 | AR30: 0 | AS30: 0 | AT30: 0 | AU30: 0 | AV30: 0 | AW30: 0 | AX30: 0
F31: Todos los casos | G31: =IF(OR(DG!E25="Local o parte de un edificio",DG!E$27="Edificio existente"),"",VLOOKUP(H31,CA!$D$10:$K$125,5,FALSE)) -> a | H31: RN 10 | I31: Impacto de los materiales de la construcción. | J31: 0.06916064131 | K31: 0.88 | L31: ='Informe resultados'!M51 -> 0 | N31: 3 | P31: 2 | Q31: 2 | R31: 2 | S31: 2 | Z31: 0 | AA31: 0.01886199308 | AB31: 0 | AC31: 0.01886199308 | AD31: 0.01257466206 | AE31: 0.01257466206 | AF31: 0.006287331028 | AG31: 0 | AH31: 0 | AI31: 0 | AJ31: 0 | AK31: 0 | AM31: 0 | AN31: 0 | AO31: 0 | AP31: 0 | AQ31: 0 | AR31: 0 | AS31: 0 | AT31: 0 | AU31: 0 | AV31: 0 | AW31: 0 | AX31: 0
A32: x | F32: Todos los casos | G32: =IF(OR(DG!E$27="Edificio existente",DG!E25="Parte de un edificio"),"",VLOOKUP(H32,CA!$D$10:$K$125,5,FALSE)) -> a | H32: RN 11 | I32: Ecoetiquetado de producto. | J32: 0.02514932411 | K32: 0.32 | L32: ='Informe resultados'!M52 -> 0 | R32: 1 | W32: 3 | Z32: 0 | AA32: 0 | AB32: 0 | AC32: 0 | AD32: 0 | AE32: 0.006287331028 | AF32: 0 | AG32: 0 | AH32: 0 | AI32: 0 | AJ32: 0.01886199308 | AK32: 0 | AM32: 0 | AN32: 0 | AO32: 0 | AP32: 0 | AQ32: 0 | AR32: 0 | AS32: 0 | AT32: 0 | AU32: 0 | AV32: 0 | AW32: 0 | AX32: 0
G33: CAI | H33: Calidad del Ambiente Interior. | J33: =SUM(J34:J38) -> 0.1886199308
A34: x | F34: Todos los casos | G34: =IF(DG!E$27="Edificio existente","",VLOOKUP(H34,CA!$D$10:$K$125,5,FALSE)) -> a | H34: CAI 01 | I34: Limitación en las emisiones de COVs. | J34: =IF(K$51=0,0,K34/K$51) -> 0.03143665514 | K34: =IF(G34="a",SUMPRODUCT(M34:X34,M$3:X$3),"0") -> 0.4 | L34: ='Informe resultados'!M53 -> 0 | V34: 2 | W34: 1 | Z34: =(M34*M$3)*$J34/SUMPRODUCT($M34:$X34,$M$3:$X$3) -> 0 | AA34: 0 | AB34: 0 | AC34: 0 | AD34: 0 | AE34: 0 | AF34: 0 | AG34: 0 | AH34: 0 | AI34: 0.02514932411 | AJ34: 0.006287331028 | AK34: 0 | AM34: =(M34*M$3)*$L34/SUMPRODUCT($M34:$X34,$M$3:$X$3) -> 0 | AN34: 0 | AO34: 0 | AP34: 0 | AQ34: 0 | AR34: 0 | AS34: 0 | AT34: 0 | AU34: 0 | AV34: 0 | AW34: 0 | AX34: 0
A35: x | F35: Todos los casos | G35: =IF(DG!E59="No","",VLOOKUP(H35,CA!$D$10:$K$125,5,FALSE)) -> a | H35: CAI 02 | I35: Monitorización de la calidad del aire | J35: =IF(K$51=0,0,K35/K$51) -> 0.03143665514 | K35: 0.4 | V35: 2 | W35: 1
A36: x | F36: Todos los casos | G36: =VLOOKUP(H36,CA!$D$10:$K$125,5,FALSE) -> a | H36: CAI 03 | I36: Iluminación natural en los espacios de ocupación primaria. | J36: =IF(K$51=0,0,K36/K$51) -> 0.05029864822 | K36: 0.64 | L36: ='Informe resultados'!M55 -> 0 | V36: 3 | W36: 2 | Z36: 0 | AA36: 0 | AB36: 0 | AC36: 0 | AD36: 0 | AE36: 0 | AF36: 0 | AG36: 0 | AH36: 0 | AI36: 0.03772398617 | AJ36: 0.01257466206 | AK36: 0 | AM36: 0 | AN36: 0 | AO36: 0 | AP36: 0 | AQ36: 0 | AR36: 0 | AS36: 0 | AT36: 0 | AU36: 0 | AV36: 0 | AW36: 0 | AX36: 0
A37: x | F37: Todos los casos | G37: =VLOOKUP(H37,CA!$D$10:$K$125,5,FALSE) -> a | H37: CAI 04 | I37: Iluminación artificial en los espacios de ocupación primaria. | J37: =IF(K$51=0,0,K37/K$51) -> 0.03143665514 | K37: 0.4 | V37: 2 | W37: 1
A38: x | F38: Todos los casos | G38: =VLOOKUP(H38,CA!$D$10:$K$125,5,FALSE) -> a | H38: CAI 05 | I38: Protección frente al ruido. | J38: =IF(K$51=0,0,K38/K$51) -> 0.0440113172 | K38: 0.56 | L38: ='Informe resultados'!M57 -> 0 | V38: 3 | W38: 1 | Z38: 0 | AA38: 0 | AB38: 0 | AC38: 0 | AD38: 0 | AE38: 0 | AF38: 0 | AG38: 0 | AH38: 0 | AI38: 0.03772398617 | AJ38: 0.006287331028 | AK38: 0 | AM38: 0 | AN38: 0 | AO38: 0 | AP38: 0 | AQ38: 0 | AR38: 0 | AS38: 0 | AT38: 0 | AU38: 0 | AV38: 0 | AW38: 0 | AX38: 0
G39: ASE | H39: Aspectos Sociales y Económicos. | J39: =SUM(J40:J41) -> 0.04715498271
A40: x | F40: Todos los casos | G40: =VLOOKUP(H40,CA!$D$10:$K$125,5,FALSE) -> a | H40: ASE 01 | I40: Acceso universal. | J40: =IF(K$51=0,0,K40/K$51) -> 0.02829298963 | K40: =IF(G40="a",SUMPRODUCT(M40:X40,M$3:X$3),"0") -> 0.36 | L40: ='Informe resultados'!M58 -> 0 | T40: 1 | U40: 3 | W40: 2 | Z40: =(M40*M$3)*$J40/SUMPRODUCT($M40:$X40,$M$3:$X$3) -> 0 | AA40: 0 | AB40: 0 | AC40: 0 | AD40: 0 | AE40: 0 | AF40: 0 | AG40: 0.006287331028 | AH40: 0.009430996542 | AI40: 0 | AJ40: 0.01257466206 | AK40: 0 | AM40: =(M40*M$3)*$L40/SUMPRODUCT($M40:$X40,$M$3:$X$3) -> 0 | AN40: 0 | AO40: 0 | AP40: 0 | AQ40: 0 | AR40: 0 | AS40: 0 | AT40: 0 | AU40: 0 | AV40: 0 | AW40: 0 | AX40: 0
A41: x | F41: Todos los casos con zonas de trabajo sobre mesa | G41: =IF(DG!E56="no","",VLOOKUP(H41,CA!$D$10:$K$125,5,FALSE)) -> a | H41: ASE 02 | I41: Acceso visual desde las áreas de trabajo. | J41: =IF(K$51=0,0,K41/K$51) -> 0.01886199308 | K41: =IF(G41="a",SUMPRODUCT(M41:X41,M$3:X$3),"0") -> 0.24 | L41: ='Informe resultados'!M59 -> 0 | V41: 1 | W41: 1 | Z41: 0 | AA41: 0 | AB41: 0 | AC41: 0 | AD41: 0 | AE41: 0 | AF41: 0 | AG41: 0 | AH41: 0 | AI41: 0.01257466206 | AJ41: 0.006287331028 | AK41: 0 | AM41: 0 | AN41: 0 | AO41: 0 | AP41: 0 | AQ41: 0 | AR41: 0 | AS41: 0 | AT41: 0 | AU41: 0 | AV41: 0 | AW41: 0 | AX41: 0
G42: CC | H42: Concepto de Calidad. | J42: =SUM(J43:J49) -> 0.1452373467
F43: Todos los casos | G43: =IF(DG!E25="Local o parte de un edificio","",VLOOKUP(H43,CA!$D$10:$K$125,5,FALSE)) -> a | H43: CC 01 | I43: Eficiencia de los espacios. | J43: =IF(K$51=0,0,K43/K$51) -> 0.01886199308 | K43: =IF(G43="a",SUMPRODUCT(M43:X43,M$3:X$3),"0") -> 0.24 | L43: ='Informe resultados'!M60 -> 0 | W43: 2 | X43: 1 | Z43: =(M43*M$3)*$J43/SUMPRODUCT($M43:$X43,$M$3:$X$3) -> 0 | AA43: 0 | AB43: 0 | AC43: 0 | AD43: 0 | AE43: 0 | AF43: 0 | AG43: 0 | AH43: 0 | AI43: 0 | AJ43: 0.01257466206 | AK43: 0.006287331028 | AM43: =(M43*M$3)*$L43/SUMPRODUCT($M43:$X43,$M$3:$X$3) -> 0 | AN43: 0 | AO43: 0 | AP43: 0 | AQ43: 0 | AR43: 0 | AS43: 0 | AT43: 0 | AU43: 0 | AV43: 0 | AW43: 0 | AX43: 0
A44: x | F44: Todos los casos | G44: =VLOOKUP(H44,CA!$D$10:$K$125,5,FALSE) -> a | H44: CC 02 | I44: Sistema de gestión del edificio (BMS). | J44: 0.03458032065 | K44: =IF(G44="a",SUMPRODUCT(M44:X44,M$3:X$3),"0") -> 0.44 | L44: ='Informe resultados'!M61 -> 0 | P44: 1 | Q44: 1 | W44: 2 | X44: 1 | Z44: 0 | AA44: 0 | AB44: 0 | AC44: 0.009430996542 | AD44: 0.006287331028 | AE44: 0 | AF44: 0 | AG44: 0 | AH44: 0 | AI44: 0 | AJ44: 0.01257466206 | AK44: 0.006287331028 | AM44: 0 | AN44: 0 | AO44: 0 | AP44: 0 | AQ44: 0 | AR44: 0 | AS44: 0 | AT44: 0 | AU44: 0 | AV44: 0 | AW44: 0 | AX44: 0
A45: x | F45: Todos los casos | G45: =VLOOKUP(H45,CA!$D$10:$K$125,5,FALSE) -> a | H45: CC 03 | I45: Capacidad de funcionamiento parcial de las instalaciones. | J45: 0.01257466206 | K45: =IF(G45="a",SUMPRODUCT(M45:X45,M$3:X$3),"0") -> 0.16 | M45: 0.25 | N45: 0.25 | P45: 0.25 | W45: 1
A46: x | F46: Todos los casos | G46: =VLOOKUP(H46,CA!$D$10:$K$125,5,FALSE) -> a | H46: CC 04 | I46: Capacidad de control local de la iluminación. | J46: 0.0226343917 | K46: =IF(G46="a",SUMPRODUCT(M46:X46,M$3:X$3),"0") -> 0.288 | M46: 0.15 | N46: 0.15 | P46: 0.15 | V46: 1 | W46: 1
A47: x | F47: Todos los casos | G47: =VLOOKUP(H47,CA!$D$10:$K$125,5,FALSE) -> a | H47: CC 05 | I47: Capacidad de control local de los sistemas de HVAC. | J47: 0.01886199308 | K47: 0.24 | V47: 1 | W47: 1
F48: Todos los casos | G48: =IF(DG!E25="Local o parte de un edificio","",VLOOKUP(H48,CA!$D$10:$K$125,5,FALSE)) -> a | H48: CC 06 | I48: Custodia de la documentación del proyecto. | J48: 0.01886199308 | K48: =IF(G48="a",SUMPRODUCT(M48:X48,M$3:X$3),"0") -> 0.24 | L48: ='Informe resultados'!M65 -> 0 | W48: 3 | Z48: 0 | AA48: 0 | AB48: 0 | AC48: 0 | AD48: 0 | AE48: 0 | AF48: 0 | AG48: 0 | AH48: 0 | AI48: 0 | AJ48: 0.01886199308 | AK48: 0 | AM48: 0 | AN48: 0 | AO48: 0 | AP48: 0 | AQ48: 0 | AR48: 0 | AS48: 0 | AT48: 0 | AU48: 0 | AV48: 0 | AW48: 0 | AX48: 0
A49: x | F49: Todos los casos | G49: =VLOOKUP(H49,CA!$D$10:$K$125,5,FALSE) -> a | H49: CC 07 | I49: El edificio como una herramienta para la educación. | J49: 0.01886199308 | K49: =IF(G49="a",SUMPRODUCT(M49:X49,M$3:X$3),"0") -> 0.24 | L49: ='Informe resultados'!M66 -> 0 | T49: 1 | W49: 2 | Z49: 0 | AA49: 0 | AB49: 0 | AC49: 0 | AD49: 0 | AE49: 0 | AF49: 0 | AG49: 0.006287331028 | AH49: 0 | AI49: 0 | AJ49: 0.01257466206 | AK49: 0 | AM49: 0 | AN49: 0 | AO49: 0 | AP49: 0 | AQ49: 0 | AR49: 0 | AS49: 0 | AT49: 0 | AU49: 0 | AV49: 0 | AW49: 0 | AX49: 0
A50: x | F50: Solo interiores | G50: =IF(DG!E25="Local o parte de un edificio",VLOOKUP(H50,CA!$D$10:$K$125,5,FALSE),"") ->  | H50: CC 08 | I50: Certificaciones voluntarias del edificio. | J50: =IF(K$51=0,0,K50/K$51) -> 0 | K50: =IF(G50="a",SUMPRODUCT(M50:X50,M$3:X$3),"0") -> 0 | L50: ='Informe resultados'!M67 -> 0 | W50: 3 | Z50: =(M50*M$3)*$J50/SUMPRODUCT($M50:$X50,$M$3:$X$3) -> 0 | AA50: =(N50*N$3)*$J50/SUMPRODUCT($M50:$X50,$M$3:$X$3) -> 0 | AB50: =(O50*O$3)*$J50/SUMPRODUCT($M50:$X50,$M$3:$X$3) -> 0 | AC50: =(P50*P$3)*$J50/SUMPRODUCT($M50:$X50,$M$3:$X$3) -> 0 | AD50: =(Q50*Q$3)*$J50/SUMPRODUCT($M50:$X50,$M$3:$X$3) -> 0 | AE50: =(R50*R$3)*$J50/SUMPRODUCT($M50:$X50,$M$3:$X$3) -> 0 | AF50: =(S50*S$3)*$J50/SUMPRODUCT($M50:$X50,$M$3:$X$3) -> 0 | AG50: =(T50*T$3)*$J50/SUMPRODUCT($M50:$X50,$M$3:$X$3) -> 0 | AH50: =(U50*U$3)*$J50/SUMPRODUCT($M50:$X50,$M$3:$X$3) -> 0 | AI50: =(V50*V$3)*$J50/SUMPRODUCT($M50:$X50,$M$3:$X$3) -> 0 | AJ50: =(W50*W$3)*$J50/SUMPRODUCT($M50:$X50,$M$3:$X$3) -> 0 | AK50: =(X50*X$3)*$J50/SUMPRODUCT($M50:$X50,$M$3:$X$3) -> 0 | AM50: =(M50*M$3)*$L50/SUMPRODUCT($M50:$X50,$M$3:$X$3) -> 0 | AN50: =(N50*N$3)*$L50/SUMPRODUCT($M50:$X50,$M$3:$X$3) -> 0 | AO50: =(O50*O$3)*$L50/SUMPRODUCT($M50:$X50,$M$3:$X$3) -> 0 | AP50: =(P50*P$3)*$L50/SUMPRODUCT($M50:$X50,$M$3:$X$3) -> 0 | AQ50: =(Q50*Q$3)*$L50/SUMPRODUCT($M50:$X50,$M$3:$X$3) -> 0 | AR50: =(R50*R$3)*$L50/SUMPRODUCT($M50:$X50,$M$3:$X$3) -> 0 | AS50: =(S50*S$3)*$L50/SUMPRODUCT($M50:$X50,$M$3:$X$3) -> 0 | AT50: =(T50*T$3)*$L50/SUMPRODUCT($M50:$X50,$M$3:$X$3) -> 0 | AU50: =(U50*U$3)*$L50/SUMPRODUCT($M50:$X50,$M$3:$X$3) -> 0 | AV50: =(V50*V$3)*$L50/SUMPRODUCT($M50:$X50,$M$3:$X$3) -> 0 | AW50: =(W50*W$3)*$L50/SUMPRODUCT($M50:$X50,$M$3:$X$3) -> 0 | AX50: =(X50*X$3)*$L50/SUMPRODUCT($M50:$X50,$M$3:$X$3) -> 0
J51: =IF(K$50=0,0,K51/K$50) ->  | K51: =SUM(K5:K50) -> 12.724 | M51: =SUM(M5:M49)*M3 -> 1.194 | N51: 1.124 | O51: 0.28 | P51: 0.846 | Q51: 0.64 | R51: 0.8 | S51: 0.32 | T51: 0.6 | U51: 0.26 | V51: 3.36 | W51: 2.92 | X51: 0.9

Sheet Revisión (hidden)
B2: VERDE W Residencial | Y2: SEGURO
B3: REVISIÓN | Y3: EN REVISIÓN
B4: ='Matriz VERDE-GBCe'!G4 -> PyE | D4: =VLOOKUP($B4,'Matriz VERDE-GBCe'!$G$4:$H$51,2,FALSE) -> Parcela y Emplazamiento. | E4: =VLOOKUP($D4,'Matriz VERDE-GBCe'!$H$4:$K$51,2,FALSE) -> 0 | Y4: NO CUMPLE
D7: ='Matriz VERDE-GBCe'!H5 -> PyE 01 | E7: =VLOOKUP($D7,'Matriz VERDE-GBCe'!$H$4:$K$51,2,FALSE) -> Proximidad al transporte publico. | F7: =VLOOKUP($D7,'Matriz VERDE-GBCe'!$H$4:$L$51,5,FALSE) -> 0 | Y7: Target | Z7: SEGURO | AB7: EN REVISIÓN | AD7: NO CUMPLE | AF7: NO APLICA
D9: D.J | E9: Fecha de entrega del archivo
D11: AA 01.1 | E11: Mantenimiento de corredores naturales | Y11: =IF(AF11=0,1,0) -> 1 | Z11: =+IF($H11="seguro",$Y11,0) -> 0 | AB11: =+IF($H11="EN REVISIÓN",$Y11,0) -> 0 | AD11: =+IF($H11="NO CUMPLE",$Y11,0) -> 0 | AF11: =+IF($H11="no aplica",2,0) -> 0
D14: AA 01.2 | E14: Medidas de protección de la biodiversidad | Y14: =IF(AF14=0,1,0) -> 1 | Z14: =+IF($H14="seguro",$Y14,0) -> 0 | AB14: =+IF($H14="EN REVISIÓN",$Y14,0) -> 0 | AD14: =+IF($H14="NO CUMPLE",$Y14,0) -> 0 | AF14: =+IF($H14="no aplica",2,0) -> 0
Y16: =SUM(Y11:Y14) -> 2 | Z16: =IF($F7="",0,SUM(Z11:Z14)*$F7/$Y16) -> 0 | AB16: =IF($F7="",0,SUM(AB11:AB14)*$F7/$Y16) -> 0 | AD16: =IF($F7="",0,SUM(AD11:AD14)*$F7/$Y16) -> 0
D19: ='Matriz VERDE-GBCe'!H9 -> PyE 05 | E19: =VLOOKUP($D19,'Matriz VERDE-GBCe'!$H$4:$K$51,2,FALSE) -> Clasificación de RSU. | F19: 0.04159733777 | L19: NOTAS | Y19: Target | Z19: SEGURO | AB19: EN REVISIÓN | AD19: NO CUMPLE | AF19: NO APLICA
D21: D.J | E21: Fecha del archivo
D23: AA 02.1 | E23: 20% de superficie ajardinada con plantas autóctonas o adaptadas | Y23: =IF(AF23=0,0.4,0) -> 0.4 | Z23: =+IF($H23="seguro",$Y23,0) -> 0 | AB23: =+IF($H23="EN REVISIÓN",$Y23,0) -> 0 | AD23: =+IF($H23="NO CUMPLE",$Y23,0) -> 0 | AF23: =+IF($H23="no aplica",2,0) -> 0
D26: AA 02.2 | E26: Existe un estudio previo del terreno | Y26: =IF(AF26=0,0.3,0) -> 0.3 | Z26: =+IF($H26="seguro",$Y26,0) -> 0 | AB26: =+IF($H26="EN REVISIÓN",$Y26,0) -> 0 | AD26: =+IF($H26="NO CUMPLE",$Y26,0) -> 0 | AF26: =+IF($H26="no aplica",2,0) -> 0
D29: AA 02.3 | E29: Se supera en un 10% las superficies ajardinadas fijadas por normativa | Y29: =IF(AF29=0,0.3,0) -> 0.3 | Z29: =+IF($H29="seguro",$Y29,0) -> 0 | AB29: =+IF($H29="EN REVISIÓN",$Y29,0) -> 0 | AD29: =+IF($H29="NO CUMPLE",$Y29,0) -> 0 | AF29: =+IF($H29="no aplica",2,0) -> 0
Y31: =SUM(Y23:Y29) -> 1 | Z31: =IF($F19="",0,SUM(Z22:Z29)*$F19/$Y31) -> 0 | AB31: =IF($F19="",0,SUM(AB22:AB29)*$F19/$Y31) -> 0 | AD31: =IF($F19="",0,SUM(AD22:AD29)*$F19/$Y31) -> 0
D34: ='Matriz VERDE-GBCe'!H13 -> PyE 09 | E34: =VLOOKUP($D34,'Matriz VERDE-GBCe'!$H$4:$K$51,2,FALSE) -> Contaminación lumínica. | F34: =VLOOKUP($D34,'Matriz VERDE-GBCe'!$H$4:$K$51,6,FALSE) ->  | L34: NOTAS | Y34: Target | Z34: SEGURO | AB34: EN REVISIÓN | AD34: NO CUMPLE | AF34: NO APLICA
D36: D.J | E36: Fecha del archivo
D38: AA 03.1 | E38: Valor ecológico previo de la zona | Y38: =IF(AF38=0,0.4,0) -> 0.4 | Z38: =+IF($H38="seguro",$Y38,0) -> 0 | AB38: =+IF($H38="EN REVISIÓN",$Y38,0) -> 0 | AD38: =+IF($H38="NO CUMPLE",$Y38,0) -> 0 | AF38: =+IF($H38="no aplica",2,0) -> 0
D41: AA 03.2 | E41: Implantación sobre terrenos ya urbanizados | Y41: =IF(AF41=0,0.3,0) -> 0.3 | Z41: =+IF($H41="seguro",$Y41,0) -> 0 | AB41: =+IF($H41="EN REVISIÓN",$Y41,0) -> 0 | AD41: =+IF($H41="NO CUMPLE",$Y41,0) -> 0 | AF41: =+IF($H41="no aplica",2,0) -> 0
D44: AA 03.3 | E44: Estudio previo de la contaminación del suelo | Y44: =IF(AF44=0,0.3,0) -> 0.3 | Z44: =+IF($H44="seguro",$Y44,0) -> 0 | AB44: =+IF($H44="EN REVISIÓN",$Y44,0) -> 0 | AD44: =+IF($H44="NO CUMPLE",$Y44,0) -> 0 | AF44: =+IF($H44="no aplica",2,0) -> 0
Y46: =SUM(Y38:Y44) -> 1 | Z46: =IF($F34="",0,SUM(Z37:Z44)*$F34/$Y46) ->  | AB46: =IF($F34="",0,SUM(AB37:AB44)*$F34/$Y46) ->  | AD46: =IF($F34="",0,SUM(AD37:AD44)*$F34/$Y46) -> 
D48: ='Matriz VERDE-GBCe'!H14 -> Energía y Atmósfera.
D51: ='Matriz VERDE-GBCe'!H15 -> EyA 01 | E51: =VLOOKUP($D51,'Matriz VERDE-GBCe'!$H$4:$K$51,2,FALSE) -> Demanda de calefacción y refrigeración. | F51: =VLOOKUP($D51,'Matriz VERDE-GBCe'!$H$4:$K$51,6,FALSE) ->  | L51: NOTAS | Y51: Target | Z51: SEGURO | AB51: EN REVISIÓN | AD51: NO CUMPLE | AF51: NO APLICA
D53: D.J | E53: Fecha del archivo
D55: AA 05.1 | E55: El Índice de calificación energética es D | Y55: =IF(AF55=0,0.1,0) -> 0.1 | Z55: =+IF($H55="seguro",$Y55,0) -> 0 | AB55: =+IF($H55="EN REVISIÓN",$Y55,0) -> 0 | AD55: =+IF($H55="NO CUMPLE",$Y55,0) -> 0 | AF55: =+IF($H55="no aplica",2,0) -> 0
D58: AA 05.2 | E58: El Índice de calificación energética es C | Y58: =IF(AF58=0,0.2,0) -> 0.2 | Z58: =+IF($H58="seguro",$Y58,0) -> 0 | AB58: =+IF($H58="EN REVISIÓN",$Y58,0) -> 0 | AD58: =+IF($H58="NO CUMPLE",$Y58,0) -> 0 | AF58: =+IF($H58="no aplica",2,0) -> 0
D61: AA 05.3 | E61: El Índice de calificación energética es B | Y61: 0.5 | Z61: =+IF($H61="seguro",$Y61,0) -> 0 | AB61: =+IF($H61="EN REVISIÓN",$Y61,0) -> 0 | AD61: =+IF($H61="NO CUMPLE",$Y61,0) -> 0 | AF61: =+IF($H61="no aplica",2,0) -> 0
D64: AA 05.4 | E64: El Índice de calificación energética es A | Y64: 0.7 | Z64: =+IF($H64="seguro",$Y64,0) -> 0 | AB64: =+IF($H64="EN REVISIÓN",$Y64,0) -> 0 | AD64: =+IF($H64="NO CUMPLE",$Y64,0) -> 0 | AF64: =+IF($H64="no aplica",2,0) -> 0
D67: AA 05.5 | E67: Se utilizan equipos de bombeo eficientes | Y67: =IF(AF67=0,0.2,0) -> 0.2 | Z67: =+IF($H67="seguro",$Y67,0) -> 0 | AB67: =+IF($H67="EN REVISIÓN",$Y67,0) -> 0 | AD67: =+IF($H67="NO CUMPLE",$Y67,0) -> 0 | AF67: =+IF($H67="no aplica",2,0) -> 0
D70: AA 05.6 | E70: Medidas de telecontrol para gestionart los sistemas de bombeo | Y70: =IF(AF70=0,0.1,0) -> 0.1 | Z70: =+IF($H70="seguro",$Y70,0) -> 0 | AB70: =+IF($H70="EN REVISIÓN",$Y70,0) -> 0 | AD70: =+IF($H70="NO CUMPLE",$Y70,0) -> 0 | AF70: =+IF($H70="no aplica",2,0) -> 0
Y72: =SUM(Y63:Y70) -> 1 | Z72: =IF($F51="",0,SUM(Z55:Z70)*$F51/$Y72) ->  | AB72: =IF($F51="",0,SUM(AB55:AB70)*$F51/$Y72) ->  | AD72: =IF($F51="",0,SUM(AD55:AD70)*$F51/$Y72) -> 
D75: ='Matriz VERDE-GBCe'!H19 -> EyA 05 | E75: =VLOOKUP($D75,'Matriz VERDE-GBCe'!$H$4:$K$51,2,FALSE) -> Elección responsable de refrigerantes. | F75: =VLOOKUP($D75,'Matriz VERDE-GBCe'!$H$4:$K$51,6,FALSE) ->  | L75: NOTAS | Y75: Target | Z75: SEGURO | AB75: EN REVISIÓN | AD75: NO CUMPLE | AF75: NO APLICA
D77: D.J | E77: Fecha del archivo
D79: AA 06.1 | E79: Estudio previo de implantación de renovables | Y79: 0.4 | Z79: =+IF($H79="seguro",$Y79,0) -> 0 | AB79: =+IF($H79="EN REVISIÓN",$Y79,0) -> 0 | AD79: =+IF($H79="NO CUMPLE",$Y79,0) -> 0 | AF79: =+IF($H79="no aplica",2,0) -> 0
D82: AA 06.2 | E82: Sistema de producción y distribución de energía cumunitario | Y82: 0.6 | Z82: =+IF($H82="seguro",$Y82,0) -> 0 | AB82: =+IF($H82="EN REVISIÓN",$Y82,0) -> 0 | AD82: =+IF($H82="NO CUMPLE",$Y82,0) -> 0 | AF82: =+IF($H82="no aplica",2,0) -> 0
Y84: =SUM(Y79:Y82) -> 1 | Z84: =IF($F75="",0,SUM(Z79:Z82)*$F75/$Y84) ->  | AB84: =IF($F75="",0,SUM(AB79:AB82)*$F75/$Y84) ->  | AD84: =IF($F75="",0,SUM(AD79:AD82)*$F75/$Y84) -> 
D86: ='Matriz VERDE-GBCe'!H21 -> Recursos Naturales.
D89: ='Matriz VERDE-GBCe'!H22 -> RN 01 | E89: =VLOOKUP($D89,'Matriz VERDE-GBCe'!$H$4:$K$51,2,FALSE) -> Consumo de agua en aparatos sanitarios. | F89: =VLOOKUP($D89,'Matriz VERDE-GBCe'!$H$4:$K$51,6,FALSE) ->  | L89: NOTAS | Y89: Target | Z89: SEGURO | AB89: EN REVISIÓN | AD89: NO CUMPLE | AF89: NO APLICA
D91: D.J | E91: Fecha del archivo
D93: AA 07.1 | E93: Las necesidades de riego se reducen en un 20% | Y93: =IF(AF93=0,0.15,0) -> 0.15 | Z93: =+IF($H93="seguro",$Y93,0) -> 0 | AB93: =+IF($H93="EN REVISIÓN",$Y93,0) -> 0 | AD93: =+IF($H93="NO CUMPLE",$Y93,0) -> 0 | AF93: =+IF($H93="no aplica",2,0) -> 0
D96: AA 07.2 | E96: Las necesidades de riego se reducen en un 50% | Y96: =IF(AF96=0,0.25,0) -> 0.25 | Z96: =+IF($H96="seguro",$Y96,0) -> 0 | AB96: =+IF($H96="EN REVISIÓN",$Y96,0) -> 0 | AD96: =+IF($H96="NO CUMPLE",$Y96,0) -> 0 | AF96: =+IF($H96="no aplica",2,0) -> 0
D99: AA 07.3 | E99: Sistema de monitorización para gestionar el consumo de agua | Y99: =IF(AF99=0,0.3,0) -> 0.3 | Z99: =+IF($H99="seguro",$Y99,0) -> 0 | AB99: =+IF($H99="EN REVISIÓN",$Y99,0) -> 0 | AD99: =+IF($H99="NO CUMPLE",$Y99,0) -> 0 | AF99: =+IF($H99="no aplica",2,0) -> 0
D102: AA 07.4 | E102: Se reaprovechas las aguas pluviales y/o grises | Y102: =IF(AF102=0,0.3,0) -> 0.3 | Z102: =+IF($H102="seguro",$Y102,0) -> 0 | AB102: =+IF($H102="EN REVISIÓN",$Y102,0) -> 0 | AD102: =+IF($H102="NO CUMPLE",$Y102,0) -> 0 | AF102: =+IF($H102="no aplica",2,0) -> 0
Y104: =SUM(Y93:Y102) -> 1 | Z104: =IF($F89="",0,SUM(Z93:Z102)*$F89/$Y104) ->  | AB104: =IF($F89="",0,SUM(AB93:AB102)*$F89/$Y104) ->  | AD104: =IF($F89="",0,SUM(AD93:AD102)*$F89/$Y104) -> 
D107: ='Matriz VERDE-GBCe'!H32 -> RN 11 | E107: =VLOOKUP($D107,'Matriz VERDE-GBCe'!$H$4:$K$51,2,FALSE) -> Ecoetiquetado de producto. | F107: =VLOOKUP($D107,'Matriz VERDE-GBCe'!$H$4:$K$51,6,FALSE) ->  | L107: NOTAS | Y107: Target | Z107: SEGURO | AB107: EN REVISIÓN | AD107: NO CUMPLE | AF107: NO APLICA
D109: D.J | E109: Fecha del archivo
D111: AA 06.1 | E111: Estudio previo de implantación de renovables | Y111: 0.4 | Z111: =+IF($H111="seguro",$Y111,0) -> 0 | AB111: =+IF($H111="EN REVISIÓN",$Y111,0) -> 0 | AD111: =+IF($H111="NO CUMPLE",$Y111,0) -> 0 | AF111: =+IF($H111="no aplica",2,0) -> 0
D114: AA 06.2 | E114: Sistema de producción y distribución de energía cumunitario | Y114: 0.6 | Z114: =+IF($H114="seguro",$Y114,0) -> 0 | AB114: =+IF($H114="EN REVISIÓN",$Y114,0) -> 0 | AD114: =+IF($H114="NO CUMPLE",$Y114,0) -> 0 | AF114: =+IF($H114="no aplica",2,0) -> 0
Y116: =SUM(Y111:Y114) -> 1 | Z116: =IF($F107="",0,SUM(Z111:Z114)*$F107/$Y116) ->  | AB116: =IF($F107="",0,SUM(AB111:AB114)*$F107/$Y116) ->  | AD116: =IF($F107="",0,SUM(AD111:AD114)*$F107/$Y116) -> 
D118: ='Matriz VERDE-GBCe'!H33 -> Calidad del Ambiente Interior.
D122: ='Matriz VERDE-GBCe'!H34 -> CAI 01 | E122: =VLOOKUP($D122,'Matriz VERDE-GBCe'!$H$4:$K$51,2,FALSE) -> Limitación en las emisiones de COVs. | F122: =VLOOKUP($D122,'Matriz VERDE-GBCe'!$H$4:$K$51,6,FALSE) ->  | L122: NOTAS | Y122: Target | Z122: SEGURO | AB122: EN REVISIÓN | AD122: NO CUMPLE | AF122: NO APLICA
D124: D.J | E124: Fecha del archivo
D126: AA 09.1 | E126: Se ha reutilizado, al menos, un 5% del material | Y126: =IF(AF126=0,0.25,0) -> 0.25 | Z126: =+IF($H126="seguro",$Y126,0) -> 0 | AB126: =+IF($H126="EN REVISIÓN",$Y126,0) -> 0 | AD126: =+IF($H126="NO CUMPLE",$Y126,0) -> 0 | AF126: =+IF($H126="no aplica",2,0) -> 0
D129: AA 09.2 | E129: Los materiles reciclados alcanzan, al menos, un 40% del total | Y129: =IF(AF129=0,0.25,0) -> 0.25 | Z129: =+IF($H129="seguro",$Y129,0) -> 0 | AB129: =+IF($H129="EN REVISIÓN",$Y129,0) -> 0 | AD129: =+IF($H129="NO CUMPLE",$Y129,0) -> 0 | AF129: =+IF($H129="no aplica",2,0) -> 0
D132: AA 09.3 | E132: Se alcanza, al menos, un 15% de materiales de origen sostenible | Y132: =IF(AF132=0,0.25,0) -> 0.25 | Z132: =+IF($H132="seguro",$Y132,0) -> 0 | AB132: =+IF($H132="EN REVISIÓN",$Y132,0) -> 0 | AD132: =+IF($H132="NO CUMPLE",$Y132,0) -> 0 | AF132: =+IF($H132="no aplica",2,0) -> 0
D135: AA 09.4 | E135: Se disponene de, al menos, 5 materiales con ecoetiqueta tipo I o III | Y135: =IF(AF135=0,0.25,0) -> 0.25 | Z135: =+IF($H135="seguro",$Y135,0) -> 0 | AB135: =+IF($H135="EN REVISIÓN",$Y135,0) -> 0 | AD135: =+IF($H135="NO CUMPLE",$Y135,0) -> 0 | AF135: =+IF($H135="no aplica",2,0) -> 0
Y137: =SUM(Y126:Y135) -> 1 | Z137: =IF($F122="",0,SUM(Z126:Z135)*$F122/$Y137) ->  | AB137: =IF($F122="",0,SUM(AB126:AB135)*$F122/$Y137) ->  | AD137: =IF($F122="",0,SUM(AD126:AD135)*$F122/$Y137) -> 
D140: ='Matriz VERDE-GBCe'!#REF! ->  | E140: =VLOOKUP($D140,'Matriz VERDE-GBCe'!$H$4:$K$51,2,FALSE) ->  | F140: 0.08874098724 | L140: NOTAS | Y140: Target | Z140: SEGURO | AB140: EN REVISIÓN | AD140: NO CUMPLE | AF140: NO APLICA
D142: D.J | E142: Fecha del archivo
D144: AA 10.1 | E144: Se ha desarrollado un ACV de los materiales empleados | Y144: =IF(AF144=0,1,0) -> 1 | Z144: =+IF($H144="seguro",$Y144,0) -> 0 | AB144: =+IF($H144="EN REVISIÓN",$Y144,0) -> 0 | AD144: =+IF($H144="NO CUMPLE",$Y144,0) -> 0 | AF144: =+IF($H144="no aplica",2,0) -> 0
Y146: =Y144 -> 1 | Z146: =IF($F140="",0,Z144*$F140) -> 0 | AB146: =IF($F140="",0,AB144*$F140) -> 0 | AD146: =IF($F140="",0,AD144*$F140) -> 0
D148: ='Matriz VERDE-GBCe'!H42 -> Concepto de Calidad.
D151: ='Matriz VERDE-GBCe'!H43 -> CC 01 | E151: =VLOOKUP($D151,'Matriz VERDE-GBCe'!$H$4:$K$51,2,FALSE) -> Eficiencia de los espacios. | F151: =VLOOKUP($D151,'Matriz VERDE-GBCe'!$H$4:$K$51,6,FALSE) ->  | L151: NOTAS | Y151: Target | Z151: SEGURO | AB151: EN REVISIÓN | AD151: NO CUMPLE | AF151: NO APLICA
D153: D.J | E153: Fecha del archivo
D155: AA 11.1 | E155: Instalación de contenedores por fracciones para residuos NO peligrosos | Y155: 0.25 | Z155: =+IF($H155="seguro",$Y155,0) -> 0 | AB155: =+IF($H155="EN REVISIÓN",$Y155,0) -> 0 | AD155: =+IF($H155="NO CUMPLE",$Y155,0) -> 0 | AF155: =+IF($H155="no aplica",2,0) -> 0
D158: AA 11.2 | E158: Instalacción de contenedores para residuos peligrosos | Y158: 0.25 | Z158: =+IF($H158="seguro",$Y158,0) -> 0 | AB158: =+IF($H158="EN REVISIÓN",$Y158,0) -> 0 | AD158: =+IF($H158="NO CUMPLE",$Y158,0) -> 0 | AF158: =+IF($H158="no aplica",2,0) -> 0
D161: AA 11.3 | E161: Compromiso de retirada selectiva de residuos | Y161: 0.25 | Z161: =+IF($H161="seguro",$Y161,0) -> 0 | AB161: =+IF($H161="EN REVISIÓN",$Y161,0) -> 0 | AD161: =+IF($H161="NO CUMPLE",$Y161,0) -> 0 | AF161: =+IF($H161="no aplica",2,0) -> 0
D164: AA 11.4 | E164: Mejora sustancial en la gestión de residuos | Y164: 0.25 | Z164: =+IF($H164="seguro",$Y164,0) -> 0 | AB164: =+IF($H164="EN REVISIÓN",$Y164,0) -> 0 | AD164: =+IF($H164="NO CUMPLE",$Y164,0) -> 0 | AF164: =+IF($H164="no aplica",2,0) -> 0
Y166: =SUM(Y155:Y164) -> 1 | Z166: =IF($F151="",0,SUM(Z154:Z164)*$F151/$Y166) ->  | AB166: =IF($F151="",0,SUM(AB154:AB164)*$F151/$Y166) ->  | AD166: =IF($F151="",0,SUM(AD154:AD164)*$F151/$Y166) -> 
D169: ='Matriz VERDE-GBCe'!H44 -> CC 02 | E169: =VLOOKUP($D169,'Matriz VERDE-GBCe'!$H$4:$K$51,2,FALSE) -> Sistema de gestión del edificio (BMS). | F169: =VLOOKUP($D169,'Matriz VERDE-GBCe'!$H$4:$K$51,6,FALSE) ->  | L169: NOTAS | Y169: Target | Z169: SEGURO | AB169: EN REVISIÓN | AD169: NO CUMPLE | AF169: NO APLICA
D171: D.J | E171: Fecha del archivo
D173: AA 12.1 | E173: Existe un plan de prevención de las actividades de la construcción | Y173: =IF(AF173=0,1,0) -> 1 | Z173: =+IF($H173="seguro",$Y173,0) -> 0 | AB173: =+IF($H173="EN REVISIÓN",$Y173,0) -> 0 | AD173: =+IF($H173="NO CUMPLE",$Y173,0) -> 0 | AF173: =+IF($H173="no aplica",2,0) -> 0
Y175: =Y173 -> 1 | Z175: =IF($F169="",0,Z173*$F169) ->  | AB175: =IF($F169="",0,AB173*$F169) ->  | AD175: =IF($F169="",0,AD173*$F169) -> 
D178: ='Matriz VERDE-GBCe'!#REF! ->  | E178: =VLOOKUP($D178,'Matriz VERDE-GBCe'!$H$4:$K$51,2,FALSE) ->  | F178: =VLOOKUP($D178,'Matriz VERDE-GBCe'!$H$4:$K$51,6,FALSE) ->  | L178: NOTAS | Y178: Target | Z178: SEGURO | AB178: EN REVISIÓN | AD178: NO CUMPLE | AF178: NO APLICA
D180: D.J | E180: Fecha del archivo
D182: AA 13.1 | E182: Red separativa de pluviales | Y182: 0.6 | Z182: =+IF($H182="seguro",$Y182,0) -> 0 | AB182: =+IF($H182="EN REVISIÓN",$Y182,0) -> 0 | AD182: =+IF($H182="NO CUMPLE",$Y182,0) -> 0 | AF182: =+IF($H182="no aplica",2,0) -> 0
D185: AA 13.2 | E185: Separadores de contaminantes (hidrocarburos y otros) | Y185: 0.2 | Z185: =+IF($H185="seguro",$Y185,0) -> 0 | AB185: =+IF($H185="EN REVISIÓN",$Y185,0) -> 0 | AD185: =+IF($H185="NO CUMPLE",$Y185,0) -> 0 | AF185: =+IF($H185="no aplica",2,0) -> 0
D188: AA 13.3 | E188: Gestión de escorrentías | Y188: 0.2 | Z188: =+IF($H188="seguro",$Y188,0) -> 0 | AB188: =+IF($H188="EN REVISIÓN",$Y188,0) -> 0 | AD188: =+IF($H188="NO CUMPLE",$Y188,0) -> 0 | AF188: =+IF($H188="no aplica",2,0) -> 0
Y190: =SUM(Y182:Y189) -> 1 | Z190: =IF($F178="",0,SUM(Z181:Z188)*$F178/$Y190) ->  | AB190: =IF($F178="",0,SUM(AB181:AB188)*$F178/$Y190) ->  | AD190: =IF($F178="",0,SUM(AD181:AD188)*$F178/$Y190) -> 
D193: ='Matriz VERDE-GBCe'!#REF! ->  | E193: =VLOOKUP($D193,'Matriz VERDE-GBCe'!$H$4:$K$51,2,FALSE) ->  | F193: =VLOOKUP($D193,'Matriz VERDE-GBCe'!$H$4:$K$51,6,FALSE) ->  | L193: NOTAS | Y193: Target | Z193: SEGURO | AB193: EN REVISIÓN | AD193: NO CUMPLE | AF193: NO APLICA
D195: D.J | E195: Fecha del archivo
D197: AA 14.1 | E197: El FHS reduce el exigido por normativa en un 50% | Y197: =IF(AF197=0,1,0) -> 1 | Z197: =+IF($H197="seguro",$Y197,0) -> 0 | AB197: =+IF($H197="EN REVISIÓN",$Y197,0) -> 0 | AD197: =+IF($H197="NO CUMPLE",$Y197,0) -> 0 | AF197: =+IF($H197="no aplica",2,0) -> 0
Y199: =Y197 -> 1 | Z199: =IF($F193="",0,Z197*$F193) ->  | AB199: =IF($F193="",0,AB197*$F193) ->  | AD199: =IF($F193="",0,AD197*$F193) -> 
D202: ='Matriz VERDE-GBCe'!#REF! ->  | E202: =VLOOKUP($D202,'Matriz VERDE-GBCe'!$H$4:$K$51,2,FALSE) ->  | F202: =VLOOKUP($D202,'Matriz VERDE-GBCe'!$H$4:$K$51,6,FALSE) ->  | L202: NOTAS | Y202: Target | Z202: SEGURO | AB202: EN REVISIÓN | AD202: NO CUMPLE | AF202: NO APLICA
D203: ='Matriz VERDE-GBCe'!#REF! -> 
D204: D.J | E204: Fecha del archivo
D206: AA 15.1 | E206: Las superficies tratadas para evitar la isla de calor supera el 25% | Y206: =IF(AF206=0,1,0) -> 1 | Z206: =+IF($H206="seguro",$Y206,0) -> 0 | AB206: =+IF($H206="EN REVISIÓN",$Y206,0) -> 0 | AD206: =+IF($H206="NO CUMPLE",$Y206,0) -> 0 | AF206: =+IF($H206="no aplica",2,0) -> 0
Y208: =Y206 -> 1 | Z208: =IF($F202="",0,Z206*$F202) ->  | AB208: =IF($F202="",0,AB206*$F202) ->  | AD208: =IF($F202="",0,AD206*$F202) -> 
D211: ='Matriz VERDE-GBCe'!#REF! ->  | E211: =VLOOKUP($D211,'Matriz VERDE-GBCe'!$H$4:$K$51,2,FALSE) ->  | F211: =VLOOKUP($D211,'Matriz VERDE-GBCe'!$H$4:$K$51,6,FALSE) ->  | L211: NOTAS | Y211: Target | Z211: SEGURO | AB211: EN REVISIÓN | AD211: NO CUMPLE | AF211: NO APLICA
D213: D.J | E213: Fecha del archivo
X214: =D211 -> 
D215: AA 16.1 | E215: Se emplea asfalto fonoabsorvente (solo cerca de poblaciones) | Y215: =IF(AF215=0,1,0) -> 1 | Z215: =+IF($H215="seguro",$Y215,0) -> 0 | AB215: =+IF($H215="EN REVISIÓN",$Y215,0) -> 0 | AD215: =+IF($H215="NO CUMPLE",$Y215,0) -> 0 | AF215: =+IF($H215="no aplica",2,0) -> 0
Y217: =Y215 -> 1 | Z217: =IF($F211="",0,Z215*$F211) ->  | AB217: =IF($F211="",0,AB215*$F211) ->  | AD217: =IF($F211="",0,AD215*$F211) -> 
B220: ='Matriz VERDE-GBCe'!G39 -> ASE | D220: ='Matriz VERDE-GBCe'!H39 -> Aspectos Sociales y Económicos.
D223: ='Matriz VERDE-GBCe'!H40 -> ASE 01 | E223: =VLOOKUP($D223,'Matriz VERDE-GBCe'!$H$4:$K$51,2,FALSE) -> Acceso universal. | F223: =VLOOKUP($D223,'Matriz VERDE-GBCe'!$H$4:$K$51,6,FALSE) ->  | L223: NOTAS | Y223: Target | Z223: SEGURO | AB223: EN REVISIÓN | AD223: NO CUMPLE | AF223: NO APLICA
D225: D.J | E225: Fecha del archivo
D227: AS 01.1 | E227: Existe una estación que mide la calidad del aire | Y227: =IF(AF227=0,1,0) -> 1 | Z227: =+IF($H227="seguro",$Y227,0) -> 0 | AB227: =+IF($H227="EN REVISIÓN",$Y227,0) -> 0 | AD227: =+IF($H227="NO CUMPLE",$Y227,0) -> 0 | AF227: =+IF($H227="no aplica",2,0) -> 0
D230: AS 01.2 | E230: Los datos de dicha estación se comparten con los servicios municipales | Y230: =IF(AF230=0,1,0) -> 1 | Z230: =+IF($H230="seguro",$Y230,0) -> 0 | AB230: =+IF($H230="EN REVISIÓN",$Y230,0) -> 0 | AD230: =+IF($H230="NO CUMPLE",$Y230,0) -> 0 | AF230: =+IF($H230="no aplica",2,0) -> 0
D233: AS 01.3 | E233: Los datos de la estación son públicos | Y233: =IF(AF233=0,1,0) -> 1 | Z233: =+IF($H233="seguro",$Y233,0) -> 0 | AB233: =+IF($H233="EN REVISIÓN",$Y233,0) -> 0 | AD233: =+IF($H233="NO CUMPLE",$Y233,0) -> 0 | AF233: =+IF($H233="no aplica",2,0) -> 0
Y235: =SUM(Y226:Y233) -> 3 | Z235: =IF($F223="",0,SUM(Z227:Z233)*$F223/$Y235) ->  | AB235: =IF($F223="",0,SUM(AB227:AB233)*$F223/$Y235) ->  | AD235: =IF($F223="",0,SUM(AD227:AD233)*$F223/$Y235) -> 
D238: ='Matriz VERDE-GBCe'!#REF! ->  | E238: =VLOOKUP($D238,'Matriz VERDE-GBCe'!$H$4:$K$51,2,FALSE) ->  | F238: =VLOOKUP($D238,'Matriz VERDE-GBCe'!$H$4:$K$51,6,FALSE) ->  | L238: NOTAS | Y238: Target | Z238: SEGURO | AB238: EN REVISIÓN | AD238: NO CUMPLE | AF238: NO APLICA
D240: D.J | E240: Fecha del archivo
D242: AS 02.1 | E242: El 70% tienen acceso a equipamientos a menos de 1,000 m | Y242: =IF(AF242=0,0.4,0) -> 0.4 | Z242: =+IF($H242="seguro",$Y242,0) -> 0 | AB242: =+IF($H242="EN REVISIÓN",$Y242,0) -> 0 | AD242: =+IF($H242="NO CUMPLE",$Y242,0) -> 0 | AF242: =+IF($H242="no aplica",2,0) -> 0
D245: AS 02.2 | E245: Las zonas verdes están dotadas de, al menos, 3 equipaciones | Y245: =IF(AF245=0,0.3,0) -> 0.3 | Z245: =+IF($H245="seguro",$Y245,0) -> 0 | AB245: =+IF($H245="EN REVISIÓN",$Y245,0) -> 0 | AD245: =+IF($H245="NO CUMPLE",$Y245,0) -> 0 | AF245: =+IF($H245="no aplica",2,0) -> 0
D248: AS 02.3 | E248: Existen, al menos, dos usos complementarios al de nave logística. | Y248: =IF(AF248=0,0.3,0) -> 0.3 | Z248: =+IF($H248="seguro",$Y248,0) -> 0 | AB248: =+IF($H248="EN REVISIÓN",$Y248,0) -> 0 | AD248: =+IF($H248="NO CUMPLE",$Y248,0) -> 0 | AF248: =+IF($H248="no aplica",2,0) -> 0
Y250: =SUM(Y242:Y248) -> 1 | Z250: =IF($F238="",0,SUM(Z242:Z248)*$F238/$Y250) ->  | AB250: =IF($F238="",0,SUM(AB242:AB248)*$F238/$Y250) ->  | AD250: =IF($F238="",0,SUM(AD242:AD248)*$F238/$Y250) -> 
D253: ='Matriz VERDE-GBCe'!#REF! ->  | E253: =VLOOKUP($D253,'Matriz VERDE-GBCe'!$H$4:$K$51,2,FALSE) ->  | F253: =VLOOKUP($D253,'Matriz VERDE-GBCe'!$H$4:$K$51,6,FALSE) ->  | L253: NOTAS | Y253: Target | Z253: SEGURO | AB253: EN REVISIÓN | AD253: NO CUMPLE | AF253: NO APLICA
D255: D.J | E255: Fecha del archivo
D257: AS 02.1 | E257: El 70% tienen acceso a equipamientos a menos de 1,000 m | Y257: =IF(AF257=0,0.4,0) -> 0.4 | Z257: =+IF($H257="seguro",$Y257,0) -> 0 | AB257: =+IF($H257="EN REVISIÓN",$Y257,0) -> 0 | AD257: =+IF($H257="NO CUMPLE",$Y257,0) -> 0 | AF257: =+IF($H257="no aplica",2,0) -> 0
D260: AS 02.2 | E260: Las zonas verdes están dotadas de, al menos, 3 equipaciones | Y260: =IF(AF260=0,0.3,0) -> 0.3 | Z260: =+IF($H260="seguro",$Y260,0) -> 0 | AB260: =+IF($H260="EN REVISIÓN",$Y260,0) -> 0 | AD260: =+IF($H260="NO CUMPLE",$Y260,0) -> 0 | AF260: =+IF($H260="no aplica",2,0) -> 0
D263: AS 02.3 | E263: Existen, al menos, dos usos complementarios al de nave logística. | Y263: =IF(AF263=0,0.3,0) -> 0.3 | Z263: =+IF($H263="seguro",$Y263,0) -> 0 | AB263: =+IF($H263="EN REVISIÓN",$Y263,0) -> 0 | AD263: =+IF($H263="NO CUMPLE",$Y263,0) -> 0 | AF263: =+IF($H263="no aplica",2,0) -> 0
Y265: =SUM(Y257:Y263) -> 1 | Z265: =IF($F253="",0,SUM(Z257:Z263)*$F253/$Y265) ->  | AB265: =IF($F253="",0,SUM(AB257:AB263)*$F253/$Y265) ->  | AD265: =IF($F253="",0,SUM(AD257:AD263)*$F253/$Y265) -> 
D268: ='Matriz VERDE-GBCe'!#REF! ->  | E268: =VLOOKUP($D268,'Matriz VERDE-GBCe'!$H$4:$K$51,2,FALSE) ->  | F268: =VLOOKUP($D268,'Matriz VERDE-GBCe'!$H$4:$K$51,6,FALSE) ->  | L268: NOTAS | Y268: Target | Z268: SEGURO | AB268: EN REVISIÓN | AD268: NO CUMPLE | AF268: NO APLICA
D270: D.J | E270: Fecha del archivo
D272: AS 03.1 | E272: Existe un núcleo que cumple con el criterio a menos de 15,000 m | Y272: 0.25 | Z272: =+IF($H272="seguro",$Y272,0) -> 0 | AB272: =+IF($H272="EN REVISIÓN",$Y272,0) -> 0 | AD272: =+IF($H272="NO CUMPLE",$Y272,0) -> 0 | AF272: =+IF($H272="no aplica",2,0) -> 0
D275: AS 03.2 | E275: Existe un núcleo que cumple con el criterio a menos de 10,000 m | Y275: 0.25 | Z275: =+IF($H275="seguro",$Y275,0) -> 0 | AB275: =+IF($H275="EN REVISIÓN",$Y275,0) -> 0 | AD275: =+IF($H275="NO CUMPLE",$Y275,0) -> 0 | AF275: =+IF($H275="no aplica",2,0) -> 0
D278: AS 03.3 | E278: Existe un núcleo que cumple con el criterio a menos de 5,000 m | Y278: 0.25 | Z278: =+IF($H278="seguro",$Y278,0) -> 0 | AB278: =+IF($H278="EN REVISIÓN",$Y278,0) -> 0 | AD278: =+IF($H278="NO CUMPLE",$Y278,0) -> 0 | AF278: =+IF($H278="no aplica",2,0) -> 0
D281: AS 03.4 | E281: Existe un núcleo que cumple con el criterio a menos de 2,000 m | Y281: 0.25 | Z281: =+IF($H281="seguro",$Y281,0) -> 0 | AB281: =+IF($H281="EN REVISIÓN",$Y281,0) -> 0 | AD281: =+IF($H281="NO CUMPLE",$Y281,0) -> 0 | AF281: =+IF($H281="no aplica",2,0) -> 0
Y283: =SUM(Y271:Y281) -> 1 | Z283: =IF($F268="",0,SUM(Z271:Z281)*$F268/$Y283) ->  | AB283: =IF($F268="",0,SUM(AB271:AB281)*$F268/$Y283) ->  | AD283: =IF($F268="",0,SUM(AD271:AD281)*$F268/$Y283) -> 
D286: ='Matriz VERDE-GBCe'!#REF! ->  | E286: =VLOOKUP($D286,'Matriz VERDE-GBCe'!$H$4:$K$51,2,FALSE) ->  | F286: =VLOOKUP($D286,'Matriz VERDE-GBCe'!$H$4:$K$51,6,FALSE) ->  | L286: NOTAS | Y286: Target | Z286: SEGURO | AB286: EN REVISIÓN | AD286: NO CUMPLE | AF286: NO APLICA
D288: D.J | E288: Fecha del archivo
D290: AS 04.1 | E290: Existe un Plan de Movilidad Sostenible | Y290: 1 | Z290: =+IF($H290="seguro",$Y290,0) -> 0 | AB290: =+IF($H290="EN REVISIÓN",$Y290,0) -> 0 | AD290: =+IF($H290="NO CUMPLE",$Y290,0) -> 0 | AF290: =+IF($H290="no aplica",2,0) -> 0
Y292: =SUM(Y289:Y290) -> 1 | Z292: =IF($F286="",0,SUM(Z289:Z290)*$F286/$Y292) ->  | AB292: =IF($F286="",0,SUM(AB289:AB290)*$F286/$Y292) ->  | AD292: =IF($F286="",0,SUM(AD289:AD290)*$F286/$Y292) -> 
D295: ='Matriz VERDE-GBCe'!#REF! ->  | E295: =VLOOKUP($D295,'Matriz VERDE-GBCe'!$H$4:$K$51,2,FALSE) ->  | F295: =VLOOKUP($D295,'Matriz VERDE-GBCe'!$H$4:$K$51,6,FALSE) ->  | L295: NOTAS | Y295: Target | Z295: SEGURO | AB295: EN REVISIÓN | AD295: NO CUMPLE | AF295: NO APLICA
D297: D.J | E297: Fecha del archivo
D299: AS 05.1 | E299: El diseño de los viales garantizan la accesibilidad | Y299: =IF(AF299=0,0.7,0) -> 0.7 | Z299: =+IF($H299="seguro",$Y299,0) -> 0 | AB299: =+IF($H299="EN REVISIÓN",$Y299,0) -> 0 | AD299: =+IF($H299="NO CUMPLE",$Y299,0) -> 0 | AF299: =+IF($H299="no aplica",2,0) -> 0
D302: AS 05.2 | E302: La señalización del parque es adecuada | Y302: =IF(AF302=0,0.3,0) -> 0.3 | Z302: =+IF($H302="seguro",$Y302,0) -> 0 | AB302: =+IF($H302="EN REVISIÓN",$Y302,0) -> 0 | AD302: =+IF($H302="NO CUMPLE",$Y302,0) -> 0 | AF302: =+IF($H302="no aplica",2,0) -> 0
Y304: =SUM(Y299:Y302) -> 1 | Z304: =IF($F295="",0,SUM(Z299:Z302)*$F295/$Y304) ->  | AB304: =IF($F295="",0,SUM(AB299:AB302)*$F295/$Y304) ->  | AD304: =IF($F295="",0,SUM(AD299:AD302)*$F295/$Y304) -> 
D307: ='Matriz VERDE-GBCe'!#REF! ->  | E307: =VLOOKUP($D307,'Matriz VERDE-GBCe'!$H$4:$K$51,2,FALSE) ->  | F307: =VLOOKUP($D307,'Matriz VERDE-GBCe'!$H$4:$K$51,6,FALSE) ->  | L307: NOTAS | Y307: Target | Z307: SEGURO | AB307: EN REVISIÓN | AD307: NO CUMPLE | AF307: NO APLICA
D309: D.J | E309: Fecha del archivo
D311: AS 06.1 | E311: Existe aparcamiento de bicicletas | Y311: 0.5 | Z311: =+IF($H311="seguro",$Y311,0) -> 0 | AB311: =+IF($H311="EN REVISIÓN",$Y311,0) -> 0 | AD311: =+IF($H311="NO CUMPLE",$Y311,0) -> 0 | AF311: =+IF($H311="no aplica",2,0) -> 0
D314: AS 06.2 | E314: Se ha diseñado una red viaria para bicicletas | Y314: 0.5 | Z314: =+IF($H314="seguro",$Y314,0) -> 0 | AB314: =+IF($H314="EN REVISIÓN",$Y314,0) -> 0 | AD314: =+IF($H314="NO CUMPLE",$Y314,0) -> 0 | AF314: =+IF($H314="no aplica",2,0) -> 0
Y316: =SUM(Y311:Y314) -> 1 | Z316: =IF($F307="",0,SUM(Z311:Z314)*$F307/$Y316) ->  | AB316: =IF($F307="",0,SUM(AB311:AB314)*$F307/$Y316) ->  | AD316: =IF($F307="",0,SUM(AD311:AD314)*$F307/$Y316) -> 
D319: ='Matriz VERDE-GBCe'!#REF! ->  | E319: =VLOOKUP($D319,'Matriz VERDE-GBCe'!$H$4:$K$51,2,FALSE) ->  | F319: =VLOOKUP($D319,'Matriz VERDE-GBCe'!$H$4:$K$51,6,FALSE) ->  | L319: NOTAS | Y319: Target | Z319: SEGURO | AB319: EN REVISIÓN | AD319: NO CUMPLE | AF319: NO APLICA
D321: D.J | E321: Fecha del archivo
D323: AS 07.1 | E323: El 70% de las parcelas tienen un nodo de trasnporte a menos de 1.000 m | Y323: =IF(AF323=0,0.7,0) -> 0.7 | Z323: =+IF($H323="seguro",$Y323,0) -> 0 | AB323: =+IF($H323="EN REVISIÓN",$Y323,0) -> 0 | AD323: =+IF($H323="NO CUMPLE",$Y323,0) -> 0 | AF323: =+IF($H323="no aplica",2,0) -> 0
D326: AS 07.2 | E326: El parque tiene conexión con al menos, dos lineas de trasnporte | Y326: =IF(AF326=0,0.3,0) -> 0.3 | Z326: =+IF($H326="seguro",$Y326,0) -> 0 | AB326: =+IF($H326="EN REVISIÓN",$Y326,0) -> 0 | AD326: =+IF($H326="NO CUMPLE",$Y326,0) -> 0 | AF326: =+IF($H326="no aplica",2,0) -> 0
Y328: =SUM(Y323:Y326) -> 1 | Z328: =IF($F319="",0,SUM(Z323:Z326)*$F319/$Y328) ->  | AB328: =IF($F319="",0,SUM(AB323:AB326)*$F319/$Y328) ->  | AD328: =IF($F319="",0,SUM(AD323:AD326)*$F319/$Y328) -> 
D331: ='Matriz VERDE-GBCe'!#REF! ->  | E331: =VLOOKUP($D331,'Matriz VERDE-GBCe'!$H$4:$K$51,2,FALSE) ->  | F331: =VLOOKUP($D331,'Matriz VERDE-GBCe'!$H$4:$K$51,6,FALSE) ->  | L331: NOTAS | Y331: Target | Z331: SEGURO | AB331: EN REVISIÓN | AD331: NO CUMPLE | AF331: NO APLICA
D333: D.J | E333: Fecha del archivo
D335: AS 08.1 | E335: Las plazas de aparcamiento no superan las exigencias normativas | Y335: =IF(AF335=0,0.7,0) -> 0.7 | Z335: =+IF($H335="seguro",$Y335,0) -> 0 | AB335: =+IF($H335="EN REVISIÓN",$Y335,0) -> 0 | AD335: =+IF($H335="NO CUMPLE",$Y335,0) -> 0 | AF335: =+IF($H335="no aplica",2,0) -> 0
D338: AS 08.2 | E338: Se cumple con la reserva de plazas para vehículos eléctricos | Y338: =IF(AF338=0,0.3,0) -> 0.3 | Z338: =+IF($H338="seguro",$Y338,0) -> 0 | AB338: =+IF($H338="EN REVISIÓN",$Y338,0) -> 0 | AD338: =+IF($H338="NO CUMPLE",$Y338,0) -> 0 | AF338: =+IF($H338="no aplica",2,0) -> 0
Y340: =SUM(Y335:Y338) -> 1 | Z340: =IF($F331="",0,SUM(Z335:Z338)*$F331/$Y340) ->  | AB340: =IF($F331="",0,SUM(AB335:AB338)*$F331/$Y340) ->  | AD340: =IF($F331="",0,SUM(AD335:AD338)*$F331/$Y340) -> 
D343: ='Matriz VERDE-GBCe'!#REF! ->  | E343: =VLOOKUP($D343,'Matriz VERDE-GBCe'!$H$4:$K$51,2,FALSE) ->  | F343: =VLOOKUP($D343,'Matriz VERDE-GBCe'!$H$4:$K$51,6,FALSE) ->  | L343: NOTAS | Y343: Target | Z343: SEGURO | AB343: EN REVISIÓN | AD343: NO CUMPLE | AF343: NO APLICA
D345: D.J | E345: Fecha del archivo
D347: AS 09.1 | E347: Se cumple con una de las medidas propuestas | Y347: =IF(AF347=0,0.2,0) -> 0.2 | Z347: =+IF($H347="seguro",$Y347,0) -> 0 | AB347: =+IF($H347="EN REVISIÓN",$Y347,0) -> 0 | AD347: =+IF($H347="NO CUMPLE",$Y347,0) -> 0 | AF347: =+IF($H347="no aplica",2,0) -> 0
D350: AS 09.2 | E350: Se cumple con dos de las medidas propuestas | Y350: =IF(AF350=0,0.2,0) -> 0.2 | Z350: =+IF($H350="seguro",$Y350,0) -> 0 | AB350: =+IF($H350="EN REVISIÓN",$Y350,0) -> 0 | AD350: =+IF($H350="NO CUMPLE",$Y350,0) -> 0 | AF350: =+IF($H350="no aplica",2,0) -> 0
D353: AS 09.3 | E353: Se cumple con tres de las medidas propuestas | Y353: =IF(AF353=0,0.2,0) -> 0.2 | Z353: =+IF($H353="seguro",$Y353,0) -> 0 | AB353: =+IF($H353="EN REVISIÓN",$Y353,0) -> 0 | AD353: =+IF($H353="NO CUMPLE",$Y353,0) -> 0 | AF353: =+IF($H353="no aplica",2,0) -> 0
D356: AS 09.4 | E356: Se cumple con cuatro de las medidas propuestas | Y356: =IF(AF356=0,0.2,0) -> 0.2 | Z356: =+IF($H356="seguro",$Y356,0) -> 0 | AB356: =+IF($H356="EN REVISIÓN",$Y356,0) -> 0 | AD356: =+IF($H356="NO CUMPLE",$Y356,0) -> 0 | AF356: =+IF($H356="no aplica",2,0) -> 0
D359: AS 09.5 | E359: Se cumplen con cinco de las medidas propuestas | Y359: =IF(AF359=0,0.2,0) -> 0.2 | Z359: =+IF($H359="seguro",$Y359,0) -> 0 | AB359: =+IF($H359="EN REVISIÓN",$Y359,0) -> 0 | AD359: =+IF($H359="NO CUMPLE",$Y359,0) -> 0 | AF359: =+IF($H359="no aplica",2,0) -> 0
Y361: =SUM(Y347:Y359) -> 1 | Z361: =IF($F343="",0,SUM(Z347:Z359)*$F343/$Y361) ->  | AB361: =IF($F343="",0,SUM(AB347:AB359)*$F343/$Y361) ->  | AD361: =IF($F343="",0,SUM(AD347:AD359)*$F343/$Y361) -> 
D364: ='Matriz VERDE-GBCe'!#REF! ->  | E364: =VLOOKUP($D364,'Matriz VERDE-GBCe'!$H$4:$K$51,2,FALSE) ->  | F364: =VLOOKUP($D364,'Matriz VERDE-GBCe'!$H$4:$K$51,6,FALSE) ->  | L364: NOTAS | Y364: Target | Z364: SEGURO | AB364: EN REVISIÓN | AD364: NO CUMPLE | AF364: NO APLICA
D366: D.J | E366: Fecha del archivo
D368: AS 10.1 | E368: Control de acceso | Y368: 0.5 | Z368: =+IF($H368="seguro",$Y368,0) -> 0 | AB368: =+IF($H368="EN REVISIÓN",$Y368,0) -> 0 | AD368: =+IF($H368="NO CUMPLE",$Y368,0) -> 0 | AF368: =+IF($H368="no aplica",2,0) -> 0
D371: AS 10.2 | E371: Estudio de seguridad | Y371: 0.25 | Z371: =+IF($H371="seguro",$Y371,0) -> 0 | AB371: =+IF($H371="EN REVISIÓN",$Y371,0) -> 0 | AD371: =+IF($H371="NO CUMPLE",$Y371,0) -> 0 | AF371: =+IF($H371="no aplica",2,0) -> 0
D374: AS 10.3 | E374: Medidas extraordinarias de seguridad | Y374: 0.25 | Z374: =+IF($H374="seguro",$Y374,0) -> 0 | AB374: =+IF($H374="EN REVISIÓN",$Y374,0) -> 0 | AD374: =+IF($H374="NO CUMPLE",$Y374,0) -> 0 | AF374: =+IF($H374="no aplica",2,0) -> 0
Y376: =SUM(Y368:Y374) -> 1 | Z376: =IF($F364="",0,SUM(Z368:Z374)*$F364/$Y376) ->  | AB376: =IF($F364="",0,SUM(AB368:AB374)*$F364/$Y376) ->  | AD376: =IF($F364="",0,SUM(AD368:AD374)*$F364/$Y376) -> 
B378: ='Matriz VERDE-GBCe'!#REF! ->  | D378: ='Matriz VERDE-GBCe'!#REF! -> 
D381: ='Matriz VERDE-GBCe'!#REF! ->  | E381: =VLOOKUP($D381,'Matriz VERDE-GBCe'!$H$4:$K$51,2,FALSE) ->  | F381: =VLOOKUP($D381,'Matriz VERDE-GBCe'!$H$4:$K$51,6,FALSE) ->  | L381: NOTAS | Y381: Target | Z381: SEGURO | AB381: EN REVISIÓN | AD381: NO CUMPLE | AF381: NO APLICA
D383: D.J | E383: Fecha del archivo
D385: AE 01.1 | E385: Existe un estudio de viabilidad económica del polígono | Y385: 0.5 | Z385: =+IF($H385="seguro",$Y385,0) -> 0 | AB385: =+IF($H385="EN REVISIÓN",$Y385,0) -> 0 | AD385: =+IF($H385="NO CUMPLE",$Y385,0) -> 0 | AF385: =+IF($H385="no aplica",2,0) -> 0
D388: AE 01.2 | E388: Se han adoptado medidas para mejorar la viabilidad económica | Y388: 0.5 | Z388: =+IF($H388="seguro",$Y388,0) -> 0 | AB388: =+IF($H388="EN REVISIÓN",$Y388,0) -> 0 | AD388: =+IF($H388="NO CUMPLE",$Y388,0) -> 0 | AF388: =+IF($H388="no aplica",2,0) -> 0
Y390: =SUM(Y385:Y388) -> 1 | Z390: =IF($F381="",0,SUM(Z385:Z388)*$F381/$Y390) ->  | AB390: =IF($F381="",0,SUM(AB385:AB388)*$F381/$Y390) ->  | AD390: =IF($F381="",0,SUM(AD385:AD388)*$F381/$Y390) -> 
D393: ='Matriz VERDE-GBCe'!#REF! ->  | E393: =VLOOKUP($D393,'Matriz VERDE-GBCe'!$H$4:$K$51,2,FALSE) ->  | F393: =VLOOKUP($D393,'Matriz VERDE-GBCe'!$H$4:$K$51,6,FALSE) ->  | L393: NOTAS | Y393: Target | Z393: SEGURO | AB393: EN REVISIÓN | AD393: NO CUMPLE | AF393: NO APLICA
D395: D.J | E395: Fecha del archivo
D397: AE 02.1 | E397: No hay coste de iluminación para el municipio | Y397: 0.2 | Z397: =+IF($H397="seguro",$Y397,0) -> 0 | AB397: =+IF($H397="EN REVISIÓN",$Y397,0) -> 0 | AD397: =+IF($H397="NO CUMPLE",$Y397,0) -> 0 | AF397: =+IF($H397="no aplica",2,0) -> 0
D400: AE 02.2 | E400: No hay coste de depuración de aguas para el municipio | Y400: 0.2 | Z400: =+IF($H400="seguro",$Y400,0) -> 0 | AB400: =+IF($H400="EN REVISIÓN",$Y400,0) -> 0 | AD400: =+IF($H400="NO CUMPLE",$Y400,0) -> 0 | AF400: =+IF($H400="no aplica",2,0) -> 0
D403: AE 02.3 | E403: No hay coste de recogida de residuos para el municipio | Y403: 0.2 | Z403: =+IF($H403="seguro",$Y403,0) -> 0 | AB403: =+IF($H403="EN REVISIÓN",$Y403,0) -> 0 | AD403: =+IF($H403="NO CUMPLE",$Y403,0) -> 0 | AF403: =+IF($H403="no aplica",2,0) -> 0
D406: AE 02.4 | E406: No hay coste de limpieza del viario para el municipio | Y406: 0.2 | Z406: =+IF($H406="seguro",$Y406,0) -> 0 | AB406: =+IF($H406="EN REVISIÓN",$Y406,0) -> 0 | AD406: =+IF($H406="NO CUMPLE",$Y406,0) -> 0 | AF406: =+IF($H406="no aplica",2,0) -> 0
D409: AE 02.5 | E409: No hay coste de mantenimiento para el municipio | Y409: 0.2 | Z409: =+IF($H409="seguro",$Y409,0) -> 0 | AB409: =+IF($H409="EN REVISIÓN",$Y409,0) -> 0 | AD409: =+IF($H409="NO CUMPLE",$Y409,0) -> 0 | AF409: =+IF($H409="no aplica",2,0) -> 0
Y411: =SUM(Y397:Y409) -> 1 | Z411: =IF($F393="",0,SUM(Z397:Z409)*$F393) ->  | AB411: =IF($F393="",0,SUM(AB397:AB409)*$F393) ->  | AD411: =IF($F393="",0,SUM(AD397:AD409)*$F393) -> 
D414: ='Matriz VERDE-GBCe'!#REF! ->  | E414: =VLOOKUP($D414,'Matriz VERDE-GBCe'!$H$4:$K$51,2,FALSE) ->  | F414: =VLOOKUP($D414,'Matriz VERDE-GBCe'!$H$4:$K$51,6,FALSE) ->  | L414: NOTAS | Y414: Target | Z414: SEGURO | AB414: EN REVISIÓN | AD414: NO CUMPLE | AF414: NO APLICA
D416: D.J | E416: Fecha del archivo
D418: AE 03.1 | E418: El 30% de las parcelas están reservadas | Y418: 0.5 | Z418: =+IF($H418="seguro",$Y418,0) -> 0 | AB418: =+IF($H418="EN REVISIÓN",$Y418,0) -> 0 | AD418: =+IF($H418="NO CUMPLE",$Y418,0) -> 0 | AF418: =+IF($H418="no aplica",2,0) -> 0
D421: AE 03.2 | E421: El 70% de las parcelas están reservadas | Y421: 0.5 | Z421: =+IF($H421="seguro",$Y421,0) -> 0 | AB421: =+IF($H421="EN REVISIÓN",$Y421,0) -> 0 | AD421: =+IF($H421="NO CUMPLE",$Y421,0) -> 0 | AF421: =+IF($H421="no aplica",2,0) -> 0
Y423: =SUM(Y418:Y421) -> 1 | Z423: =IF($F414="",0,SUM(Z418:Z421)*$F414/$Y423) ->  | AB423: =IF($F414="",0,SUM(AB418:AB421)*$F414/$Y423) ->  | AD423: =IF($F414="",0,SUM(AD418:AD421)*$F414/$Y423) -> 
D426: ='Matriz VERDE-GBCe'!#REF! ->  | E426: =VLOOKUP($D426,'Matriz VERDE-GBCe'!$H$4:$K$51,2,FALSE) ->  | F426: =VLOOKUP($D426,'Matriz VERDE-GBCe'!$H$4:$K$51,6,FALSE) ->  | L426: NOTAS | Y426: Target | Z426: SEGURO | AB426: EN REVISIÓN | AD426: NO CUMPLE | AF426: NO APLICA
D428: D.J | E428: Fecha del archivo
D430: AE 04.1 | E430: Incentivar las certificaciones sostenibles de los edificios | Y430: 0.4 | Z430: =+IF($H430="seguro",$Y430,0) -> 0 | AB430: =+IF($H430="EN REVISIÓN",$Y430,0) -> 0 | AD430: =+IF($H430="NO CUMPLE",$Y430,0) -> 0 | AF430: =+IF($H430="no aplica",2,0) -> 0
D433: AE 04.1 | E433: Existe infraestructura de uso comunitario | Y433: 0.3 | Z433: =+IF($H433="seguro",$Y433,0) -> 0 | AB433: =+IF($H433="EN REVISIÓN",$Y433,0) -> 0 | AD433: =+IF($H433="NO CUMPLE",$Y433,0) -> 0 | AF433: =+IF($H433="no aplica",2,0) -> 0
D436: AE 04.1 | E436: Fondo de formación y bolsa de trabajo para empleo local | Y436: 0.3 | Z436: =+IF($H436="seguro",$Y436,0) -> 0 | AB436: =+IF($H436="EN REVISIÓN",$Y436,0) -> 0 | AD436: =+IF($H436="NO CUMPLE",$Y436,0) -> 0 | AF436: =+IF($H436="no aplica",2,0) -> 0
Y438: =SUM(Y430:Y436) -> 1 | Z438: =IF($F426="",0,Z430*$F426) ->  | AB438: =IF($F426="",0,AB430*$F426) ->  | AD438: =IF($F426="",0,AD430*$F426) -> 
D441: ='Matriz VERDE-GBCe'!#REF! ->  | E441: =VLOOKUP($D441,'Matriz VERDE-GBCe'!$H$4:$K$51,2,FALSE) ->  | F441: =VLOOKUP($D441,'Matriz VERDE-GBCe'!$H$4:$K$51,6,FALSE) ->  | L441: NOTAS | Y441: Target | Z441: SEGURO | AB441: EN REVISIÓN | AD441: NO CUMPLE | AF441: NO APLICA
D443: D.J | E443: Fecha del archivo
D445: AE 05.1 | E445: El acceso a una vía rápida rodada está a menos de 1.500 m | Y445: =IF(AF445=0,0.7,0) -> 0.7 | Z445: =+IF($H445="seguro",$Y445,0) -> 0 | AB445: =+IF($H445="EN REVISIÓN",$Y445,0) -> 0 | AD445: =+IF($H445="NO CUMPLE",$Y445,0) -> 0 | AF445: =+IF($H445="no aplica",2,0) -> 0
D448: AE 05.2 | E448: El acceso a otras infraestructuras de transporte a menos de 5.000 m | Y448: =IF(AF448=0,0.3,0) -> 0.3 | Z448: =+IF($H448="seguro",$Y448,0) -> 0 | AB448: =+IF($H448="EN REVISIÓN",$Y448,0) -> 0 | AD448: =+IF($H448="NO CUMPLE",$Y448,0) -> 0 | AF448: =+IF($H448="no aplica",2,0) -> 0
Y450: =SUM(Y445:Y448) -> 1 | Z450: =IF($F441="",0,SUM(Z445:Z448)*$F441/$Y450) ->  | AB450: =IF($F441="",0,SUM(AB445:AB448)*$F441/$Y450) ->  | AD450: =IF($F441="",0,SUM(AD445:AD448)*$F441/$Y450) -> 
D453: ='Matriz VERDE-GBCe'!#REF! ->  | E453: =VLOOKUP($D453,'Matriz VERDE-GBCe'!$H$4:$K$51,2,FALSE) ->  | F453: =VLOOKUP($D453,'Matriz VERDE-GBCe'!$H$4:$K$51,6,FALSE) ->  | L453: NOTAS | Y453: Target | Z453: SEGURO | AB453: EN REVISIÓN | AD453: NO CUMPLE | AF453: NO APLICA
D455: D.J | E455: Fecha del archivo
D457: AE 06.1 | E457: Toma de medidas de consumo energético por usos | Y457: 0.35 | Z457: =+IF($H457="seguro",$Y457,0) -> 0 | AB457: =+IF($H457="EN REVISIÓN",$Y457,0) -> 0 | AD457: =+IF($H457="NO CUMPLE",$Y457,0) -> 0 | AF457: =+IF($H457="no aplica",2,0) -> 0
D460: AE 06.2 | E460: Toma de medidas de consumo de agua por usos | Y460: 0.15 | Z460: =+IF($H460="seguro",$Y460,0) -> 0 | AB460: =+IF($H460="EN REVISIÓN",$Y460,0) -> 0 | AD460: =+IF($H460="NO CUMPLE",$Y460,0) -> 0 | AF460: =+IF($H460="no aplica",2,0) -> 0
D463: AE 06.3 | E463: Sistemas de monitorización y telemedida por usos | Y463: 0.2 | Z463: =+IF($H463="seguro",$Y463,0) -> 0 | AB463: =+IF($H463="EN REVISIÓN",$Y463,0) -> 0 | AD463: =+IF($H463="NO CUMPLE",$Y463,0) -> 0 | AF463: =+IF($H463="no aplica",2,0) -> 0
D466: AE 06.4 | E466: Sistemas de monitorización y telemedida sectorizado | Y466: 0.2 | Z466: =+IF($H466="seguro",$Y466,0) -> 0 | AB466: =+IF($H466="EN REVISIÓN",$Y466,0) -> 0 | AD466: =+IF($H466="NO CUMPLE",$Y466,0) -> 0 | AF466: =+IF($H466="no aplica",2,0) -> 0
D469: AE 06.5 | E469: Archivo de registro de medidas | Y469: 0.1 | Z469: =+IF($H469="seguro",$Y469,0) -> 0 | AB469: =+IF($H469="EN REVISIÓN",$Y469,0) -> 0 | AD469: =+IF($H469="NO CUMPLE",$Y469,0) -> 0 | AF469: =+IF($H469="no aplica",2,0) -> 0
Y471: =SUM(Y457:Y469) -> 1 | Z471: =IF($F453="",0,SUM(Z456:Z469)*$F453/$Y471) ->  | AB471: =IF($F453="",0,SUM(AB456:AB469)*$F453/$Y471) ->  | AD471: =IF($F453="",0,SUM(AD457:AD469)*$F453/$Y471) -> 
B473: ='Matriz VERDE-GBCe'!#REF! ->  | D473: ='Matriz VERDE-GBCe'!#REF! -> 
D476: ='Matriz VERDE-GBCe'!#REF! ->  | E476: =VLOOKUP($D476,'Matriz VERDE-GBCe'!$H$4:$K$51,2,FALSE) ->  | F476: =VLOOKUP($D476,'Matriz VERDE-GBCe'!$H$4:$K$51,6,FALSE) ->  | L476: NOTAS | Y476: Target | Z476: SEGURO | AB476: EN REVISIÓN | AD476: NO CUMPLE | AF476: NO APLICA
D478: D.J | E478: Fecha del archivo
D480: CC 01.1 | E480: Documento de requisitos previo al proyecto | Y480: 0.2 | Z480: =+IF($H480="seguro",$Y480,0) -> 0 | AB480: =+IF($H480="EN REVISIÓN",$Y480,0) -> 0 | AD480: =+IF($H480="NO CUMPLE",$Y480,0) -> 0 | AF480: =+IF($H480="no aplica",2,0) -> 0
D483: CC 01.2 | E483: Análisis de alternativas constructivas y de diseño | Y483: 0.2 | Z483: =+IF($H483="seguro",$Y483,0) -> 0 | AB483: =+IF($H483="EN REVISIÓN",$Y483,0) -> 0 | AD483: =+IF($H483="NO CUMPLE",$Y483,0) -> 0 | AF483: =+IF($H483="no aplica",2,0) -> 0
D486: CC 01.3 | E486: Guías de diseño que se han tenido en cuenta | Y486: 0.2 | Z486: =+IF($H486="seguro",$Y486,0) -> 0 | AB486: =+IF($H486="EN REVISIÓN",$Y486,0) -> 0 | AD486: =+IF($H486="NO CUMPLE",$Y486,0) -> 0 | AF486: =+IF($H486="no aplica",2,0) -> 0
... 35 more rows

Sheet portada
C3: VERDE W Equipamiento
E4: Evaluación de la sostenibilidad en edificios
E5: Oficinas o administrativos
E6: Nueva Edificación, ReHabilitación y Edificios Existentes
E8: VERDE Equipamiento V 1.W
E9: Publicación en Enero de 2018
E10: Última revisión Junio 2018

Sheet Instrucciones
B2: VERDE Equipamiento W para Nueva Edificación y Rehabilitación
D3: Instrucciones de uso
C5: Cerldas a rellenar
D7: Solo se rellenan las celdas sombreadas.
C10: Pestañas
D12: Para navegar por la herramienta existen una serie de pestañas que se pueden ver en el margen inferior de la ventana, a continación se describen los contenidos de cada una de ellas:
D14: DG (datos generales): En ella se introducirán los datos del edificio, el proyecto y el EA VERDE que realiza la evaluación.
D16: CA (criterios aplicables): En esta pestaña se pueden personalizar los criterio que serán de aplicación apra una evaluación. De cara a una certificación, deberán estar todos los criterios activos a menos que se haya justificado la no aplicabilidad de alguno de ellos y se haya aprobado por GBCe.
D18: PE (pre-evaluación): En esta pestaña se puede hacer una preevaluación del edificio. En el listado de criterios, se indicará qué criterios es seguro (s) que se van a cumplir, cuáles son probables (p), difícil (d) o cuáles no se van a cumplir (n). En función de los datos introducidos, la herramienta informará de las posibles valoraciones del edificio.
D20: Pestañas de certificación: por cada una de las áreas de evaluación, tenemos una pestaña donde se introducirán los datos generales para la evaluación y los resultados criterio a criterio. Al final de la hoja, aparece la valoración que se ha obtenido en la misma.
D22: Informe resultados: en esta hoja aparecen los resultados de la evaluación, con la calificación de la certificación y un resumen de los resultados por criterios
D24: Resultados por impactos: en esta hoja se ofrece la mejora alcanzada por el edificio en los distintos impactos evaluados sobre la referencia establecida.
D26: Indicadores: en esta hoja se ofrecen los datos cuantitativos de los indicadores correspondientes a cada impacto de forma cualitativa y referido a la referencia establecida. Se indica a qué fase del ciclo de vida se hace referencia y cuál es el alcance del cálculo.
C29: Celdas Documento Justificativos
D31: Estas celdas aparecen, tanto en la pestaña de datos generales, como en las pestañas de certificación, en cada uno de los criterios. En ellas habrá que indicar si se han incluido, no se han incluido o no son de aplicación, en los archivos de evaluación los Documentos Justificativos (D.J.) correspondientes.
D32: Los D.J. solicitados para justificar la evaluación de cara a una certificación con VERDE, se describen en la guía de la herramienta.
C35: ¿Cómo hacer la evaluación de los criterios?
D37: El método de evaluación de cada uno de los criterios, aparece definido en la guía de evaluación de la herramienta que se puede descargar en la página web.

Sheet DG
C2: VERDE W Equipamiento para Nueva Edificación y Rehabilitación
D3: DATOS GENERALES | R3: Ejemplo 1
C5: Datos de edificio
D8: Nombre del edificio | K8: Intensidad baja 8 h
K9: Intensidad media 8 h
D10: Localidad | K10: Intensidad alta 8 h | R10: Guadalajara
K11: Intensidad baja 12 h
D12: Capital de Provincia | K12: Intensidad media 12 h | R12: Guadalajara
K13: Intensidad alta 12 h
D14: Altura sobre el nivel del mar | K14: Intensidad baja 16 h | R14: 708
K15: Intensidad media 16 h
D16: Zona climática de la localidad | E16: =CONCATENATE('zona clima'!C10,'zona clima'!C11) ->  | K16: Intensidad alta 16 h
K17: Intensidad baja 24 h | R17: 950
D18: Superficie construida total (m2) | K18: Intensidad media 24 h | R18: 950
D19: *Descontando plantas bajo rasante y aparcamientos | K19: Intensidad alta 24 h
K20: Otros
D21: Superficie útil de los espacios habitables del edificio (m2) | R21: 700
D23: Perfil de uso en horas
K24: Edificios administrativos
D25: Tipología del edificio | K25: Equipamiento público | R25: Multi-residencial
K26: Edificios docentes
D27: Tipo de actuación | K27: Edificios comerciales | R27: Nueva Edificación
K28: Residencial u hostelería
D29: Superficie de ampliación (equiparable a nueva edificación): | K29: Servicios de restauración
K30: Industria ligera o logística
D31: Superficie rehabilitada | K31: Local o parte de un edificio
K32: Mixtos
D33: Superficie de edificio existente sobre el que no se interviene:
K35: Nueva Edificación
C36: Ajuste de la herramienta | K36: Rehabilitación
K37: Edificio existente
K38: Mixto
D39: ¿El edificio dispone de plazas de aparcamiento?
D41: Superficie libre de parcela
D43: Superficie ajardinada | K43: Sí
K44: No
D45: Número de ocupantes | R45: 45
K46: No
D47: ¿Existen en el edificio o parcela elementos singulares consumidores de agua como fuentes, piscinas, jakuzzis, etc.? | K47: No aplica
K49: No
D50: ¿Se emplean gases refrigerantes en la climatización? | K50: No aplica
D52: ¿Existen elementos mecánicos de comunicación vertical u horizontal?
D54: ¿Existen sistemas frigoríficos? | K54: Sí
K55: No
D56: ¿Se realizan tareas de tipo administrativo, trabajo sedentario sobre mesa? | K56: No aplica
D59: ¿Existen espacios de alta densidad y de ocupación y uso variable? Para más información ver CAI 02 en la guía | K59: Sí
K61: No
D62: ¿Los espacios habitables, según la definición del CTE DB-HE superan los 50 m2? | K62: No aplica
K65: Nueva Edificación
C66: Datos del promotor y equipo de proyecto | K66: Rehabilitación
K67: Edificio existente
K68: Mixto
D69: Promotor
D71: Contacto promotor
D73: Equipo redactor | K73: Sí
K74: No
D75: Fecha de proyecto | K75: No aplica
K76: No
D77: Fecha de construcción | K77: No aplica
C80: Datos del Evaluador Acreditado
D83: Nombre
D85: Apellidos
D87: Fecha de entrega de la evaluación
D90: Email y teléfono de contacto
C93: Datos de la certificación
D96: Código de la certifiacción
D98: Tipo de certificación | K98: Promocional | L98: Proyecto de ejecución
K99: Comercial | L99: Obra construida
D100: Estado de la certificación
D102: Fecha de entrega de la evaluación
D104: Dirección postal de entrega de la certificación
C109: Documentos Justificativos | M109: a
M110: r
D112: DG 01
D114: DG 02
D116: DG 03
D118: DG 04
D120: DG 05
D122: DG 06
D124: DG 07
D126: DG 08
G411: a

Sheet zona clima (hidden)
I1: A | J1: B | K1: C | L1: D | M1: E
I2: 1 | J2: 2 | K2: 3 | L2: 4
E4: CAPITAL | F4: Z.C. INVIERNO | G4: Z.C. VERANO | H4: ALTITUD | I4: 0-50 | K4: 50-100 | M4: 100-150 | O4: 150-200 | Q4: 200-250 | S4: 250-300 | U4: 300-350 | W4: 350-400 | Y4: 400-450 | AA4: 450-500 | AC4: 500-550 | AE4: 550-600 | AG4: 600-650 | AI4: 650-700 | AK4: 700-750 | AM4: 750-800 | AO4: 800-850 | AQ4: 850-900 | AS4: 900-950 | AU4: 950-1000 | AW4: 1000-1050 | AY4: 1100-1150 | BA4: 1150-1200 | BC4: 1200-1250 | BE4: 1250-1300 | BG4: >=1300 | BJ4: A4 | BK4: A3 | BL4: A2 | BM4: A1 | BN4: B4 | BO4: B3 | BP4: B2 | BQ4: B1 | BR4: C4 | BS4: C3 | BT4: C2 | BU4: C1 | BV4: D3 | BW4: D2 | BX4: D1 | BY4: E1
B5: capital de provincia | C5: =IF(DG!E12=0,"",DG!E12) ->  | E5: Albacete | F5: =$L$1 -> D | G5: =$K$2 -> 3 | H5: 677 | I5: =$K$1 -> C | J5: =$K$2 -> 3 | K5: =$K$1 -> C | L5: =$K$2 -> 3 | M5: =$K$1 -> C | N5: =$K$2 -> 3 | O5: =$K$1 -> C | P5: =$K$2 -> 3 | Q5: =$K$1 -> C | R5: =$K$2 -> 3 | S5: =$K$1 -> C | T5: =$K$2 -> 3 | U5: =$K$1 -> C | V5: =$K$2 -> 3 | W5: =$K$1 -> C | X5: =$K$2 -> 3 | Y5: =$K$1 -> C | Z5: =$K$2 -> 3 | AA5: =$L$1 -> D | AB5: =$K$2 -> 3 | AC5: =$L$1 -> D | AD5: =$K$2 -> 3 | AE5: =$L$1 -> D | AF5: =$K$2 -> 3 | AG5: =$L$1 -> D | AH5: =$K$2 -> 3 | AI5: =$L$1 -> D | AJ5: =$K$2 -> 3 | AK5: =$L$1 -> D | AL5: =$K$2 -> 3 | AM5: =$L$1 -> D | AN5: =$K$2 -> 3 | AO5: =$L$1 -> D | AP5: =$K$2 -> 3 | AQ5: =$L$1 -> D | AR5: =$K$2 -> 3 | AS5: =$L$1 -> D | AT5: =$K$2 -> 3 | AU5: =$M$1 -> E | AV5: =$I$2 -> 1 | AW5: E | AX5: 1 | AY5: E | AZ5: 1 | BA5: E | BB5: 1 | BC5: E | BD5: 1 | BE5: E | BF5: 1 | BG5: E | BH5: 1 | BS5: <450 | BV5: <950 | BY5: >=950
B6: altura capital | C6: =IF(C5="","",VLOOKUP(C5,E5:BJ55,3,FALSE)) ->  | E6: Alicante/Alacant | F6: =$J$1 -> B | G6: =$L$2 -> 4 | H6: 7 | I6: =$J$1 -> B | J6: =$L$2 -> 4 | K6: =$J$1 -> B | L6: =$L$2 -> 4 | M6: =$J$1 -> B | N6: =$L$2 -> 4 | O6: =$J$1 -> B | P6: =$L$2 -> 4 | Q6: =$J$1 -> B | R6: =$L$2 -> 4 | S6: =$K$1 -> C | T6: =$K$2 -> 3 | U6: =$K$1 -> C | V6: =$K$2 -> 3 | W6: =$K$1 -> C | X6: =$K$2 -> 3 | Y6: =$K$1 -> C | Z6: =$K$2 -> 3 | AA6: =$K$1 -> C | AB6: =$K$2 -> 3 | AC6: =$K$1 -> C | AD6: =$K$2 -> 3 | AE6: =$K$1 -> C | AF6: =$K$2 -> 3 | AG6: =$K$1 -> C | AH6: =$K$2 -> 3 | AI6: =$K$1 -> C | AJ6: =$K$2 -> 3 | AK6: =$L$1 -> D | AL6: =$K$2 -> 3 | AM6: =$L$1 -> D | AN6: =$K$2 -> 3 | AO6: =$L$1 -> D | AP6: =$K$2 -> 3 | AQ6: =$L$1 -> D | AR6: =$K$2 -> 3 | AS6: =$L$1 -> D | AT6: =$K$2 -> 3 | AU6: =$L$1 -> D | AV6: =$K$2 -> 3 | AW6: =$L$1 -> D | AX6: =$K$2 -> 3 | AY6: =$L$1 -> D | AZ6: =$K$2 -> 3 | BA6: =$L$1 -> D | BB6: =$K$2 -> 3 | BC6: =$L$1 -> D | BD6: =$K$2 -> 3 | BE6: =$L$1 -> D | BF6: =$K$2 -> 3 | BG6: =$L$1 -> D | BH6: =$K$2 -> 3 | BN6: <250 | BS6: <700 | BV6: >=700
B7: altura localidad | C7: =IF(DG!E14="","",DG!E14) ->  | E7: Almería | F7: =$I$1 -> A | G7: =$L$2 -> 4 | H7: 0 | I7: A | J7: =$L$2 -> 4 | K7: A | L7: =$L$2 -> 4 | M7: =$J$1 -> B | N7: =$L$2 -> 4 | O7: =$J$1 -> B | P7: =$L$2 -> 4 | Q7: =$J$1 -> B | R7: =$L$2 -> 4 | S7: =$J$1 -> B | T7: =$K$2 -> 3 | U7: =$J$1 -> B | V7: =$K$2 -> 3 | W7: =$J$1 -> B | X7: =$K$2 -> 3 | Y7: =$K$1 -> C | Z7: =$K$2 -> 3 | AA7: =$K$1 -> C | AB7: =$K$2 -> 3 | AC7: =$K$1 -> C | AD7: =$K$2 -> 3 | AE7: =$K$1 -> C | AF7: =$K$2 -> 3 | AG7: =$K$1 -> C | AH7: =$K$2 -> 3 | AI7: =$K$1 -> C | AJ7: =$K$2 -> 3 | AK7: =$K$1 -> C | AL7: =$K$2 -> 3 | AM7: =$K$1 -> C | AN7: =$K$2 -> 3 | AO7: =$L$1 -> D | AP7: =$K$2 -> 3 | AQ7: =$L$1 -> D | AR7: =$K$2 -> 3 | AS7: =$L$1 -> D | AT7: =$K$2 -> 3 | AU7: =$L$1 -> D | AV7: =$K$2 -> 3 | AW7: =$L$1 -> D | AX7: =$K$2 -> 3 | AY7: =$L$1 -> D | AZ7: =$K$2 -> 3 | BA7: =$L$1 -> D | BB7: =$K$2 -> 3 | BC7: =$L$1 -> D | BD7: =$K$2 -> 3 | BE7: =$L$1 -> D | BF7: =$K$2 -> 3 | BG7: =$L$1 -> D | BH7: =$K$2 -> 3 | BJ7: <100 | BN7: <250 | BO7: <400 | BS7: <800 | BV7: >=800
B8: REDONDEO ALTITUD | C8: =IF(C7>=1300,1300,IF(AND(C7>=1250,C7<1300),1250,ROUND((C7+25)/50,0)*50)) -> 1300 | E8: Ávila | F8: =$M$1 -> E | G8: =$I$2 -> 1 | H8: 1054 | I8: =$L$1 -> D | J8: =$J$2 -> 2 | K8: =$L$1 -> D | L8: =$J$2 -> 2 | M8: =$L$1 -> D | N8: =$J$2 -> 2 | O8: =$L$1 -> D | P8: =$J$2 -> 2 | Q8: =$L$1 -> D | R8: =$J$2 -> 2 | S8: =$L$1 -> D | T8: =$J$2 -> 2 | U8: =$L$1 -> D | V8: =$J$2 -> 2 | W8: =$L$1 -> D | X8: =$J$2 -> 2 | Y8: =$L$1 -> D | Z8: =$J$2 -> 2 | AA8: =$L$1 -> D | AB8: =$J$2 -> 2 | AC8: =$L$1 -> D | AD8: =$J$2 -> 2 | AE8: =$L$1 -> D | AF8: =$I$2 -> 1 | AG8: =$L$1 -> D | AH8: =$I$2 -> 1 | AI8: =$L$1 -> D | AJ8: =$I$2 -> 1 | AK8: =$L$1 -> D | AL8: =$I$2 -> 1 | AM8: =$L$1 -> D | AN8: =$I$2 -> 1 | AO8: =$L$1 -> D | AP8: =$I$2 -> 1 | AQ8: =$M$1 -> E | AR8: =$I$2 -> 1 | AS8: =$M$1 -> E | AT8: =$I$2 -> 1 | AU8: =$M$1 -> E | AV8: =$I$2 -> 1 | AW8: =$M$1 -> E | AX8: =$I$2 -> 1 | AY8: =$M$1 -> E | AZ8: =$I$2 -> 1 | BA8: =$M$1 -> E | BB8: =$I$2 -> 1 | BC8: =$M$1 -> E | BD8: =$I$2 -> 1 | BE8: =$M$1 -> E | BF8: =$I$2 -> 1 | BG8: =$M$1 -> E | BH8: =$I$2 -> 1 | BU8: <50 | BX8: <550 | BY8: >=550
B9: Nº DE COLUMNA | C9: =(C8/50)*2 -> 52 | E9: Badajoz | F9: =$K$1 -> C | G9: =$L$2 -> 4 | H9: 168 | I9: =$K$1 -> C | J9: =$L$2 -> 4 | K9: =$K$1 -> C | L9: =$L$2 -> 4 | M9: =$K$1 -> C | N9: =$L$2 -> 4 | O9: =$K$1 -> C | P9: =$L$2 -> 4 | Q9: =$K$1 -> C | R9: =$L$2 -> 4 | S9: =$K$1 -> C | T9: =$L$2 -> 4 | U9: =$K$1 -> C | V9: =$L$2 -> 4 | W9: =$K$1 -> C | X9: =$L$2 -> 4 | Y9: =$K$1 -> C | Z9: =$K$2 -> 3 | AA9: =$L$1 -> D | AB9: =$K$2 -> 3 | AC9: =$L$1 -> D | AD9: =$K$2 -> 3 | AE9: =$L$1 -> D | AF9: =$K$2 -> 3 | AG9: =$L$1 -> D | AH9: =$K$2 -> 3 | AI9: =$L$1 -> D | AJ9: =$K$2 -> 3 | AK9: =$L$1 -> D | AL9: =$K$2 -> 3 | AM9: =$L$1 -> D | AN9: =$K$2 -> 3 | AO9: =$L$1 -> D | AP9: =$K$2 -> 3 | AQ9: =$L$1 -> D | AR9: =$K$2 -> 3 | AS9: =$L$1 -> D | AT9: =$K$2 -> 3 | AU9: =$L$1 -> D | AV9: =$K$2 -> 3 | AW9: =$L$1 -> D | AX9: =$K$2 -> 3 | AY9: =$L$1 -> D | AZ9: =$K$2 -> 3 | BA9: =$L$1 -> D | BB9: =$K$2 -> 3 | BC9: =$L$1 -> D | BD9: =$K$2 -> 3 | BE9: =$L$1 -> D | BF9: =$K$2 -> 3 | BG9: =$L$1 -> D | BH9: =$K$2 -> 3 | BW9: <550 | BX9: <850 | BY9: >=850
B10: ZC Invierno localidad | C10: =IF(C5="","",VLOOKUP(C$5,$E:$BH,C$9+3,FALSE)) ->  | E10: Barcelona | F10: =$K$1 -> C | G10: =$J$2 -> 2 | H10: 1 | I10: =$K$1 -> C | J10: =$J$2 -> 2 | K10: =$K$1 -> C | L10: =$J$2 -> 2 | M10: =$K$1 -> C | N10: =$J$2 -> 2 | O10: =$K$1 -> C | P10: =$J$2 -> 2 | Q10: =$K$1 -> C | R10: =$J$2 -> 2 | S10: =$L$1 -> D | T10: =$J$2 -> 2 | U10: =$L$1 -> D | V10: =$J$2 -> 2 | W10: =$L$1 -> D | X10: =$J$2 -> 2 | Y10: =$L$1 -> D | Z10: =$J$2 -> 2 | AA10: =$L$1 -> D | AB10: =$I$2 -> 1 | AC10: =$L$1 -> D | AD10: =$I$2 -> 1 | AE10: =$L$1 -> D | AF10: =$I$2 -> 1 | AG10: =$L$1 -> D | AH10: =$I$2 -> 1 | AI10: =$L$1 -> D | AJ10: =$I$2 -> 1 | AK10: =$L$1 -> D | AL10: =$I$2 -> 1 | AM10: =$M$1 -> E | AN10: =$I$2 -> 1 | AO10: =$M$1 -> E | AP10: =$I$2 -> 1 | AQ10: =$M$1 -> E | AR10: =$I$2 -> 1 | AS10: =$M$1 -> E | AT10: =$I$2 -> 1 | AU10: =$M$1 -> E | AV10: =$I$2 -> 1 | AW10: =$M$1 -> E | AX10: =$I$2 -> 1 | AY10: =$M$1 -> E | AZ10: =$I$2 -> 1 | BA10: =$M$1 -> E | BB10: =$I$2 -> 1 | BC10: =$M$1 -> E | BD10: =$I$2 -> 1 | BE10: =$M$1 -> E | BF10: =$I$2 -> 1 | BG10: =$M$1 -> E | BH10: =$I$2 -> 1 | BR10: <400 | BS10: <450 | BV10: >=450
B11: ZC Verano localidad | C11: =IF(C5="","",VLOOKUP(C$5,$E:$BH,C$9+4,FALSE)) ->  | E11: Bilbao/Bilbo | F11: =$K$1 -> C | G11: =$I$2 -> 1 | H11: 214 | I11: =$K$1 -> C | J11: =$I$2 -> 1 | K11: =$K$1 -> C | L11: =$I$2 -> 1 | M11: =$K$1 -> C | N11: =$I$2 -> 1 | O11: =$K$1 -> C | P11: =$I$2 -> 1 | Q11: =$K$1 -> C | R11: =$I$2 -> 1 | S11: =$L$1 -> D | T11: =$I$2 -> 1 | U11: =$L$1 -> D | V11: =$I$2 -> 1 | W11: =$L$1 -> D | X11: =$I$2 -> 1 | Y11: =$L$1 -> D | Z11: =$I$2 -> 1 | AA11: =$L$1 -> D | AB11: =$I$2 -> 1 | AC11: =$L$1 -> D | AD11: =$I$2 -> 1 | AE11: =$L$1 -> D | AF11: =$I$2 -> 1 | AG11: =$L$1 -> D | AH11: =$I$2 -> 1 | AI11: =$L$1 -> D | AJ11: =$I$2 -> 1 | AK11: =$L$1 -> D | AL11: =$I$2 -> 1 | AM11: =$L$1 -> D | AN11: =$I$2 -> 1 | AO11: =$L$1 -> D | AP11: =$I$2 -> 1 | AQ11: =$L$1 -> D | AR11: =$I$2 -> 1 | AS11: =$L$1 -> D | AT11: =$I$2 -> 1 | AU11: =$L$1 -> D | AV11: =$I$2 -> 1 | AW11: =$L$1 -> D | AX11: =$I$2 -> 1 | AY11: =$L$1 -> D | AZ11: =$I$2 -> 1 | BA11: =$L$1 -> D | BB11: =$I$2 -> 1 | BC11: =$L$1 -> D | BD11: =$I$2 -> 1 | BE11: =$L$1 -> D | BF11: =$I$2 -> 1 | BG11: =$L$1 -> D | BH11: =$I$2 -> 1 | BT11: <250 | BW11: <450 | BX11: <750 | BY11: >=750
B12: ZONA CLIMATICA PROVINCIA | C12: =IF(C5="","",VLOOKUP(C$5,E$5:H$56,2,FALSE)) ->  | E12: Burgos | F12: E | G12: =$I$2 -> 1 | H12: 861 | I12: =$L$1 -> D | J12: =$I$2 -> 1 | K12: D | L12: =$I$2 -> 1 | M12: D | N12: =$I$2 -> 1 | O12: D | P12: =$I$2 -> 1 | Q12: D | R12: =$I$2 -> 1 | S12: D | T12: =$I$2 -> 1 | U12: D | V12: =$I$2 -> 1 | W12: D | X12: =$I$2 -> 1 | Y12: D | Z12: =$I$2 -> 1 | AA12: =$L$1 -> D | AB12: =$I$2 -> 1 | AC12: =$L$1 -> D | AD12: =$I$2 -> 1 | AE12: =$L$1 -> D | AF12: =$I$2 -> 1 | AG12: =$M$1 -> E | AH12: =$I$2 -> 1 | AI12: =$M$1 -> E | AJ12: =$I$2 -> 1 | AK12: =$M$1 -> E | AL12: =$I$2 -> 1 | AM12: =$M$1 -> E | AN12: =$I$2 -> 1 | AO12: =$M$1 -> E | AP12: =$I$2 -> 1 | AQ12: =$M$1 -> E | AR12: =$I$2 -> 1 | AS12: =$M$1 -> E | AT12: =$I$2 -> 1 | AU12: =$M$1 -> E | AV12: =$I$2 -> 1 | AW12: =$M$1 -> E | AX12: =$I$2 -> 1 | AY12: =$M$1 -> E | AZ12: =$I$2 -> 1 | BA12: =$M$1 -> E | BB12: =$I$2 -> 1 | BC12: =$M$1 -> E | BD12: =$I$2 -> 1 | BE12: =$M$1 -> E | BF12: =$I$2 -> 1 | BG12: =$M$1 -> E | BH12: =$I$2 -> 1
B13: ZONA CLIMATICA PROVINCIA | C13: =IF(C5="","",VLOOKUP(C$5,E$5:H$56,3,FALSE)) ->  | E13: Cáceres | F13: =$K$1 -> C | G13: =$L$2 -> 4 | H13: 385 | I13: =$K$1 -> C | J13: =$L$2 -> 4 | K13: =$K$1 -> C | L13: =$L$2 -> 4 | M13: =$K$1 -> C | N13: =$L$2 -> 4 | O13: =$K$1 -> C | P13: =$L$2 -> 4 | Q13: =$K$1 -> C | R13: =$L$2 -> 4 | S13: =$K$1 -> C | T13: =$L$2 -> 4 | U13: =$K$1 -> C | V13: =$L$2 -> 4 | W13: =$K$1 -> C | X13: =$L$2 -> 4 | Y13: =$K$1 -> C | Z13: =$L$2 -> 4 | AA13: =$K$1 -> C | AB13: =$L$2 -> 4 | AC13: =$K$1 -> C | AD13: =$L$2 -> 4 | AE13: =$K$1 -> C | AF13: =$L$2 -> 4 | AG13: =$L$1 -> D | AH13: =$K$2 -> 3 | AI13: =$L$1 -> D | AJ13: 3 | AK13: =$L$1 -> D | AL13: 3 | AM13: =$L$1 -> D | AN13: 3 | AO13: =$L$1 -> D | AP13: 3 | AQ13: =$L$1 -> D | AR13: 3 | AS13: =$L$1 -> D | AT13: 3 | AU13: =$L$1 -> D | AV13: 3 | AW13: =$L$1 -> D | AX13: 3 | AY13: =$M$1 -> E | AZ13: =$I$2 -> 1 | BA13: =$M$1 -> E | BB13: =$I$2 -> 1 | BC13: =$M$1 -> E | BD13: =$I$2 -> 1 | BE13: =$M$1 -> E | BF13: =$I$2 -> 1 | BG13: =$M$1 -> E | BH13: =$I$2 -> 1 | BX13: <600 | BY13: >=600
E14: Cádiz | F14: =$I$1 -> A | G14: =$K$2 -> 3 | H14: 0 | I14: =$I$1 -> A | J14: =$K$2 -> 3 | K14: =$I$1 -> A | L14: =$K$2 -> 3 | M14: =$I$1 -> A | N14: =$K$2 -> 3 | O14: =$J$1 -> B | P14: =$K$2 -> 3 | Q14: B | R14: =$K$2 -> 3 | S14: B | T14: =$K$2 -> 3 | U14: B | V14: =$K$2 -> 3 | W14: B | X14: =$K$2 -> 3 | Y14: B | Z14: =$K$2 -> 3 | AA14: =$K$1 -> C | AB14: =$K$2 -> 3 | AC14: =$K$1 -> C | AD14: =$K$2 -> 3 | AE14: =$K$1 -> C | AF14: =$K$2 -> 3 | AG14: =$K$1 -> C | AH14: =$J$2 -> 2 | AI14: C | AJ14: 2 | AK14: C | AL14: 2 | AM14: C | AN14: 2 | AO14: C | AP14: 2 | AQ14: =$L$1 -> D | AR14: =$J$2 -> 2 | AS14: =$L$1 -> D | AT14: =$J$2 -> 2 | AU14: =$L$1 -> D | AV14: =$J$2 -> 2 | AW14: =$L$1 -> D | AX14: =$J$2 -> 2 | AY14: =$L$1 -> D | AZ14: =$J$2 -> 2 | BA14: =$L$1 -> D | BB14: =$J$2 -> 2 | BC14: =$L$1 -> D | BD14: =$J$2 -> 2 | BE14: =$L$1 -> D | BF14: =$J$2 -> 2 | BG14: =$L$1 -> D | BH14: =$J$2 -> 2 | BR14: <600 | BV14: <1050 | BY14: >=1050
E15: Castellón/Castelló | F15: =$J$1 -> B | G15: =$K$2 -> 3 | H15: 18 | I15: =$J$1 -> B | J15: =$K$2 -> 3 | K15: =$K$1 -> C | L15: =$K$2 -> 3 | M15: =$K$1 -> C | N15: =$K$2 -> 3 | O15: =$K$1 -> C | P15: =$K$2 -> 3 | Q15: =$K$1 -> C | R15: =$K$2 -> 3 | S15: =$K$1 -> C | T15: =$K$2 -> 3 | U15: =$K$1 -> C | V15: =$K$2 -> 3 | W15: =$K$1 -> C | X15: =$K$2 -> 3 | Y15: =$K$1 -> C | Z15: =$K$2 -> 3 | AA15: =$K$1 -> C | AB15: =$K$2 -> 3 | AC15: =$L$1 -> D | AD15: =$K$2 -> 3 | AE15: =$L$1 -> D | AF15: =$K$2 -> 3 | AG15: =$L$1 -> D | AH15: 2 | AI15: =$L$1 -> D | AJ15: 2 | AK15: =$L$1 -> D | AL15: 2 | AM15: =$L$1 -> D | AN15: 2 | AO15: =$L$1 -> D | AP15: 2 | AQ15: =$L$1 -> D | AR15: =$J$2 -> 2 | AS15: =$L$1 -> D | AT15: =$J$2 -> 2 | AU15: =$L$1 -> D | AV15: =$J$2 -> 2 | AW15: =$M$1 -> E | AX15: =$I$2 -> 1 | AY15: =$M$1 -> E | AZ15: =$I$2 -> 1 | BA15: =$M$1 -> E | BB15: =$I$2 -> 1 | BC15: =$M$1 -> E | BD15: =$I$2 -> 1 | BE15: =$M$1 -> E | BF15: =$I$2 -> 1 | BG15: =$M$1 -> E | BH15: =$I$2 -> 1 | BU15: <150 | BX15: <650
E16: Ceuta | F16: =$J$1 -> B | G16: =$K$2 -> 3 | H16: 0 | I16: =$J$1 -> B | J16: =$K$2 -> 3 | K16: =$J$1 -> B | L16: =$K$2 -> 3 | M16: =$J$1 -> B | N16: =$K$2 -> 3 | O16: =$J$1 -> B | P16: =$K$2 -> 3 | Q16: =$J$1 -> B | R16: =$K$2 -> 3 | S16: =$J$1 -> B | T16: =$K$2 -> 3 | U16: =$J$1 -> B | V16: =$K$2 -> 3 | W16: =$J$1 -> B | X16: =$K$2 -> 3 | Y16: =$J$1 -> B | Z16: =$K$2 -> 3 | AA16: B | AB16: =$K$2 -> 3 | AC16: B | AD16: =$K$2 -> 3 | AE16: B | AF16: =$K$2 -> 3 | AG16: B | AH16: =$K$2 -> 3 | AI16: B | AJ16: =$K$2 -> 3 | AK16: B | AL16: =$K$2 -> 3 | AM16: B | AN16: =$K$2 -> 3 | AO16: B | AP16: =$K$2 -> 3 | AQ16: B | AR16: =$K$2 -> 3 | AS16: B | AT16: =$K$2 -> 3 | AU16: B | AV16: 3 | AW16: B | AX16: 3 | AY16: B | AZ16: 3 | BA16: B | BB16: 3 | BC16: B | BD16: 3 | BE16: B | BF16: 3 | BG16: B | BH16: 3 | BO16: <50 | BS16: <500 | BV16: <600 | BW16: <1000 | BY16: >=1000
E17: Ciudad Real | F17: =$L$1 -> D | G17: =$K$2 -> 3 | H17: 630 | I17: =$K$1 -> C | J17: =$L$2 -> 4 | K17: =$K$1 -> C | L17: =$L$2 -> 4 | M17: =$K$1 -> C | N17: =$L$2 -> 4 | O17: =$K$1 -> C | P17: =$L$2 -> 4 | Q17: =$K$1 -> C | R17: =$L$2 -> 4 | S17: =$K$1 -> C | T17: =$L$2 -> 4 | U17: =$K$1 -> C | V17: =$L$2 -> 4 | W17: =$K$1 -> C | X17: =$L$2 -> 4 | Y17: =$K$1 -> C | Z17: =$L$2 -> 4 | AA17: =$K$1 -> C | AB17: =$K$2 -> 3 | AC17: =$L$1 -> D | AD17: =$K$2 -> 3 | AE17: =$L$1 -> D | AF17: =$K$2 -> 3 | AG17: =$L$1 -> D | AH17: =$K$2 -> 3 | AI17: =$L$1 -> D | AJ17: =$K$2 -> 3 | AK17: =$L$1 -> D | AL17: =$K$2 -> 3 | AM17: =$L$1 -> D | AN17: =$K$2 -> 3 | AO17: =$L$1 -> D | AP17: =$K$2 -> 3 | AQ17: =$L$1 -> D | AR17: =$K$2 -> 3 | AS17: =$L$1 -> D | AT17: 3 | AU17: =$L$1 -> D | AV17: 3 | AW17: =$L$1 -> D | AX17: 3 | AY17: =$L$1 -> D | AZ17: 3 | BA17: =$L$1 -> D | BB17: 3 | BC17: =$L$1 -> D | BD17: 3 | BE17: =$L$1 -> D | BF17: 3 | BG17: =$L$1 -> D | BH17: 3
E18: Córdoba | F18: =$J$1 -> B | G18: =$L$2 -> 4 | H18: 113 | I18: =$J$1 -> B | J18: =$L$2 -> 4 | K18: =$J$1 -> B | L18: =$L$2 -> 4 | M18: =$J$1 -> B | N18: =$L$2 -> 4 | O18: =$K$1 -> C | P18: =$L$2 -> 4 | Q18: =$K$1 -> C | R18: =$L$2 -> 4 | S18: =$K$1 -> C | T18: =$L$2 -> 4 | U18: =$K$1 -> C | V18: =$L$2 -> 4 | W18: =$K$1 -> C | X18: =$L$2 -> 4 | Y18: =$K$1 -> C | Z18: =$L$2 -> 4 | AA18: =$K$1 -> C | AB18: =$L$2 -> 4 | AC18: =$K$1 -> C | AD18: =$L$2 -> 4 | AE18: =$L$1 -> D | AF18: =$K$2 -> 3 | AG18: =$L$1 -> D | AH18: =$K$2 -> 3 | AI18: =$L$1 -> D | AJ18: =$K$2 -> 3 | AK18: =$L$1 -> D | AL18: =$K$2 -> 3 | AM18: =$L$1 -> D | AN18: =$K$2 -> 3 | AO18: =$L$1 -> D | AP18: =$K$2 -> 3 | AQ18: =$L$1 -> D | AR18: =$K$2 -> 3 | AS18: =$L$1 -> D | AT18: 3 | AU18: =$L$1 -> D | AV18: 3 | AW18: =$L$1 -> D | AX18: 3 | AY18: =$L$1 -> D | AZ18: 3 | BA18: =$L$1 -> D | BB18: 3 | BC18: =$L$1 -> D | BD18: 3 | BE18: =$L$1 -> D | BF18: 3 | BG18: =$L$1 -> D | BH18: 3 | BR18: <450 | BS18: <500 | BV18: >=500
B19: DESNIVEL | C19: =ROUNDUP((C7-C6)/100,0) ->  | E19: Coruña, La/A Coruña | F19: =$K$1 -> C | G19: =$I$2 -> 1 | H19: 0 | I19: =$K$1 -> C | J19: =$I$2 -> 1 | K19: =$K$1 -> C | L19: =$I$2 -> 1 | M19: =$K$1 -> C | N19: =$I$2 -> 1 | O19: =$K$1 -> C | P19: =$I$2 -> 1 | Q19: =$L$1 -> D | R19: =$I$2 -> 1 | S19: =$L$1 -> D | T19: =$I$2 -> 1 | U19: =$L$1 -> D | V19: =$I$2 -> 1 | W19: =$L$1 -> D | X19: =$I$2 -> 1 | Y19: =$L$1 -> D | Z19: =$I$2 -> 1 | AA19: =$L$1 -> D | AB19: =$I$2 -> 1 | AC19: =$L$1 -> D | AD19: =$I$2 -> 1 | AE19: =$L$1 -> D | AF19: =$I$2 -> 1 | AG19: =$L$1 -> D | AH19: =$I$2 -> 1 | AI19: =$L$1 -> D | AJ19: =$I$2 -> 1 | AK19: =$L$1 -> D | AL19: =$I$2 -> 1 | AM19: =$L$1 -> D | AN19: =$I$2 -> 1 | AO19: =$L$1 -> D | AP19: =$I$2 -> 1 | AQ19: =$L$1 -> D | AR19: =$I$2 -> 1 | AS19: =$L$1 -> D | AT19: =$I$2 -> 1 | AU19: =$L$1 -> D | AV19: =$I$2 -> 1 | AW19: =$L$1 -> D | AX19: =$I$2 -> 1 | AY19: =$L$1 -> D | AZ19: =$I$2 -> 1 | BA19: =$L$1 -> D | BB19: =$I$2 -> 1 | BC19: =$L$1 -> D | BD19: =$I$2 -> 1 | BE19: =$L$1 -> D | BF19: =$I$2 -> 1 | BG19: =$L$1 -> D | BH19: =$I$2 -> 1 | BN19: <150 | BR19: <550 | BV19: >=550
B20: CORRECCION ZONA CLIMATICA | C20: =3+IF(C19>10,5,IF(C19>8,4,IF(C19>6,3,IF(C19>4,2,IF(C19>2,1,IF(C19>0,0,0)))))) ->  | E20: Cuenca | F20: =$L$1 -> D | G20: =$J$2 -> 2 | H20: 975 | I20: =$L$1 -> D | J20: =$K$2 -> 3 | K20: =$L$1 -> D | L20: 3 | M20: =$L$1 -> D | N20: 3 | O20: =$L$1 -> D | P20: 3 | Q20: =$L$1 -> D | R20: 3 | S20: =$L$1 -> D | T20: 3 | U20: =$L$1 -> D | V20: 3 | W20: =$L$1 -> D | X20: 3 | Y20: =$L$1 -> D | Z20: 3 | AA20: =$L$1 -> D | AB20: 3 | AC20: =$L$1 -> D | AD20: 3 | AE20: =$L$1 -> D | AF20: 3 | AG20: =$L$1 -> D | AH20: 3 | AI20: =$L$1 -> D | AJ20: 3 | AK20: =$L$1 -> D | AL20: 3 | AM20: =$L$1 -> D | AN20: 3 | AO20: =$L$1 -> D | AP20: =$J$2 -> 2 | AQ20: =$L$1 -> D | AR20: 2 | AS20: =$L$1 -> D | AT20: 2 | AU20: =$L$1 -> D | AV20: 2 | AW20: =$L$1 -> D | AX20: 2 | AY20: =$M$1 -> E | AZ20: =$I$2 -> 1 | BA20: E | BB20: =$I$2 -> 1 | BC20: E | BD20: =$I$2 -> 1 | BE20: E | BF20: =$I$2 -> 1 | BG20: E | BH20: =$I$2 -> 1
E21: Gerona/Girona | F21: =$L$1 -> D | G21: =$J$2 -> 2 | H21: 143 | I21: =$K$1 -> C | J21: =$J$2 -> 2 | K21: =$K$1 -> C | L21: =$J$2 -> 2 | M21: =$L$1 -> D | N21: =$J$2 -> 2 | O21: =$L$1 -> D | P21: =$J$2 -> 2 | Q21: =$L$1 -> D | R21: =$J$2 -> 2 | S21: =$L$1 -> D | T21: =$J$2 -> 2 | U21: =$L$1 -> D | V21: =$J$2 -> 2 | W21: =$L$1 -> D | X21: =$J$2 -> 2 | Y21: =$L$1 -> D | Z21: =$J$2 -> 2 | AA21: =$L$1 -> D | AB21: =$J$2 -> 2 | AC21: =$L$1 -> D | AD21: =$J$2 -> 2 | AE21: =$L$1 -> D | AF21: =$J$2 -> 2 | AG21: =$M$1 -> E | AH21: =$I$2 -> 1 | AI21: =$M$1 -> E | AJ21: =$I$2 -> 1 | AK21: =$M$1 -> E | AL21: =$I$2 -> 1 | AM21: =$M$1 -> E | AN21: =$I$2 -> 1 | AO21: =$M$1 -> E | AP21: =$I$2 -> 1 | AQ21: =$M$1 -> E | AR21: =$I$2 -> 1 | AS21: =$M$1 -> E | AT21: =$I$2 -> 1 | AU21: =$M$1 -> E | AV21: =$I$2 -> 1 | AW21: =$M$1 -> E | AX21: =$I$2 -> 1 | AY21: =$M$1 -> E | AZ21: =$I$2 -> 1 | BA21: =$M$1 -> E | BB21: =$I$2 -> 1 | BC21: =$M$1 -> E | BD21: =$I$2 -> 1 | BE21: =$M$1 -> E | BF21: =$I$2 -> 1 | BG21: =$M$1 -> E | BH21: =$I$2 -> 1 | BU21: <200 | BX21: >=200
E22: Granada | F22: =$K$1 -> C | G22: =$K$2 -> 3 | H22: 754 | I22: =$I$1 -> A | J22: =$L$2 -> 4 | K22: =$J$1 -> B | L22: =$L$2 -> 4 | M22: =$J$1 -> B | N22: =$L$2 -> 4 | O22: =$J$1 -> B | P22: =$L$2 -> 4 | Q22: =$J$1 -> B | R22: =$L$2 -> 4 | S22: =$J$1 -> B | T22: =$L$2 -> 4 | U22: =$J$1 -> B | V22: =$L$2 -> 4 | W22: =$K$1 -> C | X22: =$L$2 -> 4 | Y22: C | Z22: 4 | AA22: C | AB22: 4 | AC22: C | AD22: 4 | AE22: C | AF22: 4 | AG22: =$K$1 -> C | AH22: =$K$2 -> 3 | AI22: C | AJ22: 3 | AK22: C | AL22: 3 | AM22: C | AN22: 3 | AO22: =$L$1 -> D | AP22: =$K$2 -> 3 | AQ22: =$L$1 -> D | AR22: 3 | AS22: =$L$1 -> D | AT22: 3 | AU22: =$L$1 -> D | AV22: 3 | AW22: =$L$1 -> D | AX22: 3 | AY22: =$L$1 -> D | AZ22: 3 | BA22: =$L$1 -> D | BB22: 3 | BC22: =$L$1 -> D | BD22: 3 | BE22: =$L$1 -> D | BF22: 3 | BG22: =$M$1 -> E | BH22: =$I$2 -> 1 | BV22: <800 | BW22: <1050 | BY22: >=1050
E23: Guadalajara | F23: =$L$1 -> D | G23: =$K$2 -> 3 | H23: 708 | I23: =$L$1 -> D | J23: =$K$2 -> 3 | K23: =$L$1 -> D | L23: =$K$2 -> 3 | M23: =$L$1 -> D | N23: =$K$2 -> 3 | O23: =$L$1 -> D | P23: =$K$2 -> 3 | Q23: =$L$1 -> D | R23: =$K$2 -> 3 | S23: =$L$1 -> D | T23: =$K$2 -> 3 | U23: =$L$1 -> D | V23: =$K$2 -> 3 | W23: =$L$1 -> D | X23: =$K$2 -> 3 | Y23: =$L$1 -> D | Z23: =$K$2 -> 3 | AA23: =$L$1 -> D | AB23: =$K$2 -> 3 | AC23: =$L$1 -> D | AD23: =$K$2 -> 3 | AE23: =$L$1 -> D | AF23: =$K$2 -> 3 | AG23: =$L$1 -> D | AH23: =$K$2 -> 3 | AI23: =$L$1 -> D | AJ23: =$K$2 -> 3 | AK23: =$L$1 -> D | AL23: =$K$2 -> 3 | AM23: =$L$1 -> D | AN23: =$K$2 -> 3 | AO23: =$L$1 -> D | AP23: =$K$2 -> 3 | AQ23: =$L$1 -> D | AR23: =$K$2 -> 3 | AS23: =$L$1 -> D | AT23: =$K$2 -> 3 | AU23: =$L$1 -> D | AV23: =$J$2 -> 2 | AW23: =$M$1 -> E | AX23: =$I$2 -> 1 | AY23: =$M$1 -> E | AZ23: =$I$2 -> 1 | BA23: =$M$1 -> E | BB23: =$I$2 -> 1 | BC23: =$M$1 -> E | BD23: =$I$2 -> 1 | BE23: =$M$1 -> E | BF23: =$I$2 -> 1 | BG23: =$M$1 -> E | BH23: =$I$2 -> 1 | BT23: <100 | BW23: <600 | BY23: >=600
E24: Huelva | F24: =$I$1 -> A | G24: =$L$2 -> 4 | H24: 50 | I24: =$I$1 -> A | J24: =$L$2 -> 4 | K24: =$J$1 -> B | L24: =$L$2 -> 4 | M24: =$J$1 -> B | N24: =$L$2 -> 4 | O24: =$J$1 -> B | P24: =$K$2 -> 3 | Q24: B | R24: =$K$2 -> 3 | S24: B | T24: =$K$2 -> 3 | U24: B | V24: =$K$2 -> 3 | W24: =$K$1 -> C | X24: =$K$2 -> 3 | Y24: C | Z24: =$K$2 -> 3 | AA24: C | AB24: =$K$2 -> 3 | AC24: C | AD24: =$K$2 -> 3 | AE24: C | AF24: =$K$2 -> 3 | AG24: C | AH24: =$K$2 -> 3 | AI24: C | AJ24: =$K$2 -> 3 | AK24: C | AL24: =$K$2 -> 3 | AM24: C | AN24: =$K$2 -> 3 | AO24: =$L$1 -> D | AP24: =$K$2 -> 3 | AQ24: =$L$1 -> D | AR24: =$K$2 -> 3 | AS24: =$L$1 -> D | AT24: =$K$2 -> 3 | AU24: =$L$1 -> D | AV24: =$K$2 -> 3 | AW24: =$L$1 -> D | AX24: 3 | AY24: =$L$1 -> D | AZ24: 3 | BA24: =$L$1 -> D | BB24: 3 | BC24: =$L$1 -> D | BD24: 3 | BE24: =$L$1 -> D | BF24: 3 | BG24: =$L$1 -> D | BH24: 3 | BV24: <950 | BW24: <1000 | BY24: >=1000
E25: Huesca | F25: =$L$1 -> D | G25: =$J$2 -> 2 | H25: 432 | I25: =$K$1 -> C | J25: =$K$2 -> 3 | K25: C | L25: 3 | M25: C | N25: 3 | O25: C | P25: 3 | Q25: =$L$1 -> D | R25: =$K$2 -> 3 | S25: =$L$1 -> D | T25: =$K$2 -> 3 | U25: =$L$1 -> D | V25: =$K$2 -> 3 | W25: =$L$1 -> D | X25: =$K$2 -> 3 | Y25: =$L$1 -> D | Z25: =$J$2 -> 2 | AA25: D | AB25: 2 | AC25: D | AD25: 2 | AE25: D | AF25: 2 | AG25: D | AH25: 2 | AI25: D | AJ25: 2 | AK25: =$M$1 -> E | AL25: =$I$2 -> 1 | AM25: =$M$1 -> E | AN25: =$I$2 -> 1 | AO25: =$M$1 -> E | AP25: =$I$2 -> 1 | AQ25: =$M$1 -> E | AR25: =$I$2 -> 1 | AS25: =$M$1 -> E | AT25: =$I$2 -> 1 | AU25: =$M$1 -> E | AV25: =$I$2 -> 1 | AW25: =$M$1 -> E | AX25: =$I$2 -> 1 | AY25: =$M$1 -> E | AZ25: =$I$2 -> 1 | BA25: =$M$1 -> E | BB25: =$I$2 -> 1 | BC25: =$M$1 -> E | BD25: =$I$2 -> 1 | BE25: =$M$1 -> E | BF25: =$I$2 -> 1 | BG25: =$M$1 -> E | BH25: =$I$2 -> 1 | BX25: <400 | BY25: >=400
E26: Jaén | F26: =$K$1 -> C | G26: =$L$2 -> 4 | H26: 436 | I26: =$J$1 -> B | J26: =$L$2 -> 4 | K26: =$J$1 -> B | L26: =$L$2 -> 4 | M26: =$J$1 -> B | N26: =$L$2 -> 4 | O26: =$J$1 -> B | P26: =$L$2 -> 4 | Q26: =$J$1 -> B | R26: =$L$2 -> 4 | S26: =$J$1 -> B | T26: =$L$2 -> 4 | U26: =$J$1 -> B | V26: =$L$2 -> 4 | W26: =$K$1 -> C | X26: =$L$2 -> 4 | Y26: C | Z26: 4 | AA26: C | AB26: 4 | AC26: C | AD26: 4 | AE26: C | AF26: 4 | AG26: C | AH26: 4 | AI26: C | AJ26: 4 | AK26: C | AL26: 4 | AM26: =$L$1 -> D | AN26: =$K$2 -> 3 | AO26: D | AP26: 3 | AQ26: D | AR26: 3 | AS26: D | AT26: 3 | AU26: D | AV26: 3 | AW26: D | AX26: 3 | AY26: D | AZ26: 3 | BA26: D | BB26: 3 | BC26: D | BD26: 3 | BE26: =$M$1 -> E | BF26: =$I$2 -> 1 | BG26: =$M$1 -> E | BH26: =$I$2 -> 1 | BS26: <200 | BV26: <400 | BW26: <700 | BY26: >=700
E27: León | F27: =$M$1 -> E | G27: =$I$2 -> 1 | H27: 346 | I27: =$M$1 -> E | J27: =$I$2 -> 1 | K27: =$M$1 -> E | L27: =$I$2 -> 1 | M27: =$M$1 -> E | N27: =$I$2 -> 1 | O27: =$M$1 -> E | P27: =$I$2 -> 1 | Q27: =$M$1 -> E | R27: =$I$2 -> 1 | S27: =$M$1 -> E | T27: =$I$2 -> 1 | U27: =$M$1 -> E | V27: =$I$2 -> 1 | W27: =$M$1 -> E | X27: =$I$2 -> 1 | Y27: =$M$1 -> E | Z27: =$I$2 -> 1 | AA27: =$M$1 -> E | AB27: =$I$2 -> 1 | AC27: =$M$1 -> E | AD27: =$I$2 -> 1 | AE27: =$M$1 -> E | AF27: =$I$2 -> 1 | AG27: =$M$1 -> E | AH27: =$I$2 -> 1 | AI27: =$M$1 -> E | AJ27: =$I$2 -> 1 | AK27: =$M$1 -> E | AL27: =$I$2 -> 1 | AM27: =$M$1 -> E | AN27: =$I$2 -> 1 | AO27: =$M$1 -> E | AP27: =$I$2 -> 1 | AQ27: =$M$1 -> E | AR27: =$I$2 -> 1 | AS27: =$M$1 -> E | AT27: =$I$2 -> 1 | AU27: =$M$1 -> E | AV27: =$I$2 -> 1 | AW27: =$M$1 -> E | AX27: =$I$2 -> 1 | AY27: =$M$1 -> E | AZ27: =$I$2 -> 1 | BA27: =$M$1 -> E | BB27: =$I$2 -> 1 | BC27: =$M$1 -> E | BD27: =$I$2 -> 1 | BE27: =$M$1 -> E | BF27: =$I$2 -> 1 | BG27: =$M$1 -> E | BH27: =$I$2 -> 1 | BK27: <350 | BL27: <750 | BP27: <1000 | BT27: >=1000
E28: Lérida/Lleida | F28: =$L$1 -> D | G28: =$K$2 -> 3 | H28: 131 | I28: =$K$1 -> C | J28: =$K$2 -> 3 | K28: =$K$1 -> C | L28: =$K$2 -> 3 | M28: =$L$1 -> D | N28: =$K$2 -> 3 | O28: =$L$1 -> D | P28: 3 | Q28: =$L$1 -> D | R28: 3 | S28: =$L$1 -> D | T28: 3 | U28: =$L$1 -> D | V28: 3 | W28: =$L$1 -> D | X28: 3 | Y28: =$L$1 -> D | Z28: 3 | AA28: =$L$1 -> D | AB28: 3 | AC28: =$L$1 -> D | AD28: 3 | AE28: =$L$1 -> D | AF28: 3 | AG28: =$M$1 -> E | AH28: =$I$2 -> 1 | AI28: =$M$1 -> E | AJ28: =$I$2 -> 1 | AK28: =$M$1 -> E | AL28: =$I$2 -> 1 | AM28: =$M$1 -> E | AN28: =$I$2 -> 1 | AO28: =$M$1 -> E | AP28: =$I$2 -> 1 | AQ28: =$M$1 -> E | AR28: =$I$2 -> 1 | AS28: =$M$1 -> E | AT28: =$I$2 -> 1 | AU28: =$M$1 -> E | AV28: =$I$2 -> 1 | AW28: =$M$1 -> E | AX28: =$I$2 -> 1 | AY28: =$M$1 -> E | AZ28: =$I$2 -> 1 | BA28: =$M$1 -> E | BB28: =$I$2 -> 1 | BC28: =$M$1 -> E | BD28: =$I$2 -> 1 | BE28: =$M$1 -> E | BF28: =$I$2 -> 1 | BG28: =$M$1 -> E | BH28: =$I$2 -> 1 | BY28: <1250
E29: Logroño | F29: =$L$1 -> D | G29: =$J$2 -> 2 | H29: 379 | I29: =$K$1 -> C | J29: =$J$2 -> 2 | K29: =$K$1 -> C | L29: 2 | M29: =$K$1 -> C | N29: 2 | O29: =$K$1 -> C | P29: 2 | Q29: =$L$1 -> D | R29: =$J$2 -> 2 | S29: =$L$1 -> D | T29: 2 | U29: =$L$1 -> D | V29: 2 | W29: =$L$1 -> D | X29: 2 | Y29: =$L$1 -> D | Z29: 2 | AA29: =$L$1 -> D | AB29: 2 | AC29: =$L$1 -> D | AD29: 2 | AE29: =$L$1 -> D | AF29: 2 | AG29: =$L$1 -> D | AH29: 2 | AI29: =$L$1 -> D | AJ29: 2 | AK29: =$M$1 -> E | AL29: =$I$2 -> 1 | AM29: =$M$1 -> E | AN29: =$I$2 -> 1 | AO29: =$M$1 -> E | AP29: =$I$2 -> 1 | AQ29: =$M$1 -> E | AR29: =$I$2 -> 1 | AS29: =$M$1 -> E | AT29: =$I$2 -> 1 | AU29: =$M$1 -> E | AV29: =$I$2 -> 1 | AW29: =$M$1 -> E | AX29: =$I$2 -> 1 | AY29: =$M$1 -> E | AZ29: =$I$2 -> 1 | BA29: =$M$1 -> E | BB29: =$I$2 -> 1 | BC29: =$M$1 -> E | BD29: =$I$2 -> 1 | BE29: =$M$1 -> E | BF29: =$I$2 -> 1 | BG29: =$M$1 -> E | BH29: =$I$2 -> 1 | BS29: <100 | BV29: <600 | BY29: >=600
E30: Lugo | F30: =$L$1 -> D | G30: =$I$2 -> 1 | H30: 412 | I30: =$L$1 -> D | J30: =$I$2 -> 1 | K30: D | L30: 1 | M30: D | N30: 1 | O30: D | P30: 1 | Q30: D | R30: 1 | S30: D | T30: 1 | U30: D | V30: 1 | W30: D | X30: 1 | Y30: D | Z30: 1 | AA30: D | AB30: 1 | AC30: =$M$1 -> E | AD30: =$I$2 -> 1 | AE30: E | AF30: 1 | AG30: E | AH30: 1 | AI30: E | AJ30: 1 | AK30: E | AL30: 1 | AM30: E | AN30: 1 | AO30: E | AP30: 1 | AQ30: E | AR30: 1 | AS30: E | AT30: 1 | AU30: E | AV30: 1 | AW30: E | AX30: 1 | AY30: E | AZ30: 1 | BA30: E | BB30: 1 | BC30: E | BD30: 1 | BE30: E | BF30: 1 | BG30: E | BH30: 1
E31: Madrid | F31: =$L$1 -> D | G31: =$K$2 -> 3 | H31: 589 | I31: =$K$1 -> C | J31: =$K$2 -> 3 | K31: =$K$1 -> C | L31: =$K$2 -> 3 | M31: =$K$1 -> C | N31: =$K$2 -> 3 | O31: =$K$1 -> C | P31: =$K$2 -> 3 | Q31: =$K$1 -> C | R31: =$K$2 -> 3 | S31: =$K$1 -> C | T31: =$K$2 -> 3 | U31: =$K$1 -> C | V31: =$K$2 -> 3 | W31: =$K$1 -> C | X31: =$K$2 -> 3 | Y31: =$K$1 -> C | Z31: =$K$2 -> 3 | AA31: =$K$1 -> C | AB31: =$K$2 -> 3 | AC31: =$L$1 -> D | AD31: =$K$2 -> 3 | AE31: =$L$1 -> D | AF31: 3 | AG31: =$L$1 -> D | AH31: 3 | AI31: =$L$1 -> D | AJ31: 3 | AK31: =$L$1 -> D | AL31: 3 | AM31: =$L$1 -> D | AN31: 3 | AO31: =$L$1 -> D | AP31: 3 | AQ31: =$L$1 -> D | AR31: 3 | AS31: =$L$1 -> D | AT31: 3 | AU31: =$L$1 -> D | AV31: =$J$2 -> 2 | AW31: =$M$1 -> E | AX31: =$I$2 -> 1 | AY31: =$M$1 -> E | AZ31: =$I$2 -> 1 | BA31: =$M$1 -> E | BB31: =$I$2 -> 1 | BC31: =$M$1 -> E | BD31: =$I$2 -> 1 | BE31: =$M$1 -> E | BF31: =$I$2 -> 1 | BG31: =$M$1 -> E | BH31: =$I$2 -> 1 | BX31: <500 | BY31: >=500
E32: Málaga | F32: =$I$1 -> A | G32: =$K$2 -> 3 | H32: 0 | I32: =$J$1 -> B | J32: =$K$2 -> 3 | K32: B | L32: =$K$2 -> 3 | M32: B | N32: =$K$2 -> 3 | O32: B | P32: =$K$2 -> 3 | Q32: B | R32: =$K$2 -> 3 | S32: B | T32: =$K$2 -> 3 | U32: =$K$1 -> C | V32: =$K$2 -> 3 | W32: =$K$1 -> C | X32: =$K$2 -> 3 | Y32: =$K$1 -> C | Z32: =$K$2 -> 3 | AA32: =$K$1 -> C | AB32: =$K$2 -> 3 | AC32: =$K$1 -> C | AD32: 3 | AE32: C | AF32: 3 | AG32: C | AH32: 3 | AI32: C | AJ32: 3 | AK32: =$L$1 -> D | AL32: 3 | AM32: =$L$1 -> D | AN32: 3 | AO32: =$L$1 -> D | AP32: 3 | AQ32: =$L$1 -> D | AR32: 3 | AS32: =$L$1 -> D | AT32: 3 | AU32: =$L$1 -> D | AV32: =$K$2 -> 3 | AW32: =$L$1 -> D | AX32: 3 | AY32: =$L$1 -> D | AZ32: 3 | BA32: =$L$1 -> D | BB32: 3 | BC32: D | BD32: 3 | BE32: D | BF32: 3 | BG32: D | BH32: 3 | BS32: <500 | BV32: <950 | BW32: <1000 | BY32: >=1000
E33: Melilla | F33: =$I$1 -> A | G33: =$K$2 -> 3 | H33: 130 | I33: =$I$1 -> A | J33: =$K$2 -> 3 | K33: A | L33: =$K$2 -> 3 | M33: A | N33: =$K$2 -> 3 | O33: A | P33: =$K$2 -> 3 | Q33: A | R33: =$K$2 -> 3 | S33: A | T33: =$K$2 -> 3 | U33: A | V33: =$K$2 -> 3 | W33: A | X33: =$K$2 -> 3 | Y33: A | Z33: =$K$2 -> 3 | AA33: A | AB33: =$K$2 -> 3 | AC33: A | AD33: 3 | AE33: A | AF33: 3 | AG33: A | AH33: 3 | AI33: A | AJ33: 3 | AK33: A | AL33: 3 | AM33: A | AN33: 3 | AO33: A | AP33: 3 | AQ33: A | AR33: 3 | AS33: A | AT33: 3 | AU33: A | AV33: 3 | AW33: A | AX33: 3 | AY33: A | AZ33: 3 | BA33: A | BB33: 3 | BC33: A | BD33: 3 | BE33: A | BF33: 3 | BG33: A | BH33: 3 | BO33: <300 | BS33: <700 | BV33: >=700
E34: Murcia | F34: =$J$1 -> B | G34: =$K$2 -> 3 | H34: 25 | I34: =$J$1 -> B | J34: =$K$2 -> 3 | K34: =$J$1 -> B | L34: =$K$2 -> 3 | M34: =$K$1 -> C | N34: =$K$2 -> 3 | O34: =$K$1 -> C | P34: =$K$2 -> 3 | Q34: =$K$1 -> C | R34: =$K$2 -> 3 | S34: =$K$1 -> C | T34: =$K$2 -> 3 | U34: =$K$1 -> C | V34: =$K$2 -> 3 | W34: =$K$1 -> C | X34: =$K$2 -> 3 | Y34: =$K$1 -> C | Z34: =$K$2 -> 3 | AA34: =$K$1 -> C | AB34: =$K$2 -> 3 | AC34: =$K$1 -> C | AD34: 3 | AE34: =$L$1 -> D | AF34: 3 | AG34: D | AH34: 3 | AI34: D | AJ34: 3 | AK34: D | AL34: 3 | AM34: D | AN34: 3 | AO34: D | AP34: 3 | AQ34: D | AR34: 3 | AS34: D | AT34: 3 | AU34: D | AV34: 3 | AW34: D | AX34: 3 | AY34: D | AZ34: 3 | BA34: D | BB34: 3 | BC34: D | BD34: 3 | BE34: D | BF34: 3 | BG34: D | BH34: 3
E35: Orense/Ourense | F35: =$L$1 -> D | G35: =$J$2 -> 2 | H35: 327 | I35: =$K$1 -> C | J35: =$K$2 -> 3 | K35: =$K$1 -> C | L35: =$K$2 -> 3 | M35: =$K$1 -> C | N35: =$K$2 -> 3 | O35: =$K$1 -> C | P35: =$J$2 -> 2 | Q35: =$K$1 -> C | R35: =$J$2 -> 2 | S35: =$K$1 -> C | T35: =$J$2 -> 2 | U35: =$L$1 -> D | V35: =$J$2 -> 2 | W35: D | X35: 2 | Y35: D | Z35: 2 | AA35: D | AB35: 2 | AC35: D | AD35: 2 | AE35: D | AF35: 2 | AG35: D | AH35: 2 | AI35: D | AJ35: 2 | AK35: D | AL35: 2 | AM35: D | AN35: 2 | AO35: =$M$1 -> E | AP35: =$I$2 -> 1 | AQ35: E | AR35: 1 | AS35: E | AT35: 1 | AU35: E | AV35: 1 | AW35: E | AX35: 1 | AY35: E | AZ35: 1 | BA35: E | BB35: 1 | BC35: E | BD35: 1 | BE35: E | BF35: 1 | BG35: E | BH35: 1 | BT35: <100 | BW35: <300 | BX35: <600 | BY35: >=600
E36: Oviedo | F36: =$L$1 -> D | G36: =$I$2 -> 1 | H36: 214 | I36: =$K$1 -> C | J36: =$I$2 -> 1 | K36: =$L$1 -> D | L36: =$I$2 -> 1 | M36: =$L$1 -> D | N36: =$I$2 -> 1 | O36: =$L$1 -> D | P36: =$I$2 -> 1 | Q36: =$L$1 -> D | R36: =$I$2 -> 1 | S36: =$L$1 -> D | T36: =$I$2 -> 1 | U36: =$L$1 -> D | V36: =$I$2 -> 1 | W36: =$L$1 -> D | X36: =$I$2 -> 1 | Y36: =$L$1 -> D | Z36: =$I$2 -> 1 | AA36: =$L$1 -> D | AB36: =$I$2 -> 1 | AC36: =$L$1 -> D | AD36: =$I$2 -> 1 | AE36: =$M$1 -> E | AF36: =$I$2 -> 1 | AG36: =$M$1 -> E | AH36: =$I$2 -> 1 | AI36: =$M$1 -> E | AJ36: =$I$2 -> 1 | AK36: =$M$1 -> E | AL36: =$I$2 -> 1 | AM36: =$M$1 -> E | AN36: =$I$2 -> 1 | AO36: =$M$1 -> E | AP36: =$I$2 -> 1 | AQ36: =$M$1 -> E | AR36: =$I$2 -> 1 | AS36: =$M$1 -> E | AT36: =$I$2 -> 1 | AU36: =$M$1 -> E | AV36: =$I$2 -> 1 | AW36: =$M$1 -> E | AX36: =$I$2 -> 1 | AY36: =$M$1 -> E | AZ36: =$I$2 -> 1 | BA36: =$M$1 -> E | BB36: =$I$2 -> 1 | BC36: =$M$1 -> E | BD36: =$I$2 -> 1 | BE36: =$M$1 -> E | BF36: =$I$2 -> 1 | BG36: =$M$1 -> E | BH36: =$I$2 -> 1 | BS36: <150 | BT36: <300 | BW36: <800 | BY36: >=800
E37: Palencia | F37: =$L$1 -> D | G37: =$I$2 -> 1 | H37: 722 | I37: =$L$1 -> D | J37: =$I$2 -> 1 | K37: =$L$1 -> D | L37: =$I$2 -> 1 | M37: =$L$1 -> D | N37: =$I$2 -> 1 | O37: =$L$1 -> D | P37: =$I$2 -> 1 | Q37: =$L$1 -> D | R37: =$I$2 -> 1 | S37: =$L$1 -> D | T37: =$I$2 -> 1 | U37: =$L$1 -> D | V37: =$I$2 -> 1 | W37: =$L$1 -> D | X37: =$I$2 -> 1 | Y37: =$L$1 -> D | Z37: =$I$2 -> 1 | AA37: =$L$1 -> D | AB37: =$I$2 -> 1 | AC37: =$L$1 -> D | AD37: =$I$2 -> 1 | AE37: =$L$1 -> D | AF37: =$I$2 -> 1 | AG37: D | AH37: =$I$2 -> 1 | AI37: D | AJ37: =$I$2 -> 1 | AK37: D | AL37: =$I$2 -> 1 | AM37: D | AN37: =$I$2 -> 1 | AO37: =$M$1 -> E | AP37: =$I$2 -> 1 | AQ37: =$M$1 -> E | AR37: =$I$2 -> 1 | AS37: =$M$1 -> E | AT37: =$I$2 -> 1 | AU37: =$M$1 -> E | AV37: =$I$2 -> 1 | AW37: =$M$1 -> E | AX37: =$I$2 -> 1 | AY37: =$M$1 -> E | AZ37: =$I$2 -> 1 | BA37: =$M$1 -> E | BB37: =$I$2 -> 1 | BC37: =$M$1 -> E | BD37: =$I$2 -> 1 | BE37: =$M$1 -> E | BF37: =$I$2 -> 1 | BG37: =$M$1 -> E | BH37: =$I$2 -> 1
E38: Palmas de Gran Canaria, Las | F38: a | G38: =$K$2 -> 3 | H38: 114 | I38: =$F$59 -> a | J38: =$K$2 -> 3 | K38: =$F$59 -> a | L38: =$K$2 -> 3 | M38: =$F$59 -> a | N38: =$K$2 -> 3 | O38: =$F$59 -> a | P38: =$K$2 -> 3 | Q38: =$F$59 -> a | R38: =$K$2 -> 3 | S38: =$F$59 -> a | T38: =$K$2 -> 3 | U38: =$F$59 -> a | V38: =$K$2 -> 3 | W38: =$I$1 -> A | X38: =$J$2 -> 2 | Y38: A | Z38: 2 | AA38: A | AB38: 2 | AC38: A | AD38: 2 | AE38: A | AF38: 2 | AG38: A | AH38: 2 | AI38: A | AJ38: 2 | AK38: A | AL38: 2 | AM38: =$J$1 -> B | AN38: =$J$2 -> 2 | AO38: =$J$1 -> B | AP38: 2 | AQ38: =$J$1 -> B | AR38: 2 | AS38: =$J$1 -> B | AT38: 2 | AU38: =$J$1 -> B | AV38: 2 | AW38: =$K$1 -> C | AX38: =$J$2 -> 2 | AY38: C | AZ38: =$J$2 -> 2 | BA38: C | BB38: =$J$2 -> 2 | BC38: C | BD38: =$J$2 -> 2 | BE38: C | BF38: =$J$2 -> 2 | BG38: C | BH38: =$J$2 -> 2 | BX38: <800 | BY38: >=800
E39: Palma de Mallorca | F39: =$J$1 -> B | G39: =$K$2 -> 3 | H39: 1 | I39: =$J$1 -> B | J39: =$K$2 -> 3 | K39: B | L39: 3 | M39: B | N39: 3 | O39: B | P39: 3 | Q39: B | R39: 3 | S39: =$K$1 -> C | T39: =$K$2 -> 3 | U39: =$K$1 -> C | V39: 3 | W39: =$K$1 -> C | X39: 3 | Y39: =$K$1 -> C | Z39: 3 | AA39: =$K$1 -> C | AB39: 3 | AC39: =$K$1 -> C | AD39: 3 | AE39: C | AF39: 3 | AG39: C | AH39: 3 | AI39: C | AJ39: 3 | AK39: C | AL39: 3 | AM39: C | AN39: 3 | AO39: C | AP39: 3 | AQ39: C | AR39: 3 | AS39: C | AT39: 3 | AU39: C | AV39: 3 | AW39: C | AX39: 3 | AY39: C | AZ39: 3 | BA39: C | BB39: 3 | BC39: C | BD39: 3 | BE39: C | BF39: 3 | BG39: C | BH39: 3
E40: Pamplona/Iruña | F40: =$L$1 -> D | G40: =$I$2 -> 1 | H40: 456 | I40: =$K$1 -> C | J40: =$J$2 -> 2 | K40: =$K$1 -> C | L40: =$J$2 -> 2 | M40: =$L$1 -> D | N40: =$J$2 -> 2 | O40: D | P40: 2 | Q40: D | R40: 2 | S40: D | T40: 2 | U40: =$L$1 -> D | V40: =$I$2 -> 1 | W40: =$L$1 -> D | X40: =$I$2 -> 1 | Y40: =$L$1 -> D | Z40: =$I$2 -> 1 | AA40: =$L$1 -> D | AB40: =$I$2 -> 1 | AC40: =$L$1 -> D | AD40: =$I$2 -> 1 | AE40: =$L$1 -> D | AF40: =$I$2 -> 1 | AG40: =$M$1 -> E | AH40: =$I$2 -> 1 | AI40: =$M$1 -> E | AJ40: =$I$2 -> 1 | AK40: =$M$1 -> E | AL40: =$I$2 -> 1 | AM40: =$M$1 -> E | AN40: =$I$2 -> 1 | AO40: =$M$1 -> E | AP40: =$I$2 -> 1 | AQ40: =$M$1 -> E | AR40: =$I$2 -> 1 | AS40: =$M$1 -> E | AT40: =$I$2 -> 1 | AU40: =$M$1 -> E | AV40: =$I$2 -> 1 | AW40: =$M$1 -> E | AX40: =$I$2 -> 1 | AY40: =$M$1 -> E | AZ40: =$I$2 -> 1 | BA40: =$M$1 -> E | BB40: =$I$2 -> 1 | BC40: =$M$1 -> E | BD40: =$I$2 -> 1 | BE40: =$M$1 -> E | BF40: =$I$2 -> 1 | BG40: =$M$1 -> E | BH40: =$I$2 -> 1
E41: Pontevedra | F41: =$K$1 -> C | G41: =$I$2 -> 1 | H41: 77 | I41: =$K$1 -> C | J41: =$I$2 -> 1 | K41: =$K$1 -> C | L41: 1 | M41: =$K$1 -> C | N41: 1 | O41: =$K$1 -> C | P41: 1 | Q41: =$K$1 -> C | R41: 1 | S41: =$K$1 -> C | T41: 1 | U41: =$K$1 -> C | V41: 1 | W41: =$L$1 -> D | X41: =$I$2 -> 1 | Y41: =$L$1 -> D | Z41: =$I$2 -> 1 | AA41: =$L$1 -> D | AB41: =$I$2 -> 1 | AC41: =$L$1 -> D | AD41: =$I$2 -> 1 | AE41: =$L$1 -> D | AF41: =$I$2 -> 1 | AG41: =$L$1 -> D | AH41: =$I$2 -> 1 | AI41: =$L$1 -> D | AJ41: =$I$2 -> 1 | AK41: =$L$1 -> D | AL41: =$I$2 -> 1 | AM41: =$L$1 -> D | AN41: =$I$2 -> 1 | AO41: =$L$1 -> D | AP41: =$I$2 -> 1 | AQ41: =$L$1 -> D | AR41: =$I$2 -> 1 | AS41: =$L$1 -> D | AT41: =$I$2 -> 1 | AU41: =$L$1 -> D | AV41: =$I$2 -> 1 | AW41: D | AX41: =$I$2 -> 1 | AY41: D | AZ41: =$I$2 -> 1 | BA41: D | BB41: =$I$2 -> 1 | BC41: D | BD41: =$I$2 -> 1 | BE41: D | BF41: =$I$2 -> 1 | BG41: D | BH41: =$I$2 -> 1 | BU41: <350 | BX41: >=350
E42: Salamanca | F42: =$L$1 -> D | G42: =$J$2 -> 2 | H42: 770 | I42: =$L$1 -> D | J42: =$J$2 -> 2 | K42: D | L42: 2 | M42: D | N42: 2 | O42: D | P42: 2 | Q42: D | R42: 2 | S42: D | T42: 2 | U42: D | V42: 2 | W42: D | X42: 2 | Y42: D | Z42: 2 | AA42: D | AB42: 2 | AC42: D | AD42: 2 | AE42: D | AF42: 2 | AG42: D | AH42: 2 | AI42: D | AJ42: 2 | AK42: D | AL42: 2 | AM42: D | AN42: 2 | AO42: =$M$1 -> E | AP42: =$I$2 -> 1 | AQ42: =$M$1 -> E | AR42: =$I$2 -> 1 | AS42: =$M$1 -> E | AT42: =$I$2 -> 1 | AU42: =$M$1 -> E | AV42: =$I$2 -> 1 | AW42: =$M$1 -> E | AX42: =$I$2 -> 1 | AY42: =$M$1 -> E | AZ42: =$I$2 -> 1 | BA42: =$M$1 -> E | BB42: =$I$2 -> 1 | BC42: =$M$1 -> E | BD42: =$I$2 -> 1 | BE42: =$M$1 -> E | BF42: =$I$2 -> 1 | BG42: =$M$1 -> E | BH42: =$I$2 -> 1 | BW42: <800 | BY42: >=800
E43: San Sebastián/Donostia | F43: =$L$1 -> D | G43: =$I$2 -> 1 | H43: 5 | I43: =$L$1 -> D | J43: =$I$2 -> 1 | K43: =$L$1 -> D | L43: =$I$2 -> 1 | M43: =$L$1 -> D | N43: =$I$2 -> 1 | O43: =$L$1 -> D | P43: =$I$2 -> 1 | Q43: =$L$1 -> D | R43: =$I$2 -> 1 | S43: =$L$1 -> D | T43: =$I$2 -> 1 | U43: =$L$1 -> D | V43: =$I$2 -> 1 | W43: =$L$1 -> D | X43: =$I$2 -> 1 | Y43: =$M$1 -> E | Z43: =$I$2 -> 1 | AA43: =$M$1 -> E | AB43: =$I$2 -> 1 | AC43: =$M$1 -> E | AD43: =$I$2 -> 1 | AE43: =$M$1 -> E | AF43: =$I$2 -> 1 | AG43: =$M$1 -> E | AH43: =$I$2 -> 1 | AI43: =$M$1 -> E | AJ43: =$I$2 -> 1 | AK43: =$M$1 -> E | AL43: =$I$2 -> 1 | AM43: =$M$1 -> E | AN43: =$I$2 -> 1 | AO43: =$M$1 -> E | AP43: =$I$2 -> 1 | AQ43: =$M$1 -> E | AR43: =$I$2 -> 1 | AS43: =$M$1 -> E | AT43: =$I$2 -> 1 | AU43: =$M$1 -> E | AV43: =$I$2 -> 1 | AW43: =$M$1 -> E | AX43: =$I$2 -> 1 | AY43: =$M$1 -> E | AZ43: =$I$2 -> 1 | BA43: =$M$1 -> E | BB43: =$I$2 -> 1 | BC43: =$M$1 -> E | BD43: =$I$2 -> 1 | BE43: =$M$1 -> E | BF43: =$I$2 -> 1 | BG43: =$M$1 -> E | BH43: =$I$2 -> 1
E44: Santa Cruz de Tenerife | F44: =$F$59 -> a | G44: =$K$2 -> 3 | H44: 0 | I44: =$F$59 -> a | J44: =$K$2 -> 3 | K44: =$F$59 -> a | L44: =$K$2 -> 3 | M44: =$F$59 -> a | N44: =$K$2 -> 3 | O44: =$F$59 -> a | P44: =$K$2 -> 3 | Q44: =$F$59 -> a | R44: =$K$2 -> 3 | S44: =$F$59 -> a | T44: =$K$2 -> 3 | U44: =$F$59 -> a | V44: =$K$2 -> 3 | W44: =$I$1 -> A | X44: =$J$2 -> 2 | Y44: A | Z44: 2 | AA44: A | AB44: 2 | AC44: A | AD44: 2 | AE44: A | AF44: 2 | AG44: A | AH44: 2 | AI44: A | AJ44: 2 | AK44: A | AL44: 2 | AM44: =$J$1 -> B | AN44: =$J$2 -> 2 | AO44: =$J$1 -> B | AP44: 2 | AQ44: =$J$1 -> B | AR44: 2 | AS44: =$J$1 -> B | AT44: 2 | AU44: =$J$1 -> B | AV44: 2 | AW44: =$K$1 -> C | AX44: =$J$2 -> 2 | AY44: C | AZ44: =$J$2 -> 2 | BA44: C | BB44: =$J$2 -> 2 | BC44: C | BD44: =$J$2 -> 2 | BE44: C | BF44: =$J$2 -> 2 | BG44: C | BH44: =$J$2 -> 2
E45: Santander | F45: =$K$1 -> C | G45: =$I$2 -> 1 | H45: 1 | I45: =$K$1 -> C | J45: =$I$2 -> 1 | K45: =$K$1 -> C | L45: =$I$2 -> 1 | M45: =$K$1 -> C | N45: =$I$2 -> 1 | O45: =$L$1 -> D | P45: =$I$2 -> 1 | Q45: =$L$1 -> D | R45: =$I$2 -> 1 | S45: =$L$1 -> D | T45: =$I$2 -> 1 | U45: =$L$1 -> D | V45: =$I$2 -> 1 | W45: =$L$1 -> D | X45: =$I$2 -> 1 | Y45: =$L$1 -> D | Z45: =$I$2 -> 1 | AA45: =$L$1 -> D | AB45: =$I$2 -> 1 | AC45: =$L$1 -> D | AD45: =$I$2 -> 1 | AE45: =$L$1 -> D | AF45: =$I$2 -> 1 | AG45: =$L$1 -> D | AH45: =$I$2 -> 1 | AI45: =$M$1 -> E | AJ45: =$I$2 -> 1 | AK45: =$M$1 -> E | AL45: =$I$2 -> 1 | AM45: =$M$1 -> E | AN45: =$I$2 -> 1 | AO45: =$M$1 -> E | AP45: =$I$2 -> 1 | AQ45: =$M$1 -> E | AR45: =$I$2 -> 1 | AS45: =$M$1 -> E | AT45: =$I$2 -> 1 | AU45: =$M$1 -> E | AV45: =$I$2 -> 1 | AW45: =$M$1 -> E | AX45: =$I$2 -> 1 | AY45: =$M$1 -> E | AZ45: =$I$2 -> 1 | BA45: =$M$1 -> E | BB45: =$I$2 -> 1 | BC45: =$M$1 -> E | BD45: =$I$2 -> 1 | BE45: =$M$1 -> E | BF45: =$I$2 -> 1 | BG45: =$M$1 -> E | BH45: =$I$2 -> 1 | BW45: <1000 | BY45: >=1000
E46: Segovia | F46: =$L$1 -> D | G46: =$J$2 -> 2 | H46: 1013 | I46: =$L$1 -> D | J46: =$J$2 -> 2 | K46: =$L$1 -> D | L46: =$J$2 -> 2 | M46: =$L$1 -> D | N46: =$J$2 -> 2 | O46: =$L$1 -> D | P46: =$J$2 -> 2 | Q46: =$L$1 -> D | R46: =$J$2 -> 2 | S46: =$L$1 -> D | T46: =$J$2 -> 2 | U46: =$L$1 -> D | V46: =$J$2 -> 2 | W46: =$L$1 -> D | X46: =$J$2 -> 2 | Y46: =$L$1 -> D | Z46: =$J$2 -> 2 | AA46: =$L$1 -> D | AB46: =$J$2 -> 2 | AC46: =$L$1 -> D | AD46: =$J$2 -> 2 | AE46: =$L$1 -> D | AF46: =$J$2 -> 2 | AG46: =$L$1 -> D | AH46: =$J$2 -> 2 | AI46: =$L$1 -> D | AJ46: =$J$2 -> 2 | AK46: =$L$1 -> D | AL46: =$J$2 -> 2 | AM46: =$L$1 -> D | AN46: =$J$2 -> 2 | AO46: =$L$1 -> D | AP46: =$J$2 -> 2 | AQ46: =$L$1 -> D | AR46: =$J$2 -> 2 | AS46: =$L$1 -> D | AT46: =$J$2 -> 2 | AU46: =$L$1 -> D | AV46: =$J$2 -> 2 | AW46: =$M$1 -> E | AX46: =$I$2 -> 1 | AY46: =$M$1 -> E | AZ46: =$I$2 -> 1 | BA46: =$M$1 -> E | BB46: =$I$2 -> 1 | BC46: =$M$1 -> E | BD46: =$I$2 -> 1 | BE46: =$M$1 -> E | BF46: =$I$2 -> 1 | BG46: =$M$1 -> E | BH46: =$I$2 -> 1 | BN46: <200 | BR46: >=200
E47: Sevilla | F47: =$J$1 -> B | G47: =$L$2 -> 4 | H47: 9 | I47: =$J$1 -> B | J47: =$L$2 -> 4 | K47: =$J$1 -> B | L47: =$L$2 -> 4 | M47: =$J$1 -> B | N47: =$L$2 -> 4 | O47: =$J$1 -> B | P47: =$L$2 -> 4 | Q47: =$K$1 -> C | R47: =$L$2 -> 4 | S47: =$K$1 -> C | T47: =$L$2 -> 4 | U47: =$K$1 -> C | V47: =$L$2 -> 4 | W47: =$K$1 -> C | X47: =$L$2 -> 4 | Y47: =$K$1 -> C | Z47: =$L$2 -> 4 | AA47: =$K$1 -> C | AB47: =$L$2 -> 4 | AC47: =$K$1 -> C | AD47: =$L$2 -> 4 | AE47: =$K$1 -> C | AF47: =$L$2 -> 4 | AG47: =$K$1 -> C | AH47: =$L$2 -> 4 | AI47: =$K$1 -> C | AJ47: =$L$2 -> 4 | AK47: =$K$1 -> C | AL47: =$L$2 -> 4 | AM47: =$K$1 -> C | AN47: =$L$2 -> 4 | AO47: =$K$1 -> C | AP47: =$L$2 -> 4 | AQ47: =$K$1 -> C | AR47: =$L$2 -> 4 | AS47: =$K$1 -> C | AT47: =$L$2 -> 4 | AU47: =$K$1 -> C | AV47: =$L$2 -> 4 | AW47: =$K$1 -> C | AX47: =$L$2 -> 4 | AY47: =$K$1 -> C | AZ47: =$L$2 -> 4 | BA47: =$K$1 -> C | BB47: =$L$2 -> 4 | BC47: =$K$1 -> C | BD47: =$L$2 -> 4 | BE47: =$K$1 -> C | BF47: =$L$2 -> 4 | BG47: =$K$1 -> C | BH47: =$L$2 -> 4 | BW47: <750 | BX47: <800 | BY47: >=800
E48: Soria | F48: =$M$1 -> E | G48: =$I$2 -> 1 | H48: 984 | I48: =$L$1 -> D | J48: =$J$2 -> 2 | K48: =$L$1 -> D | L48: =$J$2 -> 2 | M48: =$L$1 -> D | N48: =$J$2 -> 2 | O48: =$L$1 -> D | P48: =$J$2 -> 2 | Q48: =$L$1 -> D | R48: =$J$2 -> 2 | S48: =$L$1 -> D | T48: =$J$2 -> 2 | U48: =$L$1 -> D | V48: =$J$2 -> 2 | W48: =$L$1 -> D | X48: =$J$2 -> 2 | Y48: =$L$1 -> D | Z48: =$J$2 -> 2 | AA48: =$L$1 -> D | AB48: =$J$2 -> 2 | AC48: =$L$1 -> D | AD48: =$J$2 -> 2 | AE48: =$L$1 -> D | AF48: =$J$2 -> 2 | AG48: =$L$1 -> D | AH48: =$J$2 -> 2 | AI48: =$L$1 -> D | AJ48: =$J$2 -> 2 | AK48: =$L$1 -> D | AL48: =$J$2 -> 2 | AM48: =$L$1 -> D | AN48: =$I$2 -> 1 | AO48: =$M$1 -> E | AP48: =$I$2 -> 1 | AQ48: =$M$1 -> E | AR48: =$I$2 -> 1 | AS48: =$M$1 -> E | AT48: =$I$2 -> 1 | AU48: =$M$1 -> E | AV48: =$I$2 -> 1 | AW48: =$M$1 -> E | AX48: =$I$2 -> 1 | AY48: =$M$1 -> E | AZ48: =$I$2 -> 1 | BA48: =$M$1 -> E | BB48: =$I$2 -> 1 | BC48: =$M$1 -> E | BD48: =$I$2 -> 1 | BE48: =$M$1 -> E | BF48: =$I$2 -> 1 | BG48: =$M$1 -> E | BH48: =$I$2 -> 1 | BO48: <50 | BS48: <500 | BV48: >=500
E49: Tarragona | F49: =$J$1 -> B | G49: =$K$2 -> 3 | H49: 1 | I49: =$J$1 -> B | J49: =$K$2 -> 3 | K49: =$K$1 -> C | L49: =$K$2 -> 3 | M49: C | N49: =$K$2 -> 3 | O49: C | P49: =$K$2 -> 3 | Q49: C | R49: =$K$2 -> 3 | S49: C | T49: =$K$2 -> 3 | U49: C | V49: =$K$2 -> 3 | W49: C | X49: =$K$2 -> 3 | Y49: C | Z49: =$K$2 -> 3 | AA49: C | AB49: =$K$2 -> 3 | AC49: D | AD49: =$K$2 -> 3 | AE49: D | AF49: 3 | AG49: D | AH49: 3 | AI49: D | AJ49: 3 | AK49: D | AL49: 3 | AM49: D | AN49: 3 | AO49: =$L$1 -> D | AP49: 3 | AQ49: =$L$1 -> D | AR49: 3 | AS49: =$L$1 -> D | AT49: 3 | AU49: =$L$1 -> D | AV49: 3 | AW49: =$L$1 -> D | AX49: 3 | AY49: D | AZ49: 3 | BA49: D | BB49: 3 | BC49: D | BD49: 3 | BE49: D | BF49: 3 | BG49: D | BH49: 3 | BS49: <450 | BT49: <500 | BW49: <1000 | BY49: >=1000
E50: Teruel | F50: =$L$1 -> D | G50: =$J$2 -> 2 | H50: 995 | I50: C | J50: =$K$2 -> 3 | K50: C | L50: =$K$2 -> 3 | M50: C | N50: =$K$2 -> 3 | O50: C | P50: =$K$2 -> 3 | Q50: C | R50: =$K$2 -> 3 | S50: C | T50: =$K$2 -> 3 | U50: C | V50: =$K$2 -> 3 | W50: C | X50: =$K$2 -> 3 | Y50: C | Z50: =$K$2 -> 3 | AA50: C | AB50: =$J$2 -> 2 | AC50: D | AD50: =$J$2 -> 2 | AE50: D | AF50: =$J$2 -> 2 | AG50: D | AH50: =$J$2 -> 2 | AI50: D | AJ50: =$J$2 -> 2 | AK50: D | AL50: =$J$2 -> 2 | AM50: D | AN50: =$J$2 -> 2 | AO50: =$L$1 -> D | AP50: =$J$2 -> 2 | AQ50: =$L$1 -> D | AR50: =$J$2 -> 2 | AS50: =$L$1 -> D | AT50: =$J$2 -> 2 | AU50: =$L$1 -> D | AV50: =$J$2 -> 2 | AW50: =$M$1 -> E | AX50: =$I$2 -> 1 | AY50: =$M$1 -> E | AZ50: =$I$2 -> 1 | BA50: =$M$1 -> E | BB50: =$I$2 -> 1 | BC50: =$M$1 -> E | BD50: =$I$2 -> 1 | BE50: =$M$1 -> E | BF50: =$I$2 -> 1 | BG50: =$M$1 -> E | BH50: =$I$2 -> 1 | BR50: <500 | BV50: >=500
E51: Toledo | F51: =$K$1 -> C | G51: =$L$2 -> 4 | H51: 445 | I51: C | J51: =$L$2 -> 4 | K51: C | L51: =$L$2 -> 4 | M51: C | N51: =$L$2 -> 4 | O51: C | P51: =$L$2 -> 4 | Q51: C | R51: =$L$2 -> 4 | S51: C | T51: =$L$2 -> 4 | U51: C | V51: =$L$2 -> 4 | W51: C | X51: =$L$2 -> 4 | Y51: C | Z51: =$L$2 -> 4 | AA51: C | AB51: =$L$2 -> 4 | AC51: D | AD51: =$K$2 -> 3 | AE51: D | AF51: 3 | AG51: D | AH51: 3 | AI51: D | AJ51: 3 | AK51: D | AL51: 3 | AM51: D | AN51: 3 | AO51: =$L$1 -> D | AP51: 3 | AQ51: =$L$1 -> D | AR51: 3 | AS51: =$L$1 -> D | AT51: 3 | AU51: =$L$1 -> D | AV51: 3 | AW51: =$L$1 -> D | AX51: 3 | AY51: D | AZ51: 3 | BA51: D | BB51: 3 | BC51: D | BD51: 3 | BE51: D | BF51: 3 | BG51: D | BH51: 3 | BO51: <50 | BS51: <500 | BW51: <950 | BY51: >=950
E52: Valencia/València | F52: =$J$1 -> B | G52: =$K$2 -> 3 | H52: 8 | I52: =$J$1 -> B | J52: =$K$2 -> 3 | K52: C | L52: =$K$2 -> 3 | M52: C | N52: =$K$2 -> 3 | O52: C | P52: =$K$2 -> 3 | Q52: C | R52: =$K$2 -> 3 | S52: C | T52: =$K$2 -> 3 | U52: C | V52: =$K$2 -> 3 | W52: C | X52: =$K$2 -> 3 | Y52: C | Z52: =$K$2 -> 3 | AA52: C | AB52: =$K$2 -> 3 | AC52: D | AD52: =$J$2 -> 2 | AE52: D | AF52: =$J$2 -> 2 | AG52: D | AH52: =$J$2 -> 2 | AI52: D | AJ52: =$J$2 -> 2 | AK52: D | AL52: =$J$2 -> 2 | AM52: D | AN52: =$J$2 -> 2 | AO52: =$L$1 -> D | AP52: =$J$2 -> 2 | AQ52: =$L$1 -> D | AR52: =$J$2 -> 2 | AS52: =$L$1 -> D | AT52: =$J$2 -> 2 | AU52: =$M$1 -> E | AV52: =$I$2 -> 1 | AW52: =$M$1 -> E | AX52: =$I$2 -> 1 | AY52: =$M$1 -> E | AZ52: =$I$2 -> 1 | BA52: =$M$1 -> E | BB52: =$I$2 -> 1 | BC52: =$M$1 -> E | BD52: =$I$2 -> 1 | BE52: =$M$1 -> E | BF52: =$I$2 -> 1 | BG52: =$M$1 -> E | BH52: =$I$2 -> 1 | BW52: <800 | BY52: >=800
E53: Valladolid | F53: =$L$1 -> D | G53: =$J$2 -> 2 | H53: 704 | I53: =$L$1 -> D | J53: =$J$2 -> 2 | K53: =$L$1 -> D | L53: =$J$2 -> 2 | M53: =$L$1 -> D | N53: =$J$2 -> 2 | O53: =$L$1 -> D | P53: =$J$2 -> 2 | Q53: =$L$1 -> D | R53: =$J$2 -> 2 | S53: =$L$1 -> D | T53: =$J$2 -> 2 | U53: =$L$1 -> D | V53: =$J$2 -> 2 | W53: =$L$1 -> D | X53: =$J$2 -> 2 | Y53: =$L$1 -> D | Z53: =$J$2 -> 2 | AA53: =$L$1 -> D | AB53: =$J$2 -> 2 | AC53: D | AD53: =$J$2 -> 2 | AE53: D | AF53: =$J$2 -> 2 | AG53: D | AH53: =$J$2 -> 2 | AI53: D | AJ53: =$J$2 -> 2 | AK53: D | AL53: =$J$2 -> 2 | AM53: D | AN53: =$J$2 -> 2 | AO53: =$M$1 -> E | AP53: =$I$2 -> 1 | AQ53: =$M$1 -> E | AR53: =$I$2 -> 1 | AS53: =$M$1 -> E | AT53: =$I$2 -> 1 | AU53: =$M$1 -> E | AV53: =$I$2 -> 1 | AW53: =$M$1 -> E | AX53: =$I$2 -> 1 | AY53: =$M$1 -> E | AZ53: =$I$2 -> 1 | BA53: =$M$1 -> E | BB53: =$I$2 -> 1 | BC53: =$M$1 -> E | BD53: =$I$2 -> 1 | BE53: =$M$1 -> E | BF53: =$I$2 -> 1 | BG53: =$M$1 -> E | BH53: =$I$2 -> 1
E54: Vitoria/Gasteiz | F54: =$L$1 -> D | G54: =$I$2 -> 1 | H54: 512 | I54: =$L$1 -> D | J54: =$I$2 -> 1 | K54: =$L$1 -> D | L54: 1 | M54: =$L$1 -> D | N54: 1 | O54: =$L$1 -> D | P54: 1 | Q54: =$L$1 -> D | R54: 1 | S54: =$L$1 -> D | T54: 1 | U54: =$L$1 -> D | V54: 1 | W54: =$L$1 -> D | X54: 1 | Y54: =$L$1 -> D | Z54: 1 | AA54: =$L$1 -> D | AB54: 1 | AC54: =$M$1 -> E | AD54: =$I$2 -> 1 | AE54: =$M$1 -> E | AF54: =$I$2 -> 1 | AG54: =$M$1 -> E | AH54: =$I$2 -> 1 | AI54: =$M$1 -> E | AJ54: =$I$2 -> 1 | AK54: =$M$1 -> E | AL54: =$I$2 -> 1 | AM54: =$M$1 -> E | AN54: =$I$2 -> 1 | AO54: =$M$1 -> E | AP54: =$I$2 -> 1 | AQ54: =$M$1 -> E | AR54: =$I$2 -> 1 | AS54: =$M$1 -> E | AT54: =$I$2 -> 1 | AU54: =$M$1 -> E | AV54: =$I$2 -> 1 | AW54: =$M$1 -> E | AX54: =$I$2 -> 1 | AY54: =$M$1 -> E | AZ54: =$I$2 -> 1 | BA54: =$M$1 -> E | BB54: =$I$2 -> 1 | BC54: =$M$1 -> E | BD54: =$I$2 -> 1 | BE54: =$M$1 -> E | BF54: =$I$2 -> 1 | BG54: =$M$1 -> E | BH54: =$I$2 -> 1 | BW54: <800 | BY54: >=800
E55: Zamora | F55: =$L$1 -> D | G55: =$J$2 -> 2 | H55: 617 | I55: =$L$1 -> D | J55: =$J$2 -> 2 | K55: =$L$1 -> D | L55: =$J$2 -> 2 | M55: =$L$1 -> D | N55: =$J$2 -> 2 | O55: =$L$1 -> D | P55: =$J$2 -> 2 | Q55: =$L$1 -> D | R55: =$J$2 -> 2 | S55: =$L$1 -> D | T55: =$J$2 -> 2 | U55: =$L$1 -> D | V55: =$J$2 -> 2 | W55: =$L$1 -> D | X55: =$J$2 -> 2 | Y55: =$L$1 -> D | Z55: =$J$2 -> 2 | AA55: =$L$1 -> D | AB55: =$J$2 -> 2 | AC55: =$L$1 -> D | AD55: =$J$2 -> 2 | AE55: =$L$1 -> D | AF55: =$J$2 -> 2 | AG55: =$L$1 -> D | AH55: =$J$2 -> 2 | AI55: =$L$1 -> D | AJ55: =$J$2 -> 2 | AK55: =$L$1 -> D | AL55: =$J$2 -> 2 | AM55: =$L$1 -> D | AN55: =$J$2 -> 2 | AO55: =$M$1 -> E | AP55: =$I$2 -> 1 | AQ55: =$M$1 -> E | AR55: =$I$2 -> 1 | AS55: =$M$1 -> E | AT55: =$I$2 -> 1 | AU55: =$M$1 -> E | AV55: =$I$2 -> 1 | AW55: =$M$1 -> E | AX55: =$I$2 -> 1 | AY55: =$M$1 -> E | AZ55: =$I$2 -> 1 | BA55: =$M$1 -> E | BB55: =$I$2 -> 1 | BC55: =$M$1 -> E | BD55: =$I$2 -> 1 | BE55: =$M$1 -> E | BF55: =$I$2 -> 1 | BG55: =$M$1 -> E | BH55: =$I$2 -> 1 | BS55: <200 | BV55: <650 | BY55: >=650
E56: Zaragoza | F56: =$L$1 -> D | G56: =$K$2 -> 3 | H56: 207 | I56: =$K$1 -> C | J56: =$K$2 -> 3 | K56: C | L56: 3 | M56: C | N56: 3 | O56: C | P56: 3 | Q56: =$L$1 -> D | R56: =$K$2 -> 3 | S56: =$L$1 -> D | T56: 3 | U56: =$L$1 -> D | V56: 3 | W56: =$L$1 -> D | X56: 3 | Y56: =$L$1 -> D | Z56: 3 | AA56: =$L$1 -> D | AB56: 3 | AC56: =$L$1 -> D | AD56: 3 | AE56: =$L$1 -> D | AF56: 3 | AG56: =$L$1 -> D | AH56: 3 | AI56: =$M$1 -> E | AJ56: =$I$2 -> 1 | AK56: =$M$1 -> E | AL56: =$I$2 -> 1 | AM56: =$M$1 -> E | AN56: =$I$2 -> 1 | AO56: =$M$1 -> E | AP56: =$I$2 -> 1 | AQ56: =$M$1 -> E | AR56: =$I$2 -> 1 | AS56: =$M$1 -> E | AT56: =$I$2 -> 1 | AU56: =$M$1 -> E | AV56: =$I$2 -> 1 | AW56: =$M$1 -> E | AX56: =$I$2 -> 1 | AY56: =$M$1 -> E | AZ56: =$I$2 -> 1 | BA56: =$M$1 -> E | BB56: =$I$2 -> 1 | BC56: =$M$1 -> E | BD56: =$I$2 -> 1 | BE56: =$M$1 -> E | BF56: =$I$2 -> 1 | BG56: =$M$1 -> E | BH56: =$I$2 -> 1
E58: CAPITAL | F58: Z.C. INVIERNO | G58: Z.C. VERANO | H58: ALTITUD | I58: 0-50 | K58: 50-100 | M58: 100-150 | O58: 150-200 | Q58: 200-250 | S58: 250-300 | U58: 300-350 | W58: 350-400 | Y58: 400-450 | AA58: 450-500 | AC58: 500-550 | AE58: 550-600 | AG58: 600-650 | AI58: 650-700 | AK58: 700-750 | AM58: 750-800 | AO58: 800-850 | AQ58: 850-900 | AS58: 900-950 | AU58: 950-1000 | AW58: 1000-1050 | AY58: 1100-1150 | BA58: 1150-1200 | BC58: 1200-1250 | BE58: 1250-1300 | BG58: >=1300
E59: Palmas de Gran Canaria, Las | F59: a | G59: =$K$2 -> 3 | H59: 114 | I59: =$F$59 -> a | J59: =$K$2 -> 3 | K59: =$F$59 -> a | L59: =$K$2 -> 3 | M59: =$F$59 -> a | N59: =$K$2 -> 3 | O59: =$F$59 -> a | P59: =$K$2 -> 3 | Q59: =$F$59 -> a | R59: =$K$2 -> 3 | S59: =$F$59 -> a | T59: =$K$2 -> 3 | U59: =$F$59 -> a | V59: =$K$2 -> 3 | W59: =$I$1 -> A | X59: =$J$2 -> 2 | Y59: A | Z59: 2 | AA59: A | AB59: 2 | AC59: A | AD59: 2 | AE59: A | AF59: 2 | AG59: A | AH59: 2 | AI59: A | AJ59: 2 | AK59: A | AL59: 2 | AM59: =$J$1 -> B | AN59: =$J$2 -> 2 | AO59: =$J$1 -> B | AP59: 2 | AQ59: =$J$1 -> B | AR59: 2 | AS59: =$J$1 -> B | AT59: 2 | AU59: =$J$1 -> B | AV59: 2 | AW59: =$K$1 -> C | AX59: =$J$2 -> 2 | AY59: C | AZ59: =$J$2 -> 2 | BA59: C | BB59: =$J$2 -> 2 | BC59: C | BD59: =$J$2 -> 2 | BE59: C | BF59: =$J$2 -> 2 | BG59: C | BH59: =$J$2 -> 2
E60: Santa Cruz de Tenerife | F60: =$F$59 -> a | G60: =$K$2 -> 3 | H60: 0 | I60: =$F$59 -> a | J60: =$K$2 -> 3 | K60: =$F$59 -> a | L60: =$K$2 -> 3 | M60: =$F$59 -> a | N60: =$K$2 -> 3 | O60: =$F$59 -> a | P60: =$K$2 -> 3 | Q60: =$F$59 -> a | R60: =$K$2 -> 3 | S60: =$F$59 -> a | T60: =$K$2 -> 3 | U60: =$F$59 -> a | V60: =$K$2 -> 3 | W60: A | X60: 2 | Y60: A | Z60: 2 | AA60: A | AB60: 2 | AC60: A | AD60: 2 | AE60: A | AF60: 2 | AG60: A | AH60: 2 | AI60: A | AJ60: 2 | AK60: A | AL60: 2 | AM60: =$J$1 -> B | AN60: 2 | AO60: =$J$1 -> B | AP60: 2 | AQ60: =$J$1 -> B | AR60: 2 | AS60: =$J$1 -> B | AT60: 2 | AU60: =$J$1 -> B | AV60: 2 | AW60: C | AX60: =$J$2 -> 2 | AY60: C | AZ60: =$J$2 -> 2 | BA60: C | BB60: =$J$2 -> 2 | BC60: C | BD60: =$J$2 -> 2 | BE60: C | BF60: =$J$2 -> 2 | BG60: C | BH60: =$J$2 -> 2

Sheet CA
B2: VERDE W Equipamiento para Nueva Edificación y Rehabilitación
E3: CRITERIOS APLICABLES
C4: NOTA: Cuando la celda de marcado aparece en blanco, el criterio no aplica por la tipología del edificio o el tipo de actuación indicados en la pestaña de Datos Genreales.
B5: ='Matriz VERDE-GBCe'!G4 -> PyE | D5: ='Matriz VERDE-GBCe'!H4 -> Parcela y Emplazamiento. | F5: =SUM(F10:F26) -> 0.1427224143
C7: Medidas
D10: ='Matriz VERDE-GBCe'!H5 -> PyE 01 | E10: =VLOOKUP(D10,'Matriz VERDE-GBCe'!$H$4:I$49,2,FALSE) -> Proximidad al transporte publico. | F10: =VLOOKUP(D10,'Matriz VERDE-GBCe'!$H$4:X$49,3,FALSE) -> 0.0220056586 | H10: a
D12: ='Matriz VERDE-GBCe'!H6 -> PyE 02 | E12: =VLOOKUP(D12,'Matriz VERDE-GBCe'!$H$4:I$49,2,FALSE) -> Proximidad a equipamiento y servicios. | F12: =VLOOKUP(D12,'Matriz VERDE-GBCe'!$H$4:X$49,3,FALSE) -> 0.0220056586 | H12: a
D14: ='Matriz VERDE-GBCe'!H7 -> PyE 03 | E14: =VLOOKUP(D14,'Matriz VERDE-GBCe'!$H$4:I$49,2,FALSE) -> Facilidades para la bicicleta. | F14: =VLOOKUP(D14,'Matriz VERDE-GBCe'!$H$4:X$49,3,FALSE) -> 0.0220056586 | H14: a
D16: ='Matriz VERDE-GBCe'!H8 -> PyE 04 | E16: =VLOOKUP(D16,'Matriz VERDE-GBCe'!$H$4:I$49,2,FALSE) -> Capacidad de carga de vehículos eléctricos. | F16: =VLOOKUP(D16,'Matriz VERDE-GBCe'!$H$4:X$49,3,FALSE) -> 0.0116315624 | H16: a
D18: ='Matriz VERDE-GBCe'!H9 -> PyE 05 | E18: =VLOOKUP(D18,'Matriz VERDE-GBCe'!$H$4:I$49,2,FALSE) -> Clasificación de RSU. | F18: =VLOOKUP(D18,'Matriz VERDE-GBCe'!$H$4:X$49,3,FALSE) -> 0.01257466206 | H18: a
D20: ='Matriz VERDE-GBCe'!H10 -> PyE 06 | E20: =VLOOKUP(D20,'Matriz VERDE-GBCe'!$H$4:I$49,2,FALSE) -> Gestión y Restauración del hábitat. | F20: =VLOOKUP(D20,'Matriz VERDE-GBCe'!$H$4:X$49,3,FALSE) -> 0 | H20: a
D22: ='Matriz VERDE-GBCe'!H11 -> PyE 07 | E22: =VLOOKUP(D22,'Matriz VERDE-GBCe'!$H$4:I$49,2,FALSE) -> Uso de plantas para crear sombras. | F22: =VLOOKUP(D22,'Matriz VERDE-GBCe'!$H$4:X$49,3,FALSE) -> 0.02342030808 | H22: a
D24: ='Matriz VERDE-GBCe'!H12 -> PyE 08 | E24: =VLOOKUP(D24,'Matriz VERDE-GBCe'!$H$4:I$49,2,FALSE) -> Efecto isla de calor. | F24: =VLOOKUP(D24,'Matriz VERDE-GBCe'!$H$4:X$49,3,FALSE) -> 0.01650424395 | H24: a
F25: +
D26: ='Matriz VERDE-GBCe'!H13 -> PyE 09 | E26: =VLOOKUP(D26,'Matriz VERDE-GBCe'!$H$4:I$49,2,FALSE) -> Contaminación lumínica. | F26: =VLOOKUP(D26,'Matriz VERDE-GBCe'!$H$4:X$49,3,FALSE) -> 0.01257466206 | H26: a
B29: EyA | D29: ='Matriz VERDE-GBCe'!H14 -> Energía y Atmósfera. | F29: =SUM(F34:F44) -> 0.2310594153
C31: Medidas
D34: ='Matriz VERDE-GBCe'!H15 -> EyA 01 | E34: =VLOOKUP(D34,'Matriz VERDE-GBCe'!$H$4:I$49,2,FALSE) -> Demanda de calefacción y refrigeración. | F34: =VLOOKUP(D34,'Matriz VERDE-GBCe'!$H$4:X$49,3,FALSE) -> 0.08487896888 | H34: a
D36: ='Matriz VERDE-GBCe'!H16 -> EyA 02 | E36: =VLOOKUP(D36,'Matriz VERDE-GBCe'!$H$4:I$49,2,FALSE) -> Consumo de energía primaria no renovable. | F36: =VLOOKUP(D36,'Matriz VERDE-GBCe'!$H$4:X$49,3,FALSE) -> 0.05029864822 | H36: a
D38: ='Matriz VERDE-GBCe'!H17 -> EyA 03 | E38: =VLOOKUP(D38,'Matriz VERDE-GBCe'!$H$4:I$49,2,FALSE) -> Emisiones de CO2 | F38: =VLOOKUP(D38,'Matriz VERDE-GBCe'!$H$4:X$49,3,FALSE) -> 0.03143665514 | H38: a
D40: ='Matriz VERDE-GBCe'!H18 -> EyA 04 | E40: =VLOOKUP(D40,'Matriz VERDE-GBCe'!$H$4:I$49,2,FALSE) -> Consumo en sistemas de comunicación mecánicos. | F40: =VLOOKUP(D40,'Matriz VERDE-GBCe'!$H$4:X$49,3,FALSE) -> 0.01414649481 | H40: a
D42: ='Matriz VERDE-GBCe'!H19 -> EyA 05 | E42: =VLOOKUP(D42,'Matriz VERDE-GBCe'!$H$4:I$49,2,FALSE) -> Elección responsable de refrigerantes. | F42: =VLOOKUP(D42,'Matriz VERDE-GBCe'!$H$4:X$49,3,FALSE) -> 0.02514932411 | H42: a
D44: ='Matriz VERDE-GBCe'!H20 -> EyA 06 | E44: =VLOOKUP(D44,'Matriz VERDE-GBCe'!$H$4:I$49,2,FALSE) -> Frío industrial | F44: =VLOOKUP(D44,'Matriz VERDE-GBCe'!$H$4:X$49,3,FALSE) -> 0.02514932411 | H44: a
B47: RN | D47: ='Matriz VERDE-GBCe'!H21 -> Recursos Naturales. | F47: =SUM(F53:F73) -> 0.2452059101
C49: Medidas
D53: ='Matriz VERDE-GBCe'!H22 -> RN 01 | E53: =VLOOKUP(D53,'Matriz VERDE-GBCe'!$H$4:I$49,2,FALSE) -> Consumo de agua en aparatos sanitarios. | F53: =VLOOKUP(D53,'Matriz VERDE-GBCe'!$H$4:X$49,3,FALSE) -> 0.03143665514 | H53: a
D55: ='Matriz VERDE-GBCe'!H23 -> RN 02 | E55: =VLOOKUP(D55,'Matriz VERDE-GBCe'!$H$4:I$49,2,FALSE) -> Necesidades de riego en jardines. | F55: =VLOOKUP(D55,'Matriz VERDE-GBCe'!$H$4:X$49,3,FALSE) -> 0 | H55: a
D57: ='Matriz VERDE-GBCe'!H24 -> RN 03 | E57: =VLOOKUP(D57,'Matriz VERDE-GBCe'!$H$4:I$49,2,FALSE) -> Consumo de agua en elementos singulares | F57: =VLOOKUP(D57,'Matriz VERDE-GBCe'!$H$4:X$49,3,FALSE) -> 0.01886199308 | H57: a
D59: ='Matriz VERDE-GBCe'!H25 -> RN 04 | E59: =VLOOKUP(D59,'Matriz VERDE-GBCe'!$H$4:I$49,2,FALSE) -> Uso de agua no potable. | F59: =VLOOKUP(D59,'Matriz VERDE-GBCe'!$H$4:X$49,3,FALSE) -> 0.01886199308 | H59: a
D61: ='Matriz VERDE-GBCe'!H26 -> RN 05 | E61: =VLOOKUP(D61,'Matriz VERDE-GBCe'!$H$4:I$49,2,FALSE) -> Uso de materiales reciclados. | F61: =VLOOKUP(D61,'Matriz VERDE-GBCe'!$H$4:X$49,3,FALSE) -> 0.01571832757 | H61: a
D63: ='Matriz VERDE-GBCe'!H27 -> RN 06 | E63: =VLOOKUP(D63,'Matriz VERDE-GBCe'!$H$4:I$49,2,FALSE) -> Uso de materiales obtenidos de recursos sostenibles. | F63: =VLOOKUP(D63,'Matriz VERDE-GBCe'!$H$4:X$49,3,FALSE) -> 0.01257466206 | H63: a
D65: ='Matriz VERDE-GBCe'!H28 -> RN 07 | E65: =VLOOKUP(D65,'Matriz VERDE-GBCe'!$H$4:I$49,2,FALSE) -> Uso de materiales locales. | F65: =VLOOKUP(D65,'Matriz VERDE-GBCe'!$H$4:X$49,3,FALSE) -> 0.02514932411 | H65: a
D67: ='Matriz VERDE-GBCe'!H29 -> RN 08 | E67: =VLOOKUP(D67,'Matriz VERDE-GBCe'!$H$4:I$49,2,FALSE) -> Planificación de una estrategia de demolición selectiva. | F67: =VLOOKUP(D67,'Matriz VERDE-GBCe'!$H$4:X$49,3,FALSE) -> 0.01571832757 | H67: a
D69: ='Matriz VERDE-GBCe'!H30 -> RN 09 | E69: =VLOOKUP(D69,'Matriz VERDE-GBCe'!$H$4:I$49,2,FALSE) -> Gestión de los residuos de la construcción. | F69: =VLOOKUP(D69,'Matriz VERDE-GBCe'!$H$4:X$49,3,FALSE) -> 0.01257466206 | H69: a
D71: ='Matriz VERDE-GBCe'!H31 -> RN 10 | E71: =VLOOKUP(D71,'Matriz VERDE-GBCe'!$H$4:I$49,2,FALSE) -> Impacto de los materiales de la construcción. | F71: =VLOOKUP(D71,'Matriz VERDE-GBCe'!$H$4:X$49,3,FALSE) -> 0.06916064131 | H71: a
D73: ='Matriz VERDE-GBCe'!H32 -> RN 11 | E73: =VLOOKUP(D73,'Matriz VERDE-GBCe'!$H$4:I$49,2,FALSE) -> Ecoetiquetado de producto. | F73: =VLOOKUP(D73,'Matriz VERDE-GBCe'!$H$4:X$49,3,FALSE) -> 0.02514932411 | H73: a
B76: CAI | D76: ='Matriz VERDE-GBCe'!H33 -> Calidad del Ambiente Interior. | F76: =SUM(F81:F89) -> 0.1886199308
C78: Medidas
D81: ='Matriz VERDE-GBCe'!H34 -> CAI 01 | E81: =VLOOKUP(D81,'Matriz VERDE-GBCe'!$H$4:I$49,2,FALSE) -> Limitación en las emisiones de COVs. | F81: =VLOOKUP(D81,'Matriz VERDE-GBCe'!$H$4:X$49,3,FALSE) -> 0.03143665514 | H81: a
D83: ='Matriz VERDE-GBCe'!H35 -> CAI 02 | E83: =VLOOKUP(D83,'Matriz VERDE-GBCe'!$H$4:I$49,2,FALSE) -> Monitorización de la calidad del aire | F83: =VLOOKUP(D83,'Matriz VERDE-GBCe'!$H$4:X$49,3,FALSE) -> 0.03143665514 | H83: a
D85: ='Matriz VERDE-GBCe'!H36 -> CAI 03 | E85: =VLOOKUP(D85,'Matriz VERDE-GBCe'!$H$4:I$49,2,FALSE) -> Iluminación natural en los espacios de ocupación primaria. | F85: =VLOOKUP(D85,'Matriz VERDE-GBCe'!$H$4:X$49,3,FALSE) -> 0.05029864822 | H85: a
D87: ='Matriz VERDE-GBCe'!H37 -> CAI 04 | E87: =VLOOKUP(D87,'Matriz VERDE-GBCe'!$H$4:I$49,2,FALSE) -> Iluminación artificial en los espacios de ocupación primaria. | F87: =VLOOKUP(D87,'Matriz VERDE-GBCe'!$H$4:X$49,3,FALSE) -> 0.03143665514 | H87: a
D89: ='Matriz VERDE-GBCe'!H38 -> CAI 05 | E89: =VLOOKUP(D89,'Matriz VERDE-GBCe'!$H$4:I$49,2,FALSE) -> Protección frente al ruido. | F89: =VLOOKUP(D89,'Matriz VERDE-GBCe'!$H$4:X$49,3,FALSE) -> 0.0440113172 | H89: a
B92: ='Matriz VERDE-GBCe'!G39 -> ASE | D92: ='Matriz VERDE-GBCe'!H39 -> Aspectos Sociales y Económicos. | F92: =SUM(F97:F99) -> 0.04715498271
C94: Medidas
D97: ASE 01 | E97: =VLOOKUP(D97,'Matriz VERDE-GBCe'!$H$4:I$49,2,FALSE) -> Acceso universal. | F97: =VLOOKUP(D97,'Matriz VERDE-GBCe'!$H$4:X$49,3,FALSE) -> 0.02829298963 | H97: a
D99: ASE 02 | E99: =VLOOKUP(D99,'Matriz VERDE-GBCe'!$H$4:I$49,2,FALSE) -> Acceso visual desde las áreas de trabajo. | F99: =VLOOKUP(D99,'Matriz VERDE-GBCe'!$H$4:X$49,3,FALSE) -> 0.01886199308 | H99: a
B103: CC | D103: ='Matriz VERDE-GBCe'!H42 -> Concepto de Calidad. | F103: =SUM(F108:F120) -> 0.1452373467
C105: Medidas
D108: ='Matriz VERDE-GBCe'!H43 -> CC 01 | E108: =VLOOKUP(D108,'Matriz VERDE-GBCe'!$H$4:I$49,2,FALSE) -> Eficiencia de los espacios. | F108: =VLOOKUP(D108,'Matriz VERDE-GBCe'!$H$4:X$49,3,FALSE) -> 0.01886199308 | H108: a
D110: ='Matriz VERDE-GBCe'!H44 -> CC 02 | E110: =VLOOKUP(D110,'Matriz VERDE-GBCe'!$H$4:I$49,2,FALSE) -> Sistema de gestión del edificio (BMS). | F110: =VLOOKUP(D110,'Matriz VERDE-GBCe'!$H$4:X$49,3,FALSE) -> 0.03458032065 | H110: a
D112: ='Matriz VERDE-GBCe'!H45 -> CC 03 | E112: =VLOOKUP(D112,'Matriz VERDE-GBCe'!$H$4:I$49,2,FALSE) -> Capacidad de funcionamiento parcial de las instalaciones. | F112: =VLOOKUP(D112,'Matriz VERDE-GBCe'!$H$4:X$49,3,FALSE) -> 0.01257466206 | H112: a
D114: ='Matriz VERDE-GBCe'!H46 -> CC 04 | E114: =VLOOKUP(D114,'Matriz VERDE-GBCe'!$H$4:I$49,2,FALSE) -> Capacidad de control local de la iluminación. | F114: =VLOOKUP(D114,'Matriz VERDE-GBCe'!$H$4:X$49,3,FALSE) -> 0.0226343917 | H114: a
D116: ='Matriz VERDE-GBCe'!H47 -> CC 05 | E116: =VLOOKUP(D116,'Matriz VERDE-GBCe'!$H$4:I$49,2,FALSE) -> Capacidad de control local de los sistemas de HVAC. | F116: =VLOOKUP(D116,'Matriz VERDE-GBCe'!$H$4:X$49,3,FALSE) -> 0.01886199308 | H116: a
D118: ='Matriz VERDE-GBCe'!H48 -> CC 06 | E118: =VLOOKUP(D118,'Matriz VERDE-GBCe'!$H$4:I$49,2,FALSE) -> Custodia de la documentación del proyecto. | F118: =VLOOKUP(D118,'Matriz VERDE-GBCe'!$H$4:X$49,3,FALSE) -> 0.01886199308 | H118: a
D120: ='Matriz VERDE-GBCe'!H49 -> CC 07 | E120: =VLOOKUP(D120,'Matriz VERDE-GBCe'!$H$4:I$49,2,FALSE) -> El edificio como una herramienta para la educación. | F120: =VLOOKUP(D120,'Matriz VERDE-GBCe'!$H$4:X$49,3,FALSE) -> 0.01886199308 | H120: a
D122: ='Matriz VERDE-GBCe'!H50 -> CC 08 | E122: =VLOOKUP(D122,'Matriz VERDE-GBCe'!$H$4:I$50,2,FALSE) -> Certificaciones voluntarias del edificio. | F122: =VLOOKUP(D122,'Matriz VERDE-GBCe'!$H$4:X$50,3,FALSE) -> 0 | H122: a
F128: =#REF!+#REF!+F92+F76+F47+F29+#REF!+#REF! -> 
F129: =SUM(F5:F125)/2 -> 1
F130: a

Sheet PE
B2: VERDE W Equipamiento para Nueva Edificación y Rehabilitación | Y2: SEGURO | Z2: SÍ
B3: PRE-EVALUACIÓN | Y3: PROBABLE | Z3: NO
Y4: DUDOSO
B5: ='Matriz VERDE-GBCe'!G4 -> PyE | D5: ='Matriz VERDE-GBCe'!H4 -> Parcela y Emplazamiento. | Y5: NO CUMPLE
Y6: NO APLICA
D8: ='Matriz VERDE-GBCe'!H5 -> PyE 01 | E8: =VLOOKUP($D8,'Matriz VERDE-GBCe'!$H$4:$K$49,2,FALSE) -> Proximidad al transporte publico. | O8: =VLOOKUP($D8,'Matriz VERDE-GBCe'!$H$4:$K$49,3,FALSE) -> 0.0220056586 | Y8: Target | Z8: SEGURO | AB8: PROBABLE | AD8: DUDOSO | AF8: NO CUMPLE | AH8: NO APLICA
D10: Se cumple con el número de líneas determinado en el radio correspondiente | Y10: 1 | Z10: =+IF($Q10="seguro",$Y10,0) -> 0 | AB10: =+IF($Q10="probable",$Y10,0) -> 0 | AD10: =+IF($Q10="dudoso",$Y10,0) -> 0 | AF10: =+IF($Q10="NO CUMPLE",$Y10,0) -> 0 | AH10: =+IF($Q10="no aplica",2,0) -> 0
Y11: =SUM(Y9:Y10) -> 1 | Z11: =IF($O8="",0,SUM(Z9:Z10)*$O8/$Y11) -> 0 | AB11: =IF($O8="",0,SUM(AB9:AB10)*$O8/$Y11) -> 0 | AD11: =IF($O8="",0,SUM(AD9:AD10)*$O8/$Y11) -> 0 | AF11: =IF($O8="",0,SUM(AF9:AF10)*$O8/$Y11) -> 0
D14: ='Matriz VERDE-GBCe'!H6 -> PyE 02 | E14: =VLOOKUP($D14,'Matriz VERDE-GBCe'!$H$4:$K$49,2,FALSE) -> Proximidad a equipamiento y servicios. | O14: =VLOOKUP($D14,'Matriz VERDE-GBCe'!$H$4:$K$49,3,FALSE) -> 0.0220056586 | Y14: Target | Z14: SEGURO | AB14: PROBABLE | AD14: DUDOSO | AF14: NO CUMPLE | AH14: NO APLICA
D16: Se cumple con el número de equipamientos determinados en el radio correspondiente | Y16: 1 | Z16: =+IF($Q16="seguro",$Y16,0) -> 0 | AB16: =+IF($Q16="probable",$Y16,0) -> 0 | AD16: =+IF($Q16="dudoso",$Y16,0) -> 0 | AF16: =+IF($Q16="NO CUMPLE",$Y16,0) -> 0 | AH16: =+IF($Q16="no aplica",2,0) -> 0
Y17: =SUM(Y16:Y16) -> 1 | Z17: =IF($O14="",0,SUM(Z15:Z16)*$O14/$Y17) -> 0 | AB17: =IF($O14="",0,SUM(AB15:AB16)*$O14/$Y17) -> 0 | AD17: =IF($O14="",0,SUM(AD15:AD16)*$O14/$Y17) -> 0 | AF17: =IF($O14="",0,SUM(AF15:AF16)*$O14/$Y17) -> 0
D20: ='Matriz VERDE-GBCe'!H7 -> PyE 03 | E20: =VLOOKUP($D20,'Matriz VERDE-GBCe'!$H$4:$K$49,2,FALSE) -> Facilidades para la bicicleta. | O20: =VLOOKUP($D20,'Matriz VERDE-GBCe'!$H$4:$K$49,3,FALSE) -> 0.0220056586
D22: =IF(DG!$E$27="","",DG!$E$27) ->  | Y22: Target | Z22: SEGURO | AB22: PROBABLE | AD22: DUDOSO | AF22: NO CUMPLE | AH22: NO APLICA
D24: Se cumple con el número de aparcabicis determinado y las medidas de seguridad para los elementos y el emplazamiento de los mismos | Y24: =IF(N22="Unifamiliar",0,1) -> 1 | Z24: =+IF($Q24="seguro",$Y24,0) -> 0 | AB24: =+IF($Q24="probable",$Y24,0) -> 0 | AD24: =+IF($Q24="dudoso",$Y24,0) -> 0 | AF24: =+IF($Q24="NO CUMPLE",$Y24,0) -> 0 | AH24: =+IF($Q24="no aplica",2,0) -> 0
Y26: =SUM(Y24:Y24) -> 1 | Z26: =IF($O20="",0,SUM(Z23:Z24)*$O20) -> 0 | AB26: =IF($O20="",0,SUM(AB23:AB24)*$O20) -> 0 | AD26: =IF($O20="",0,SUM(AD23:AD24)*$O20) -> 0 | AF26: =IF($O20="",0,SUM(AF23:AF24)*$O20) -> 0
D29: ='Matriz VERDE-GBCe'!H8 -> PyE 04 | E29: =VLOOKUP($D29,'Matriz VERDE-GBCe'!$H$4:$K$49,2,FALSE) -> Capacidad de carga de vehículos eléctricos. | O29: =VLOOKUP($D29,'Matriz VERDE-GBCe'!$H$4:$K$49,3,FALSE) -> 0.0116315624
D31: =IF(DG!$E$25=0,"",DG!$E$25) ->  | Y31: El porcentaje de plazas con recarga para vehículos eléctricos es superior al | Z31: =IF(D33="Nueva edificación","30%","10%") -> 10% | AA31: con,al menos, 2 plazas.
D33: NOTA: Este criterio se evalúa por fórmulas lineales, la puntuación puede variar en la evaluación final. Ver la guía. | Y33: Target | Z33: SEGURO | AB33: PROBABLE | AD33: DUDOSO | AF33: NO CUMPLE | AH33: NO APLICA
D35: El porcentaje de plazas con recarga para vehículos eléctricos es superior al 40% con,al menos, 2 plazas. | Y35: =IF(D31="Unifamiliar",1,0.5) -> 0.5 | Z35: =+IF($Q35="seguro",$Y35,0) -> 0 | AB35: =+IF($Q35="probable",$Y35,0) -> 0 | AD35: =+IF($Q35="dudoso",$Y35,0) -> 0 | AF35: =+IF($Q35="NO CUMPLE",$Y35,0) -> 0 | AH35: =+IF($Q35="no aplica",2,0) -> 0
D37: El procentaje de plazas con pre-instalación para carga de vehículos eléctricos es superior al 70%. | Y37: =IF(D31="Unifamiliar",0,0.5) -> 0.5 | Z37: =+IF($Q37="seguro",$Y37,0) -> 0 | AB37: =+IF($Q37="probable",$Y37,0) -> 0 | AD37: =+IF($Q37="dudoso",$Y37,0) -> 0 | AF37: =+IF($Q37="NO CUMPLE",$Y37,0) -> 0 | AH37: =+IF($Q37="no aplica",2,0) -> 0
Y38: =SUM(Y35:Y37) -> 1 | Z38: =IF($O29="",0,SUM(Z34:Z37)*$O29) -> 0 | AB38: =IF($O29="",0,SUM(AB34:AB37)*$O29) -> 0 | AD38: =IF($O29="",0,SUM(AD34:AD37)*$O29) -> 0 | AF38: =IF($O29="",0,SUM(AF34:AF37)*$O29) -> 0
D41: ='Matriz VERDE-GBCe'!H9 -> PyE 05 | E41: =VLOOKUP($D41,'Matriz VERDE-GBCe'!$H$4:$K$49,2,FALSE) -> Clasificación de RSU. | O41: =VLOOKUP($D41,'Matriz VERDE-GBCe'!$H$4:$K$49,3,FALSE) -> 0.01257466206 | W41: =IF(DG!E25="Unifamiliar","Uni",IF(DG!E25="Multi-residencial","Res","")) ->  | Y41: Target | Z41: SEGURO | AB41: PROBABLE | AD41: DUDOSO | AF41: NO CUMPLE | AH41: NO APLICA | AJ41: =IF(DG!E27="","",IF(DG!E27="rehabilitación","RH","NE")) ->  | AK41: =IF(DG!E25="unifamiliar","Uni", "Res") -> Res
D43: =IF(DG!$E$25=0,"",DG!$E$25) ->  | Y43: El porcentaje de plazas con recarga para vehículos eléctricos es superior al | Z43: =IF(D45="Nueva edificación","20%","10%") -> 10% | AA43: con,al menos, 2 plazas.
D45: Hay contenedores en cada planta para, al menos, papel y cartón, vidrio, envases y resto. | Y45: 0.25 | Z45: =+IF($Q45="seguro",$Y45,0) -> 0 | AB45: =+IF($Q45="probable",$Y45,0) -> 0 | AD45: =+IF($Q45="dudoso",$Y45,0) -> 0 | AF45: =+IF($Q45="NO CUMPLE",$Y45,0) -> 0 | AH45: =+IF($Q45="no aplica",2,0) -> 0 | AK45: =IF(AK41="uni",0.35,IF(AJ41="ne",0.3,IF(AJ41="rh",0.4,0))) -> 0
AK46: =IF(AK41="uni",0.35,IF(AJ41="ne",0.2,IF(AJ41="rh",0.2,0))) -> 0
D47: Existe un espacio en la planta baja para almaenar trastos. | Y47: 0.25 | Z47: =+IF($Q47="seguro",$Y47,0) -> 0 | AB47: =+IF($Q47="probable",$Y47,0) -> 0 | AD47: =+IF($Q47="dudoso",$Y47,0) -> 0 | AF47: =+IF($Q47="NO CUMPLE",$Y47,0) -> 0 | AH47: =+IF($Q47="no aplica",2,0) -> 0 | AK47: =IF(AK41="uni",0,IF(AJ41="ne",0.3,IF(AJ41="rh",0.2,0))) -> 0
D49: Existe un sistema de revalorización de residuos en la parcela. | Y49: 0.25 | Z49: =+IF($Q49="seguro",$Y49,0) -> 0 | AB49: =+IF($Q49="probable",$Y49,0) -> 0 | AD49: =+IF($Q49="dudoso",$Y49,0) -> 0 | AF49: =+IF($Q49="NO CUMPLE",$Y49,0) -> 0 | AH49: =+IF($Q49="no aplica",2,0) -> 0
D51: Se cumplen otras medidas de reducción, clasificación o gestión de residuos | Y51: 0.25 | Z51: =+IF($Q51="seguro",$Y51,0) -> 0 | AB51: =+IF($Q51="probable",$Y51,0) -> 0 | AD51: =+IF($Q51="dudoso",$Y51,0) -> 0 | AF51: =+IF($Q51="NO CUMPLE",$Y51,0) -> 0 | AH51: =+IF($Q51="no aplica",2,0) -> 0
Y52: =SUM(Y45:Y51) -> 1 | Z52: =IF($O41="",0,SUM(Z45:Z51)*$O41/Y52) -> 0 | AB52: =IF($O41="",0,SUM(AB45:AB51)*$O41/$Y52) -> 0 | AD52: =IF($O41="",0,SUM(AD45:AD51)*$O41/$Y52) -> 0 | AF52: =IF($O41="",0,SUM(AF45:AF51)*$O41/$Y52) -> 0
D55: ='Matriz VERDE-GBCe'!H10 -> PyE 06 | E55: =VLOOKUP($D55,'Matriz VERDE-GBCe'!$H$4:$K$49,2,FALSE) -> Gestión y Restauración del hábitat. | O55: =VLOOKUP($D55,'Matriz VERDE-GBCe'!$H$4:$K$49,3,FALSE) -> 0 | Y55: Target | Z55: SEGURO | AB55: PROBABLE | AD55: DUDOSO | AF55: NO CUMPLE | AH55: NO APLICA
D57: NOTA: Este criterio se evalúa por fórmulas lineales, la puntuación puede variar en la evaluación final. Ver la guía.
D59: El porcentaje de superficie ajardinada ocupado por plantas autóctonas está entre el 50 y el 75% | Y59: 0.5 | Z59: =+IF($Q59="seguro",$Y59,0) -> 0 | AB59: =+IF($Q59="probable",$Y59,0) -> 0 | AD59: =+IF($Q59="dudoso",$Y59,0) -> 0 | AF59: =+IF($Q59="NO CUMPLE",$Y59,0) -> 0 | AH59: =+IF($Q59="no aplica",2,0) -> 0
D61: El porcentaje de superficie ajardinada ocupado por plantas autóctonas es superior al 75% | Y61: 1 | Z61: =+IF($Q61="seguro",$Y61,0) -> 0 | AB61: =+IF($Q61="probable",$Y61,0) -> 0 | AD61: =+IF($Q61="dudoso",$Y61,0) -> 0 | AF61: =+IF($Q61="NO CUMPLE",$Y61,0) -> 0 | AH61: =+IF($Q61="no aplica",2,0) -> 0
Y62: =MAX(Y56:Y61) -> 1 | Z62: =IF($O55="",0,MAX(Z59:Z61)*$O55/$Y62) -> 0 | AB62: =IF($O55="",0,MAX(AB59:AB61)*$O55/$Y62) -> 0 | AD62: =IF($O55="",0,MAX(AD59:AD61)*$O55/$Y62) -> 0 | AF62: =IF($O55="",0,MAX(AF59:AF61)*$O55/$Y62) -> 0
D65: ='Matriz VERDE-GBCe'!H11 -> PyE 07 | F65: =VLOOKUP($D65,'Matriz VERDE-GBCe'!$H$4:$K$49,2,FALSE) -> Uso de plantas para crear sombras. | O65: =VLOOKUP($D65,'Matriz VERDE-GBCe'!$H$4:$K$49,3,FALSE) -> 0.02342030808 | Y65: Target | Z65: SEGURO | AB65: PROBABLE | AD65: DUDOSO | AF65: NO CUMPLE | AH65: NO APLICA
D67: NOTA: Este criterio se evalúa por fórmulas lineales, la puntuación puede variar en la evaluación final. Ver la guía.
D69: Se cumplen los requisitos de sombreamiento para la fachada este | Y69: 0.3 | Z69: =+IF($Q69="seguro",$Y69,0) -> 0 | AB69: =+IF($Q69="probable",$Y69,0) -> 0 | AD69: =+IF($Q69="dudoso",$Y69,0) -> 0 | AF69: =+IF($Q69="NO CUMPLE",$Y69,0) -> 0 | AH69: =+IF($Q69="no aplica",2,0) -> 0
D71: Se cumplen los requisitos de sombreamiento de la fachada oeste | Y71: 0.7 | Z71: =+IF($Q71="seguro",$Y71,0) -> 0 | AB71: =+IF($Q71="probable",$Y71,0) -> 0 | AD71: =+IF($Q71="dudoso",$Y71,0) -> 0 | AF71: =+IF($Q71="NO CUMPLE",$Y71,0) -> 0 | AH71: =+IF($Q71="no aplica",2,0) -> 0
Y72: =SUM(Y69:Y71) -> 1 | Z72: =IF($O65="",0,SUM(Z69:Z71)*$O65/$Y72) -> 0 | AB72: =IF($O65="",0,SUM(AB69:AB71)*$O65/$Y72) -> 0 | AD72: =IF($O65="",0,SUM(AD69:AD71)*$O65/$Y72) -> 0 | AF72: =IF($O65="",0,SUM(AF69:AF71)*$O65/$Y72) -> 0
D75: ='Matriz VERDE-GBCe'!H12 -> PyE 08 | E75: =VLOOKUP($D75,'Matriz VERDE-GBCe'!$H$4:$K$49,2,FALSE) -> Efecto isla de calor. | O75: =VLOOKUP($D75,'Matriz VERDE-GBCe'!$H$4:$K$49,3,FALSE) -> 0.01650424395 | Y75: Target | Z75: SEGURO | AB75: PROBABLE | AD75: DUDOSO | AF75: NO CUMPLE | AH75: NO APLICA
D77: NOTA: Este criterio se evalúa por fórmulas lineales, la puntuación puede variar en la evaluación final. Ver la guía.
D79: El porcentaje de superficie libre de parcela más cubierta, cubierto por zonas ajardinadas es superior al 50% | W79: 0.2 | X79: =IF(AH79=2,0,W79) -> 0.2 | Y79: =X79/X$84 -> 0.2 | Z79: =+IF($Q79="seguro",$Y79,0) -> 0 | AB79: =+IF($Q79="probable",$Y79,0) -> 0 | AD79: =+IF($Q79="dudoso",$Y79,0) -> 0 | AF79: =+IF($Q79="NO CUMPLE",$Y79,0) -> 0 | AH79: =+IF($Q79="no aplica",2,0) -> 0
D81: El porcentaje de superficie libre de parcela más cubierta que evita la isla de calor es superior al 70% | W81: 0.5 | X81: =IF(AH81=2,0,W81) -> 0.5 | Y81: =X81/X$84 -> 0.5 | Z81: =+IF($Q81="seguro",$Y81,0) -> 0 | AB81: =+IF($Q81="probable",$Y81,0) -> 0 | AD81: =+IF($Q81="dudoso",$Y81,0) -> 0 | AF81: =+IF($Q81="NO CUMPLE",$Y81,0) -> 0 | AH81: =+IF($Q81="no aplica",2,0) -> 0
D83: El porcentaje de superficie de fachadas este, sur y oeste que evita la isla de calor es superior al 50% | W83: 0.3 | X83: =IF(AH83=2,0,W83) -> 0.3 | Y83: =X83/X$84 -> 0.3 | Z83: =+IF($Q83="seguro",$Y83,0) -> 0 | AB83: =+IF($Q83="probable",$Y83,0) -> 0 | AD83: =+IF($Q83="dudoso",$Y83,0) -> 0 | AF83: =+IF($Q83="NO CUMPLE",$Y83,0) -> 0 | AH83: =+IF($Q83="no aplica",2,0) -> 0
X84: =SUM(X79:X83) -> 1 | Y84: =SUM(Y79:Y83) -> 1 | Z84: =IF($O75="",0,SUM(Z79:Z83)*$O75/$Y84) -> 0 | AB84: =IF($O75="",0,SUM(AB79:AB83)*$O75/$Y84) -> 0 | AD84: =IF($O75="",0,SUM(AD79:AD83)*$O75/$Y84) -> 0 | AF84: =IF($O75="",0,SUM(AF79:AF83)*$O75/$Y84) -> 0
D87: ='Matriz VERDE-GBCe'!H13 -> PyE 09 | E87: =VLOOKUP($D87,'Matriz VERDE-GBCe'!$H$4:$K$49,2,FALSE) -> Contaminación lumínica. | O87: =VLOOKUP($D87,'Matriz VERDE-GBCe'!$H$4:$K$49,3,FALSE) -> 0.01257466206 | Y87: Target | Z87: SEGURO | AB87: PROBABLE | AD87: DUDOSO | AF87: NO CUMPLE | AH87: NO APLICA
D89: El FHS mayor de las luminarias instaladas no supera los límites de VERDE | Y89: 1 | Z89: =+IF($Q89="seguro",$Y89,0) -> 0 | AB89: =+IF($Q89="probable",$Y89,0) -> 0 | AD89: =+IF($Q89="dudoso",$Y89,0) -> 0 | AF89: =+IF($Q89="NO CUMPLE",$Y89,0) -> 0 | AH89: =+IF($Q89="no aplica",2,0) -> 0
Y90: =SUM(Y89:Y89) -> 1 | Z90: =IF($O87="",0,SUM(Z89:Z89)*$O87/$Y90) -> 0 | AB90: =IF($O87="",0,SUM(AB89:AB89)*$O87/$Y90) -> 0 | AD90: =IF($O87="",0,SUM(AD89:AD89)*$O87/$Y90) -> 0 | AF90: =IF($O87="",0,SUM(AF89:AF89)*$O87/$Y90) -> 0
F92: SEGURO | H92: PROBABLE | J92: DUDOSO | L92: NO CUMPLE
C94: SUBTOTAL PyE | F94: =Z11+Z17+Z26+Z38+Z52+Z62+Z72+Z84+Z90 -> 0 | H94: =AB11+AB17+AB26+AB38+AB52+AB62+AB72+AB84+AB90 -> 0 | J94: =AD11+AD17+AD26+AD38+AD52+AD62+AD72+AD84+AD90 -> 0 | L94: =AF11+AF17+AF26+AF38+AF52+AF62+AF72+AF84+AF90 -> 0
B97: EyA | D97: ENERGÍA Y ATMÓSFERA | W97: El porcentaje de ahorro de la demanda energética conjunta sobre el mínimo exigido es superior al 50%
D100: ='Matriz VERDE-GBCe'!H15 -> EyA 01 | E100: =VLOOKUP($D100,'Matriz VERDE-GBCe'!$H$4:$K$49,2,FALSE) -> Demanda de calefacción y refrigeración. | O100: =VLOOKUP($D100,'Matriz VERDE-GBCe'!$H$4:$K$49,3,FALSE) -> 0.08487896888 | W100: =IF(DG!E27="Rehabilitación","RH",IF(OR(DG!E27="Nueva Edificación",DG!E27="Edificio existente"),"NE","")) -> 
D102: =IF(DG!$E$27=0,"",DG!$E$27) ->  | Y102: Target | Z102: SEGURO | AB102: PROBABLE | AD102: DUDOSO | AF102: NO CUMPLE | AH102: NO APLICA
D104: =IF(W100="ne","El porcentaje de ahorro de la demanda energética conjunta sobre el mínimo exigido es del 20%","El porcentaje de ahorro de la demanda energética conjunta sobre el mínimo exigido es del 5%") -> El porcentaje de ahorro de la demanda energética conjunta sobre el mínimo exigido es del 5% | Y104: =IF(W100="ne",0.2) -> FALSE | Z104: =+IF($Q104="seguro",$Y104,0) -> 0 | AB104: =+IF($Q104="probable",$Y104,0) -> 0 | AD104: =+IF($Q104="dudoso",$Y104,0) -> 0 | AF104: =+IF($Q104="NO CUMPLE",$Y104,0) -> 0 | AH104: =+IF($Q104="no aplica",2,0) -> 0
D106: =IF(W100="ne","El porcentaje de ahorro de la demanda energética conjunta sobre el mínimo exigido es del 30%","El porcentaje de ahorro de la demanda energética conjunta sobre el mínimo exigido es del 7%") -> El porcentaje de ahorro de la demanda energética conjunta sobre el mínimo exigido es del 7% | Y106: =IF(W100="ne",0.4) -> FALSE | Z106: =+IF($Q106="seguro",$Y106,0) -> 0 | AB106: =+IF($Q106="probable",$Y106,0) -> 0 | AD106: =+IF($Q106="dudoso",$Y106,0) -> 0 | AF106: =+IF($Q106="NO CUMPLE",$Y106,0) -> 0 | AH106: =+IF($Q106="no aplica",2,0) -> 0
D108: =IF(W100="ne","El porcentaje de ahorro de la demanda energética conjunta sobre el mínimo exigido es del 40%","El porcentaje de ahorro de la demanda energética conjunta sobre el mínimo exigido es del 8,5%") -> El porcentaje de ahorro de la demanda energética conjunta sobre el mínimo exigido es del 8,5% | Y108: =IF(W100="ne",0.6) -> FALSE | Z108: =+IF($Q108="seguro",$Y108,0) -> 0 | AB108: =+IF($Q108="probable",$Y108,0) -> 0 | AD108: =+IF($Q108="dudoso",$Y108,0) -> 0 | AF108: =+IF($Q108="NO CUMPLE",$Y108,0) -> 0 | AH108: =+IF($Q108="no aplica",2,0) -> 0
D110: =IF(W100="ne","El porcentaje de ahorro de la demanda energética conjunta sobre el mínimo exigido es del 45%","El porcentaje de ahorro de la demanda energética conjunta sobre el mínimo exigido es del 9,5%") -> El porcentaje de ahorro de la demanda energética conjunta sobre el mínimo exigido es del 9,5% | Y110: =IF(W100="ne",0.8) -> FALSE | Z110: =+IF($Q110="seguro",$Y110,0) -> 0 | AB110: =+IF($Q110="probable",$Y110,0) -> 0 | AD110: =+IF($Q110="dudoso",$Y110,0) -> 0 | AF110: =+IF($Q110="NO CUMPLE",$Y110,0) -> 0 | AH110: =+IF($Q110="no aplica",2,0) -> 0
D112: =IF(W100="ne","El porcentaje de ahorro de la demanda energética conjunta sobre el mínimo exigido es superior al 50%","El porcentaje de ahorro de la demanda energética conjunta sobre el mínimo exigido es superior al 10%") -> El porcentaje de ahorro de la demanda energética conjunta sobre el mínimo exigido es superior al 10% | Y112: 1 | Z112: =+IF($Q112="seguro",$Y112,0) -> 0 | AB112: =+IF($Q112="probable",$Y112,0) -> 0 | AD112: =+IF($Q112="dudoso",$Y112,0) -> 0 | AF112: =+IF($Q112="NO CUMPLE",$Y112,0) -> 0 | AH112: =+IF($Q112="no aplica",2,0) -> 0
Y113: =MAX(Y110:Y112) -> 1 | Z113: =IF($O100="",0,(MAX(Z110:Z112)*$O100)+Z109) -> 0 | AB113: =IF($O100="",0,(MAX(AB110:AB112)*$O100)+AB109) -> 0 | AD113: =IF($O100="",0,(MAX(AD110:AD112)*$O100)+AD109) -> 0 | AF113: =IF($O100="",0,(MAX(AF110:AF112)*$O100)+AF109) -> 0
D116: ='Matriz VERDE-GBCe'!H16 -> EyA 02 | E116: =VLOOKUP($D116,'Matriz VERDE-GBCe'!$H$4:$K$49,2,FALSE) -> Consumo de energía primaria no renovable. | O116: =VLOOKUP($D116,'Matriz VERDE-GBCe'!$H$4:$K$49,3,FALSE) -> 0.05029864822
D118: =IF(DG!$E$27=0,"",DG!$E$27) -> 
D120: =IF(W100="ne","El porcentaje de reducción del consumo de energía primaria no renovable respecto de la clasificación B es superior al 20%","El porcentaje de reducción del consumo de energía primaria no renovable respecto al edificio de referencia es superior al 20%") -> El porcentaje de reducción del consumo de energía primaria no renovable respecto al edificio de referencia es superior al 20% | Y120: Target | Z120: SEGURO | AB120: PROBABLE | AD120: DUDOSO | AF120: NO CUMPLE | AH120: NO APLICA
D122: =IF(W100="ne","El porcentaje de reducción del consumo de energía primaria no renovable respecto de la clasificación B es superior al 30%","El porcentaje de reducción del consumo de energía primaria no renovable respecto al edificio de referencia es del 30%") -> El porcentaje de reducción del consumo de energía primaria no renovable respecto al edificio de referencia es del 30% | Y122: =IF(W98="ne",IF(Q$120=15,0.2,0.1),0.1) -> 0.1 | Z122: =+IF($Q122="seguro",$Y122,0) -> 0 | AB122: =+IF($Q122="probable",$Y122,0) -> 0 | AD122: =+IF($Q122="dudoso",$Y122,0) -> 0 | AF122: =+IF($Q122="NO CUMPLE",$Y122,0) -> 0 | AH122: =+IF($Q122="no aplica",2,0) -> 0
D124: =IF(W100="ne","El porcentaje de reducción del consumo de energía primaria no renovable respecto de la clasificación B es superior al 40%","El porcentaje de reducción del consumo de energía primaria no renovable respecto al edificio de referencia es superior al 40%") -> El porcentaje de reducción del consumo de energía primaria no renovable respecto al edificio de referencia es superior al 40% | Y124: =IF(W100="ne",IF(Q$120=15,0.2,0.1),0.1) -> 0.1 | Z124: =+IF($Q124="seguro",$Y124,0) -> 0 | AB124: =+IF($Q124="probable",$Y124,0) -> 0 | AD124: =+IF($Q124="dudoso",$Y124,0) -> 0 | AF124: =+IF($Q124="NO CUMPLE",$Y124,0) -> 0 | AH124: =+IF($Q124="no aplica",2,0) -> 0
D126: =IF(W100="ne","El porcentaje de reducción del consumo de energía primaria no renovable respecto de la clasificación B es superior al 45%","El porcentaje de reducción del consumo de energía primaria no renovable respecto al edificio de referencia es superior al 45%") -> El porcentaje de reducción del consumo de energía primaria no renovable respecto al edificio de referencia es superior al 45% | Y126: =IF(W116="ne",IF(#REF!=15,0.2,0.4),0.4) -> 0.4 | Z126: =+IF($Q126="seguro",$Y126,0) -> 0 | AB126: =+IF($Q126="probable",$Y126,0) -> 0 | AD126: =+IF($Q126="dudoso",$Y126,0) -> 0 | AF126: =+IF($Q126="NO CUMPLE",$Y126,0) -> 0 | AH126: =+IF($Q126="no aplica",2,0) -> 0
D128: =IF(W100="ne","El porcentaje de reducción del consumo de energía primaria no renovable respecto de la clasificación B es superior al 50%","El porcentaje de reducción del consumo de energía primaria no renovable respecto al edificio de referencia es superior al 50%") -> El porcentaje de reducción del consumo de energía primaria no renovable respecto al edificio de referencia es superior al 50% | Y128: =IF(W116="ne",IF(#REF!=15,0,1),1) -> 1 | Z128: =+IF($Q128="seguro",$Y128,0) -> 0 | AB128: =+IF($Q128="probable",$Y128,0) -> 0 | AD128: =+IF($Q128="dudoso",$Y128,0) -> 0 | AF128: =+IF($Q128="NO CUMPLE",$Y128,0) -> 0 | AH128: =+IF($Q128="no aplica",2,0) -> 0
Y129: =MAX(Y123:Y128) -> 1 | Z129: =IF($O116="",0,MAX(Z123:Z128)*$O116) -> 0 | AB129: =IF($O116="",0,MAX(AB123:AB128)*$O116) -> 0 | AD129: =IF($O116="",0,MAX(AD123:AD128)*$O116) -> 0 | AF129: =IF($O116="",0,MAX(AF123:AF128)*$O116) -> 0
D132: ='Matriz VERDE-GBCe'!H17 -> EyA 03 | E132: =VLOOKUP($D132,'Matriz VERDE-GBCe'!$H$4:$K$49,2,FALSE) -> Emisiones de CO2 | O132: =VLOOKUP($D132,'Matriz VERDE-GBCe'!$H$4:$K$49,3,FALSE) -> 0.03143665514
D133: =IF(DG!$E$27=0,"",DG!$E$27) ->  | Y133: Target | Z133: SEGURO | AB133: PROBABLE | AD133: DUDOSO | AF133: NO CUMPLE | AH133: NO APLICA
D135: =IF(W100="ne","El porcentaje de reducción del consumo de energía primaria no renovable respecto de la clasificación B es superior al 20%","El porcentaje de reducción del consumo de energía primaria no renovable respecto de la clasificación D es superior al 20%") -> El porcentaje de reducción del consumo de energía primaria no renovable respecto de la clasificación D es superior al 20% | Y135: =IF(W100="ne",IF(#REF!=15,0.2,0.1),0.1) -> 0.1 | Z135: =+IF($Q135="seguro",$Y135,0) -> 0 | AB135: =+IF($Q135="probable",$Y135,0) -> 0 | AD135: =+IF($Q135="dudoso",$Y135,0) -> 0 | AF135: =+IF($Q135="NO CUMPLE",$Y135,0) -> 0 | AH135: =+IF($Q135="no aplica",2,0) -> 0
D137: =IF(W100="ne","El porcentaje de reducción del consumo de energía primaria no renovable respecto de la clasificación B es superior al 30%","El porcentaje de reducción del consumo de energía primaria no renovable respecto de la clasificación D es del 30%") -> El porcentaje de reducción del consumo de energía primaria no renovable respecto de la clasificación D es del 30% | Y137: =IF(W100="ne",IF(#REF!=15,0.2,0.4),0.4) -> 0.4 | Z137: =+IF($Q137="seguro",$Y137,0) -> 0 | AB137: =+IF($Q137="probable",$Y137,0) -> 0 | AD137: =+IF($Q137="dudoso",$Y137,0) -> 0 | AF137: =+IF($Q137="NO CUMPLE",$Y137,0) -> 0 | AH137: =+IF($Q137="no aplica",2,0) -> 0
D139: =IF(W100="ne","El porcentaje de reducción del consumo de energía primaria no renovable respecto de la clasificación B es superior al 40%","El porcentaje de reducción del consumo de energía primaria no renovable respecto de la clasificación D es superior al 40%") -> El porcentaje de reducción del consumo de energía primaria no renovable respecto de la clasificación D es superior al 40% | Y139: =IF(W104="ne",IF(#REF!=15,0.2,0.1),0.1) -> 0.1 | Z139: =+IF($Q139="seguro",$Y139,0) -> 0 | AB139: =+IF($Q139="probable",$Y139,0) -> 0 | AD139: =+IF($Q139="dudoso",$Y139,0) -> 0 | AF139: =+IF($Q139="NO CUMPLE",$Y139,0) -> 0 | AH139: =+IF($Q139="no aplica",2,0) -> 0
D141: =IF(W100="ne","El porcentaje de reducción del consumo de energía primaria no renovable respecto de la clasificación B es superior al 45%","El porcentaje de reducción del consumo de energía primaria no renovable respecto de la clasificación D es superior al 45%") -> El porcentaje de reducción del consumo de energía primaria no renovable respecto de la clasificación D es superior al 45% | Y141: =IF(W104="ne",IF(#REF!=15,0.2,0.4),0.4) -> 0.4 | Z141: =+IF($Q141="seguro",$Y141,0) -> 0 | AB141: =+IF($Q141="probable",$Y141,0) -> 0 | AD141: =+IF($Q141="dudoso",$Y141,0) -> 0 | AF141: =+IF($Q141="NO CUMPLE",$Y141,0) -> 0 | AH141: =+IF($Q141="no aplica",2,0) -> 0
D143: =IF(W100="ne","El porcentaje de reducción del consumo de energía primaria no renovable respecto de la clasificación B es superior al 50%","El porcentaje de reducción del consumo de energía primaria no renovable respecto de la clasificación D es superior al 50%") -> El porcentaje de reducción del consumo de energía primaria no renovable respecto de la clasificación D es superior al 50% | Y143: =IF(W100="ne",IF(#REF!=15,0,1),1) -> 1 | Z143: =+IF($Q143="seguro",$Y143,0) -> 0 | AB143: =+IF($Q143="probable",$Y143,0) -> 0 | AD143: =+IF($Q143="dudoso",$Y143,0) -> 0 | AF143: =+IF($Q143="NO CUMPLE",$Y143,0) -> 0 | AH143: =+IF($Q143="no aplica",2,0) -> 0
Y144: =MAX(Y134:Y143) -> 1 | Z144: =IF($O132="",0,MAX(Z134:Z143)*$O132) -> 0 | AB144: =IF($O132="",0,MAX(AB134:AB143)*$O132) -> 0 | AD144: =IF($O132="",0,MAX(AD134:AD143)*$O132) -> 0 | AF144: =IF($O132="",0,MAX(AF134:AF143)*$O132) -> 0
D147: ='Matriz VERDE-GBCe'!H18 -> EyA 04 | E147: =VLOOKUP($D147,'Matriz VERDE-GBCe'!$H$4:$K$49,2,FALSE) -> Consumo en sistemas de comunicación mecánicos. | O147: =VLOOKUP($D147,'Matriz VERDE-GBCe'!$H$4:$K$49,3,FALSE) -> 0.01414649481 | Y147: Target | Z147: SEGURO | AB147: PROBABLE | AD147: DUDOSO | AF147: NO CUMPLE | AH147: NO APLICA
D149: Los elementos de comunicación mecánicos disponen de una clasificación energética B o superior según la UNE 25745-2 | W149: 0.25 | X149: =IF(AH149=2,0,W149) -> 0.25 | Y149: 1 | Z149: =+IF($Q149="seguro",$Y149,0) -> 0 | AB149: =+IF($Q149="probable",$Y149,0) -> 0 | AD149: =+IF($Q149="dudoso",$Y149,0) -> 0 | AF149: =+IF($Q149="NO CUMPLE",$Y149,0) -> 0 | AH149: =+IF($Q149="no aplica",2,0) -> 0
D151: Los elementos de comunicación existentes tendrán implementadas, al menos 3 de las medidas descritas en el criterio. | W151: 0.3 | X151: =IF(AH151=2,0,W151) -> 0.3 | Y151: 0.5 | Z151: =+IF($Q151="seguro",$Y151,0) -> 0 | AB151: =+IF($Q151="probable",$Y151,0) -> 0 | AD151: =+IF($Q151="dudoso",$Y151,0) -> 0 | AF151: =+IF($Q151="NO CUMPLE",$Y151,0) -> 0 | AH151: =+IF($Q151="no aplica",2,0) -> 0
W152: =SUM(#REF!) ->  | X152: =SUM(X148:X151) -> 0.55 | Y152: =SUM(Y148:Y151) -> 1.5 | Z152: =IF($O147="",0,MAX(Z148:Z151)*$O147) -> 0 | AB152: =IF($O147="",0,MAX(AB148:AB151)*$O147) -> 0 | AD152: =IF($O147="",0,MAX(AD148:AD151)*$O147) -> 0 | AF152: =IF($O147="",0,MAX(AF148:AF151)*$O147) -> 0
D155: ='Matriz VERDE-GBCe'!H19 -> EyA 05 | E155: =VLOOKUP($D155,'Matriz VERDE-GBCe'!$H$4:$K$49,2,FALSE) -> Elección responsable de refrigerantes. | O155: =VLOOKUP($D155,'Matriz VERDE-GBCe'!$H$4:$K$49,3,FALSE) -> 0.02514932411 | Y155: Target | Z155: SEGURO | AB155: PROBABLE | AD155: DUDOSO | AF155: NO CUMPLE | AH155: NO APLICA
D157: Todos los refrigerantes empleados tienen un potencial de calentamiento inferior a 400 | Y157: 0.1 | Z157: =+IF($Q157="seguro",$Y157,0) -> 0 | AB157: =+IF($Q157="probable",$Y157,0) -> 0 | AD157: =+IF($Q157="dudoso",$Y157,0) -> 0 | AF157: =+IF($Q157="NO CUMPLE",$Y157,0) -> 0 | AH157: =+IF($Q157="no aplica",2,0) -> 0
D159: Todos los refrigerantes empleados tienen un potencial de calentamiento inferior a 200 | Y159: 0.3 | Z159: =+IF($Q159="seguro",$Y159,0) -> 0 | AB159: =+IF($Q159="probable",$Y159,0) -> 0 | AD159: =+IF($Q159="dudoso",$Y159,0) -> 0 | AF159: =+IF($Q159="NO CUMPLE",$Y159,0) -> 0 | AH159: =+IF($Q159="no aplica",2,0) -> 0
D161: Todos los refrigerantes empleados tienen un potencial de calentamiento inferior a 10 | Y161: 0.6 | Z161: =+IF($Q161="seguro",$Y161,0) -> 0 | AB161: =+IF($Q161="probable",$Y161,0) -> 0 | AD161: =+IF($Q161="dudoso",$Y161,0) -> 0 | AF161: =+IF($Q161="NO CUMPLE",$Y161,0) -> 0 | AH161: =+IF($Q161="no aplica",2,0) -> 0
D163: Existe un protocolo de actuación en caso de fugas | Y163: 0.4 | Z163: =+IF($Q163="seguro",$Y163,0) -> 0 | AB163: =+IF($Q163="probable",$Y163,0) -> 0 | AD163: =+IF($Q163="dudoso",$Y163,0) -> 0 | AF163: =+IF($Q163="NO CUMPLE",$Y163,0) -> 0 | AH163: =+IF($Q163="no aplica",2,0) -> 0
Y164: =SUM(Y161:Y163) -> 1 | Z164: =IF($O155="",0,(MAX(Z157:Z161)+Z163)*$O155) -> 0 | AB164: =IF($O155="",0,(MAX(AB157:AB161)+AB163)*$O155) -> 0 | AD164: =IF($O155="",0,(MAX(AD157:AD161)+AD163)*$O155) -> 0 | AF164: =IF($O155="",0,(MAX(AF157:AF161)+AF163)*$O155) -> 0
D167: ='Matriz VERDE-GBCe'!H20 -> EyA 06 | E167: =VLOOKUP($D167,'Matriz VERDE-GBCe'!$H$4:$K$49,2,FALSE) -> Frío industrial | O167: =VLOOKUP($D167,'Matriz VERDE-GBCe'!$H$4:$K$49,3,FALSE) -> 0.02514932411 | Y167: Target | Z167: SEGURO | AB167: PROBABLE | AD167: DUDOSO | AF167: NO CUMPLE | AH167: NO APLICA
D169: Por desarrollar | Y169: 1 | Z169: =+IF($Q169="seguro",$Y169,0) -> 0 | AB169: =+IF($Q169="probable",$Y169,0) -> 0 | AD169: =+IF($Q169="dudoso",$Y169,0) -> 0 | AF169: =+IF($Q169="NO CUMPLE",$Y169,0) -> 0 | AH169: =+IF($Q169="no aplica",2,0) -> 0
D171: Por desarrollar | Y171: 1 | Z171: =+IF($Q171="seguro",$Y171,0) -> 0 | AB171: =+IF($Q171="probable",$Y171,0) -> 0 | AD171: =+IF($Q171="dudoso",$Y171,0) -> 0 | AF171: =+IF($Q171="NO CUMPLE",$Y171,0) -> 0 | AH171: =+IF($Q171="no aplica",2,0) -> 0
Y172: =SUM(Y169:Y169) -> 1 | Z172: =IF($O167="",0,SUM(Z169:Z169)*$O167) -> 0 | AB172: =IF($O167="",0,SUM(AB169:AB169)*$O167) -> 0 | AD172: =IF($O167="",0,SUM(AD169:AD169)*$O167) -> 0 | AF172: =IF($O167="",0,SUM(AF169:AF169)*$O167) -> 0
F174: SEGURO | H174: PROBABLE | J174: DUDOSO | L174: NO CUMPLE
C176: SUBTOTAL EyA | F176: =Z113+Z129+Z144+Z152+Z164+Z172 -> 0 | H176: =AB113+AB129+AB144+AB152+AB164+AB172 -> 0 | J176: =AD113+AD129+AD144+AD152+AD164+AD172 -> 0 | L176: =AF113+AF129+AF144+AF152+AF164+AF172 -> 0
B179: RN | D179: RECURSOS NATURALES
D182: ='Matriz VERDE-GBCe'!H22 -> RN 01 | E182: =VLOOKUP($D182,'Matriz VERDE-GBCe'!$H$4:$K$49,2,FALSE) -> Consumo de agua en aparatos sanitarios. | O182: =VLOOKUP($D182,'Matriz VERDE-GBCe'!$H$4:$K$49,3,FALSE) -> 0.03143665514 | Y182: Target | Z182: SEGURO | AB182: PROBABLE | AD182: DUDOSO | AF182: NO CUMPLE | AH182: NO APLICA
D184: El consumo de agua en sanitarios se reduce en un 20% | Y184: 0.5 | Z184: =+IF($Q184="seguro",$Y184,0) -> 0 | AB184: =+IF($Q184="probable",$Y184,0) -> 0 | AD184: =+IF($Q184="dudoso",$Y184,0) -> 0 | AF184: =+IF($Q184="NO CUMPLE",$Y184,0) -> 0 | AH184: =+IF($Q184="no aplica",2,0) -> 0
D186: El consumo de agua en sanitarios se reduce en un 30% | Y186: 1 | Z186: =+IF($Q186="seguro",$Y186,0) -> 0 | AB186: =+IF($Q186="probable",$Y186,0) -> 0 | AD186: =+IF($Q186="dudoso",$Y186,0) -> 0 | AF186: =+IF($Q186="NO CUMPLE",$Y186,0) -> 0 | AH186: =+IF($Q186="no aplica",2,0) -> 0
Y187: =MAX(Y184:Y186) -> 1 | Z187: =IF($O182="",0,MAX(Z184:Z186)*$O182/$Y187) -> 0 | AB187: =IF($O182="",0,MAX(AB184:AB186)*$O182/$Y187) -> 0 | AD187: =IF($O182="",0,MAX(AD184:AD186)*$O182/$Y187) -> 0 | AF187: =IF($O182="",0,MAX(AF184:AF186)*$O182/$Y187) -> 0
D190: ='Matriz VERDE-GBCe'!H23 -> RN 02 | E190: =VLOOKUP($D190,'Matriz VERDE-GBCe'!$H$4:$K$49,2,FALSE) -> Necesidades de riego en jardines. | O190: =VLOOKUP($D190,'Matriz VERDE-GBCe'!$H$4:$K$49,3,FALSE) -> 0 | Y190: Target | Z190: SEGURO | AB190: PROBABLE | AD190: DUDOSO | AF190: NO CUMPLE | AH190: NO APLICA
D192: Las necesidades de riego en jardines se reducen en un 40 % | Y192: 0.35 | Z192: =+IF($Q192="seguro",$Y192,0) -> 0 | AB192: =+IF($Q192="probable",$Y192,0) -> 0 | AD192: =+IF($Q192="dudoso",$Y192,0) -> 0 | AF192: =+IF($Q192="NO CUMPLE",$Y192,0) -> 0 | AH192: =+IF($Q192="no aplica",2,0) -> 0
D194: Las necesidades de riego en jardines se reducen en un 60 % | Y194: 0.7 | Z194: =+IF($Q194="seguro",$Y194,0) -> 0 | AB194: =+IF($Q194="probable",$Y194,0) -> 0 | AD194: =+IF($Q194="dudoso",$Y194,0) -> 0 | AF194: =+IF($Q194="NO CUMPLE",$Y194,0) -> 0 | AH194: =+IF($Q194="no aplica",2,0) -> 0
D196: Las necesidades de riego en jardines se reducen en un 80 % | Y196: 1 | Z196: =+IF($Q196="seguro",$Y196,0) -> 0 | AB196: =+IF($Q196="probable",$Y196,0) -> 0 | AD196: =+IF($Q196="dudoso",$Y196,0) -> 0 | AF196: =+IF($Q196="NO CUMPLE",$Y196,0) -> 0 | AH196: =+IF($Q196="no aplica",2,0) -> 0
Y197: =MAX(Y191:Y196) -> 1 | Z197: =IF($O190="",0,MAX(Z191:Z196)*$O190/$Y197) -> 0 | AB197: =IF($O190="",0,MAX(AB192:AB196)*$O190/$Y197) -> 0 | AD197: =IF($O190="",0,MAX(AD191:AD196)*$O190/$Y197) -> 0 | AF197: =IF($O190="",0,MAX(AF191:AF196)*$O190/$Y197) -> 0
D200: ='Matriz VERDE-GBCe'!H24 -> RN 03 | E200: =VLOOKUP($D200,'Matriz VERDE-GBCe'!$H$4:$K$49,2,FALSE) -> Consumo de agua en elementos singulares | O200: =VLOOKUP($D200,'Matriz VERDE-GBCe'!$H$4:$K$49,3,FALSE) -> 0.01886199308 | Y200: Target | Z200: SEGURO | AB200: PROBABLE | AD200: DUDOSO | AF200: NO CUMPLE | AH200: NO APLICA
D202: Se reutiliza el 80 % de las aguas grises producidas | W202: 0.6 | X202: =IF(AH202=2,0,W202) -> 0.6 | Y202: =X202/X$203 -> 1 | Z202: =+IF($Q202="seguro",$Y202,0) -> 0 | AB202: =+IF($Q202="probable",$Y202,0) -> 0 | AD202: =+IF($Q202="dudoso",$Y202,0) -> 0 | AF202: =+IF($Q202="NO CUMPLE",$Y202,0) -> 0 | AH202: =+IF($Q202="no aplica",2,0) -> 0
X203: =SUM(X201:X202) -> 0.6 | Y203: =SUM(Y201:Y202) -> 1 | Z203: =IF($O200="",0,SUM(Z201:Z202)*$O200/$Y203) -> 0 | AB203: =IF($O200="",0,SUM(AB201:AB202)*$O200/$Y203) -> 0 | AD203: =IF($O200="",0,SUM(AD201:AD202)*$O200/$Y203) -> 0 | AF203: =IF($O200="",0,SUM(AF201:AF202)*$O200/$Y203) -> 0
D206: ='Matriz VERDE-GBCe'!H25 -> RN 04 | E206: =VLOOKUP($D206,'Matriz VERDE-GBCe'!$H$4:$K$49,2,FALSE) -> Uso de agua no potable. | O206: =VLOOKUP($D206,'Matriz VERDE-GBCe'!$H$4:$K$49,3,FALSE) -> 0.01886199308 | Y206: Target | Z206: SEGURO | AB206: PROBABLE | AD206: DUDOSO | AF206: NO CUMPLE | AH206: NO APLICA
D208: Las aguas recuperadas cubren el 30 % de las necesidades | Y208: 0.35 | Z208: =+IF($Q208="seguro",$Y208,0) -> 0 | AB208: =+IF($Q208="probable",$Y208,0) -> 0 | AD208: =+IF($Q208="dudoso",$Y208,0) -> 0 | AF208: =+IF($Q208="NO CUMPLE",$Y208,0) -> 0 | AH208: =+IF($Q208="no aplica",2,0) -> 0
D210: Las aguas recuperadas cubren el 60 % de las necesidades | Y210: 0.7 | Z210: =+IF($Q210="seguro",$Y210,0) -> 0 | AB210: =+IF($Q210="probable",$Y210,0) -> 0 | AD210: =+IF($Q210="dudoso",$Y210,0) -> 0 | AF210: =+IF($Q210="NO CUMPLE",$Y210,0) -> 0 | AH210: =+IF($Q210="no aplica",2,0) -> 0
D212: Las aguas recuperadas cubren el 90 % de las necesidades | Y212: 1 | Z212: =+IF($Q212="seguro",$Y212,0) -> 0 | AB212: =+IF($Q212="probable",$Y212,0) -> 0 | AD212: =+IF($Q212="dudoso",$Y212,0) -> 0 | AF212: =+IF($Q212="NO CUMPLE",$Y212,0) -> 0 | AH212: =+IF($Q212="no aplica",2,0) -> 0
Y213: =MAX(Y207:Y212) -> 1 | Z213: =IF($O206="",0,MAX(Z207:Z212)*$O206/$Y213) -> 0 | AB213: =IF($O206="",0,MAX(AB207:AB212)*$O206/$Y213) -> 0 | AD213: =IF($O206="",0,MAX(AD207:AD212)*$O206/$Y213) -> 0 | AF213: =IF($O206="",0,MAX(AF207:AF212)*$O206/$Y213) -> 0
D216: ='Matriz VERDE-GBCe'!H26 -> RN 05 | E216: =VLOOKUP($D216,'Matriz VERDE-GBCe'!$H$4:$K$49,2,FALSE) -> Uso de materiales reciclados. | O216: =VLOOKUP($D216,'Matriz VERDE-GBCe'!$H$4:$K$49,3,FALSE) -> 0.01571832757 | Y216: Target | Z216: SEGURO | AB216: PROBABLE | AD216: DUDOSO | AF216: NO CUMPLE | AH216: NO APLICA
D218: Se ha instalado un 20 % de materiales reciclados | Y218: 0.5 | Z218: =+IF($Q218="seguro",$Y218,0) -> 0 | AB218: =+IF($Q218="probable",$Y218,0) -> 0 | AD218: =+IF($Q218="dudoso",$Y218,0) -> 0 | AF218: =+IF($Q218="NO CUMPLE",$Y218,0) -> 0 | AH218: =+IF($Q218="no aplica",2,0) -> 0
D220: Se ha instalado un 30 % de materiales reciclados | Y220: 1 | Z220: =+IF($Q220="seguro",$Y220,0) -> 0 | AB220: =+IF($Q220="probable",$Y220,0) -> 0 | AD220: =+IF($Q220="dudoso",$Y220,0) -> 0 | AF220: =+IF($Q220="NO CUMPLE",$Y220,0) -> 0 | AH220: =+IF($Q220="no aplica",2,0) -> 0
Y221: =MAX(Y217:Y220) -> 1 | Z221: =IF($O216="",0,MAX(Z217:Z220)*$O216/$Y221) -> 0 | AB221: =IF($O216="",0,MAX(AB217:AB220)*$O216/$Y221) -> 0 | AD221: =IF($O216="",0,MAX(AD217:AD220)*$O216/$Y221) -> 0 | AF221: =IF($O216="",0,MAX(AF217:AF220)*$O216/$Y221) -> 0
D224: ='Matriz VERDE-GBCe'!H27 -> RN 06 | E224: =VLOOKUP($D224,'Matriz VERDE-GBCe'!$H$4:$K$49,2,FALSE) -> Uso de materiales obtenidos de recursos sostenibles. | O224: =VLOOKUP($D224,'Matriz VERDE-GBCe'!$H$4:$K$49,3,FALSE) -> 0.01257466206 | Y224: Target | Z224: SEGURO | AB224: PROBABLE | AD224: DUDOSO | AF224: NO CUMPLE | AH224: NO APLICA
D226: Al menos el 30 % de la maderas tienen certificado de procedencia | Y226: 0.2 | Z226: =+IF($Q226="seguro",$Y226,0) -> 0 | AB226: =+IF($Q226="probable",$Y226,0) -> 0 | AD226: =+IF($Q226="dudoso",$Y226,0) -> 0 | AF226: =+IF($Q226="NO CUMPLE",$Y226,0) -> 0 | AH226: =+IF($Q226="no aplica",2,0) -> 0
D228: Al menos el 50 % de la maderas tienen certificado de procedencia | Y228: 0.7 | Z228: =+IF($Q228="seguro",$Y228,0) -> 0 | AB228: =+IF($Q228="probable",$Y228,0) -> 0 | AD228: =+IF($Q228="dudoso",$Y228,0) -> 0 | AF228: =+IF($Q228="NO CUMPLE",$Y228,0) -> 0 | AH228: =+IF($Q228="no aplica",2,0) -> 0
D230: Al menos el 10 % de los materiales disponen de un documento de procedencia | Y230: 0.1 | Z230: =+IF($Q230="seguro",$Y230,0) -> 0 | AB230: =+IF($Q230="probable",$Y230,0) -> 0 | AD230: =+IF($Q230="dudoso",$Y230,0) -> 0 | AF230: =+IF($Q230="NO CUMPLE",$Y230,0) -> 0 | AH230: =+IF($Q230="no aplica",2,0) -> 0
D232: Al menos el 15 % de los materiales disponen de un documento de procedencia | Y232: 0.3 | Z232: =+IF($Q232="seguro",$Y232,0) -> 0 | AB232: =+IF($Q232="probable",$Y232,0) -> 0 | AD232: =+IF($Q232="dudoso",$Y232,0) -> 0 | AF232: =+IF($Q232="NO CUMPLE",$Y232,0) -> 0 | AH232: =+IF($Q232="no aplica",2,0) -> 0
Y233: =MAX(Y226:Y228)+MAX(Y230:Y232) -> 1 | Z233: =IF($O224="",0,(MAX(Z225:Z228)+MAX(Z230:Z232))*O224/$Y233) -> 0 | AB233: =IF($O224="",0,(MAX(AB225:AB228)+MAX(AB230:AB232))*Q224/$Y233) -> 0 | AD233: =IF($O224="",0,(MAX(AD225:AD228)+MAX(AD230:AD232))*S224/$Y233) -> 0 | AF233: =IF($O224="",0,(MAX(AF225:AF228)+MAX(AF230:AF232))*U224/$Y233) -> 0
D236: ='Matriz VERDE-GBCe'!H28 -> RN 07 | E236: =VLOOKUP($D236,'Matriz VERDE-GBCe'!$H$4:$K$49,2,FALSE) -> Uso de materiales locales. | O236: =VLOOKUP($D236,'Matriz VERDE-GBCe'!$H$4:$K$49,3,FALSE) -> 0.02514932411 | Y236: Target | Z236: SEGURO | AB236: PROBABLE | AD236: DUDOSO | AF236: NO CUMPLE | AH236: NO APLICA
D238: El 50 % de los materiales son de origen local | Y238: 0.35 | Z238: =+IF($Q238="seguro",$Y238,0) -> 0 | AB238: =+IF($Q238="probable",$Y238,0) -> 0 | AD238: =+IF($Q238="dudoso",$Y238,0) -> 0 | AF238: =+IF($Q238="NO CUMPLE",$Y238,0) -> 0 | AH238: =+IF($Q238="no aplica",2,0) -> 0
D240: El 65 % de los materiales son de origen local | Y240: 0.7 | Z240: =+IF($Q240="seguro",$Y240,0) -> 0 | AB240: =+IF($Q240="probable",$Y240,0) -> 0 | AD240: =+IF($Q240="dudoso",$Y240,0) -> 0 | AF240: =+IF($Q240="NO CUMPLE",$Y240,0) -> 0 | AH240: =+IF($Q240="no aplica",2,0) -> 0
D242: El 80 % de los materiales son de origen local | Y242: 1 | Z242: =+IF($Q242="seguro",$Y242,0) -> 0 | AB242: =+IF($Q242="probable",$Y242,0) -> 0 | AD242: =+IF($Q242="dudoso",$Y242,0) -> 0 | AF242: =+IF($Q242="NO CUMPLE",$Y242,0) -> 0 | AH242: =+IF($Q242="no aplica",2,0) -> 0
Y243: =MAX(Y237:Y242) -> 1 | Z243: =IF($O236="",0,MAX(Z237:Z242)*$O236/$Y243) -> 0 | AB243: =IF($O236="",0,MAX(AB237:AB242)*$O236/$Y243) -> 0 | AD243: =IF($O236="",0,MAX(AD237:AD242)*$O236/$Y243) -> 0 | AF243: =IF($O236="",0,MAX(AF237:AF242)*$O236/$Y243) -> 0
D246: ='Matriz VERDE-GBCe'!H29 -> RN 08 | E246: =VLOOKUP($D246,'Matriz VERDE-GBCe'!$H$4:$K$49,2,FALSE) -> Planificación de una estrategia de demolición selectiva. | O246: =VLOOKUP($D246,'Matriz VERDE-GBCe'!$H$4:$K$49,3,FALSE) -> 0.01571832757 | Y246: Target | Z246: SEGURO | AB246: PROBABLE | AD246: DUDOSO | AF246: NO CUMPLE | AH246: NO APLICA
D248: Existe un Plan de Demolición Selectivo | Y248: 1 | Z248: =+IF($Q248="seguro",$Y248,0) -> 0 | AB248: =+IF($Q248="probable",$Y248,0) -> 0 | AD248: =+IF($Q248="dudoso",$Y248,0) -> 0 | AF248: =+IF($Q248="NO CUMPLE",$Y248,0) -> 0 | AH248: =+IF($Q248="no aplica",2,0) -> 0
Y249: =SUM(Y248:Y248) -> 1 | Z249: =IF($O246="",0,Z248*$O246/$Y249) -> 0 | AB249: =IF($O246="",0,AB248*$O246/$Y249) -> 0 | AD249: =IF($O246="",0,AD248*$O246/$Y249) -> 0 | AF249: =IF($O246="",0,SUM(AF248:AF248)*$O246/$Y249) -> 0
D252: ='Matriz VERDE-GBCe'!H30 -> RN 09 | E252: =VLOOKUP($D252,'Matriz VERDE-GBCe'!$H$4:$K$49,2,FALSE) -> Gestión de los residuos de la construcción. | O252: =VLOOKUP($D252,'Matriz VERDE-GBCe'!$H$4:$K$49,3,FALSE) -> 0.01257466206 | Y252: Target | Z252: SEGURO | AB252: PROBABLE | AD252: DUDOSO | AF252: NO CUMPLE | AH252: NO APLICA
D254: Se garantiza la revalorización del 60% de los residuos de la construcción | Y254: 0.4 | Z254: =+IF($Q254="seguro",$Y254,0) -> 0 | AB254: =+IF($Q254="probable",$Y254,0) -> 0 | AD254: =+IF($Q254="dudoso",$Y254,0) -> 0 | AF254: =+IF($Q254="NO CUMPLE",$Y254,0) -> 0 | AH254: =+IF($Q254="no aplica",2,0) -> 0
D256: Se garantiza la revalorización del 75% de los residuos de la construcción | Y256: 1 | Z256: =+IF($Q256="seguro",$Y256,0) -> 0 | AB256: =+IF($Q256="probable",$Y256,0) -> 0 | AD256: =+IF($Q256="dudoso",$Y256,0) -> 0 | AF256: =+IF($Q256="NO CUMPLE",$Y256,0) -> 0 | AH256: =+IF($Q256="no aplica",2,0) -> 0
Y257: =MAX(Y254:Y256) -> 1 | Z257: =IF($O252="",0,MAX(Z254:Z256)*$O252/$Y257) -> 0 | AB257: =IF($O252="",0,MAX(AB254:AB256)*$O252/$Y257) -> 0 | AD257: =IF($O252="",0,MAX(AD254:AD256)*$O252/$Y257) -> 0 | AF257: =IF($O252="",0,MAX(AF254:AF256)*$O252/$Y257) -> 0
D260: ='Matriz VERDE-GBCe'!H31 -> RN 10 | E260: =VLOOKUP($D260,'Matriz VERDE-GBCe'!$H$4:$K$49,2,FALSE) -> Impacto de los materiales de la construcción. | O260: =VLOOKUP($D260,'Matriz VERDE-GBCe'!$H$4:$K$49,3,FALSE) -> 0.06916064131 | Y260: Target | Z260: SEGURO | AB260: PROBABLE | AD260: DUDOSO | AF260: NO CUMPLE | AH260: NO APLICA
D262: Existe un ACV que mide el consumo de energía no renovable y las emisiones de CO2 en la etapa de producto. | Y262: 0.25 | Z262: =+IF($Q262="seguro",$Y262,0) -> 0 | AB262: =+IF($Q262="probable",$Y262,0) -> 0 | AD262: =+IF($Q262="dudoso",$Y262,0) -> 0 | AF262: =+IF($Q262="NO CUMPLE",$Y262,0) -> 0 | AH262: =+IF($Q262="no aplica",2,0) -> 0
D264: Existe un ACV que mide el consumo de energía no renovable y las emisiones de CO2 en todas las etapa del ciclo de vida. | Y264: 0.25 | Z264: =+IF($Q264="seguro",$Y264,0) -> 0 | AB264: =+IF($Q264="probable",$Y264,0) -> 0 | AD264: =+IF($Q264="dudoso",$Y264,0) -> 0 | AF264: =+IF($Q264="NO CUMPLE",$Y264,0) -> 0 | AH264: =+IF($Q264="no aplica",2,0) -> 0
D267: El ACV que demuestra una reducción del 15% en el consumo de energía no renovable en la fase de producto. | Y267: 0.25 | Z267: =+IF($Q267="seguro",$Y267,0) -> 0 | AB267: =+IF($Q267="probable",$Y267,0) -> 0 | AD267: =+IF($Q267="dudoso",$Y267,0) -> 0 | AF267: =+IF($Q267="NO CUMPLE",$Y267,0) -> 0 | AH267: =+IF($Q267="no aplica",2,0) -> 0
D269: El ACV que demuestra una reducción del 15% en otro indicador distinto del consumo de energía no renovable en la fase de producto. | Y269: 0.25 | Z269: =+IF($Q269="seguro",$Y269,0) -> 0 | AB269: =+IF($Q269="probable",$Y269,0) -> 0 | AD269: =+IF($Q269="dudoso",$Y269,0) -> 0 | AF269: =+IF($Q269="NO CUMPLE",$Y269,0) -> 0 | AH269: =+IF($Q269="no aplica",2,0) -> 0
Y271: =SUM(Y262:Y269) -> 1 | Z271: =IF($O260="",0,SUM(Z262:Z269)*$O260/$Y271) -> 0 | AB271: =IF($O260="",0,SUM(AB262:AB269)*$O260/$Y271) -> 0 | AD271: =IF($O260="",0,SUM(AD262:AD269)*$O260/$Y271) -> 0 | AF271: =IF($O260="",0,SUM(AF262:AF269)*$O260/$Y271) -> 0
D274: ='Matriz VERDE-GBCe'!H32 -> RN 11 | E274: =VLOOKUP($D274,'Matriz VERDE-GBCe'!$H$4:$K$49,2,FALSE) -> Ecoetiquetado de producto. | O274: =VLOOKUP($D274,'Matriz VERDE-GBCe'!$H$4:$K$49,3,FALSE) -> 0.02514932411 | Y274: Target | Z274: SEGURO | AB274: PROBABLE | AD274: DUDOSO | AF274: NO CUMPLE | AH274: NO APLICA
D276: El porcentaje en masa de los materiales con ecoetiqueta tipo I está por encima del 15% | Y276: 0.2 | Z276: =+IF($Q276="seguro",$Y276,0) -> 0 | AB276: =+IF($Q276="probable",$Y276,0) -> 0 | AD276: =+IF($Q276="dudoso",$Y276,0) -> 0 | AF276: =+IF($Q276="NO CUMPLE",$Y276,0) -> 0 | AH276: =+IF($Q276="no aplica",2,0) -> 0
D278: Entre los materiales con DAPs se encuentran, al menos, las siguientes familias: elementos estructurales, aislamientos y revestimientos. | Y278: 0.2 | Z278: =+IF($Q278="seguro",$Y278,0) -> 0 | AB278: =+IF($Q278="probable",$Y278,0) -> 0 | AD278: =+IF($Q278="dudoso",$Y278,0) -> 0 | AF278: =+IF($Q278="NO CUMPLE",$Y278,0) -> 0 | AH278: =+IF($Q278="no aplica",2,0) -> 0
D281: Se aportan cinco ecoetiquetas tipo I o tres DAPS de distintos fabricantes | Y281: 0.8 | Z281: =+IF($Q281="seguro",$Y281,0) -> 0 | AB281: =+IF($Q281="probable",$Y281,0) -> 0 | AD281: =+IF($Q281="dudoso",$Y281,0) -> 0 | AF281: =+IF($Q281="NO CUMPLE",$Y281,0) -> 0 | AH281: =+IF($Q281="no aplica",2,0) -> 0
Y282: 1 | Z282: =IF($O274=0,0,IF(SUM(Z276:Z281)>1,O274,SUM(Z276:Z281)*$O274)) -> 0 | AB282: =IF($O274="",0,MAX(AB276:AB281)*$O274/$Y282) -> 0 | AD282: =IF($O274="",0,MAX(AD276:AD281)*$O274/$Y282) -> 0 | AF282: =IF($O274="",0,MAX(AF276:AF281)*$O274/$Y282) -> 0
F284: SEGURO | H284: PROBABLE | J284: DUDOSO | L284: NO CUMPLE
C286: SUBTOTAL RN | F286: =Z187+Z197+Z203+Z213+Z221+Z233+Z243+Z249+Z257+Z271+Z282 -> 0 | H286: =AB187+AB197+AB203+AB213+AB221+AB233+AB243+AB249+AB257+AB271+AB282 -> 0 | J286: =AD187+AD197+AD203+AD213+AD221+AD233+AD243+AD249+AD257+AD271+AD282 -> 0 | L286: =AF187+AF197+AF203+AF213+AF221+AF233+AF243+AF249+AF257+AF271+AF282 -> 0
B289: CAI | D289: ='Matriz VERDE-GBCe'!H33 -> Calidad del Ambiente Interior.
D292: ='Matriz VERDE-GBCe'!H34 -> CAI 01 | E292: =VLOOKUP($D292,'Matriz VERDE-GBCe'!$H$4:$K$49,2,FALSE) -> Limitación en las emisiones de COVs. | O292: =VLOOKUP($D292,'Matriz VERDE-GBCe'!$H$4:$K$49,3,FALSE) -> 0.03143665514 | Y292: Target | Z292: SEGURO | AB292: PROBABLE | AD292: DUDOSO | AF292: NO CUMPLE | AH292: NO APLICA
D294: ¿Se hace una medición del contenido en COVs en el aire interior? | Y294: 0.2 | Z294: =+IF($Q294="seguro",$Y294,0) -> 0 | AB294: =+IF($Q294="probable",$Y294,0) -> 0 | AD294: =+IF($Q294="dudoso",$Y294,0) -> 0 | AF294: =+IF($Q294="NO CUMPLE",$Y294,0) -> 0 | AH294: =+IF($Q294="no aplica",2,0) -> 0
D296: La media de TCOVS y formaldehidos alcanza o está por debajo del punto medio entre el valor máximo y el mínimo. | Y296: 0.6 | Z296: =+IF($Q296="seguro",$Y296,0) -> 0 | AB296: =+IF($Q296="probable",$Y296,0) -> 0 | AD296: =+IF($Q296="dudoso",$Y296,0) -> 0 | AF296: =+IF($Q296="NO CUMPLE",$Y296,0) -> 0 | AH296: =+IF($Q296="no aplica",2,0) -> 0
D298: La media de TCOVS y formaldehidos es igual o inferior al valor mínimo. | Y298: 1 | Z298: =+IF($Q298="seguro",$Y298,0) -> 0 | AB298: =+IF($Q298="probable",$Y298,0) -> 0 | AD298: =+IF($Q298="dudoso",$Y298,0) -> 0 | AF298: =+IF($Q298="NO CUMPLE",$Y298,0) -> 0 | AH298: =+IF($Q298="no aplica",2,0) -> 0
D300: Las pinturas y barnices, sellantes y adhesivos y compuestos de la madera instalados no tienen emisiones de COVs | Y300: 0.8 | Z300: =+IF($Q300="seguro",$Y300,0) -> 0 | AB300: =+IF($Q300="probable",$Y300,0) -> 0 | AD300: =+IF($Q300="dudoso",$Y300,0) -> 0 | AF300: =+IF($Q300="NO CUMPLE",$Y300,0) -> 0 | AH300: =+IF($Q300="no aplica",2,0) -> 0
D302: Las pinturas y barnices, sellantes y adhesivos y compuestos de la madera instalados cumplen con la limitación normativa. | Y302: 0.4 | Z302: =+IF($Q302="seguro",$Y302,0) -> 0 | AB302: =+IF($Q302="probable",$Y302,0) -> 0 | AD302: =+IF($Q302="dudoso",$Y302,0) -> 0 | AF302: =+IF($Q302="NO CUMPLE",$Y302,0) -> 0 | AH302: =+IF($Q302="no aplica",2,0) -> 0
Y304: =MAX(Y294:Y303) -> 1 | Z304: =+Z310+Z322+Z336+Z353 -> 0 | AB304: =IF($O292="",0,(MAX(AB294:AB298)+MAX(AB299:AB302))*$O292/$Y304) -> 0 | AD304: =IF($O292="",0,(MAX(AD294:AD298)+MAX(AD299:AD302))*$O292/$Y304) -> 0 | AF304: =IF($O292="",0,(MAX(AF294:AF298)+MAX(AF299:AF302))*$O292/$Y304) -> 0
D307: ='Matriz VERDE-GBCe'!H35 -> CAI 02 | E307: =VLOOKUP($D307,'Matriz VERDE-GBCe'!$H$4:$K$49,2,FALSE) -> Monitorización de la calidad del aire | O307: =VLOOKUP($D307,'Matriz VERDE-GBCe'!$H$4:$K$49,3,FALSE) -> 0.03143665514 | Y307: Target | Z307: SEGURO | AB307: PROBABLE | AD307: DUDOSO | AF307: NO CUMPLE | AH307: NO APLICA
D309: Se cuenta con detectores de CO2 en salas de alta ocupación | Y309: 1 | Z309: =+IF($Q309="seguro",$Y309,0) -> 0 | AB309: =+IF($O309="probable",$Y309,0) -> 0 | AD309: =+IF($O309="dudoso",$Y309,0) -> 0 | AF309: =+IF($O309="NO CUMPLE",$Y309,0) -> 0 | AH309: =+IF($O309="no aplica",2,0) -> 0
Y310: =SUM(Y309:Y309) -> 1 | Z310: =IF($O309="",0,Z309*$O309/$Y310) -> 0 | AB310: =IF($O309="",0,AB309*$O309/$Y310) -> 0 | AD310: =IF($O309="",0,AD309*$O309/$Y310) -> 0 | AF310: =IF($O309="",0,SUM(AF309:AF309)*$O309/$Y310) -> 0
D313: ='Matriz VERDE-GBCe'!H36 -> CAI 03 | E313: =VLOOKUP($D313,'Matriz VERDE-GBCe'!$H$4:$K$49,2,FALSE) -> Iluminación natural en los espacios de ocupación primaria. | O313: =VLOOKUP($D313,'Matriz VERDE-GBCe'!$H$4:$K$49,3,FALSE) -> 0.05029864822
D315: NOTA: Este criterio se evalúa por fórmulas lineales, la puntuación puede variar en la evaluación final. Ver la guía. | Y315: Target | Z315: SEGURO | AB315: PROBABLE | AD315: DUDOSO | AF315: NO CUMPLE | AH315: NO APLICA
D317: El porcentaje de espacios de trabajo que alcanzan un DF adecuado oscila entre el 70 y el 80 % | Y317: 0.25 | Z317: =+IF($Q317="seguro",$Y317,0) -> 0 | AB317: =+IF($Q317="probable",$Y317,0) -> 0 | AD317: =+IF($Q317="dudoso",$Y317,0) -> 0 | AF317: =+IF($Q317="NO CUMPLE",$Y317,0) -> 0 | AH317: =+IF($Q317="no aplica",2,0) -> 0
D319: El porcentaje de espacios de trabajo que alcanzan un DF adecuado oscila entre el 80 y el 90 % | Y319: 0.6 | Z319: =+IF($Q319="seguro",$Y319,0) -> 0 | AB319: =+IF($Q319="probable",$Y319,0) -> 0 | AD319: =+IF($Q319="dudoso",$Y319,0) -> 0 | AF319: =+IF($Q319="NO CUMPLE",$Y319,0) -> 0 | AH319: =+IF($Q319="no aplica",2,0) -> 0
D321: El porcentaje de espacios de trabajo que alcanzan un DF adecuado oscila entre el 90 y el 100 % | Y321: 0.9 | Z321: =+IF($Q321="seguro",$Y321,0) -> 0 | AB321: =+IF($Q321="probable",$Y321,0) -> 0 | AD321: =+IF($Q321="dudoso",$Y321,0) -> 0 | AF321: =+IF($Q321="NO CUMPLE",$Y321,0) -> 0 | AH321: =+IF($Q321="no aplica",2,0) -> 0
Y322: =MAX(Y316:Y321) -> 0.9 | Z322: =IF($O313="",0,MAX(Z317:Z321)*$O313/$Y322) -> 0 | AB322: =IF($O313="",0,MAX(AB317:AB321)*$O313/$Y322) -> 0 | AD322: =IF($O313="",0,MAX(AD317:AD321)*$O313/$Y322) -> 0 | AF322: =IF($O313="",0,MAX(AF317:AF321)*$O313/$Y322) -> 0
D325: ='Matriz VERDE-GBCe'!H37 -> CAI 04 | E325: =VLOOKUP($D325,'Matriz VERDE-GBCe'!$H$4:$K$49,2,FALSE) -> Iluminación artificial en los espacios de ocupación primaria. | O325: =VLOOKUP($D325,'Matriz VERDE-GBCe'!$H$4:$K$49,3,FALSE) -> 0.03143665514
D327: NOTA: Este criterio se evalúa por fórmulas lineales, la puntuación puede variar en la evaluación final. Ver la guía. | Y327: Target | Z327: SEGURO | AB327: PROBABLE | AD327: DUDOSO | AF327: NO CUMPLE | AH327: NO APLICA
D329: El porcentaje de espacios de trabajo que mejoran las recomendaciones en Em y Ra oscila entre el 70 y el 80 % | Y329: 0.1 | Z329: =+IF($Q329="seguro",$Y329,0) -> 0 | AB329: =+IF($Q329="probable",$Y329,0) -> 0 | AD329: =+IF($Q329="dudoso",$Y329,0) -> 0 | AF329: =+IF($Q329="NO CUMPLE",$Y329,0) -> 0 | AH329: =+IF($Q329="no aplica",2,0) -> 0
D331: El porcentaje de espacios de trabajo que mejoran las recomendaciones en Em y Ra oscila entre el 80 y el 90 % | Y331: 0.3 | Z331: =+IF($Q331="seguro",$Y331,0) -> 0 | AB331: =+IF($Q331="probable",$Y331,0) -> 0 | AD331: =+IF($Q331="dudoso",$Y331,0) -> 0 | AF331: =+IF($Q331="NO CUMPLE",$Y331,0) -> 0 | AH331: =+IF($Q331="no aplica",2,0) -> 0
D333: El porcentaje de espacios de trabajo que mejoran las recomendaciones en Em y Ra oscila entre el 90 y el 100 % | Y333: 0.6 | Z333: =+IF($Q333="seguro",$Y333,0) -> 0 | AB333: =+IF($Q333="probable",$Y333,0) -> 0 | AD333: =+IF($Q333="dudoso",$Y333,0) -> 0 | AF333: =+IF($Q333="NO CUMPLE",$Y333,0) -> 0 | AH333: =+IF($Q333="no aplica",2,0) -> 0
D335: Se cuenta con un Manual de mantenimiento de las luminarias. | Y335: 0.4 | Z335: =+IF($Q335="seguro",$Y335,0) -> 0 | AB335: =+IF($Q335="probable",$Y335,0) -> 0 | AD335: =+IF($Q335="dudoso",$Y335,0) -> 0 | AF335: =+IF($Q335="NO CUMPLE",$Y335,0) -> 0 | AH335: =+IF($Q335="no aplica",2,0) -> 0
Y336: =MAX(Y328:Y333)+Y335 -> 1 | Z336: =IF($O325="",0,(MAX(Z329:Z333)+Z335)*$O325/$Y336) -> 0 | AB336: =IF($O325="",0,(MAX(AB329:AB333)+AB335)*$O325/$Y336) -> 0 | AD336: =IF($O325="",0,(MAX(AD329:AD333)+AD335)*$O325/$Y336) -> 0 | AF336: =IF($O325="",0,(MAX(AF329:AF333)+AF335)*$O325/$Y336) -> 0
D339: ='Matriz VERDE-GBCe'!H38 -> CAI 05 | E339: =VLOOKUP($D339,'Matriz VERDE-GBCe'!$H$4:$K$49,2,FALSE) -> Protección frente al ruido. | O339: =VLOOKUP($D339,'Matriz VERDE-GBCe'!$H$4:$K$49,3,FALSE) -> 0.0440113172
D341: =IF(DG!$E$25=0,"",DG!$E$25) ->  | Y341: Target | Z341: SEGURO | AB341: PROBABLE | AD341: DUDOSO | AF341: NO CUMPLE | AH341: NO APLICA
D343: La protección de las viviendas frente al ruido procedente del exterior supera en 4 dB(A) la exigencia normativa | W343: 0.3 | X343: =IF(AH343=2,0,W343) -> 0.3 | Y343: =X343/X$353 -> 0.3 | Z343: =+IF($Q343="seguro",$Y343,0) -> 0 | AB343: =+IF($Q343="probable",$Y343,0) -> 0 | AD343: =+IF($Q343="dudoso",$Y343,0) -> 0 | AF343: =+IF($Q343="NO CUMPLE",$Y343,0) -> 0 | AH343: =+IF($Q343="no aplica",2,0) -> 0
D345: La protección de las viviendas frente al ruido generado en recintos de instalaciones mejora las exigencias normativas en 4 dB o bien no hay ninguna vivienda contigua a un cuarto de instalaciones en el que se genere ruido | W345: 0.1 | X345: =IF(AH345=2,0,W345) -> 0.1 | Y345: =X345/X$353 -> 0.1 | Z345: =+IF($Q345="seguro",$Y345,0) -> 0 | AB345: =+IF($Q345="probable",$Y345,0) -> 0 | AD345: =+IF($Q345="dudoso",$Y345,0) -> 0 | AF345: =+IF($Q345="NO CUMPLE",$Y345,0) -> 0 | AH345: =+IF($Q345="no aplica",2,0) -> 0
D348: La protección de las viviendas frente al ruido generado en recintos no procedentes de la misma unidad funcional de uso mejora las exigencias normativas en 4 Db | W348: 0.2 | X348: =IF(AH348=2,0,W348) -> 0.2 | Y348: =X348/X$353 -> 0.2 | Z348: =+IF($Q348="seguro",$Y348,0) -> 0 | AB348: =+IF($Q348="probable",$Y348,0) -> 0 | AD348: =+IF($Q348="dudoso",$Y348,0) -> 0 | AF348: =+IF($Q348="NO CUMPLE",$Y348,0) -> 0 | AH348: =+IF($Q348="no aplica",2,0) -> 0
D351: Se han comprobado las condiciones acústicas en la obra terminada | W351: 0.4 | X351: =IF(AH351=2,0,W351) -> 0.4 | Y351: =X351/X$353 -> 0.4 | Z351: =+IF($Q351="seguro",$Y351,0) -> 0 | AB351: =+IF($Q351="probable",$Y351,0) -> 0 | AD351: =+IF($Q351="dudoso",$Y351,0) -> 0 | AF351: =+IF($Q351="NO CUMPLE",$Y351,0) -> 0 | AH351: =+IF($Q351="no aplica",2,0) -> 0
X353: =SUM(X343:X352) -> 1 | Y353: =SUM(Y343:Y351) -> 1 | Z353: =IF($O339="",0,SUM(Z343:Z351)*$O339) -> 0 | AB353: =IF($O339="",0,SUM(AB343:AB351)*$O339) -> 0 | AD353: =IF($O339="",0,SUM(AD343:AD351)*$O339) -> 0 | AF353: =IF($O339="",0,SUM(AF343:AF351)*$O339) -> 0
F355: SEGURO | H355: PROBABLE | J355: DUDOSO | L355: NO CUMPLE
C357: SUBTOTAL CAI | F357: =Z304+Z310+Z322+Z336+Z353 -> 0 | H357: =AB304+AB310+AB322+AB336+AB353 -> 0 | J357: =AD304+AD310+AD322+AD336+AD353 -> 0 | L357: =AF304+AF310+AF322+AF336+AF353 -> 0
B360: ='Matriz VERDE-GBCe'!G39 -> ASE | D360: ='Matriz VERDE-GBCe'!H39 -> Aspectos Sociales y Económicos.
D363: ='Matriz VERDE-GBCe'!H40 -> ASE 01 | E363: =VLOOKUP($D363,'Matriz VERDE-GBCe'!$H$4:$K$49,2,FALSE) -> Acceso universal. | O363: =VLOOKUP($D363,'Matriz VERDE-GBCe'!$H$4:$K$49,3,FALSE) -> 0.02829298963
Y365: Target | Z365: SEGURO | AB365: PROBABLE | AD365: DUDOSO | AF365: NO CUMPLE | AH365: NO APLICA
D367: Se prevé una señalización específica para personas con discapacidad visual o auditiva en todos los espacios comunes del edificio | W367: 0.25 | X367: =IF(AH367=2,0,W367) -> 0.25 | Y367: 0.3 | Z367: =+IF($Q367="seguro",$Y367,0) -> 0 | AB367: =+IF($Q367="probable",$Y367,0) -> 0 | AD367: =+IF($Q367="dudoso",$Y367,0) -> 0 | AF367: =+IF($Q367="NO CUMPLE",$Y367,0) -> 0 | AH367: =+IF($Q367="no aplica",2,0) -> 0
D370: Se prevé itinerarios accesibles a todos los espacios de uso habitual del edificio. | W370: 0.25 | X370: =IF(AH370=2,0,W370) -> 0.25 | Y370: 0.5 | Z370: =+IF($Q370="seguro",$Y370,0) -> 0 | AB370: =+IF($Q370="probable",$Y370,0) -> 0 | AD370: =+IF($Q370="dudoso",$Y370,0) -> 0 | AF370: =+IF($Q370="NO CUMPLE",$Y370,0) -> 0 | AH370: =+IF($Q370="no aplica",2,0) -> 0
D372: Se ha contemplado alguna mejora sustancial en la accesibilidad. | W372: 0.25 | X372: =IF(AH372=2,0,W372) -> 0.25 | Y372: 0.2 | Z372: =+IF($Q372="seguro",$Y372,0) -> 0 | AB372: =+IF($Q372="probable",$Y372,0) -> 0 | AD372: =+IF($Q372="dudoso",$Y372,0) -> 0 | AF372: =+IF($Q372="NO CUMPLE",$Y372,0) -> 0 | AH372: =+IF($Q372="no aplica",2,0) -> 0
X373: =SUM(X367:X372) -> 0.75 | Y373: =SUM(Y366:Y372) -> 1 | Z373: =IF($O363="",0,SUM(Z366:Z372)*$O363) -> 0 | AB373: =IF($O363="",0,SUM(AB366:AB372)*$O363) -> 0 | AD373: =IF($O363="",0,SUM(AD366:AD372)*$O363) -> 0 | AF373: =IF($O363="",0,SUM(AF366:AF372)*$O363) -> 0
D376: ='Matriz VERDE-GBCe'!H41 -> ASE 02 | E376: =VLOOKUP($D376,'Matriz VERDE-GBCe'!$H$4:$K$49,2,FALSE) -> Acceso visual desde las áreas de trabajo. | O376: =VLOOKUP($D376,'Matriz VERDE-GBCe'!$H$4:$K$49,3,FALSE) -> 0.01886199308
D378: NOTA: Este criterio se evalúa por fórmulas lineales, la puntuación puede variar en la evaluación final. Ver la guía. | Y378: Target | Z378: SEGURO | AB378: PROBABLE | AD378: DUDOSO | AF378: NO CUMPLE | AH378: NO APLICA
D380: El porcentaje de espacios de trabajo con acceso visual al exterior es del 70% | W380: =IF(DG!E25="Unifamiliar","Uni",IF(DG!E25="Multi-residencial","Res","")) ->  | Y380: =IF(N378="Unifamiliar",0.6,0.5) -> 0.5 | Z380: =+IF($Q380="seguro",$Y380,0) -> 0 | AB380: =+IF($Q380="probable",$Y380,0) -> 0 | AD380: =+IF($Q380="dudoso",$Y380,0) -> 0 | AF380: =+IF($Q380="NO CUMPLE",$Y380,0) -> 0 | AH380: =+IF($Q380="no aplica",2,0) -> 0
D382: El porcentaje de espacios de trabajo con acceso visual al exterior es del 80% o superior. | Y382: =IF(N378="Unifamiliar",0.4,1) -> 1 | Z382: =+IF($Q382="seguro",$Y382,0) -> 0 | AB382: =+IF($Q382="probable",$Y382,0) -> 0 | AD382: =+IF($Q382="dudoso",$Y382,0) -> 0 | AF382: =+IF($Q382="NO CUMPLE",$Y382,0) -> 0 | AH382: =+IF($Q382="no aplica",2,0) -> 0
Y384: =IF(N378="Unifamiliar",SUM(Y379:Y383),MAX(Y379:Y383)) -> 1 | Z384: =IF($O376="",0,IF(N378="Unifamiliar",SUM(Z379:Z383),MAX(Z379:Z383))*$O376) -> 0 | AB384: =IF($O376="",0,IF(N378="Unifamiliar",SUM(AB379:AB383),MAX(AB379:AB383))*$O376) -> 0 | AD384: =IF($O376="",0,IF(N378="Unifamiliar",SUM(AD379:AD383),MAX(AD379:AD383))*$O376) -> 0 | AF384: =IF($O376="",0,IF(N378="Unifamiliar",SUM(AF379:AF383),MAX(AF379:AF383))*$O376) -> 0
F386: SEGURO | H386: PROBABLE | J386: DUDOSO | L386: NO CUMPLE
C388: SUBTOTAL AS | F388: =Z373+Z384 -> 0 | H388: =AB373+AB384 -> 0 | J388: =AD373+AD384 -> 0 | L388: =AF373+AF384 -> 0
B391: CC | D391: ='Matriz VERDE-GBCe'!H42 -> Concepto de Calidad.
D394: ='Matriz VERDE-GBCe'!H43 -> CC 01 | E394: =VLOOKUP($D394,'Matriz VERDE-GBCe'!$H$4:$K$49,2,FALSE) -> Eficiencia de los espacios. | O394: =VLOOKUP($D394,'Matriz VERDE-GBCe'!$H$4:$K$49,3,FALSE) -> 0.01886199308
D396: NOTA: Este criterio se evalúa por fórmulas lineales, la puntuación puede variar en la evaluación final. Ver la guía. | Y396: Target | Z396: SEGURO | AB396: PROBABLE | AD396: DUDOSO | AF396: NO CUMPLE | AH396: NO APLICA
D398: La ratio ente la Superficie Útil Funcional y la Superficie Construida Sobre Rasante es inferior o igual a 1,25 | Y398: 0.4 | Z398: =+IF($Q398="seguro",$Y398,0) -> 0 | AB398: =+IF($Q398="probable",$Y398,0) -> 0 | AD398: =+IF($Q398="dudoso",$Y398,0) -> 0 | AF398: =+IF($Q398="no cumple",$Y398,0) -> 0 | AH398: =+IF($Q398="no aplica",2,0) -> 0
D400: La ratio ente la Superficie Útil Funcional y la Superficie Construida Sobre Rasante es inferior o igual a 1,15 | Y400: =IF(N398="Unifamiliar",0,1) -> 1 | Z400: =+IF($Q400="seguro",$Y400,0) -> 0 | AB400: =+IF($Q400="probable",$Y400,0) -> 0 | AD400: =+IF($Q400="dudoso",$Y400,0) -> 0 | AF400: =+IF($Q400="no cumple",$Y400,0) -> 0 | AH400: =+IF($Q400="no aplica",2,0) -> 0
Y401: =MAX(Y397:Y400) -> 1 | Z401: =IF($O394="",0,MAX(Z398:Z400)*$O394) -> 0 | AB401: =IF($O394="",0,MAX(AB398:AB400)*$O394) -> 0 | AD401: =IF($O394="",0,MAX(AD398:AD400)*$O394) -> 0 | AF401: =IF($O394="",0,MAX(AF398:AF400)*$O394) -> 0
D404: ='Matriz VERDE-GBCe'!H44 -> CC 02 | E404: =VLOOKUP($D404,'Matriz VERDE-GBCe'!$H$4:$K$49,2,FALSE) -> Sistema de gestión del edificio (BMS). | O404: =VLOOKUP($D404,'Matriz VERDE-GBCe'!$H$4:$K$49,3,FALSE) -> 0.03458032065
D406: =IF(DG!$E$25=0,"",DG!$E$25) ->  | Y406: Target | Z406: SEGURO | AB406: PROBABLE | AD406: DUDOSO | AF406: NO CUMPLE | AH406: NO APLICA
D408: El edificio dispone de un sistema de gestión o BMS con alcance básico | Y408: 0.6 | Z408: =+IF($Q408="seguro",$Y408,0) -> 0 | AB408: =+IF($Q408="probable",$Y408,0) -> 0 | AD408: =+IF($Q408="dudoso",$Y408,0) -> 0 | AF408: =+IF($Q408="NO CUMPLE",$Y408,0) -> 0 | AH408: =+IF($Q408="no aplica",2,0) -> 0
... 51 more rows

Sheet PyE
B2: ='Matriz VERDE-GBCe'!G4 -> PyE | D2: ='Matriz VERDE-GBCe'!H4 -> Parcela y Emplazamiento. | X2: EJEMPLO 1
D5: ='Matriz VERDE-GBCe'!H5 -> PyE 01 | E5: =VLOOKUP($D5,'Matriz VERDE-GBCe'!$H$5:$K$49,2,FALSE) -> Proximidad al transporte publico. | F5: =VLOOKUP($D5,'Matriz VERDE-GBCe'!$H$5:$K$49,3,FALSE) -> 0.0220056586 | N5: Municipio
N6: Polígono no residencial
E7: =IF(DG!$E$25=DG!$K$25,"Comprueba las particularidades de este criterio para Naves industriales o logísticas en GEA.","") ->  | S7: SE ADJUNTA | U7: SÍ | V7: NO
S8: NO SE ADJUNTA | U8: NO
E9: ¿Dónde se encuentra el edificio? | S9: NO APLICA
E11: =IF(F9="Polígono no residencial","Número de ocupantes","Número de habitantes del municipio") -> Número de habitantes del municipio | L11: 10000 | X11: 10000
E13: =IF(F9="Polígono no residencial","","Densidad del entorno de la parcela en viv./ha") -> Densidad del entorno de la parcela en viv./ha | L13: 1.5 | X13: 150
E15: Dispone de un servicio propio de desplazamiento de trabajadores
E17: =IF(H15="Sí","",IF(DG!$E$25=DG!$K$25,CONCATENATE(M19,N19,O19,P19,Q19),CONCATENATE(M17,N17,O17,P17,Q17))) -> Se cumple con el requisito de 2 líneas de transporte público en las paradas situadas en un radio de 1000 m | L17: Sí | M17: Se cumple con el requisito de | N17: =IF(F9="Polígono no residencial",IF($H$11>=50,6,IF($H$11<50,4,0)),IF(AND($H$13>100,$H$11>100000),6,IF(OR(AND($H$13>100,AND($H$11<100000,$H$11>20000)),AND($H$13<100,$H$11>20000)),4,2)) ) -> 2 | O17: líneas de transporte público en las paradas situadas en un radio de | P17: =IF(F9="Polígono no residencial",IF($H$11>=50,300,IF($H$11<50,600,0)),IF(AND($H$13>100,$H$11>100000),300,IF(OR(AND($H$13>100,AND($H$11<100000,$H$11>20000)),AND($H$13<100,$H$11>20000)),600,1000))) -> 1000 | Q17: m | X17: SÍ
D19: NOTAS | M19: Se cumple con el requisito de | N19: =IF(F11="Polígono no residencial",IF($H$11>=50,3,IF($H$11<50,2,0)),IF(AND($H$13>100,$H$11>100000),3,IF(OR(AND($H$13>100,AND($H$11<100000,$H$11>20000)),AND($H$13<100,$H$11>20000)),2,1)) ) -> 1 | O19: líneas de transporte público en las paradas situadas en un radio de | P19: =IF(F11="Polígono no residencial",IF($H$11>=50,300,IF($H$11<50,600,0)),IF(AND($H$13>100,$H$11>100000),300,IF(OR(AND($H$13>100,AND($H$11<100000,$H$11>20000)),AND($H$13<100,$H$11>20000)),600,1000))) -> 1000 | Q19: m
D21: DOCUMENTOS JUSTIFICATIVOS | M21: Valoración del criterio:
D23: PyE 01.01 | E23: Parcelario oficial del emplazamiento en formato dwg o dxf, indicando el círculo del diámetro adecuado para el caso de estudio y la situación de las paradas de transporte público. | M23: =IF(H17="sí",F5,0) -> 0
D25: PyE 01.02 | E25: =IF(DG!E100=DG!L98,CONCATENATE(PyE!M25,PyE!N25,PyE!O25),CONCATENATE(PyE!M25,PyE!N25,PyE!P25)) -> Información de los tipos de transporte público y líneas de cada uno de ellos con los horarios de servicio en las paradas incluidas en el diámetro aplicable al caso de estudio vigentes a fecha depuesta en servicio del edificio. | M25: Información de los tipos de transporte público y líneas de cada uno de ellos con los horarios de servicio en las paradas incluidas en el diámetro aplicable al caso de estudio | N25: vigentes a fecha de | O25: visado del proyecto. | P25: puesta en servicio del edificio.
D27: VALORACIÓN DEL CRITERIO | F27: =IF(OR($H17="SÍ",H15="SÍ"),$F5,0) -> 0
D31: ='Matriz VERDE-GBCe'!H6 -> PyE 02 | E31: =VLOOKUP($D31,'Matriz VERDE-GBCe'!$H$5:$K$49,2,FALSE) -> Proximidad a equipamiento y servicios. | F31: =VLOOKUP($D31,'Matriz VERDE-GBCe'!$H$5:$K$49,3,FALSE) -> 0.0220056586
E33: =IF(DG!$E$25=DG!$K$26,"Comprueba las particularidades de este criterio para urbanizaciones en GEA.",IF(DG!$E$25=DG!K25,"Comprueba las particularidades de este criterio para unifamiliares en GEA.","")) -> 
E35: Número de habitantes del municipio | F35: =H11 -> 0 | M35: =IF(AND($H$37>100,$H$35>100000),"A",IF(OR(AND($H$37>100,AND($H$35<100000,$H$35>20000)),AND($H$37<100,$H$35>20000)),"B","C")) -> C | N35: A | O35: B | P35: C
E37: Densidad del entorno de la parcela en viv./ha | F37: =H13 -> 0 | N37: =IF(OR($H$39<3,$H$41<3),0,$F$31) -> 0 | O37: =IF(OR($H$39<3,$H$41<2),0,$F$31) -> 0 | P37: =IF(OR($H$39<2,$H$41<1),0,$F$31) -> 0
E39: Número de equipamientos de PRIORIDAD 1 | L39: 5 | X39: 5
E41: Número de equipamientos de PRIORIDAD 2 | L41: 3 | X41: 3
D43: NOTAS
D45: DOCUMENTOS JUSTIFICATIVOS
D47: PyE 02.01 | E47: =CONCATENATE(M47,N47,O47) -> Parcelario oficial del emplazamiento en formato dwg o dxf, indicando el círculo de diámetro 800 y la situación de Los equipamientos indicando su prioridad y su función. | M47: Parcelario oficial del emplazamiento en formato dwg o dxf, indicando el círculo de diámetro | N47: =IF(DG!E25="unifamiliar",1000,800) -> 800 | O47: y la situación de Los equipamientos indicando su prioridad y su función.
D49: VALORACIÓN DEL CRITERIO | F49: =IF($M35="A",$N37,IF($M35="B",$O37,IF($M35="C",$P37,0))) -> 0
D53: ='Matriz VERDE-GBCe'!H7 -> PyE 03 | E53: =VLOOKUP($D53,'Matriz VERDE-GBCe'!$H$5:$K$49,2,FALSE) -> Facilidades para la bicicleta. | F53: =VLOOKUP($D53,'Matriz VERDE-GBCe'!$H$5:$K$49,3,FALSE) -> 0.0220056586
E55: =IF(DG!E27=DG!K66,"Comprueba las particularidades de este criterio para rehabilitaciones en GEA.",IF(DG!E27=DG!K67,"Comprueba las particularidades de este criterio para edificios existentes en GEA.","")) -> 
E57: =DG!$E$25 -> 0
E59: ¿Se dispone de superficie libre de parcela o espacio de aparcamiento? | F59: NO
E61: Número de aparcabicis requerido
E63: Número de aparcabicis del proyecto | L63: 75 | X63: 75
E65: =IF(F59="no","¿Existe un aparcamiento de bicicletas en vía pública a menos de 300 m de la entrada principal?","") -> ¿Existe un aparcamiento de bicicletas en vía pública a menos de 300 m de la entrada principal? | N65: Oficinas o administratico
N66: Naves industriales o logísticas
E67: Se reserva una franja de 0,5 m de ancho entre el espacio ocupados por las bicis y los viales de circulación tanto peatonal, cómo de vehículos | N67: Edificios comerciales | X67: SÍ
N68: Edificios educacionales
N69: Edificios de equipamiento público
E70: Se ofrece un entorno cómodo para los ciclistas con espacio suficiente para realizar las maniobras necesarias | N70: Hotelero | X70: SÍ
N71: Servicios de restauración
N72: Mixtos
E73: La instalación cumple con las normativas de accesibilidad de peatones y personas con movilidad reducida. | X73: SÍ
E76: Los paracabaicis están anclados a una estructura permanente y permiten el anclaje de la bicicleta en dos puntos, al menos una rueda y un bastidor. | X76: SÍ
E79: El espacio de aparcamiento está debidamente iluminado y ofrece sensación de seguridad. | X79: SÍ
E81: El aparcabicis previene robos o actos de vandalismo, en caso de desanclar el elemento de aparcamiento del suelo, las bicicletas no podrán ser separadas de él sin romper el candado. | X81: SÍ
D84: NOTAS
D86: DOCUMENTOS JUSTIFICATIVOS
D88: PyE 03.01 | E88: Plano con la situación de los aparcabicis y la justificación de que se cumplen las distancias de seguridad
D90: PyE 03.02 | E90: Detalle o ficha técnica de los aparcabicis seleccionados
D92: PyE 03.03 | E92: Copia de las facturas de los aparcabicis (pudiendo ocultar el precio)
D94: PyE 03.04 | E94: Fotografías de obra construida de los aparcabicis y su relación con el entorno
D96: PyE 03.05 | E96: Memoria de cálculos justificativos del número de aparcamientos en función de los ocupantes del edificio
D98: VALORACIÓN DEL CRITERIO | F98: =IF(AND(F59="No",H65="Sí"),F53*0.5,IF(AND(H63>=F61,H67="Sí",H70="Sí",H73="Sí",H76="Sí",H79="Sí",H81="Sí"),F53,0)) -> 0
D102: ='Matriz VERDE-GBCe'!H8 -> PyE 04 | E102: =VLOOKUP($D102,'Matriz VERDE-GBCe'!$H$5:$K$49,2,FALSE) -> Capacidad de carga de vehículos eléctricos. | F102: =VLOOKUP($D102,'Matriz VERDE-GBCe'!$H$5:$K$49,3,FALSE) -> 0.0116315624
E104: =IF(DG!E25=DG!K25,"¿Se cuenta en la parcela con, al menos, una plaza con carga para vehículos eléctricos?",IF(DG!E25=DG!K26,"¿Se cuenta con una plaza con carga para vehículos eléctricos para cada vivienda?","¿El edificio cuenta con aparcamiento privado?")) -> ¿El edificio cuenta con aparcamiento privado?
E106: Número de plazas de aparcamiento
E108: Número de plazas con carga para vehículos eléctricos
E110: Número de plazas con preinstalación para cargar vehículos eléctricos
E112: Porcentaje de plazas con carga para vehículos eléctricos | F112: =IF(H106="",0,(H108/H106)) -> 0 | M112: =IF(F112="",0,IF(F$112<0.2,0,IF(F$112>=0.4,F102/2,(F$112*100-20)/20*F102/2))) -> 0
E114: Porcentaje de plazas con pre-instalación para cargar vehículos eléctricos | F114: =IF(H106="",0,(H110/H106)) -> 0 | M114: =IF(F114="",0,IF(F$114<=0.4,0,IF(F$114>=0.7,F102/2,(F$114*100-40)/30*F102/2))) -> 0
D116: NOTAS
D118: DOCUMENTOS JUSTIFICATIVOS
D120: PyE 04.01 | E120: Extracto de la memoria del proyecto donde se indique el número de plazas de aparcamiento y cuántas de ellas tienen carga para vehículos eléctricos o preinstalación.
D122: VALORACIÓN DEL CRITERIO | F122: =M112+M114 -> 0
D126: ='Matriz VERDE-GBCe'!H9 -> PyE 05 | E126: =VLOOKUP($D126,'Matriz VERDE-GBCe'!$H$5:$K$49,2,FALSE) -> Clasificación de RSU. | F126: =VLOOKUP($D126,'Matriz VERDE-GBCe'!$H$5:$K$49,3,FALSE) -> 0.01257466206
D128: Espacio en planta baja para almacen de trastos:
E130: Superficie mínima del almacen de trastos | L130: 23 | M130: =IF(DG!E27="rehabilitación","RH",IF(DG!E27="NUEVA EDIFICACIÓN","NE","")) ->  | N130: =IF(DG!E25="unifamiliar","Uni", "Res") -> Res | Q130: NE | X130: 23
E132: Diámetro del mayor círculo que se puede inscribir en el almacén | M132: =IF(AND($H130>=7,$H132>=1.5),1,0) -> 0 | N132: =IF(M132=0,0,F126*0.25) -> 0 | X132: 30
D134: Espacio en cada planta para conenedores de residuos:
E136: Existe en cada planta un espacio reservado para contenedores de aquellas fracciones de residuos generados habitualmente en el edificio | N136: =IF(OR(H$136="",H$139="",H$136="No",H$139="No"),0,(F126*0.25)) -> 0
E139: Estos contenedores disponen de la señalética adecuada
D141: Sistema de revalorización de residuos en la parcela:
E143: Existe un sistema de revalorización de los residuos generados en el edificio | M143: =IF(H143="sí",1,0) -> 0 | N143: =IF(M$143=0,0,F126*0.25) -> 0 | X143: NO
D145: Otras medidas de mejora
E147: Se han diseñado medidas de mejora en el edificio que favorezcan la reducción, clasificación o recogida de resíduos. | M147: =IF(H147="sí",1,0) -> 0 | N147: =IF(M$147=0,0,F126*0.25) -> 0 | X147: NO
D150: NOTAS
D152: DOCUMENTOS JUSTIFICATIVOS
D154: PyE 05.01 | E154: Plano de la planta de edificio donde se sitúe el espacio para contenedores, su superficie y el círculo inscrito del radio solicitado.
D156: PyE 05.02 | E156: Descripción y fichas técnicas del sistema de revalorización de residuos
D158: PyE 05.03 | E158: Plano en el que se sitúe el local destinado al almacenamiento de muebles y enseres hasta su traslado.
D160: PyE 05.04 | E160: Memoria justificativa de la medida adoptada para incentivar la reducción, separación o reciclado de RSU
D162: PyE 05.05 | E162: Copia de las facturas de los sistemas implantados (pudiendo ocultar el precio).
D164: PyE 05.06 | E164: Fotografías de obra construida que justifiquen el cumplimiento de las medidas. Deberán aparecer los espacios para contenedores o almacenaje con sus correspondientes carteles y, si hubiera, los sistemas de revalorización instalados, así como la señalética adecuada como espacio para contenedores de residuos.
D166: VALORACIÓN DEL CRITERIO | F166: =SUM($N132+N136+$N143+$N147) -> 0
D170: ='Matriz VERDE-GBCe'!H10 -> PyE 06 | E170: =VLOOKUP($D170,'Matriz VERDE-GBCe'!$H$5:$K$49,2,FALSE) -> Gestión y Restauración del hábitat. | F170: =VLOOKUP($D170,'Matriz VERDE-GBCe'!$H$5:$K$49,3,FALSE) -> 0
E172: ¿Alguna de las especies vegetales plantadas en la parcela o el edificio está recogida en el catálogo de especies invasoras del Ministerio de Medio Ambiente? | L172: 1000 | X172: 1000
E175: Superficie ajardinada de la parcela y el edificio | F175: =DG!$E43 -> 0 | L175: 1000 | X175: 1000
E177: Superficie cubierta por plantas autóctonas | L177: 700 | X177: 800
E179: Porcentaje de la superficie ajardinada ocupada por plantas autóctonas | F179: =IF(OR(F175=0,F175=""),0,H177/F175) -> 0
D181: NOTAS
D183: DOCUMENTOS JUSTIFICATIVOS
D185: PyE 06.01 | E185: Plano de jardinería en el que se incluya el cuadro de cálculo indicando las especies utilizadas, la superficie ocupada por las mismas y si son autóctonas o adaptadas o no.
D187: PyE 06.02 | E187: Copia de las facturas (pudiendo ocultar el precio) donde se indique la o las especies plantadas y la superficie ocupadas por las mismas o las unidades entregadas
D189: PyE 06.03 | E189: Fotografías de la superficie ajardinada donde se puedan apreciar las especies plantadas y la superficie ocupada por las mismas, serán necesarias fotografías generales y de detalle
D191: PyE 06.04 | E191: Informe de Evaluador en el que se garantice que ninguna especie de las plantadas está recogida en el listado de especies invasoras del Ministerio de Medio Ambiente.
D193: VALORACIÓN DEL CRITERIO | F193: =IF(OR(H172="Sí",F179=""),0,IF(F179<0.3,0,IF(F179>0.8,F170,F170*((F179-0.3)*100/50)))) -> 0
D197: ='Matriz VERDE-GBCe'!H11 -> PyE 07 | E197: =VLOOKUP($D197,'Matriz VERDE-GBCe'!$H$5:$K$49,2,FALSE) -> Uso de plantas para crear sombras. | F197: =VLOOKUP($D197,'Matriz VERDE-GBCe'!$H$5:$K$49,3,FALSE) -> 0.02342030808
E199: ¿Existen elementos vegetales que sombreen las fachadas este y/u oeste? | L199: SÍ
E201: Porcentaje de fachada OESTE sombreada | L201: 50 | M201: =IF(OR(H199="",H199="no"),0,IF(H201<0.2,0,IF(H201>0.6,0.7*F197,F197*0.7*((H201-0.2)*100/40)))) -> 0
E203: Porcentaje de fachada ESTE sombreada | L203: 60 | M203: =IF(OR(H199="",H199="no"),0,IF(H203<0.2,0,IF(H203>0.6,0.3*F197,F197*0.3*((H203-0.2)*100/40)))) -> 0
D205: NOTAS
D207: DOCUMENTOS JUSTIFICATIVOS
D209: PyE 07.01 | E209: Plano de planta de la parcela donde se sitúen los árboles con potencial de sombreamiento para las fachadas este y oeste indicando las especies de que se trata.
D211: PyE 07.02 | E211: Plano de fachada este y oeste en el que se indique la superficie sombreada por los árboles.
D213: PyE 07.03 | E213: Memoria de sombreamiento donde se justifique el cumplimiento de los criterios establecidos..
D215: PyE 07.04 | E215: Copia de las facturas (pudiendo ocultar el precio) donde se indique la o las especies plantadas y la superficie ocupadas por las mismas o las unidades entregadas.
D217: PyE 07.05 | E217: Fotografías de la superficie ajardinada donde se puedan apreciar las especies plantadas y la superficie ocupada por las mismas, serán necesarias fotografías generales y de detalle.
D219: VALORACIÓN DEL CRITERIO | F219: =M203+M201 -> 0
D223: ='Matriz VERDE-GBCe'!H12 -> PyE 08 | E223: =VLOOKUP($D223,'Matriz VERDE-GBCe'!$H$5:$K$49,2,FALSE) -> Efecto isla de calor. | F223: =VLOOKUP($D223,'Matriz VERDE-GBCe'!$H$5:$K$49,3,FALSE) -> 0.01650424395
D225: Porcentaje de superficie libre de parcela y cubierta que evita la isla de calor
E227: Superficie libre de parcela | F227: =DG!$E41 -> 0 | L227: 1500
E229: Superficie de cubierta | L229: 700
E231: Superficie con pavimento permeable | L231: 500
E233: Superficies sombreadas por elementos de acabados de color claro | L233: 300
E235: Superficies que cumplen el límite de ISR | L235: 500
E237: ¿Se aportan documentos que justifiquen el ISR? | L237: 500
E239: Porcentaje de superficie libre de parcela más cubierta que evitan la isla de calor | F239: =IF(F227+H229=0,0,(H231+H233+H235)/(F227+H229)) -> 0 | M239: =IF(F239="","",IF(F239<0.4,0,IF(F239>0.7,0.7*F223,F223*0.7*((F239-0.4)*100/30)))) -> 0
D241: Porcentaje de superficie de fachadas este, sur y oeste que evita la isla de calor
E243: Superficies de fachada E-S-O | L243: 700
E245: Superficies de fachada E-S-O de colores claros, sombreadas o cubiertas por vegetación | L245: 500
F247: =IF(OR(H243=0,H243=""),0,H245/H243) -> 0 | M247: =IF(F247="",0,IF(F247<0.4,0,IF(F247>0.7,0.3*F223,F223*0.3*((F247-0.4)*100/30)))) -> 0
D249: NOTAS
D251: DOCUMENTOS JUSTIFICATIVOS
D253: PyE 08.01 | E253: Plano de urbanización indicando el límite de las superficies en parcela y cubierta que estén ajardinadas, sombreadas, con un acabado permeable o con un ISR superior a 70.
D255: PyE 08.02 | E255: Memoria del cálculo del porcentaje de la superficie que evita la isla de calor en zona libre de parcela y cubierta.
D257: PyE 08.03 | E257: Detalle constructivo de las zonas ajardinadas donde se detalle el espesor de tierra previsto.
D259: PyE 08.04 | E259: Detalle constructivo de las zonas con pavimento permeable donde se detalle el espesor y composición de la base del pavimento.
D261: PyE 08.05 | E261: Memoria del cálculo del porcentaje de la superficie de fachadas este, sur y oeste que evita la isla de calor.
D263: PyE 08.06 | E263: Estudio de soleamiento tanto de la superficie libre de parcela y cubiertas, como de las fachadas este, sur y oeste.
D265: PyE 08.07 | E265: Justificación del IRS de los materiales de acabado
D267: VALORACIÓN DEL CRITERIO | F267: =IFERROR(IF(OR(H235="",H235=0),M239+$M247,IF(H237="no",0.9*(M239+M247),M239+M247)),0) -> 0
C270: <
D271: ='Matriz VERDE-GBCe'!H13 -> PyE 09 | E271: =VLOOKUP($D271,'Matriz VERDE-GBCe'!$H$5:$K$49,2,FALSE) -> Contaminación lumínica. | F271: =VLOOKUP($D271,'Matriz VERDE-GBCe'!$H$5:$K$49,3,FALSE) -> 0.01257466206 | M271: E1 | N271: ≤ 1% | O271: 0.01 | P271: 0.01
M272: E2 | N272: ≤ 5% | O272: 0.02 | P272: 0.05
E273: Zona de protección lumínica de la parcela | L273: E2 | M273: E3 | N273: ≤ 15% | O273: 0.03 | P273: 0.15
M274: E4 | N274: ≤ 25% | O274: 0.05 | P274: 0.25
E275: FHS límite para el área de protección lumínica | F275: =IF(H273="","",VLOOKUP(H273,M271:N274,2,FALSE)) -> 
L277: 3 | P277: =VLOOKUP(H273,M271:P274,4,FALSE) -> 
O278: 0.05
E279: Porcentaje de mejora respecto a la exigencia normativa | F279: =IF(OR(H277="",H277>P277),0,1-(H277/P277)) -> 
D281: NOTAS
D283: DOCUMENTOS JUSTIFICATIVOS
D285: PyE 09.01 | E285: Plano de parcela con localización de la luminarias exteriores e indicación del tipo de luminaria.
D287: PyE 09.02 | E287: Curvas fotométricas de las luminarias empleadas o documento técnico donde aparezca el FHS.
D289: PyE 09.03 | E289: Identificación y justificación de la zona de protección lumínica.
D291: VALORACIÓN DEL CRITERIO | F291: =IF(F275="",0,IF(F279<0.2,0,IF(F279>0.6,F271,F271*((F279-0.2)*100/40)))) -> 0
F296: VALORACIÓN ÁREA
F298: SUBTOTAL | H298: =IFERROR(F27+F49+F98+F122+F166+F193+F219+F267+F291,"") -> 0
F300: SOBRE | H300: =VLOOKUP(B$2,'Matriz VERDE-GBCe'!$G$2:$K$49,4,FALSE) -> 0.1427224143
F306: SÍ | H306: x
F307: NO

Sheet EyA
B2: ='Matriz VERDE-GBCe'!G14 -> EyA | D2: ='Matriz VERDE-GBCe'!H14 -> Energía y Atmósfera.
D5: ='Matriz VERDE-GBCe'!H15 -> EyA 01 | E5: =VLOOKUP($D5,'Matriz VERDE-GBCe'!$H$5:$K$49,2,FALSE) -> Demanda de calefacción y refrigeración. | F5: =VLOOKUP($D5,'Matriz VERDE-GBCe'!$H$5:$K$49,3,FALSE) -> 0.08487896888 | P5: Sí | S5: SE ADJUNTA | U5: SÍ | V5: NO
P6: No | S6: NO SE ADJUNTA
E7: =IF(DG!E$27=DG!K$68,"Ponte en contacto con GBCe para fijar los datos a introducir.","") ->  | S7: NO APLICA
E9: ¿Se ha utilizado un método simplificado para la calificación energética del edificio?
U10: NO
E11: Zona climática de la localidad | F11: =DG!$E$16 ->  | M11: NE | N11: 0 | O11: 0.2 | P11: 0.32 | Q11: 0.39 | R11: 0.446 | S11: 0.5
D13: =DG!E27 -> 0 | N13: 0 | O13: 0.2 | P13: 0.4 | Q13: 0.6 | R13: 0.8 | S13: 1
E15: Demanda del edificio de referencia en kWh/m2 | M15: RH y EX | N15: 0 | O15: 0.05 | P15: 0.072 | Q15: 0.085 | R15: 0.093 | S15: 0.1
E17: Demanda del proyecto en kWh/m2 | N17: 0 | O17: 0.2 | P17: 0.4 | Q17: 0.6 | R17: 0.8 | S17: 1
E19: Porcentaje de reducción de la demanda de calefacción | F19: =IF(OR($H15="",$H17=""),0,1-($H17/$H15)) -> 0 | L19: =IFERROR(IF(F19>N11,IF(F19>O11,IF(F19>P11,IF(F19>Q11,IF(F19>R11,IF(F19>S11,S13,R13+((S13-R13)*(F19-R11)/(S11-R11))),Q13+((R13-Q13)*(F19-Q11)/(R11-Q11))),P13+((Q13-P13)*(F19-P11)/(Q11-P11))),O13+((P13-O13)*(F19-O11)/(P11-O11))),N13+((O13-N13)*(F19-N11)/(O11-N11))),0),"") -> 0
D21: NOTAS | N21: =IF(H15="","",IF(D13="Nueva Edificación",L19*F5,L23*F5)) -> 
D23: DOCUMENTOS JUSTIFICATIVOS | L23: =IFERROR(IF(F19>N15,IF(F19>O15,IF(F19>P15,IF(F19>Q15,IF(F19>R15,IF(F19>S15,S17,R17+((S17-R17)*(F19-R15)/(S15-R15))),Q17+((R17-Q17)*(F19-Q15)/(R15-Q15))),P17+((Q17-P17)*(F19-P15)/(Q15-P15))),O17+((P17-O17)*(F19-O15)/(P15-O15))),N17+((O17-N17)*(F19-N15)/(O15-N15))),0),"") -> 0
D25: EyA 01.01 | E25: Documento justificativo con los parámetros empleados en la simulación energética.
D27: EyA 01.02 | E27: Archivos completos del programa de simulación empleado para realizar la justificación del criterio, incluyendo la simulación del edificio de referencia definido en el apéndice D del CTE DB HE 1
D29: EyA 01.03 | E29: Informe de verificación de requisitos de CTE-HE1 generado por la herramienta de calificación energética empleada o resultado de una simulación horaria realizada con un programa alternativo junto con el justificante de registro en la comunidad autónoma en que se encuentra el edificio.
D31: EyA 01.04 | E31: Ensayo Blower-door test conforme a la norma UNE-EN 13829 de 2002 del edificio en fase de uso que justifique que la estanqueidad al aire presenta una desviación inferior al 5% respecto a la indicada en la calificación energética.
D33: VALORACIÓN DEL CRITERIO | F33: =IF(H15="",0,IF(OR(H31="",H31="No se entrega"),0.9*(IF(H9="Sí",N21*0.8,N21)),IF(H9="Sí",N21*0.8,N21))) -> 0
B35: 33:6633:7133:7333:7433:7333:72E6433:6333:7133:7033:6933:6833:6733:6633:6533:6633:67
D37: ='Matriz VERDE-GBCe'!H16 -> EyA 02 | E37: =VLOOKUP($D37,'Matriz VERDE-GBCe'!$H$5:$K$49,2,FALSE) -> Consumo de energía primaria no renovable. | F37: =VLOOKUP($D37,'Matriz VERDE-GBCe'!$H$5:$K$49,3,FALSE) -> 0.05029864822 | V37: NO
E39: =IF(DG!E$27=DG!K$68,"Introduce los datos de la simulación de la ampliación en OBRA NUEVA y del edificio existente o rehabilitado en REHABILITACIÓN.","") -> 
U40: NO
E41: Zona climática de la localidad | F41: =DG!$E$16 ->  | M41: TODOS | N41: 0 | O41: 0.2 | P41: 0.32 | Q41: 0.39 | R41: 0.446 | S41: 0.5
D43: =DG!E27 -> 0 | N43: 0 | O43: 0.2 | P43: 0.4 | Q43: 0.6 | R43: 0.8 | S43: 1
E45: =IF(D43="Nueva edificación", "Nivel inferior de la calificación B de consumo de energía primaria no renovable en kWh/m2", "Consumo de energía primaria no renovable del edificio de referencia en kWh/m2.") -> Consumo de energía primaria no renovable del edificio de referencia en kWh/m2.
E47: Consumo de energía primaria no renovable del proyecto en kWh/m2
E49: Porcentaje de reducción del consumo de energía primaria no renovable. | F49: =IF(OR($H45="",$H47=""),0,1-($H47/$H45)) -> 0 | L49: =IFERROR(IF(F49>N41,IF(F49>O41,IF(F49>P41,IF(F49>Q41,IF(F49>R41,IF(F49>S41,S43,R43+((S43-R43)*(F49-R41)/(S41-R41))),Q43+((R43-Q43)*(F49-Q41)/(R41-Q41))),P43+((Q43-P43)*(F49-P41)/(Q41-P41))),O43+((P43-O43)*(F49-O41)/(P41-O41))),N43+((O43-N43)*(F49-N41)/(O41-N41))),0),"") -> 0 | N49: =IF(H45="","",IF(H9="Sí",0.8*L49*F37,L49*F37)) -> 
E51: ¿Se ha realizado la puesta en marcha de las instalaciones según RITE y los resultados de consumo difieren en menos de un 10% los de la calificación energética?
D54: NOTAS
D56: DOCUMENTOS JUSTIFICATIVOS
D58: EyA 01.01 | E58: Archivos completos del programa de simulación empleado para realizar la justificación del criterio.
D60: EyA 01.02 | E60: Informe de verificación de requisitos de CTE DB HE0 generado por la herramienta de calificación energética empleada o resultado de una simulación horaria realizada con un programa alternativo junto con el justificante de registro en la comunidad autónoma en la que se encuentra el edificio.
D62: EyA 01.03 SOLO NE | E62: Archivos completos del programa de simulación empleado para el edificio de referencia según el anexo D del CTE DB HE1.
D64: EyA 01.04 | E64: Esquemas de principio de las instalaciones del edificio con mención expresa de todos y cada uno de los equipos, anexando las correspondientes fichas técnicas de los fabricantes.
D66: EyA 01.05 | E66: Protocolo de puesta en marcha de las instalaciones, incluidas las de producción de energía, debidamente cumplimentado según artículo 22 del RITE 2007 tal y cómo se indica en la guía.
D68: VALORACIÓN DEL CRITERIO | F68: =IF(H45="",0,IF(DG!E27=DG!K37,N49,IF(OR(H51="No",H51=""),0,IF(H9="Sí",N49*0.8,N49)))) -> 0
B70: 33:6633:7133:7333:7433:7333:72E6433:6333:7133:7033:6933:6833:6733:6633:6533:6633:67
D72: ='Matriz VERDE-GBCe'!H17 -> EyA 03 | E72: =VLOOKUP($D72,'Matriz VERDE-GBCe'!$H$5:$K$49,2,FALSE) -> Emisiones de CO2 | F72: =VLOOKUP($D72,'Matriz VERDE-GBCe'!$H$5:$K$49,3,FALSE) -> 0.03143665514 | U72: SÍ | V72: NO
E74: =IF(DG!E$27=DG!K$68,"Introduce los datos de la simulación de la ampliación en OBRA NUEVA y del edificio existente o rehabilitado en REHABILITACIÓN.","") -> 
U75: NO
E76: Zona climática de la localidad | F76: =DG!$E$16 ->  | M76: TODOS | N76: 0 | O76: 0.2 | P76: 0.32 | Q76: 0.39 | R76: 0.446 | S76: 0.5
D78: =DG!E27 -> 0 | N78: 0 | O78: 0.2 | P78: 0.4 | Q78: 0.6 | R78: 0.8 | S78: 1
E80: =IF(D78="Nueva edificación", "Nivel inferior de la calificación B de emisiones de CO2 en kgCO2 eq./m2", "Emisiones de CO2 en kgCO2 eq./m2.") -> Emisiones de CO2 en kgCO2 eq./m2.
E82: Emisiones de CO2 del proyecto en kgCO2 eq./m2.
E84: Porcentaje de reducción de las emisiones de CO2. | F84: =IF(OR($H80="",$H82=""),0,1-($H82/$H80)) -> 0 | L84: =IF(F84>N76,IF(F84>O76,IF(F84>P76,IF(F84>Q76,IF(F84>R76,IF(F84>S76,S78,R78+((S78-R78)*(F84-R76)/(S76-R76))),Q78+((R78-Q78)*(F84-Q76)/(R76-Q76))),P78+((Q78-P78)*(F84-P76)/(Q76-P76))),O78+((P78-O78)*(F84-O76)/(P76-O76))),N78+((O78-N78)*(F84-N76)/(O76-N76))),0) -> 0 | N84: =IF(H80="","",L84*F72) -> 
D86: NOTAS
D88: DOCUMENTOS JUSTIFICATIVOS
D90: EyA 01.01 | E90: Archivos completos del programa de simulación empleado para realizar la justificación del criterio.
D92: EyA 01.02 | E92: Informe de verificación de requisitos de CTE DB HE0 generado por la herramienta de calificación energética empleada o resultado de una simulación horaria realizada con un programa alternativo junto con el justificante de registro en la comunidad autónoma en la que se encuentra el edificio.
D94: EyA 01.03 SOLO NE | E94: Archivos completos del programa de simulación empleado para el edificio de referencia según el anexo D del CTE DB HE1.
D96: EyA 01.04 | E96: Esquemas de principio de las instalaciones del edificio con mención expresa de todos y cada uno de los equipos, anexando las correspondientes fichas técnicas de los fabricantes.
D98: EyA 01.05 | E98: Protocolo de puesta en marcha de las instalaciones, incluidas las de producción de energía, debidamente cumplimentado según artículo 22 del RITE 2007 tal y cómo se indica en la guía.
D100: VALORACIÓN DEL CRITERIO | F100: =IF(H80="",0,IF(H9="Sí",N84*0.8,N84)) -> 0
D104: ='Matriz VERDE-GBCe'!H18 -> EyA 04 | E104: =VLOOKUP($D104,'Matriz VERDE-GBCe'!$H$5:$K$49,2,FALSE) -> Consumo en sistemas de comunicación mecánicos. | F104: =VLOOKUP($D104,'Matriz VERDE-GBCe'!$H$5:$K$49,3,FALSE) -> 0.01414649481
D106: Ascensores y montacargas:
E108: El ascensor cuenta con una clasificación, al menos B, según la norma UNE 25745-2
E110: Se cuenta con un paquete de eficiencia energética para los sistemas de comunicación mecánicos.
D112: NOTAS
D114: DOCUMENTOS JUSTIFICATIVOS
D116: EyA 04.01 | E116: Clasificación del ascensor según la norma UNE 25745-2
D118: EyA 04.02 | E118: Justificación de la existencia de un paquete ahorro conforme el método de cálculo
D120: VALORACIÓN DEL CRITERIO | F120: =IF($H108="sí",$F104,IF(H110="Sí",F104*0.5,0)) -> 0
D124: ='Matriz VERDE-GBCe'!H19 -> EyA 05 | E124: =VLOOKUP($D124,'Matriz VERDE-GBCe'!$H$5:$K$49,2,FALSE) -> Elección responsable de refrigerantes. | F124: =VLOOKUP($D124,'Matriz VERDE-GBCe'!$H$5:$K$49,3,FALSE) -> 0.02514932411
E126: Valor TEWI de la instalación de referencia.
E128: Valor TEWI de la instalación proyectada.
E130: Porcentaje en que el TEWI proyectado supera al de referencia | F130: =IF(OR($H126="",$H128=""),0,(($H128/$H126)-1)) -> 0 | L130: =IF(OR(H126="",H128=""),"",IF(F130>=0.4,0,IF(F130<=0,1,((F130/0.4))))) -> 
E132: Existe un protocolo de actuación en caso de fugas.
D134: NOTAS
D136: DOCUMENTOS JUSTIFICATIVOS
D138: PyE 05.01 | E138: Documentación técnica del refrigerante empleado que justifique su potencial de calentamiento global (GWP)
D140: PyE 05.02 | E140: Cálculo del TEWI (Total Equivalent Warming Impact)
D142: PyE 05.03 | E142: Protocolo de actuación en caso de fugas
D144: VALORACIÓN DEL CRITERIO | F144: =IF(AND(H126="",H132=""),0,(L130*F124*0.6)+IF(H132="sí",F124*0.4,0)) -> 0
F148: VALORACIÓN ÁREA
F150: SUBTOTAL | H150: =F33+F68+F100+F120+F144 -> 0
F152: SOBRE | H152: =VLOOKUP(B$2,'Matriz VERDE-GBCe'!$G$5:$K$49,4,FALSE) -> 0.2310594153
F158: SÍ | H158: x
F159: NO

Sheet RN
B2: ='Matriz VERDE-GBCe'!G21 -> RN | D2: ='Matriz VERDE-GBCe'!H21 -> Recursos Naturales.
M3: Coste
D5: ='Matriz VERDE-GBCe'!H22 -> RN 01 | E5: =VLOOKUP($D5,'Matriz VERDE-GBCe'!$H$5:$K$49,2,FALSE) -> Consumo de agua en aparatos sanitarios. | F5: =VLOOKUP($D5,'Matriz VERDE-GBCe'!$H$5:$K$49,3,FALSE) -> 0.03143665514 | S5: SE ADJUNTA | U5: SÍ | V5: NO
S6: NO SE ADJUNTA | U6: NO
S7: NO APLICA
U8: NO
E9: Ir a la hoja de cálculo del criterio
U10: NO
E11: Consumo de agua en sanitarios de referencia | H11: ='RN 01'!S42 -> 0
U12: NO
E13: Consumo de agua en sanitarios del proyecto | H13: ='RN 01'!S26 -> 0
U14: NO
E15: Porentaje de reducción del consumo de agua en aparatos sanitarios | H15: ='RN 01'!I45 -> 0
D17: NOTAS
D19: DOCUMENTOS JUSTIFICATIVOS
D21: RN 01.01 | E21: Fichas técnicas con los caudales de los aparatos sanitarios aportados por el fabricante.
D23: RN 01.02 | E23: Pestaña de ayuda RN 01
D25: VALORACIÓN DEL CRITERIO | F25: =IF($H15="",0,IF($H15<0.1,0,IF($H15>0.3,$F5,(((($H15*100)-10)/20)*$F5)))) -> 0
D29: ='Matriz VERDE-GBCe'!H23 -> RN 02 | E29: =VLOOKUP($D29,'Matriz VERDE-GBCe'!$H$5:$K$49,2,FALSE) -> Necesidades de riego en jardines. | F29: =VLOOKUP($D29,'Matriz VERDE-GBCe'!$H$5:$K$49,3,FALSE) -> 0
E31: Ir a la hoja de cálculo del criterio
E33: ¿Existen zonas ajardinadas con una superficie mayor a 20 m2? | L33: SI
E35: Necesidades de agua para riego de referencia (l/m2 año) | H35: ='RN 02'!R29 -> 
E37: Necesidades de agua para riego del proyecto (l/m2 año) | H37: ='RN 02'!F29 -> 
E39: Porcentaje de reducción de las necesidades de riego | H39: ='RN 02'!Z29 -> 
D41: NOTAS
D43: DOCUMENTOS JUSTIFICATIVOS
L44: 0.4
D45: RN 02.01 | E45: Plano de jardinería con indicación clara de las especies vegetales a plantar y su superficie de ocupación y sistema de riego empleado en cada zona
L46: 0.4
D47: RN 02.02 | E47: Pestaña de ayuda RN 02
D49: VALORACIÓN DEL CRITERIO | F49: =IF(OR($H39="",H33="No",H33=""),0,IF($H39<0.2,0,IF($H39>0.8,$F29,(((($H39*100)-20)/60)*$F29)))) -> 
D53: ='Matriz VERDE-GBCe'!H24 -> RN 03 | E53: =VLOOKUP($D53,'Matriz VERDE-GBCe'!$H$5:$K$49,2,FALSE) -> Consumo de agua en elementos singulares | F53: =VLOOKUP($D53,'Matriz VERDE-GBCe'!$H$5:$K$49,3,FALSE) -> 0.01886199308
E55: ¿Existe un sistema de recogida y reutilización de aguas grises que cubra el 80% de las aguas grises producidas? | L55: SI
D58: NOTAS
D60: DOCUMENTOS JUSTIFICATIVOS
D62: RN 03.01 | E62: Memoria de proyecto del sistema de recogida de aguas grises y pluviales donde se justifique que los sistemas de piscinas, jacuzzis y otros elementos consumidores de agua, están conectados y abastecen al sistema que debe cubrir al menos, el 80% de las necesidades de agua susceptibles de ser cubiertas con aguas no potables.
D64: VALORACIÓN DEL CRITERIO | F64: =IF($H55="sí",$F53,0) -> 0
D68: ='Matriz VERDE-GBCe'!H25 -> RN 04 | E68: =VLOOKUP($D68,'Matriz VERDE-GBCe'!$H$5:$K$49,2,FALSE) -> Uso de agua no potable. | F68: =VLOOKUP($D68,'Matriz VERDE-GBCe'!$H$5:$K$49,3,FALSE) -> 0.01886199308
E70: Recuperación mensual de aguas grises del sistema (m3)
E72: Volumen de acumulación de aguas grises (m3)
E74: Superficie de captación de aguas pluviales en m2
E76: Coeficiente de rendimiento de la superficie de captación (e)
E78: Rendimiento hidráulico del filtro (h)
E80: Volumen del aljibe de aguas pluviales (m3)
E82: Porcentaje de necesidades de agua cubiertas con agua no potable | H82: ='RN 04'!R31 -> 0
D84: NOTAS
D86: DOCUMENTOS JUSTIFICATIVOS
D88: RN 04.01 | E88: Proyecto del sistema de recogida, almacenamiento y distribución del aguas pluviales.
D90: RN 04.02 | E90: Proyecto del sistema de recogida, almacenamiento y distribución de aguas grises
D92: RN 04.03 | E92: Memoria del cálculo realizado para obtención de los datos necesarios para evaluar el criterio siguiendo el método de evaluación descrito en la guía.
D94: RN 04.04 | E94: Informe de puesta en marcha de las instalaciones de recogida, almacenamiento y distribución de aguas grises y/o pluviales.
D96: VALORACIÓN DEL CRITERIO | F96: =IF($H82=0,0,IF(H82<0.2,0,IF(H82>0.9,$F68,((((H82*100)-20)/70)*$F68)))) -> 0
E100: Materiales
E102: Vida útil de referencia en años | M102: =IF(OR(H102="",H102<50,H102>75),50,H102) -> 50
E104: Unidad Funcional Equivalente (UFE) | M104: masa
M105: coste
E106: =IF(H104="coste", "Coste en € total de los materiales de la obra, sin incluir componentes mecánicos, eléctricos o de fontanería, etc. y elementos especiales como ascensores u otro equipamiento.","Kilogramos totales de los materiales de la obra, sin incluir componentes mecánicos, eléctricos o de fontanería, etc. y elementos especiales como ascensores u otro equipamiento.") -> Kilogramos totales de los materiales de la obra, sin incluir componentes mecánicos, eléctricos o de fontanería, etc. y elementos especiales como ascensores u otro equipamiento.
E109: =IF(H104="coste", "Coste en € total de los materiales de la obra incluyendo componentes mecánicos, eléctricos o de fontanería, etc. y elementos especiales como ascensores u otro equipamiento.","Kilogramos totales de los materiales de la obra incluyendo componentes mecánicos, eléctricos o de fontanería, etc. y elementos especiales como ascensores u otro equipamiento.") -> Kilogramos totales de los materiales de la obra incluyendo componentes mecánicos, eléctricos o de fontanería, etc. y elementos especiales como ascensores u otro equipamiento.
E112: =IF(H104="coste", "Coste en € total de madera o derivados de madera materiales empleados en la obra como encofrados de hormigón o palets.","Kilogramos totales de madera o derivados de madera materiales empleados en la obra como encofrados de hormigón o palets.") -> Kilogramos totales de madera o derivados de madera materiales empleados en la obra como encofrados de hormigón o palets.
M114: coste
D117: ='Matriz VERDE-GBCe'!H26 -> RN 05 | E117: =VLOOKUP($D117,'Matriz VERDE-GBCe'!$H$5:$K$49,2,FALSE) -> Uso de materiales reciclados. | F117: =VLOOKUP($D117,'Matriz VERDE-GBCe'!$H$5:$K$49,3,FALSE) -> 0.01571832757
E119: =CONCATENATE("Contenido en ",H104," de materiales reciclados pre-consumo.") -> Contenido en de materiales reciclados pre-consumo. | L119: 0.12 | M119: de materiales reciclados pre-consumo.
E121: =CONCATENATE("Contenido en ",H106," de materiales reciclados post-consumo.") -> Contenido en de materiales reciclados post-consumo. | L121: 0.12 | M121: de materiales reciclados post-consumo.
E123: =CONCATENATE("Porcentaje en ",H104," de materiales reciclados") -> Porcentaje en de materiales reciclados | H123: =IF(OR(H106=0,H106=""),"",((0.5*H119+H121)/H106)) -> 
D125: NOTAS
D127: DOCUMENTOS JUSTIFICATIVOS
L128: 0.4
D129: RN 05.01 | E129: Documentos de presupuesto de contrata desglosado en materiales (descontando la mano de obra) donde se detallen los materiales reciclados.
L130: 0.4
D131: RN 05.02 | E131: =CONCATENATE(M131,N131,O131) -> Memoria justificativa de la evaluación del criterio en la que se detallen los materiales reciclados, justificación del porcentaje de reciclado incorporado y su 0 sobre el total. | M131: Memoria justificativa de la evaluación del criterio en la que se detallen los materiales reciclados, justificación del porcentaje de reciclado incorporado y su | N131: =H104 -> 0 | O131: sobre el total.
L132: 0.4
D133: RN 05.03 | E133: Certificado del fabricante de material indicando cuál es el contenido de material reciclado en el pre-consumo y post-consumo.
D135: VALORACIÓN DEL CRITERIO | F135: =IF($H123="",0,IF($H123<0.1,0,IF($H123>0.3,$F117,(((($H123*100)-10)/20))*$F117))) -> 0
D139: ='Matriz VERDE-GBCe'!H27 -> RN 06 | E139: =VLOOKUP($D139,'Matriz VERDE-GBCe'!$H$5:$K$49,2,FALSE) -> Uso de materiales obtenidos de recursos sostenibles. | F139: =VLOOKUP($D139,'Matriz VERDE-GBCe'!$H$5:$K$49,3,FALSE) -> 0.01257466206
E141: =CONCATENATE("Cantidad en ",H104," de maderas o productos derivados de la madera con certificado de origen en cadena de custodia.") -> Cantidad en de maderas o productos derivados de la madera con certificado de origen en cadena de custodia. | L141: =IF(H144="",0,IF(H144<0.2,0,IF(H144>0.5,F139*0.7,((((H144*100)-20)/30))*F139*0.7))) -> 0 | M141: 72
E144: =CONCATENATE("Porcentaje en ",H$104," de maderas o productos derivados de la madera con certificado de origen en cadena de custodia.") -> Porcentaje en de maderas o productos derivados de la madera con certificado de origen en cadena de custodia. | H144: =IF(OR(H112=0,H112=""),"",(H141/H112)) -> 
E147: =CONCATENATE("Contenido en ",H104," de materiales con documento reconocido de procedencia de materias primas.") -> Contenido en de materiales con documento reconocido de procedencia de materias primas. | L147: =IF(H147="",0,IF(H147<0.05,0,IF(H147>0.15,F139*0.3,((((H147*100)-5)/15))*F139*0.3))) -> 0 | M147: 40
E149: =CONCATENATE("Porcentaje en ",H$104," de materiales con documento reconocido de procedencia de materias primas.") -> Porcentaje en de materiales con documento reconocido de procedencia de materias primas. | H149: =IF(OR(H$106=0,H$106=""),"",(H$147/H$106)) -> 
D151: NOTAS
D153: DOCUMENTOS JUSTIFICATIVOS
L154: 0.4
D155: RN 06.01 | E155: Pliego de condiciones dónde se especifique la necesidad de comprar maderas o productos derivados de la madera con CoC.
L156: 0.4
D157: RN 06.02 | E157: CoC de las maderas y productos derivados de la madera.
L158: 0.4
D159: RN 06.03 | E159: Pliego de condiciones donde se especifique la necesidad de comprar productos con documentación que avale la procedencia de las materias primas tal y cómo se especifica en el criterio.
L160: 0.4
D161: RN 06.04 | E161: Documento acreditativo de la procedencia de las materias primas empleadas según las indicaciones del criterio.
L162: 0.4
D163: RN 06.05 | E163: =CONCATENATE(M163,N163,O163) -> Memoria justificativa de la evaluación del criterio en la que se detallen los materiales procedentes de recursos sostenibles, justificación de su procedencia y su 0 sobre el total. | M163: Memoria justificativa de la evaluación del criterio en la que se detallen los materiales procedentes de recursos sostenibles, justificación de su procedencia y su | N163: =H104 -> 0 | O163: sobre el total.
D165: VALORACIÓN DEL CRITERIO | F165: =$L141+$L147 -> 0
D169: ='Matriz VERDE-GBCe'!H28 -> RN 07 | E169: =VLOOKUP($D169,'Matriz VERDE-GBCe'!$H$5:$K$49,2,FALSE) -> Uso de materiales locales. | F169: =VLOOKUP($D169,'Matriz VERDE-GBCe'!$H$5:$K$49,3,FALSE) -> 0.02514932411
E171: Ir a la hoja de cálculo del criterio
E173: Porcentaje de materiales locales | H173: ='RN 07'!G10 ->  | L173: 1
D175: NOTAS
D177: DOCUMENTOS JUSTIFICATIVOS
L178: 0.4
D179: RN 07.01 | E179: Pliego de condiciones donde se detallen las condiciones de aceptación y procedencia de los materiales de obra.
L180: 0.4
D181: RN 07.02 | E181: Extracto del presupuesto de contrata material desglosado en materiales (descontando la mano de obra) donde se detalle la procedencia de los materiales a emplear.
L182: 0.4
D183: RN 07.03 | E183: Certificado de la procedencia de los materiales con la dirección de la planta de producción.
D185: VALORACIÓN DEL CRITERIO | F185: =IF($H173="",0,IF($H173<0.4,0,IF($H173>0.8,$F169,(((($H173*100)-40)/40))*$F169))) -> 0
D189: ='Matriz VERDE-GBCe'!H29 -> RN 08 | E189: =VLOOKUP($D189,'Matriz VERDE-GBCe'!$H$5:$K$49,2,FALSE) -> Planificación de una estrategia de demolición selectiva. | F189: =VLOOKUP($D189,'Matriz VERDE-GBCe'!$H$5:$K$49,3,FALSE) -> 0.01571832757
E191: Existe un plan de Demolición Selectiva que cumple con los requisitos del criterio | L191: NO
D193: NOTAS
D195: DOCUMENTOS JUSTIFICATIVOS
L196: 0.4
D197: RN 08.01 | E197: Plan de demolición selectiva que justifique el cumplimiento de las exigencias del criterio.
D199: VALORACIÓN DEL CRITERIO | F199: =IF($H191="",0,IF($H191="no",0,$F189)) -> 0
D203: ='Matriz VERDE-GBCe'!H30 -> RN 09 | E203: =VLOOKUP($D203,'Matriz VERDE-GBCe'!$H$5:$K$49,2,FALSE) -> Gestión de los residuos de la construcción. | F203: =VLOOKUP($D203,'Matriz VERDE-GBCe'!$H$5:$K$49,3,FALSE) -> 0.01257466206
E205: Existe un Estudio de los Residuos de Construcción o Demolición que cumple con los requisitos del criterio | L205: SI | M205: SÍ
M207: NO
E208: Existe un Plan de Gestión de los Residuos de Construcción o Demolición que cumple con los requisitos del criterio | L208: SI
E211: Porcentaje de residuos de la construcción a los que se garantiza su revalorización. | L211: 100
D213: NOTAS
L214: 0.4
D215: DOCUMENTOS JUSTIFICATIVOS
L216: 0.4
D217: RN 09.01 | E217: Estudio y plan de Gestión de Residuos de la Construcción.
L218: 0.4
D219: RN 09.02 | E219: Resumen del estudio y plan que demuestre el cumplimiento de las condiciones exigidas por el criterio.
D221: RN 09.03 | E221: Certificado otorgado por el gestor autorizado de residuos que demuestre que se han revalorizado los materiales en las cantidades indicadas en el Plan de Gestión de Residuos.
D223: VALORACIÓN DEL CRITERIO | F223: =IF($H211="",0,IF(OR(H205="NO",H208="NO"),0,IF($H211<0.5,0,IF($H211>0.75,$F203,(((($H211*100)-50)/25))*$F203)))) -> 0
D227: ='Matriz VERDE-GBCe'!H31 -> RN 10 | E227: =VLOOKUP($D227,'Matriz VERDE-GBCe'!$H$5:$K$49,2,FALSE) -> Impacto de los materiales de la construcción. | F227: =VLOOKUP($D227,'Matriz VERDE-GBCe'!$H$5:$K$49,3,FALSE) -> 0.06916064131
E229: Ir a la hoja de cálculo del criterio
E231: Existe un ACV que contempla el consumo de energía no renovable y las emisiones de CO2 de los materiales en la fase de producto. | L231: SI
E234: Existe un ACV que contempla el consumo de energía no renovable y las emisiones de CO2 de los materiales en todas las fases del ciclo de vida del edificio. | L234: SI
E237: Porcentaje de reducción del consumo de energía primaria no renovable en la fase de construcción. | H237: =IF(F248=0,"",F254/F248) ->  | L237: =IF(H237="",0,IF(H237<0.05,0,IF(H237>0.15,F227*0.25,((((H237*100)-5)/10))*F227*0.25))) -> 0
E239: La evaluación del ACV demuestra que se han reducido en un 10 % los valores de otros impactos además de los de consumo de energía no renovable y las emisiones de CO2 de los materiales en la fase de producto. | H239: =IF(F246=0,"",F252/F246) ->  | L239: =IF(H239="",0,IF(H239<0.05,0,IF(H239>0.15,F227*0.25,((((H239*100)-5)/10))*F227*0.25))) -> 0
D242: Resumen de resultados del ACV. Etapa de producto:
D244: Edificio de referencia
E246: Emisiones de CO2 (kg CO2 eq.) | F246: =IF('RN 10'!G10='RN 10'!R10,'RN 10'!I29,'RN 10'!G31) -> 0
E248: Consumo de energía primaria no renovable (MJ) | F248: =IF('RN 10'!G10='RN 10'!R10,'RN 10'!I31,'RN 10'!G29) -> 0
D250: Edificio objeto
E252: Emisiones de CO2 (kg CO2 eq.)
E254: Consumo de energía primaria no renovable (MJ)
D256: Resumen de resultados del ACV. Etapa de proceso de construcción:
D258: Edificio objeto
E260: Emisiones de CO2 (kg CO2 eq.)
E262: Consumo de energía primaria no renovable (MJ)
D264: Resumen de resultados del ACV. Etapa de uso:
D266: Edificio objeto
E268: Emisiones de CO2 (kg CO2 eq.)
E270: Consumo de energía primaria no renovable (MJ)
D272: Resumen de resultados del ACV. Etapa de fin de vida:
D274: Edificio objeto
E276: Emisiones de CO2 (kg CO2 eq.)
E278: Consumo de energía primaria no renovable (MJ)
D280: NOTAS
L281: 0.4
D282: DOCUMENTOS JUSTIFICATIVOS
L283: 0.4
D284: RN 10.01 | E284: Descripción de los sistemas constructivos
L285: 0.4
D286: RN 10.02 | E286: Descripción del método de ACV empleado
D288: RN 10.03 | E288: Resultados del edificio objeto con descripción de las hipótesis y aproximaciones realizadas.
D290: RN 10.04 | E290: Resultados del edificio de referencia con descripción de las hipótesis y aproximaciones realizadas.
D292: VALORACIÓN DEL CRITERIO | F292: =IF($H231="sí",0.25*$F227,0)+IF($H234="sí",0.25*$F227,0)+$L237+$L239 -> 0
D296: ='Matriz VERDE-GBCe'!H32 -> RN 11 | E296: =VLOOKUP($D296,'Matriz VERDE-GBCe'!$H$5:$K$49,2,FALSE) -> Ecoetiquetado de producto. | F296: =VLOOKUP($D296,'Matriz VERDE-GBCe'!$H$5:$K$49,3,FALSE) -> 0.02514932411
E298: Porcentaje de materiales con ecoetiqueta tipo I | L298: =IF(H298="",0,IF(H298<0.1,0,IF(H298>0.2,F296*0.2,((((H298*100)-10)/10))*F296*0.2))) -> 0 | M298: 100
E300: Entre los materiales con DAPs se encuentran elementos estructurales, aislamientos y revestimientos. | M300: NO
E302: Porcentaje de materiales con DAP | L302: =IF(H302="",0,IF(H302<0.1,0,IF(H302>0.2,F296*0.8,((((H302*100)-10)/10))*F296*0.8))) -> 0 | M302: 100
D304: NOTAS
L305: 0.4
D306: DOCUMENTOS JUSTIFICATIVOS
L307: 0.4
D308: RN 11.01 | E308: Eco etiquetas ya sean tipo I o tipo III de los materiales definidos en obra.
D310: RN 11.02 | E310: Justificación del porcentaje en masa de los productos con ecoetiqueta Tipo III (DAP)
D312: VALORACIÓN DEL CRITERIO | F312: =IF(($L298+IF($H300="sí",0.2*$F296,0)+$L302)>F296,F296,$L298+IF($H300="sí",0.2*$F296,0)+$L302) -> 0
F316: VALORACIÓN ÁREA
F318: SUBTOTAL | H318: =F25+F49+F64+F96+F135+F165+F185+F199+F223+F292+F312 -> 
F320: SOBRE | H320: =VLOOKUP(B$2,'Matriz VERDE-GBCe'!$G$2:$K$49,4,FALSE) -> 0.2452059101
F326: SÍ | H326: x
F327: NO

Sheet RN 01
C2: Consumo de agua en aparatos sanitarios | AA2: SÍ
C3: VERDE W Equipamiento | AA3: NO
C5: Tipo de actuación | G5: =DG!E27 -> 0
C8: Número de ocupantes
C10: Nº de ocupantes del edificio | H10: =SUM($I9:$I9)+SUM($S9:$S9) -> 0
C12: ¿Hay duchas en el edificio? | H12: =SUM($I11:$I11)+SUM($S11:$S11) -> 0 | M12: ¿Hay urinarios en el edificio?
C15: Consumo del edificio objeto
G16: Caudal | I16: Consumo (l/pers. Día) Ocupantes | Q16: Caudal | S16: Consumo (l/pers. Día) Ocupantes | AB16: consumo/uso | AC16: uso/persona
C18: Grifería lavabo | I18: =AC18 -> 13.5 | M18: Grifería ducha | S18: =AC20 ->  | AA18: Lavavo | AB18: =IF(OR(G18="",G18=0),G34*0.5,G18*0.5) -> 2.25 | AC18: =AB18*6 -> 13.5
C20: Inodoros descarga larga | I20: =AC22 -> 6 | M20: Inodoros descarga corta | S20: =AC24 -> 6 | AA20: ducha | AB20: =IF(OR(Q18="",Q18=0),Q34*3,Q18*3) -> 24 | AC20: =IF(G12="sí",AB20*0.1,"") -> 
C22: Urinarios | I22: =AC26 ->  | AA22: descarga larga | AB22: =IF(OR(G20="",G20=0),G36,G20) -> 6 | AC22: =AB22*1 -> 6
AA24: descarga corta | AB24: =IF(OR(Q20="",Q20=0),Q36,Q20) -> 3 | AC24: =IF(Q12="sí",AB24*1,AB24*2) -> 6
C26: CONSUMO TOTAL POR PERSONA Y DÍA (l/p día) OCUPANTES | I26: =AC27 -> 25.5 | M26: CONSUMO TOTAL EN EL EDIFICIO (l/día) | S26: =I26*G10 -> 0 | AA26: urinario | AB26: =IF(OR(G22="",G22=0),G38,G22) -> 4 | AC26: =IF(Q12="sí",AB26*1,"") -> 
AC27: =SUM(AC18:AC25) -> 25.5
C30: Consumo del edificio de referencia
G32: Caudal | I32: Consumo (l/pers. Día) Ocupantes | S32: Consumo (l/pers. Día) Ocupantes | AB32: consumo/uso | AC32: uso/persona
C34: Grifería lavabo | G34: 4.5 | I34: =AC34 -> 13.5 | M34: Grifería ducha | Q34: 8 | S34: =AC36 ->  | AA34: Lavavo | AB34: =G34*0.5 -> 2.25 | AC34: =AB34*6 -> 13.5
C36: Inodoros descarga larga | G36: 6 | I36: =AC38 -> 6 | M36: Inodoros descarga corta | Q36: 3 | S36: =AC40 -> 6 | AA36: ducha | AB36: =Q34*3 -> 24 | AC36: =IF(G12="sí",AB36*0.1,"") -> 
C38: Urinarios | G38: 4 | I38: =AC42 ->  | AA38: descarga larga | AB38: =G36 -> 6 | AC38: =AB38*1 -> 6
AA40: descarga corta | AB40: =Q36 -> 3 | AC40: =IF(Q12="sí",AB40*1,AB40*2) -> 6
C42: CONSUMO TOTAL POR PERSONA Y DÍA (l/p día) OCUPANTES | I42: =AC43 -> 25.5 | M42: CONSUMO TOTAL EN EL EDIFICIO (l/día) | S42: =I42*G10 -> 0 | AA42: urinario | AB42: =G38 -> 4 | AC42: =IF(Q12="sí",AB42*1,"") -> 
AC43: =SUM(AC34:AC41) -> 25.5
C45: Porcentaje de ahorro | I45: =IFERROR(IF(I26=0,"",1-(S26/S42)),0) -> 0

Sheet BD (hidden)
A1: Provincia | B1: estación meteorológica
A2: Albacete | B2: Albacete - Los Llanos / B. Aérea | F2: Tipo de riego | G2: EA
A3: Alicante | B3: Alicante | F3: Riego localizado subterráneo | G3: 0.95
A4: Almería | B4: Almería / Aeropuerto | F4: Riego localizado en superficie | G4: 0.9
A5: Ávila | B5: Ávila | F5: Difusores y microaspersores | G5: 0.8
A6: Badajoz | B6: Badajoz - Talavera la Real / B. Aérea | F6: Aspersores | G6: 0,7-0,8
A7: Barcelona | B7: Barcelona / Aeropuerto | C7: Barcelona / Montseny -Turo De L'Home | F7: Superficie | G7: 0,5-0,65
A8: Bilbao | B8: Bilbao / Aeropuerto
A9: Burgos | B9: Burgos / B. Aérea
A10: Cáceres | B10: Cáceres
A11: Cádiz | B11: Cádiz - Jerez de la Frontera / Aeropuerto | C11: Cádiz - Tarifa
A12: Castellón | B12: Castellón
A13: Ciudad Real | B13: Ciudad Real
A14: Córdoba | B14: Córdoba / Aeropuerto
A15: Cuenca | B15: Cuenca
A16: Gerona | B16: Girona / Aeropuerto
A17: Granada | B17: Granada / Aeropuerto | C17: Granada / B. Aérea
A18: Guadalajara | B18: Guadalajara - Molina De Aragón
A19: Huelva | B19: Huelva
A20: Huesca | B20: Huesca - Monflorite / Aeropuerto
A21: Ibiza | B21: Ibiza / Aeropuerto
A22: Jaén
A23: La Coruña | B23: A Coruña | C23: A Coruña - Santiago Compostela / Aeropuerto
A24: Las Palmas | B24: La Palma / Aeropuerto
A25: León | B25: León - Ponferrada | C25: León - Virgen del Camino / B. Aérea
A26: Lérida | B26: Lleida / Estación 2
A27: Logroño | B27: Logroño - Agoncillo / Aeropuerto
A28: Lugo | B28: Lugo - Rozas / Aeródromo
A29: Madrid | B29: Madrid | C29: Madrid - Barajas / Aeropuerto
A30: Málaga | B30: Málaga / Aeropuerto
A31: Murcia | B31: Murcia - Alcantarilla / Aeropuerto | C31: Murcia - San Javier / Aeropuerto
A32: Orense | B32: Ourense
A33: Oviedo | B33: Oviedo / Aeropuerto | C33: Oviedo
A34: Palencia
A35: Palma de Mallorca | B35: Palma de Mallorca | C35: Palma de Mallorca / Aeropuerto
A36: Pamplona | B36: Pamplona / Aeropuerto
A37: Pontevedra | B37: Pontevedra - Mourente | C37: Pontevedra - Vigo / Aeropuerto
A38: Salamanca | B38: Salamanca - Matacán / B. Aérea
A39: San Sebastián | B39: San Sebastián / Aeropuerto | C39: San Sebastián / Igueldo
A40: Sta. Cruz de Tenerife | B40: Santa Cruz De Tenerife | C40: Tenerife / Aeropuerto Tenerife Sur
A41: Santander | B41: Santander / Aeropuerto
A42: Segovia | B42: Segovia
A43: Sevilla | B43: Sevilla / Aeropuerto | C43: Sevilla / Morón de la Frontera / B. Aérea | D43: Sevilla - Tablada
A44: Soria | B44: Soria
A45: Tarragona | B45: Tarragona / Tortosa | C45: Tarragona - Reus / Aeropuerto
A46: Teruel | B46: Teruel
A47: Toledo | B47: Toledo
A48: Valencia | B48: Valencia | C48: Valencia - Manises
A49: Valladolid | B49: Valladolid | C49: Valladolid / Aeropuerto
A50: Vitoria | B50: Vitoria / Aeropuerto
A51: Zamora | B51: Zamora
A52: Zaragoza | B52: Zaragoza / Aeropuerto

Sheet P (hidden)
B1: Precipitación (mm)
B2: Localidad | C2: Ene | D2: Feb | E2: Mar | F2: Abr | G2: May | H2: Jun | I2: Jul | J2: Ago | K2: Sep | L2: Oct | M2: Nov | N2: Dic
B3: ANDALUCIA
B4: Almería | C4: 24 | D4: 25 | E4: 16 | F4: 17 | G4: 12 | H4: 5 | I4: 1 | J4: 1 | K4: 14 | L4: 27 | M4: 28 | N4: 30
B5: Cádiz | C5: 69 | D5: 58 | E5: 35 | F5: 45 | G5: 27 | H5: 7 | I5: 0 | J5: 2 | K5: 24 | L5: 67 | M5: 98 | N5: 92
B6: Jerez de la Frontera | C6: 78 | D6: 56 | E6: 37 | F6: 49 | G6: 30 | H6: 9 | I6: 1 | J6: 2 | K6: 27 | L6: 72 | M6: 96 | N6: 109
B7: Cádiz / Tarifa | C7: 83 | D7: 73 | E7: 60 | F7: 61 | G7: 31 | H7: 9 | I7: 2 | J7: 4 | K7: 14 | L7: 67 | M7: 77 | N7: 118
B8: Jaén | C8: 55 | D8: 50 | E8: 44 | F8: 54 | G8: 43 | H8: 18 | I8: 2 | J8: 9 | K8: 26 | L8: 55 | M8: 62 | N8: 75
B9: Córdoba | C9: 66 | D9: 55 | E9: 49 | F9: 55 | G9: 40 | H9: 13 | I9: 2 | J9: 5 | K9: 35 | L9: 86 | M9: 80 | N9: 111
B10: Granada | C10: 42 | D10: 38 | E10: 32 | F10: 36 | G10: 28 | H10: 11 | I10: 2 | J10: 4 | K10: 19 | L10: 40 | M10: 54 | N10: 56
B11: Huelva | C11: 71 | D11: 50 | E11: 38 | F11: 48 | G11: 29 | H11: 8 | I11: 3 | J11: 4 | K11: 26 | L11: 68 | M11: 79 | N11: 99
B12: Málaga | C12: 69 | D12: 60 | E12: 52 | F12: 44 | G12: 20 | H12: 6 | I12: 0 | J12: 6 | K12: 20 | L12: 57 | M12: 100 | N12: 100
B13: Sevilla / Aeropuerto | C13: 66 | D13: 50 | E13: 36 | F13: 54 | G13: 30 | H13: 10 | I13: 2 | J13: 5 | K13: 27 | L13: 68 | M13: 91 | N13: 99
B14: Sevilla / Morón de la Frontera / B. Aérea | C14: 68 | D14: 53 | E14: 42 | F14: 60 | G14: 39 | H14: 9 | I14: 2 | J14: 4 | K14: 27 | L14: 67 | M14: 86 | N14: 94
B15: Sevilla / Tablada | C15: 78 | D15: 52 | E15: 40 | F15: 58 | G15: 36 | H15: 13 | I15: 2 | J15: 5 | K15: 20 | L15: 66 | M15: 81 | N15: 103
B16: ARAGON
B17: Huesca | C17: 31 | D17: 28 | E17: 30 | F17: 53 | G17: 52 | H17: 33 | I17: 22 | J17: 29 | K17: 48 | L17: 60 | M17: 47 | N17: 44
B18: Teruel | C18: 19 | D18: 15 | E18: 21 | F18: 39 | G18: 57 | H18: 46 | I18: 26 | J18: 34 | K18: 36 | L18: 47 | M18: 22 | N18: 19
B19: Zaragoza | C19: 21 | D19: 22 | E19: 19 | F19: 39 | G19: 44 | H19: 26 | I19: 17 | J19: 17 | K19: 30 | L19: 36 | M19: 30 | N19: 21
B20: ASTURIAS
B21: Asturias / Aeropuerto | C21: 103 | D21: 88 | E21: 82 | F21: 99 | G21: 79 | H21: 61 | I21: 47 | J21: 60 | K21: 73 | L21: 116 | M21: 134 | N21: 117
B22: Oviedo | C22: 84 | D22: 81 | E22: 78 | F22: 100 | G22: 82 | H22: 57 | I22: 45 | J22: 56 | K22: 66 | L22: 98 | M22: 115 | N22: 98
B23: BALEARES
B24: Ibiza | C24: 37 | D24: 36 | E24: 27 | F24: 31 | G24: 27 | H24: 11 | I24: 5 | J24: 18 | K24: 57 | L24: 58 | M24: 53 | N24: 52
B25: Menorca / Mahón | C25: 52 | D25: 54 | E25: 38 | F25: 45 | G25: 37 | H25: 14 | I25: 3 | J25: 20 | K25: 61 | L25: 78 | M25: 88 | N25: 61
B26: Palma de Mallorca | C26: 42 | D26: 37 | E26: 28 | F26: 39 | G26: 36 | H26: 11 | I26: 6 | J26: 22 | K26: 52 | L26: 69 | M26: 59 | N26: 48
B27: Palma de Mallorca / Aeropuerto | C27: 37 | D27: 32 | E27: 26 | F27: 34 | G27: 32 | H27: 12 | I27: 5 | J27: 17 | K27: 50 | L27: 62 | M27: 55 | N27: 48
B28: CANARIAS
B29: Fuerteventura | C29: 14 | D29: 16 | E29: 12 | F29: 5 | G29: 1 | H29: 0 | I29: 0 | J29: 0 | K29: 2 | L29: 8 | M29: 13 | N29: 26
B30: Hierro | C30: 28 | D30: 38 | E30: 25 | F30: 13 | G30: 2 | H30: 1 | I30: 0 | J30: 1 | K30: 3 | L30: 14 | M30: 37 | N30: 44
B31: Lanzarote | C31: 16 | D31: 18 | E31: 12 | F31: 5 | G31: 2 | H31: 0 | I31: 0 | J31: 0 | K31: 2 | L31: 10 | M31: 15 | N31: 29
B32: Las Palmas de Gran Canaria | C32: 25 | D32: 24 | E32: 12 | F32: 6 | G32: 1 | H32: 0 | I32: 0 | J32: 0 | K32: 9 | L32: 16 | M32: 22 | N32: 31
B33: Santa Cruz De Tenerife | C33: 32 | D33: 35 | E33: 38 | F33: 12 | G33: 4 | H33: 1 | I33: 0 | J33: 2 | K33: 7 | L33: 19 | M33: 34 | N33: 43
B34: Tenerife / Norte | C34: 80 | D34: 70 | E34: 61 | F34: 39 | G34: 19 | H34: 11 | I34: 6 | J34: 5 | K34: 16 | L34: 47 | M34: 81 | N34: 82
B35: Tenerife / Aeropuerto Tenerife Sur | C35: 17 | D35: 20 | E35: 15 | F35: 7 | G35: 1 | H35: 0 | I35: 0 | J35: 1 | K35: 4 | L35: 12 | M35: 26 | N35: 30
B36: Tenerife / Izaña | C36: 47 | D36: 67 | E36: 58 | F36: 18 | G36: 7 | H36: 0 | I36: 0 | J36: 5 | K36: 13 | L36: 37 | M36: 54 | N36: 60
B37: CANTABRIA
B38: Santander | C38: 106 | D38: 92 | E38: 88 | F38: 102 | G38: 78 | H38: 58 | I38: 52 | J38: 73 | K38: 83 | L38: 120 | M38: 157 | N38: 118
B39: CASTILLA LA MANCHA
B40: Albacete | C40: 21 | D40: 25 | E40: 27 | F40: 40 | G40: 43 | H40: 35 | I40: 9 | J40: 11 | K40: 34 | L40: 42 | M40: 34 | N40: 31
B41: Ciudad Real | C41: 35 | D41: 30 | E41: 28 | F41: 48 | G41: 41 | H41: 25 | I41: 6 | J41: 5 | K41: 26 | L41: 53 | M41: 45 | N41: 59
B42: Cuenca | C42: 40 | D42: 38 | E42: 35 | F42: 58 | G42: 52 | H42: 41 | I42: 10 | J42: 20 | K42: 42 | L42: 60 | M42: 48 | N42: 58
B43: Guadalajara | C43: 35 | D43: 32 | E43: 25 | F43: 50 | G43: 53 | H43: 25 | I43: 12 | J43: 5 | K43: 28 | L43: 68 | M43: 42 | N43: 46
B44: Toledo | C44: 26 | D44: 25 | E44: 23 | F44: 39 | G44: 44 | H44: 24 | I44: 7 | J44: 9 | K44: 18 | L44: 48 | M44: 39 | N44: 41
B45: CASTILLA LEON
B46: Ávila | C46: 34 | D46: 24 | E46: 23 | F46: 40 | G46: 55 | H46: 33 | I46: 12 | J46: 19 | K46: 30 | L46: 53 | M46: 48 | N46: 42
B47: Burgos | C47: 44 | D47: 35 | E47: 34 | F47: 61 | G47: 63 | H47: 41 | I47: 23 | J47: 23 | K47: 38 | L47: 60 | M47: 60 | N47: 63
B48: Palencia | C48: 67 | D48: 54 | E48: 46 | F48: 50 | G48: 54 | H48: 32 | I48: 23 | J48: 25 | K48: 49 | L48: 81 | M48: 82 | N48: 89
B49: León | C49: 50 | D49: 34 | E49: 32 | F49: 45 | G49: 56 | H49: 31 | I49: 19 | J49: 23 | K49: 39 | L49: 61 | M49: 59 | N49: 66
B50: León / Virgen del Camino | C50: 58 | D50: 46 | E50: 29 | F50: 50 | G50: 58 | H50: 39 | I50: 28 | J50: 24 | K50: 39 | L50: 56 | M50: 58 | N50: 70
B51: Salamanca | C51: 30 | D51: 25 | E51: 21 | F51: 38 | G51: 47 | H51: 29 | I51: 11 | J51: 12 | K51: 32 | L51: 46 | M51: 40 | N51: 42
B52: Segovia | C52: 38 | D52: 31 | E52: 30 | F52: 44 | G52: 66 | H52: 43 | I52: 17 | J52: 20 | K52: 28 | L52: 59 | M52: 52 | N52: 46
B53: Soria | C53: 37 | D53: 36 | E53: 30 | F53: 55 | G53: 67 | H53: 40 | I53: 30 | J53: 30 | K53: 33 | L53: 55 | M53: 50 | N53: 50
B54: Valladolid | C54: 40 | D54: 27 | E54: 22 | F54: 46 | G54: 49 | H54: 29 | I54: 13 | J54: 16 | K54: 31 | L54: 55 | M54: 52 | N54: 53
B55: Valladolid / Aeropuerto | C55: 36 | D55: 26 | E55: 23 | F55: 43 | G55: 53 | H55: 30 | I55: 15 | J55: 21 | K55: 32 | L55: 52 | M55: 51 | N55: 53
B56: Zamora | C56: 32 | D56: 25 | E56: 22 | F56: 39 | G56: 43 | H56: 23 | I56: 12 | J56: 13 | K56: 28 | L56: 50 | M56: 45 | N56: 46
B57: CATALUÑA
B58: Barcelona | C58: 37 | D58: 35 | E58: 36 | F58: 40 | G58: 47 | H58: 30 | I58: 21 | J58: 62 | K58: 81 | L58: 91 | M58: 59 | N58: 40
B59: Barcelona / Fabra | C59: 50 | D59: 43 | E59: 44 | F59: 53 | G59: 58 | H59: 30 | I59: 24 | J59: 41 | K59: 75 | L59: 91 | M59: 66 | N59: 46
B60: Girona | C60: 62 | D60: 51 | E60: 50 | F60: 67 | G60: 71 | H60: 60 | I60: 32 | J60: 46 | K60: 70 | L60: 88 | M60: 70 | N60: 56
B61: Lleida | C61: 26 | D61: 15 | E61: 21 | F61: 39 | G61: 42 | H61: 27 | I61: 12 | J61: 18 | K61: 41 | L61: 43 | M61: 30 | N61: 24
B62: Tarragona | C62: 33 | D62: 28 | E62: 30 | F62: 48 | G62: 58 | H62: 25 | I62: 15 | J62: 33 | K62: 59 | L62: 78 | M62: 60 | N62: 41
B63: Tarragona / Reus | C63: 29 | D63: 28 | E63: 28 | F63: 37 | G63: 54 | H63: 25 | I63: 15 | J63: 42 | K63: 77 | L63: 75 | M63: 53 | N63: 36
B64: CEUTA
B65: Ceuta | C65: 122 | D65: 145 | E65: 90 | F65: 57 | G65: 21 | H65: 3 | I65: 1 | J65: 3 | K65: 37 | L65: 82 | M65: 127 | N65: 161
B66: COMUNIDAD DE MADRID
B67: Colmenar Viejo | C67: 52 | D67: 41 | E67: 36 | F67: 52 | G67: 57 | H67: 28 | I67: 14 | J67: 16 | K67: 36 | L67: 76 | M67: 78 | N67: 68
B68: Madrid | C68: 33 | D68: 34 | E68: 25 | F68: 45 | G68: 50 | H68: 21 | I68: 12 | J68: 10 | K68: 22 | L68: 60 | M68: 58 | N68: 51
B69: Barajas | C69: 29 | D69: 32 | E69: 22 | F69: 38 | G69: 44 | H69: 22 | I69: 9 | J69: 10 | K69: 24 | L69: 51 | M69: 49 | N69: 42
B70: Cuatro Vientos | C70: 34 | D70: 35 | E70: 25 | F70: 43 | G70: 50 | H70: 24 | I70: 12 | J70: 11 | K70: 24 | L70: 60 | M70: 57 | N70: 53
B71: Getafe | C71: 30 | D71: 32 | E71: 24 | F71: 38 | G71: 39 | H71: 19 | I71: 9 | J71: 9 | K71: 22 | L71: 50 | M71: 48 | N71: 45
B72: Puerto Navacerrada | C72: 124 | D72: 96 | E72: 84 | F72: 127 | G72: 124 | H72: 64 | I72: 23 | J72: 26 | K72: 60 | L72: 156 | M72: 176 | N72: 163
B73: Torrejón De Ardoz | C73: 29 | D73: 31 | E73: 23 | F73: 40 | G73: 48 | H73: 19 | I73: 13 | J73: 9 | K73: 25 | L73: 50 | M73: 49 | N73: 42
B74: COMUNIDAD VALENCIANA
B75: Alicante | C75: 23 | D75: 22 | E75: 23 | F75: 29 | G75: 28 | H75: 12 | I75: 4 | J75: 7 | K75: 56 | L75: 47 | M75: 36 | N75: 25
B76: Castellón | C76: 36 | D76: 31 | E76: 31 | F76: 42 | G76: 44 | H76: 19 | I76: 9 | J76: 24 | K76: 71 | L76: 70 | M76: 49 | N76: 42
B77: Valencia | C77: 37 | D77: 36 | E77: 33 | F77: 38 | G77: 39 | H77: 22 | I77: 8 | J77: 20 | K77: 70 | L77: 77 | M77: 47 | N77: 48
B78: Valencia - Manises | C78: 37 | D78: 34 | E78: 30 | F78: 40 | G78: 38 | H78: 18 | I78: 12 | J78: 16 | K78: 63 | L78: 72 | M78: 51 | N78: 48
B79: EXTREMADURA
B80: Badajoz | C80: 50 | D80: 42 | E80: 30 | F80: 49 | G80: 36 | H80: 14 | I80: 4 | J80: 5 | K80: 24 | L80: 61 | M80: 65 | N80: 69
B81: Cáceres | C81: 54 | D81: 48 | E81: 36 | F81: 52 | G81: 50 | H81: 20 | I81: 6 | J81: 7 | K81: 30 | L81: 77 | M81: 89 | N81: 77
B82: GALICIA
B83: A Coruña | C83: 112 | D83: 88 | E83: 75 | F83: 88 | G83: 74 | H83: 44 | I83: 34 | J83: 35 | K83: 64 | L83: 130 | M83: 138 | N83: 131
B84: Lugo | C84: 114 | D84: 87 | E84: 80 | F84: 102 | G84: 81 | H84: 52 | I84: 34 | J84: 36 | K84: 68 | L84: 137 | M84: 144 | N84: 134
B85: Ourense | C85: 89 | D85: 66 | E85: 59 | F85: 72 | G85: 64 | H85: 36 | I85: 20 | J85: 22 | K85: 57 | L85: 112 | M85: 103 | N85: 112
B86: Pontevedra | C86: 178 | D86: 133 | E86: 120 | F86: 143 | G86: 118 | H86: 64 | I86: 44 | J86: 56 | K86: 95 | L86: 224 | M86: 222 | N86: 216
B87: Santiago de Compostela | C87: 210 | D87: 167 | E87: 146 | F87: 146 | G87: 135 | H87: 72 | I87: 43 | J87: 57 | K87: 107 | L87: 226 | M87: 217 | N87: 261
B88: Vigo | C88: 208 | D88: 162 | E88: 141 | F88: 157 | G88: 127 | H88: 62 | I88: 44 | J88: 45 | K88: 102 | L88: 231 | M88: 246 | N88: 262
B89: LA RIOJA
B90: Logroño | C90: 28 | D90: 23 | E90: 26 | F90: 46 | G90: 47 | H90: 44 | I90: 30 | J90: 21 | K90: 26 | L90: 37 | M90: 40 | N90: 38
B91: MELILLA
B92: Melilla | C92: 58 | D92: 57 | E92: 44 | F92: 36 | G92: 20 | H92: 7 | I92: 1 | J92: 4 | K92: 16 | L92: 40 | M92: 57 | N92: 50
B93: MURCIA
B94: Murcia | C94: 27 | D94: 27 | E94: 30 | F94: 25 | G94: 28 | H94: 18 | I94: 3 | J94: 8 | K94: 32 | L94: 36 | M94: 32 | N94: 29
B95: Alcantarilla | C95: 26 | D95: 28 | E95: 31 | F95: 25 | G95: 28 | H95: 18 | I95: 2 | J95: 10 | K95: 29 | L95: 34 | M95: 33 | N95: 25
B96: San Javier | C96: 42 | D96: 27 | E96: 24 | F96: 23 | G96: 25 | H96: 7 | I96: 2 | J96: 7 | K96: 39 | L96: 39 | M96: 47 | N96: 30
B97: NAVARRA
B98: Pamplona | C98: 57 | D98: 50 | E98: 54 | F98: 74 | G98: 60 | H98: 46 | I98: 33 | J98: 38 | K98: 44 | L98: 68 | M98: 75 | N98: 72
B99: PAÍS VASCO
B100: Bilbao | C100: 120 | D100: 86 | E100: 90 | F100: 107 | G100: 78 | H100: 60 | I100: 50 | J100: 76 | K100: 73 | L100: 111 | M100: 147 | N100: 122
B101: San Sebastián / Aeropuerto | C101: 168 | D101: 150 | E101: 144 | F101: 168 | G101: 138 | H101: 96 | I101: 98 | J101: 112 | K101: 138 | L101: 174 | M101: 186 | N101: 167
B102: San Sebastián / Igueldo | C102: 141 | D102: 110 | E102: 113 | F102: 138 | G102: 120 | H102: 90 | I102: 86 | J102: 117 | K102: 111 | L102: 159 | M102: 169 | N102: 151
B103: Vitoria | C103: 75 | D103: 63 | E103: 63 | F103: 73 | G103: 70 | H103: 43 | I103: 38 | J103: 39 | K103: 41 | L103: 71 | M103: 91 | N103: 82

Sheet ETo (hidden)
B1: Evapotranspiración Potencial | C1: Ene | D1: Feb | E1: Mar | F1: Abr | G1: May | H1: Jun | I1: Jul | J1: Ago | K1: Sep | L1: Oct | M1: Nov | N1: Dic
A2: Albacete - Los Llanos | B2: Albacete | C2: 15.1 | D2: 29.2 | E2: 60.4 | F2: 95.7 | G2: 122.5 | H2: 157.1 | I2: 179.7 | J2: 156 | K2: 87.3 | L2: 51.4 | M2: 19.9 | N2: 16.8
A3: Alicante | B3: Alicante | C3: 16.4 | D3: 37.4 | E3: 68.9 | F3: 91.9 | G3: 130.1 | H3: 149.4 | I3: 169.8 | J3: 154.2 | K3: 95.5 | L3: 62.2 | M3: 30.1 | N3: 22.9
A4: Almería | B4: Almería | C4: 27.9 | D4: 37.2 | E4: 72.6 | F4: 98.5 | G4: 140.9 | H4: 132.5 | I4: 177.9 | J4: 182.5 | K4: 100.5 | L4: 65.8 | M4: 31.1 | N4: 31.2
A5: Ávila | B5: Ávila | C5: 11.2 | D5: 21.5 | E5: 52.5 | F5: 78.3 | G5: 116.2 | H5: 143.9 | I5: 161.5 | J5: 142.9 | K5: 77.1 | L5: 42.7 | M5: 15 | N5: 9.6
A6: Badajoz | B6: Badajoz | C6: 13.8 | D6: 24.1 | E6: 57 | F6: 82.7 | G6: 116.9 | H6: 141 | I6: 182.1 | J6: 146 | K6: 81.1 | L6: 49 | M6: 21.3 | N6: 11.6
A7: Barcelona / Aeropuerto | B7: Barcelona | C7: 18.6 | D7: 27.7 | E7: 53.2 | F7: 76 | G7: 107 | H7: 135.9 | I7: 155.2 | J7: 130.1 | K7: 75.4 | L7: 47.4 | M7: 22 | N7: 16.6
A8: Barcelona / Montseny -Turo De L'Home | B8: Bilbao | C8: 13.9 | D8: 21.8 | E8: 49.2 | F8: 62.4 | G8: 92.9 | H8: 98 | I8: 96.9 | J8: 96.9 | K8: 57.2 | L8: 35.3 | M8: 17.5 | N8: 14.6
A9: Bilbao | B9: Burgos | C9: 9.9 | D9: 24.9 | E9: 45.5 | F9: 67.5 | G9: 104.3 | H9: 119.5 | I9: 146.4 | J9: 124.5 | K9: 68 | L9: 36 | M9: 12.5 | N9: 8.2
A10: Burgos | B10: Cáceres | C10: 13.8 | D10: 24.1 | E10: 57 | F10: 82.7 | G10: 116.9 | H10: 141 | I10: 182.1 | J10: 146 | K10: 81.1 | L10: 49 | M10: 21.3 | N10: 11.6
A11: Cáceres | B11: Cádiz | C11: 25.7 | D11: 34.6 | E11: 84.3 | F11: 102.1 | G11: 156.7 | H11: 182.4 | I11: 196.3 | J11: 185.5 | K11: 115.4 | L11: 74.9 | M11: 34.6 | N11: 22.4
A12: Cádiz - Jerez de la Frontera / Aeropuerto | B12: Castellón de la Plana | C12: 15.4 | D12: 26.6 | E12: 54.1 | F12: 75.7 | G12: 115.1 | H12: 133.3 | I12: 148.5 | J12: 129.4 | K12: 75.8 | L12: 45.8 | M12: 19.8 | N12: 12.1
A13: Cádiz - Tarifa | B13: Ceuta | C13: 16.5 | D13: 28.5 | E13: 59.1 | F13: 84.4 | G13: 128.3 | H13: 153.8 | I13: 169.9 | J13: 154.2 | K13: 83.5 | L13: 50.7 | M13: 22 | N13: 13.4
A14: Castellón de la Plana | B14: Ciudad Real | C14: 12.9 | D14: 25.2 | E14: 51.2 | F14: 77.1 | G14: 120.3 | H14: 155.7 | I14: 172.1 | J14: 149.8 | K14: 82 | L14: 43.3 | M14: 17.9 | N14: 12.3
A15: Ceuta | B15: Córdoba | C15: 17.3 | D15: 28.5 | E15: 56.3 | F15: 82.3 | G15: 128.1 | H15: 157.7 | I15: 182.7 | J15: 162.6 | K15: 94.5 | L15: 55 | M15: 21.7 | N15: 14.3
A16: Ciudad Real | B16: Cuenca | C16: 10.6 | D16: 19 | E16: 43.8 | F16: 66.2 | G16: 106.2 | H16: 129.6 | I16: 149.9 | J16: 144.3 | K16: 71.1 | L16: 39.3 | M16: 14.5 | N16: 8.5
A17: Córdoba | B17: Gerona | C17: 11.2 | D17: 22 | E17: 45.5 | F17: 72 | G17: 110.6 | H17: 123.6 | I17: 144 | J17: 122.9 | K17: 71.2 | L17: 39.8 | M17: 14.7 | N17: 8.5
A18: Cuenca | B18: Granada | C18: 16 | D18: 26.5 | E18: 54.7 | F18: 74.4 | G18: 111.2 | H18: 140.9 | I18: 168.1 | J18: 148.5 | K18: 85.9 | L18: 48.3 | M18: 20.2 | N18: 12.7
A19: Gerona | B19: Guadalajara | C19: 16.1 | D19: 23.5 | E19: 53.9 | F19: 74.7 | G19: 109.2 | H19: 139.2 | I19: 164.9 | J19: 143.4 | K19: 80.8 | L19: 43.6 | M19: 18.5 | N19: 11
A20: Granada | B20: Huelva | C20: 19.2 | D20: 28.2 | E20: 53.6 | F20: 80.7 | G20: 125.4 | H20: 145.3 | I20: 161.7 | J20: 146.5 | K20: 89.5 | L20: 53.4 | M20: 24.1 | N20: 14.8
A21: Guadalajara | B21: Huesca | C21: 15.2 | D21: 26.5 | E21: 60.1 | F21: 83.2 | G21: 118.5 | H21: 139.9 | I21: 162 | J21: 137.3 | K21: 77 | L21: 48.4 | M21: 20.1 | N21: 13.9
A22: Huelva | B22: Ibiza | C22: 19 | D22: 30.5 | E22: 61.3 | F22: 82.6 | G22: 130 | H22: 146.7 | I22: 169.9 | J22: 152 | K22: 89.5 | L22: 56.1 | M22: 26 | N22: 19.3
A23: Huesca | B23: Jaén | C23: 15.6 | D23: 25.5 | E23: 54.5 | F23: 76.4 | G23: 111.3 | H23: 145 | I23: 154 | J23: 151 | K23: 87 | L23: 49.5 | M23: 20.1 | N23: 12.9
A24: Ibiza | B24: La Coruña | C24: 23.1 | D24: 30.7 | E24: 55.9 | F24: 76.6 | G24: 701 | H24: 110.7 | I24: 125.7 | J24: 109 | K24: 57.2 | L24: 42.7 | M24: 23.6 | N24: 23.7
A25: Jaén | B25: Las Palmas de Gran Canaria | C25: 45.4 | D25: 51.7 | E25: 91.5 | F25: 104.4 | G25: 130.7 | H25: 133.5 | I25: 131.4 | J25: 132.1 | K25: 103.8 | L25: 82.4 | M25: 50.9 | N25: 42.2
A26: La Coruña | B26: León | C26: 8.2 | D26: 19.5 | E26: 50.8 | F26: 75.8 | G26: 110.5 | H26: 129 | I26: 157.7 | J26: 129.5 | K26: 72.7 | L26: 37.8 | M26: 13.3 | N26: 7.3
A27: Las Palmas de Gran Canaria | B27: Lérida | C27: 16.1 | D27: 29 | E27: 65.2 | F27: 91.8 | G27: 127.1 | H27: 158.2 | I27: 182.4 | J27: 153.9 | K27: 89.2 | L27: 52.5 | M27: 22.3 | N27: 13.9
A28: León - Ponferrada | B28: Logroño | C28: 14.8 | D28: 22.9 | E28: 54.4 | F28: 71.9 | G28: 109.6 | H28: 122.4 | I28: 149.1 | J28: 128.9 | K28: 70.9 | L28: 37.3 | M28: 15.7 | N28: 12.4
A29: León - Virgen del Camino / B. Aérea | B29: Lugo | C29: 10.3 | D29: 18.3 | E29: 41.1 | F29: 63.6 | G29: 87.6 | H29: 98.7 | I29: 105.3 | J29: 92.1 | K29: 56.7 | L29: 34.9 | M29: 11.9 | N29: 8.4
A30: Lérida | B30: Madrid | C30: 13.3 | D30: 24.5 | E30: 55.7 | F30: 83 | G30: 120.6 | H30: 149.1 | I30: 171.4 | J30: 153.2 | K30: 85.2 | L30: 45.7 | M30: 16.7 | N30: 10.5
A31: Logroño | B31: Málaga | C31: 27.1 | D31: 36 | E31: 66.1 | F31: 84.3 | G31: 135.4 | H31: 155.9 | I31: 169.1 | J31: 153.5 | K31: 90.5 | L31: 59.6 | M31: 29.3 | N31: 23.3
A32: Lugo | B32: Melilla | C32: 16.5 | D32: 28.5 | E32: 59.1 | F32: 84.4 | G32: 128.3 | H32: 153.8 | I32: 169.9 | J32: 154.2 | K32: 83.5 | L32: 50.7 | M32: 22 | N32: 13.4
A33: Madrid | B33: Murcia | C33: 16.5 | D33: 28.5 | E33: 59.1 | F33: 84.4 | G33: 128.3 | H33: 153.8 | I33: 169.9 | J33: 154.2 | K33: 83.5 | L33: 50.7 | M33: 22 | N33: 13.4
A34: Barajas | B34: Orense | C34: 10.1 | D34: 17.6 | E34: 39.7 | F34: 58.4 | G34: 94.2 | H34: 112.2 | I34: 123.5 | J34: 108.1 | K34: 63.2 | L34: 29.6 | M34: 11.4 | N34: 9.3
A35: Cuatro Vientos | B35: Oviedo | C35: 9.9 | D35: 18.2 | E35: 38.8 | F35: 56.8 | G35: 82.6 | H35: 86.2 | I35: 87.3 | J35: 82 | K35: 52.1 | L35: 33.7 | M35: 11.5 | N35: 8.2
A36: Getafe | B36: Palencia | C36: 9.4 | D36: 20.8 | E36: 48 | F36: 75.7 | G36: 114 | H36: 134.9 | I36: 160.1 | J36: 134.9 | K36: 71.7 | L36: 37.1 | M36: 14.2 | N36: 8.7
A37: Puerto Navacerrada | B37: Palma de Mallorca | C37: 18.4 | D37: 30.3 | E37: 59.7 | F37: 82.4 | G37: 128.5 | H37: 145.6 | I37: 169.1 | J37: 150.6 | K37: 88.2 | L37: 55.4 | M37: 25.2 | N37: 18.7
A38: Torrejón De Ardoz | B38: Pamplona | C38: 11.2 | D38: 18.3 | E38: 44.5 | F38: 61.7 | G38: 94.8 | H38: 110.8 | I38: 130 | J38: 112.3 | K38: 63.7 | L38: 33.8 | M38: 13.1 | N38: 9.7
A39: Málaga | B39: Pontevedra | C39: 19 | D39: 28.5 | E39: 57 | F39: 77.9 | G39: 105.3 | H39: 129 | I39: 146.9 | J39: 111.7 | K39: 87.4 | L39: 45.1 | M39: 15 | N39: 14.9
A40: Melilla | B40: Salamanca | C40: 11 | D40: 18.8 | E40: 47.2 | F40: 72.4 | G40: 91.3 | H40: 133.3 | I40: 157.7 | J40: 115.7 | K40: 78.8 | L40: 39.4 | M40: 19 | N40: 9.4
A41: Murcia - Alcantarilla | B41: San Sebastián | C41: 25.7 | D41: 28.5 | E41: 64.5 | F41: 75.7 | G41: 98.2 | H41: 105.2 | I41: 110.2 | J41: 100 | K41: 63.4 | L41: 46 | M41: 26.5 | N41: 19.5
A42: Murcia - San Javier | B42: Sta. Cruz de Tenerife | C42: 53.5 | D42: 62.2 | E42: 101.5 | F42: 99.4 | G42: 164.3 | H42: 174.5 | I42: 188.8 | J42: 178.1 | K42: 120.3 | L42: 93.8 | M42: 55.4 | N42: 46.6
A43: Pamplona | B43: Santander | C43: 17.5 | D43: 23.1 | E43: 48.1 | F43: 61.1 | G43: 86.4 | H43: 94 | I43: 101.9 | J43: 93.6 | K43: 48.3 | L43: 38.3 | M43: 18.5 | N43: 16.6
A44: Orense | B44: Segovia | C44: 21.1 | D44: 25.3 | E44: 53.8 | F44: 71.9 | G44: 105.6 | H44: 117.9 | I44: 142.5 | J44: 132.4 | K44: 76.4 | L44: 43.5 | M44: 21.9 | N44: 16.6
A45: Oviedo | B45: Sevilla | C45: 18.4 | D45: 30.5 | E45: 59 | F45: 83.3 | G45: 126.7 | H45: 154.6 | I45: 166.9 | J45: 148.6 | K45: 87 | L45: 53.4 | M45: 22.1 | N45: 12.2
A46: Gijón | B46: Soria | C46: 14.4 | D46: 22.2 | E46: 48.5 | F46: 71.5 | G46: 106.1 | H46: 131.1 | I46: 149.1 | J46: 131.6 | K46: 69.9 | L46: 39.3 | M46: 15.9 | N46: 7.8
A47: Asturias / Aeropuerto | B47: Tarragona | C47: 18.2 | D47: 30.6 | E47: 57.5 | F47: 76.8 | G47: 112 | H47: 135.2 | I47: 149.9 | J47: 127 | K47: 77 | L47: 49.4 | M47: 24.2 | N47: 15.7
A48: Palencia | B48: Teruel | C48: 9.6 | D48: 17.1 | E48: 41.1 | F48: 61.8 | G48: 100.4 | H48: 117.7 | I48: 141.6 | J48: 125.4 | K48: 63 | L48: 33.4 | M48: 12 | N48: 73
A49: Palma de Mallorca | B49: Toledo | C49: 14.8 | D49: 28.3 | E49: 63.5 | F49: 91.2 | G49: 136.9 | H49: 176.5 | I49: 193.4 | J49: 167.4 | K49: 92.3 | L49: 51.8 | M49: 19.6 | N49: 9.5
A50: Palma de Mallorca / Aeropuerto | B50: Valencia | C50: 23.8 | D50: 32.2 | E50: 63.8 | F50: 82.6 | G50: 111.9 | H50: 149.1 | I50: 155.8 | J50: 138.9 | K50: 83.9 | L50: 52.6 | M50: 27 | N50: 21.9
A51: Pontevedra - Mourente | B51: Valladolid | C51: 11.2 | D51: 21.5 | E51: 52.5 | F51: 78.3 | G51: 116.2 | H51: 143.9 | I51: 161.5 | J51: 142.9 | K51: 77.1 | L51: 42.7 | M51: 15 | N51: 9.6
A52: Pontevedra - Vigo | B52: Vitoria | C52: 7.8 | D52: 13.4 | E52: 38.1 | F52: 51.1 | G52: 77.9 | H52: 90.4 | I52: 104.4 | J52: 87.5 | K52: 49.7 | L52: 28.6 | M52: 9.2 | N52: 7.8
A53: Santiago Compostela | B53: Zamora | C53: 16.3 | D53: 26.7 | E53: 60.5 | F53: 80.9 | G53: 122 | H53: 142.3 | I53: 173.6 | J53: 138.1 | K53: 94.2 | L53: 43.3 | M53: 16 | N53: 12
A54: Salamanca | B54: Zaragoza | C54: 20.4 | D54: 32.6 | E54: 71.4 | F54: 97.4 | G54: 143.4 | H54: 170.4 | I54: 194.5 | J54: 164.7 | K54: 94.9 | L54: 54.2 | M54: 22.4 | N54: 15
A55: Santa Cruz De Tenerife
A56: Tenerife / Telde
A57: Tenerife / Aeropuerto Tenerife Sur
A58: Tenerife - Izaña
A59: Santander
A60: Segovia
A61: Sevilla / Aeropuerto
A62: Sevilla / Morón de la Frontera / B. Aérea
A63: Sevilla - Tablada
A64: Soria
A65: Tarragona / Tortosa
A66: Tarragona - Reus / Aeropuerto
A67: Teruel
A68: Toledo
A69: Valencia
A70: Valencia - Manises
A71: Valladolid
A72: Valladolid / Aeropuerto
A73: Vitoria
A74: San Sebastián / Aeropuerto
A75: San Sebastián / Igueldo
A76: Zamora
A77: Zaragoza

Sheet JR (hidden)
B2: NECESIDADES DE RIEGO JARDÍN DE REFERENCIA
B3: =IF(C13+D13+E13=0,"",(L32*C13+L47*D13+L62*E13)) -> 
C10: Tipos de vegetación
B11: CAPITAL DE PROVINCIA | C11: ='RN 02'!D5 -> 0 | D11: ESTACIÓN METEOROLÓGICA | E11: ='RN 02'!R5 -> Albacete | I11: NECESIDADES DE RIEGO JARDÍN DE REFERENCIA
B12: NOMBRE ESPECIE | C12: pradera | D12: tapizante | E12: arbolado | I12: =(L32+L47+L62)/365 -> 
B13: Area (m2) | C13: =IF($C17="",0,IF($C17=1,'RN 02'!$D$27*0.5,IF($C17=2,'RN 02'!$D$27*0.4,IF($C17=3,'RN 02'!$D$27*0.3,'RN 02'!$D$27*0.1)))) -> 0 | D13: =IF($C17="",0,IF($C17=1,'RN 02'!$D$27*0.2,IF($C17=2,'RN 02'!$D$27*0.3,IF($C17=3,'RN 02'!$D$27*0.3,'RN 02'!$D$27*0.5)))) -> 0 | E13: =IF($C17="",0,IF($C17=1,'RN 02'!$D$27*0.3,IF($C17=2,'RN 02'!$D$27*0.3,IF($C17=3,'RN 02'!$D$27*0.4,'RN 02'!$D$27*0.4)))) -> 0
B14: Ks | C14: 0.7 | D14: 0.5 | E14: 0.5
B15: Km | C15: ='RN 02'!D17 ->  | D15: 1 | E15: 1
B16: Kj | C16: =C14*C15 ->  | D16: =D14*D15 -> 0.5 | E16: =E14*E15 -> 0.5
B17: Zona de verano | C17: ='zona clima'!C11 -> 
C19: Kj | D19: Eto (mm) | E19: Etj (mm) | F19: P (mm) | G19: Pe (mm) | H19: N (mm) | I19: EA | K19: Nf (mm) | L19: Nf (l/m2)
B20: ENE | C20: =C16 ->  | D20: =SUMIFS(ETo!B$2:B$54,ETo!$B$2:$B$54,'RN 02'!$D$5) -> 0 | E20: =D20*C20 ->  | F20: =SUMIFS(P!C$4:C$103,P!$B$4:$B$103,'RN 02'!$R$5) -> 21 | G20: =IF(F20<75,(0.6*F20-10),(0.8*F20-25)) -> 2.6 | H20: =IF((E20-G20)<0,0,E20-G20) ->  | I20: Aspersores | J20: 0.75 | K20: =$H20/$J$20 ->  | L20: =K20 -> 
B21: FEB | D21: =SUMIFS(ETo!C$2:C$54,ETo!$B$2:$B$54,'RN 02'!$D$5) -> 0 | E21: =D21*C20 ->  | F21: =SUMIFS(P!D$4:D$103,P!$B$4:$B$103,'RN 02'!$R$5) -> 25 | G21: =IF(F21<75,0.6*F21-10,0.8*F21-25) -> 5 | H21: =IF((E21-G21)<0,0,E21-G21) ->  | K21: =$H21/$J$20 ->  | L21: =K21 ->  | P21: Riego localizado subterráneo | Q21: 0.95
B22: MAR | D22: =SUMIFS(ETo!D$2:D$54,ETo!$B$2:$B$54,'RN 02'!$D$5) -> 0 | E22: =D22*C20 ->  | F22: =SUMIFS(P!E$4:E$103,P!$B$4:$B$103,'RN 02'!$R$5) -> 27 | G22: 6.2 | P22: Riego localizado en superficie | Q22: 0.9
B23: ABR | D23: =SUMIFS(ETo!E$2:E$54,ETo!$B$2:$B$54,'RN 02'!$D$5) -> 0 | E23: =D23*C20 ->  | F23: =SUMIFS(P!F$4:F$103,P!$B$4:$B$103,'RN 02'!$R$5) -> 40 | G23: 14 | P23: Difusores y microaspersores | Q23: 0.8
B24: MAY | D24: =SUMIFS(ETo!F$2:F$54,ETo!$B$2:$B$54,'RN 02'!$D$5) -> 0 | E24: =D24*C20 ->  | F24: =SUMIFS(P!G$4:G$103,P!$B$4:$B$103,'RN 02'!$R$5) -> 43 | G24: 15.8 | P24: Aspersores | Q24: 0.75
B25: JUN | D25: =SUMIFS(ETo!G$2:G$54,ETo!$B$2:$B$54,'RN 02'!$D$5) -> 0 | E25: =D25*C20 ->  | F25: =SUMIFS(P!H$4:H$103,P!$B$4:$B$103,'RN 02'!$R$5) -> 35 | G25: 11
B26: JUL | D26: =SUMIFS(ETo!H$2:H$54,ETo!$B$2:$B$54,'RN 02'!$D$5) -> 0 | E26: =D26*C20 ->  | F26: =SUMIFS(P!I$4:I$103,P!$B$4:$B$103,'RN 02'!$R$5) -> 9 | G26: -4.6
B27: AGO | D27: =SUMIFS(ETo!I$2:I$54,ETo!$B$2:$B$54,'RN 02'!$D$5) -> 0 | E27: =D27*C20 ->  | F27: =SUMIFS(P!J$4:J$103,P!$B$4:$B$103,'RN 02'!$R$5) -> 11 | G27: -3.4
B28: SEP | D28: =SUMIFS(ETo!J$2:J$54,ETo!$B$2:$B$54,'RN 02'!$D$5) -> 0 | E28: =D28*C20 ->  | F28: =SUMIFS(P!K$4:K$103,P!$B$4:$B$103,'RN 02'!$R$5) -> 34 | G28: 10.4
B29: OCT | D29: =SUMIFS(ETo!K$2:K$54,ETo!$B$2:$B$54,'RN 02'!$D$5) -> 0 | E29: =D29*C20 ->  | F29: =SUMIFS(P!L$4:L$103,P!$B$4:$B$103,'RN 02'!$R$5) -> 42 | G29: 15.2
B30: NOV | D30: =SUMIFS(ETo!L$2:L$54,ETo!$B$2:$B$54,'RN 02'!$D$5) -> 0 | E30: =D30*C20 ->  | F30: =SUMIFS(P!M$4:M$103,P!$B$4:$B$103,'RN 02'!$R$5) -> 34 | G30: 10.4
B31: DIC | D31: =SUMIFS(ETo!M$2:M$54,ETo!$B$2:$B$54,'RN 02'!$D$5) -> 0 | E31: =D31*C20 ->  | F31: =SUMIFS(P!N$4:N$103,P!$B$4:$B$103,'RN 02'!$R$5) -> 31 | G31: 8.6
K32: =SUM(K20:K31) ->  | L32: =SUM(L20:L31) -> 
C34: Kj | D34: Eto (mm) | E34: Etj (mm) | F34: P (mm) | G34: Pe (mm) | H34: N (mm) | I34: EA | K34: Nf (mm) | L34: Nf (l/m2)
B35: ENE | C35: =D16 -> 0.5 | D35: =SUMIFS(ETo!B$2:B$54,ETo!$B$2:$B$54,'RN 02'!$D$5) -> 0 | E35: =D35*C35 -> 0 | F35: =SUMIFS(P!C$4:C$103,P!$B$4:$B$103,'RN 02'!$R$5) -> 21 | G35: =IF(F35<75,(0.6*F35-10),(0.8*F35-25)) -> 2.6 | H35: =IF((E35-G35)<0,0,E35-G35) -> 0 | I35: Riego localizado en superficie | J35: 0.9 | K35: =$H35/$J$35 -> 0 | L35: =K35 -> 0
B36: FEB | D36: =SUMIFS(ETo!C$2:C$54,ETo!$B$2:$B$54,'RN 02'!$D$5) -> 0 | E36: =D36*C35 -> 0 | F36: =SUMIFS(P!D$4:D$103,P!$B$4:$B$103,'RN 02'!$R$5) -> 25 | G36: =IF(F36<75,0.6*F36-10,0.8*F36-25) -> 5 | H36: =IF((E36-G36)<0,0,E36-G36) -> 0 | K36: =$H36/$J$20 -> 0 | L36: =K36 -> 0
B37: MAR | D37: =SUMIFS(ETo!D$2:D$54,ETo!$B$2:$B$54,'RN 02'!$D$5) -> 0 | E37: =D37*C35 -> 0 | F37: =SUMIFS(P!E$4:E$103,P!$B$4:$B$103,'RN 02'!$R$5) -> 27 | G37: 6.2 | H37: 0 | K37: 0 | L37: 0
B38: ABR | D38: =SUMIFS(ETo!E$2:E$54,ETo!$B$2:$B$54,'RN 02'!$D$5) -> 0 | E38: =D38*C35 -> 0 | F38: =SUMIFS(P!F$4:F$103,P!$B$4:$B$103,'RN 02'!$R$5) -> 40 | G38: 14 | H38: 0 | K38: 0 | L38: 0
B39: MAY | D39: =SUMIFS(ETo!F$2:F$54,ETo!$B$2:$B$54,'RN 02'!$D$5) -> 0 | E39: =D39*C35 -> 0 | F39: =SUMIFS(P!G$4:G$103,P!$B$4:$B$103,'RN 02'!$R$5) -> 43 | G39: 15.8 | H39: 0 | K39: 0 | L39: 0
B40: JUN | D40: =SUMIFS(ETo!G$2:G$54,ETo!$B$2:$B$54,'RN 02'!$D$5) -> 0 | E40: =D40*C35 -> 0 | F40: =SUMIFS(P!H$4:H$103,P!$B$4:$B$103,'RN 02'!$R$5) -> 35 | G40: 11 | H40: 0 | K40: 0 | L40: 0
B41: JUL | D41: =SUMIFS(ETo!H$2:H$54,ETo!$B$2:$B$54,'RN 02'!$D$5) -> 0 | E41: =D41*C35 -> 0 | F41: =SUMIFS(P!I$4:I$103,P!$B$4:$B$103,'RN 02'!$R$5) -> 9 | G41: -4.6 | H41: 4.6 | K41: 6.133333333 | L41: 6.133333333
B42: AGO | D42: =SUMIFS(ETo!I$2:I$54,ETo!$B$2:$B$54,'RN 02'!$D$5) -> 0 | E42: =D42*C35 -> 0 | F42: =SUMIFS(P!J$4:J$103,P!$B$4:$B$103,'RN 02'!$R$5) -> 11 | G42: -3.4 | H42: 3.4 | K42: 4.533333333 | L42: 4.533333333
B43: SEP | D43: =SUMIFS(ETo!J$2:J$54,ETo!$B$2:$B$54,'RN 02'!$D$5) -> 0 | E43: =D43*C35 -> 0 | F43: =SUMIFS(P!K$4:K$103,P!$B$4:$B$103,'RN 02'!$R$5) -> 34 | G43: 10.4 | H43: 0 | K43: 0 | L43: 0
B44: OCT | D44: =SUMIFS(ETo!K$2:K$54,ETo!$B$2:$B$54,'RN 02'!$D$5) -> 0 | E44: =D44*C35 -> 0 | F44: =SUMIFS(P!L$4:L$103,P!$B$4:$B$103,'RN 02'!$R$5) -> 42 | G44: 15.2 | H44: 0 | K44: 0 | L44: 0
B45: NOV | D45: =SUMIFS(ETo!L$2:L$54,ETo!$B$2:$B$54,'RN 02'!$D$5) -> 0 | E45: =D45*C35 -> 0 | F45: =SUMIFS(P!M$4:M$103,P!$B$4:$B$103,'RN 02'!$R$5) -> 34 | G45: 10.4 | H45: 0 | K45: 0 | L45: 0
B46: DIC | D46: =SUMIFS(ETo!M$2:M$54,ETo!$B$2:$B$54,'RN 02'!$D$5) -> 0 | E46: =D46*C35 -> 0 | F46: =SUMIFS(P!N$4:N$103,P!$B$4:$B$103,'RN 02'!$R$5) -> 31 | G46: 8.6 | H46: 0 | K46: 0 | L46: 0
K47: =SUM(K35:K46) -> 10.66666667 | L47: =SUM(L35:L46) -> 10.66666667
C49: Kj | D49: Eto (mm) | E49: Etj (mm) | F49: P (mm) | G49: Pe (mm) | H49: N (mm) | I49: EA | K49: Nf (mm) | L49: Nf (l/m2)
B50: ENE | C50: =E16 -> 0.5 | D50: =SUMIFS(ETo!B$2:B$54,ETo!$B$2:$B$54,'RN 02'!$D$5) -> 0 | E50: =D50*C50 -> 0 | F50: =SUMIFS(P!C$4:C$103,P!$B$4:$B$103,'RN 02'!$R$5) -> 21 | G50: =IF(F50<75,(0.6*F50-10),(0.8*F50-25)) -> 2.6 | H50: =IF((E50-G50)<0,0,E50-G50) -> 0 | I50: Riego localizado subterráneo | J50: 0.95 | K50: =$H50/$J$50 -> 0 | L50: =K50 -> 0
B51: FEB | D51: =SUMIFS(ETo!C$2:C$54,ETo!$B$2:$B$54,'RN 02'!$D$5) -> 0 | E51: =D51*C50 -> 0 | F51: =SUMIFS(P!D$4:D$103,P!$B$4:$B$103,'RN 02'!$R$5) -> 25 | G51: =IF(F51<75,0.6*F51-10,0.8*F51-25) -> 5 | H51: =IF((E51-G51)<0,0,E51-G51) -> 0 | K51: =$H51/$J$20 -> 0 | L51: =K51 -> 0
B52: MAR | D52: =SUMIFS(ETo!D$2:D$54,ETo!$B$2:$B$54,'RN 02'!$D$5) -> 0 | E52: =D52*C50 -> 0 | F52: =SUMIFS(P!E$4:E$103,P!$B$4:$B$103,'RN 02'!$R$5) -> 27 | G52: 6.2 | H52: 0 | K52: 0 | L52: 0
B53: ABR | D53: =SUMIFS(ETo!E$2:E$54,ETo!$B$2:$B$54,'RN 02'!$D$5) -> 0 | E53: =D53*C50 -> 0 | F53: =SUMIFS(P!F$4:F$103,P!$B$4:$B$103,'RN 02'!$R$5) -> 40 | G53: 14 | H53: 0 | K53: 0 | L53: 0
B54: MAY | D54: =SUMIFS(ETo!F$2:F$54,ETo!$B$2:$B$54,'RN 02'!$D$5) -> 0 | E54: =D54*C50 -> 0 | F54: =SUMIFS(P!G$4:G$103,P!$B$4:$B$103,'RN 02'!$R$5) -> 43 | G54: 15.8 | H54: 0 | K54: 0 | L54: 0
B55: JUN | D55: =SUMIFS(ETo!G$2:G$54,ETo!$B$2:$B$54,'RN 02'!$D$5) -> 0 | E55: =D55*C50 -> 0 | F55: =SUMIFS(P!H$4:H$103,P!$B$4:$B$103,'RN 02'!$R$5) -> 35 | G55: 11 | H55: 0 | K55: 0 | L55: 0
B56: JUL | D56: =SUMIFS(ETo!H$2:H$54,ETo!$B$2:$B$54,'RN 02'!$D$5) -> 0 | E56: =D56*C50 -> 0 | F56: =SUMIFS(P!I$4:I$103,P!$B$4:$B$103,'RN 02'!$R$5) -> 9 | G56: -4.6 | H56: 4.6 | K56: 6.133333333 | L56: 6.133333333
B57: AGO | D57: =SUMIFS(ETo!I$2:I$54,ETo!$B$2:$B$54,'RN 02'!$D$5) -> 0 | E57: =D57*C50 -> 0 | F57: =SUMIFS(P!J$4:J$103,P!$B$4:$B$103,'RN 02'!$R$5) -> 11 | G57: -3.4 | H57: 3.4 | K57: 4.533333333 | L57: 4.533333333
B58: SEP | D58: =SUMIFS(ETo!J$2:J$54,ETo!$B$2:$B$54,'RN 02'!$D$5) -> 0 | E58: =D58*C50 -> 0 | F58: =SUMIFS(P!K$4:K$103,P!$B$4:$B$103,'RN 02'!$R$5) -> 34 | G58: 10.4 | H58: 0 | K58: 0 | L58: 0
B59: OCT | D59: =SUMIFS(ETo!K$2:K$54,ETo!$B$2:$B$54,'RN 02'!$D$5) -> 0 | E59: =D59*C50 -> 0 | F59: =SUMIFS(P!L$4:L$103,P!$B$4:$B$103,'RN 02'!$R$5) -> 42 | G59: 15.2 | H59: 0 | K59: 0 | L59: 0
B60: NOV | D60: =SUMIFS(ETo!L$2:L$54,ETo!$B$2:$B$54,'RN 02'!$D$5) -> 0 | E60: =D60*C50 -> 0 | F60: =SUMIFS(P!M$4:M$103,P!$B$4:$B$103,'RN 02'!$R$5) -> 34 | G60: 10.4 | H60: 0 | K60: 0 | L60: 0
B61: DIC | D61: =SUMIFS(ETo!M$2:M$54,ETo!$B$2:$B$54,'RN 02'!$D$5) -> 0 | E61: =D61*C50 -> 0 | F61: =SUMIFS(P!N$4:N$103,P!$B$4:$B$103,'RN 02'!$R$5) -> 31 | G61: 8.6 | H61: 0 | K61: 0 | L61: 0
K62: =SUM(K50:K61) -> 10.66666667 | L62: =SUM(L50:L61) -> 10.66666667

Sheet Nf (hidden)
C2: VERDE HACES Consumo de riego
C3: VERDE Residencial v 1.W
Y4: Albacete | AA4: ANDALUCIA
E5: =IF('RN 02'!D7>0,'RN 02'!D7,"") -> 
E6: Kj | G6: Eto (mm) | I6: Etj (mm) | K6: P (mm) | M6: Pe (mm) | O6: N (mm) | R6: Nf (l/m2)
D7: ENE | E7: ='RN 02'!D19 ->  | G7: =SUMIFS(ETo!C$2:C$54,ETo!$B$2:$B$54,'RN 02'!$D$5) -> 0 | I7: =IF(E$7="","",G7*E$7) ->  | K7: =SUMIFS(P!C$4:C$103,P!$B$4:$B$103,'RN 02'!$R$5) -> 21 | M7: =IF(K7<75,(0.6*K7-10),(0.8*K7-25)) -> 2.6 | O7: =IF(I7="","",IF((I7-M7)<0,0,I7-M7)) ->  | Q7: =VLOOKUP('RN 02'!D$21,$W$11:$X$19,2,FALSE) ->  | R7: =IF(O7="",0,O7/$Q$7) -> 0 | U7: =SUMIFS(P!C$4:C$103,P!$B$4:$B$103,'RN 02'!$R$5) -> 21 | V7: =SUMIFS(P!D$4:D$103,P!$B$4:$B$103,'RN 02'!$R$5) -> 25 | W7: =SUMIFS(P!E$4:E$103,P!$B$4:$B$103,'RN 02'!$R$5) -> 27 | X7: =SUMIFS(P!F$4:F$103,P!$B$4:$B$103,'RN 02'!$R$5) -> 40 | Y7: =SUMIFS(P!G$4:G$103,P!$B$4:$B$103,'RN 02'!$R$5) -> 43 | Z7: =SUMIFS(P!H$4:H$103,P!$B$4:$B$103,'RN 02'!$R$5) -> 35 | AA7: =SUMIFS(P!I$4:I$103,P!$B$4:$B$103,'RN 02'!$R$5) -> 9 | AB7: =SUMIFS(P!J$4:J$103,P!$B$4:$B$103,'RN 02'!$R$5) -> 11 | AC7: =SUMIFS(P!K$4:K$103,P!$B$4:$B$103,'RN 02'!$R$5) -> 34 | AD7: =SUMIFS(P!L$4:L$103,P!$B$4:$B$103,'RN 02'!$R$5) -> 42 | AE7: =SUMIFS(P!M$4:M$103,P!$B$4:$B$103,'RN 02'!$R$5) -> 34 | AF7: =SUMIFS(P!N$4:N$103,P!$B$4:$B$103,'RN 02'!$R$5) -> 31
D9: FEB | G9: =SUMIFS(ETo!D$2:D$54,ETo!$B$2:$B$54,'RN 02'!$D$5) -> 0 | I9: =IF(E$7="","",G9*E$7) ->  | K9: =SUMIFS(P!D$4:D$103,P!$B$4:$B$103,'RN 02'!$R$5) -> 25 | M9: =IF(K9<75,(0.6*K9-10),(0.8*K9-25)) -> 5 | O9: =IF(I9="","",IF((I9-M9)<0,0,I9-M9)) ->  | R9: =IF(O9="",0,O9/$Q$7) -> 0
D11: MAR | G11: =SUMIFS(ETo!E$2:E$54,ETo!$B$2:$B$54,'RN 02'!$D$5) -> 0 | I11: =IF(E$7="","",G11*E$7) ->  | K11: =SUMIFS(P!E$4:E$103,P!$B$4:$B$103,'RN 02'!$R$5) -> 27 | M11: 6.2 | O11: =IF(I11="","",IF((I11-M11)<0,0,I11-M11)) ->  | R11: =IF(O11="",0,O11/$Q$7) -> 0 | W11: Riego localizado subterráneo | X11: 0.95
D13: ABR | G13: =SUMIFS(ETo!F$2:F$54,ETo!$B$2:$B$54,'RN 02'!$D$5) -> 0 | I13: =IF(E$7="","",G13*E$7) ->  | K13: =SUMIFS(P!F$4:F$103,P!$B$4:$B$103,'RN 02'!$R$5) -> 40 | M13: 14 | O13: =IF(I13="","",IF((I13-M13)<0,0,I13-M13)) ->  | R13: =IF(O13="",0,O13/$Q$7) -> 0 | W13: Riego localizado en superficie | X13: 0.9
D15: MAY | G15: =SUMIFS(ETo!G$2:G$54,ETo!$B$2:$B$54,'RN 02'!$D$5) -> 0 | I15: =IF(E$7="","",G15*E$7) ->  | K15: =SUMIFS(P!G$4:G$103,P!$B$4:$B$103,'RN 02'!$R$5) -> 43 | M15: 15.8 | O15: =IF(I15="","",IF((I15-M15)<0,0,I15-M15)) ->  | R15: =IF(O15="",0,O15/$Q$7) -> 0 | W15: Difusores y microaspersores | X15: 0.8
D17: JUN | G17: =SUMIFS(ETo!H$2:H$54,ETo!$B$2:$B$54,'RN 02'!$D$5) -> 0 | I17: =IF(E$7="","",G17*E$7) ->  | K17: =SUMIFS(P!H$4:H$103,P!$B$4:$B$103,'RN 02'!$R$5) -> 35 | M17: 11 | O17: =IF(I17="","",IF((I17-M17)<0,0,I17-M17)) ->  | R17: =IF(O17="",0,O17/$Q$7) -> 0 | W17: Aspersores | X17: 0.75
D19: JUL | G19: =SUMIFS(ETo!I$2:I$54,ETo!$B$2:$B$54,'RN 02'!$D$5) -> 0 | I19: =IF(E$7="","",G19*E$7) ->  | K19: =SUMIFS(P!I$4:I$103,P!$B$4:$B$103,'RN 02'!$R$5) -> 9 | M19: -4.6 | O19: =IF(I19="","",IF((I19-M19)<0,0,I19-M19)) ->  | R19: =IF(O19="",0,O19/$Q$7) -> 0 | W19: Superficie | X19: 0.55
D21: AGO | G21: =SUMIFS(ETo!J$2:J$54,ETo!$B$2:$B$54,'RN 02'!$D$5) -> 0 | I21: =IF(E$7="","",G21*E$7) ->  | K21: =SUMIFS(P!J$4:J$103,P!$B$4:$B$103,'RN 02'!$R$5) -> 11 | M21: -3.4 | O21: =IF(I21="","",IF((I21-M21)<0,0,I21-M21)) ->  | R21: =IF(O21="",0,O21/$Q$7) -> 0
D23: SEP | G23: =SUMIFS(ETo!K$2:K$54,ETo!$B$2:$B$54,'RN 02'!$D$5) -> 0 | I23: =IF(E$7="","",G23*E$7) ->  | K23: =SUMIFS(P!K$4:K$103,P!$B$4:$B$103,'RN 02'!$R$5) -> 34 | M23: 10.4 | O23: =IF(I23="","",IF((I23-M23)<0,0,I23-M23)) ->  | R23: =IF(O23="",0,O23/$Q$7) -> 0
D25: OCT | G25: =SUMIFS(ETo!L$2:L$54,ETo!$B$2:$B$54,'RN 02'!$D$5) -> 0 | I25: =IF(E$7="","",G25*E$7) ->  | K25: =SUMIFS(P!L$4:L$103,P!$B$4:$B$103,'RN 02'!$R$5) -> 42 | M25: 15.2 | O25: =IF(I25="","",IF((I25-M25)<0,0,I25-M25)) ->  | R25: =IF(O25="",0,O25/$Q$7) -> 0
D27: NOV | G27: =SUMIFS(ETo!M$2:M$54,ETo!$B$2:$B$54,'RN 02'!$D$5) -> 0 | I27: =IF(E$7="","",G27*E$7) ->  | K27: =SUMIFS(P!M$4:M$103,P!$B$4:$B$103,'RN 02'!$R$5) -> 34 | M27: 10.4 | O27: =IF(I27="","",IF((I27-M27)<0,0,I27-M27)) ->  | R27: =IF(O27="",0,O27/$Q$7) -> 0
D29: DIC | G29: =SUMIFS(ETo!N$2:N$54,ETo!$B$2:$B$54,'RN 02'!$D$5) -> 0 | I29: =IF(E$7="","",G29*E$7) ->  | K29: =SUMIFS(P!N$4:N$103,P!$B$4:$B$103,'RN 02'!$R$5) -> 31 | M29: 8.6 | O29: =IF(I29="","",IF((I29-M29)<0,0,I29-M29)) ->  | R29: =IF(O29="",0,O29/$Q$7) -> 0
R31: =SUM(R7:R29) -> 0
E33: =IF('RN 02'!F7>0,'RN 02'!F7,"") -> 
E34: Kj | G34: Eto (mm) | I34: Etj (mm) | K34: P (mm) | M34: Pe (mm) | O34: N (mm) | R34: Nf (mm)
D35: ENE | E35: ='RN 02'!F19 ->  | G35: =SUMIFS(ETo!C$2:C$54,ETo!$B$2:$B$54,'RN 02'!$D$5) -> 0 | I35: =IF(E$35="","",G35*E$35) ->  | K35: =SUMIFS(P!C$4:C$103,P!$B$4:$B$103,'RN 02'!$R$5) -> 21 | M35: =IF(K35<75,(0.6*K35-10),(0.8*K35-25)) -> 2.6 | O35: =IF(I35="","",IF((I35-M35)<0,0,I35-M35)) ->  | Q35: =VLOOKUP('RN 02'!F$21,$W$11:$X$19,2,FALSE) ->  | R35: =IF(O35="",0,O35/$Q$7) -> 0
D37: FEB | G37: =SUMIFS(ETo!D$2:D$54,ETo!$B$2:$B$54,'RN 02'!$D$5) -> 0 | I37: =IF(E$35="","",G37*E$35) ->  | K37: =SUMIFS(P!D$4:D$103,P!$B$4:$B$103,'RN 02'!$R$5) -> 25 | M37: =IF(K37<75,0.6*K37-10,0.8*K37-25) -> 5 | O37: =IF(I37="","",IF((I37-M37)<0,0,I37-M37)) ->  | R37: =IF(O37="",0,O37/$Q$7) -> 0
D39: MAR | G39: =SUMIFS(ETo!E$2:E$54,ETo!$B$2:$B$54,'RN 02'!$D$5) -> 0 | I39: =IF(E$35="","",G39*E$35) ->  | K39: =SUMIFS(P!E$4:E$103,P!$B$4:$B$103,'RN 02'!$R$5) -> 27 | M39: 6.2 | O39: =IF(I39="","",IF((I39-M39)<0,0,I39-M39)) ->  | R39: =IF(O39="",0,O39/$Q$7) -> 0 | W39: Riego localizado subterráneo | X39: 0.95
D41: ABR | G41: =SUMIFS(ETo!F$2:F$54,ETo!$B$2:$B$54,'RN 02'!$D$5) -> 0 | I41: =IF(E$35="","",G41*E$35) ->  | K41: =SUMIFS(P!F$4:F$103,P!$B$4:$B$103,'RN 02'!$R$5) -> 40 | M41: 14 | O41: =IF(I41="","",IF((I41-M41)<0,0,I41-M41)) ->  | R41: =IF(O41="",0,O41/$Q$7) -> 0 | W41: Riego localizado en superficie | X41: 0.9
D43: MAY | G43: =SUMIFS(ETo!G$2:G$54,ETo!$B$2:$B$54,'RN 02'!$D$5) -> 0 | I43: =IF(E$35="","",G43*E$35) ->  | K43: =SUMIFS(P!G$4:G$103,P!$B$4:$B$103,'RN 02'!$R$5) -> 43 | M43: 15.8 | O43: =IF(I43="","",IF((I43-M43)<0,0,I43-M43)) ->  | R43: =IF(O43="",0,O43/$Q$7) -> 0 | W43: Difusores y microaspersores | X43: 0.8
D45: JUN | G45: =SUMIFS(ETo!H$2:H$54,ETo!$B$2:$B$54,'RN 02'!$D$5) -> 0 | I45: =IF(E$35="","",G45*E$35) ->  | K45: =SUMIFS(P!H$4:H$103,P!$B$4:$B$103,'RN 02'!$R$5) -> 35 | M45: 11 | O45: =IF(I45="","",IF((I45-M45)<0,0,I45-M45)) ->  | R45: =IF(O45="",0,O45/$Q$7) -> 0 | W45: Aspersores | X45: 0.75
D47: JUL | G47: =SUMIFS(ETo!I$2:I$54,ETo!$B$2:$B$54,'RN 02'!$D$5) -> 0 | I47: =IF(E$35="","",G47*E$35) ->  | K47: =SUMIFS(P!I$4:I$103,P!$B$4:$B$103,'RN 02'!$R$5) -> 9 | M47: -4.6 | O47: =IF(I47="","",IF((I47-M47)<0,0,I47-M47)) ->  | R47: =IF(O47="",0,O47/$Q$7) -> 0 | W47: Superficie | X47: 0.55
D49: AGO | G49: =SUMIFS(ETo!J$2:J$54,ETo!$B$2:$B$54,'RN 02'!$D$5) -> 0 | I49: =IF(E$35="","",G49*E$35) ->  | K49: =SUMIFS(P!J$4:J$103,P!$B$4:$B$103,'RN 02'!$R$5) -> 11 | M49: -3.4 | O49: =IF(I49="","",IF((I49-M49)<0,0,I49-M49)) ->  | R49: =IF(O49="",0,O49/$Q$7) -> 0
D51: SEP | G51: =SUMIFS(ETo!K$2:K$54,ETo!$B$2:$B$54,'RN 02'!$D$5) -> 0 | I51: =IF(E$35="","",G51*E$35) ->  | K51: =SUMIFS(P!K$4:K$103,P!$B$4:$B$103,'RN 02'!$R$5) -> 34 | M51: 10.4 | O51: =IF(I51="","",IF((I51-M51)<0,0,I51-M51)) ->  | R51: =IF(O51="",0,O51/$Q$7) -> 0
D53: OCT | G53: =SUMIFS(ETo!L$2:L$54,ETo!$B$2:$B$54,'RN 02'!$D$5) -> 0 | I53: =IF(E$35="","",G53*E$35) ->  | K53: =SUMIFS(P!L$4:L$103,P!$B$4:$B$103,'RN 02'!$R$5) -> 42 | M53: 15.2 | O53: =IF(I53="","",IF((I53-M53)<0,0,I53-M53)) ->  | R53: =IF(O53="",0,O53/$Q$7) -> 0
D55: NOV | G55: =SUMIFS(ETo!M$2:M$54,ETo!$B$2:$B$54,'RN 02'!$D$5) -> 0 | I55: =IF(E$35="","",G55*E$35) ->  | K55: =SUMIFS(P!M$4:M$103,P!$B$4:$B$103,'RN 02'!$R$5) -> 34 | M55: 10.4 | O55: =IF(I55="","",IF((I55-M55)<0,0,I55-M55)) ->  | R55: =IF(O55="",0,O55/$Q$7) -> 0
D57: DIC | G57: =SUMIFS(ETo!N$2:N$54,ETo!$B$2:$B$54,'RN 02'!$D$5) -> 0 | I57: =IF(E$35="","",G57*E$35) ->  | K57: =SUMIFS(P!N$4:N$103,P!$B$4:$B$103,'RN 02'!$R$5) -> 31 | M57: 8.6 | O57: =IF(I57="","",IF((I57-M57)<0,0,I57-M57)) ->  | R57: =IF(O57="",0,O57/$Q$7) -> 0
R59: =SUM(R35:R57) -> 0
E61: =IF('RN 02'!H7>0,'RN 02'!H7,"") -> 
E62: Kj | G62: Eto (mm) | I62: Etj (mm) | K62: P (mm) | M62: Pe (mm) | O62: N (mm) | R62: Nf (mm)
D63: ENE | E63: ='RN 02'!H19 ->  | G63: =SUMIFS(ETo!C$2:C$54,ETo!$B$2:$B$54,'RN 02'!$D$5) -> 0 | I63: =IF(E$63="","",G63*E$63) ->  | K63: =SUMIFS(P!C$4:C$103,P!$B$4:$B$103,'RN 02'!$R$5) -> 21 | M63: =IF(K63<75,(0.6*K63-10),(0.8*K63-25)) -> 2.6 | O63: =IF(I63="","",IF((I63-M63)<0,0,I63-M63)) ->  | Q63: =VLOOKUP('RN 02'!H$21,$W$11:$X$19,2,FALSE) ->  | R63: =IF(O63="",0,O63/$Q$7) -> 0
D65: FEB | G65: =SUMIFS(ETo!D$2:D$54,ETo!$B$2:$B$54,'RN 02'!$D$5) -> 0 | I65: =IF(E$63="","",G65*E$63) ->  | K65: =SUMIFS(P!D$4:D$103,P!$B$4:$B$103,'RN 02'!$R$5) -> 25 | M65: =IF(K65<75,0.6*K65-10,0.8*K65-25) -> 5 | O65: =IF(I65="","",IF((I65-M65)<0,0,I65-M65)) ->  | R65: =IF(O65="",0,O65/$Q$7) -> 0
D67: MAR | G67: =SUMIFS(ETo!E$2:E$54,ETo!$B$2:$B$54,'RN 02'!$D$5) -> 0 | I67: =IF(E$63="","",G67*E$63) ->  | K67: =SUMIFS(P!E$4:E$103,P!$B$4:$B$103,'RN 02'!$R$5) -> 27 | M67: 6.2 | O67: =IF(I67="","",IF((I67-M67)<0,0,I67-M67)) ->  | R67: =IF(O67="",0,O67/$Q$7) -> 0 | W67: Riego localizado subterráneo | X67: 0.95
D69: ABR | G69: =SUMIFS(ETo!F$2:F$54,ETo!$B$2:$B$54,'RN 02'!$D$5) -> 0 | I69: =IF(E$63="","",G69*E$63) ->  | K69: =SUMIFS(P!F$4:F$103,P!$B$4:$B$103,'RN 02'!$R$5) -> 40 | M69: 14 | O69: =IF(I69="","",IF((I69-M69)<0,0,I69-M69)) ->  | R69: =IF(O69="",0,O69/$Q$7) -> 0 | W69: Riego localizado en superficie | X69: 0.9
D71: MAY | G71: =SUMIFS(ETo!G$2:G$54,ETo!$B$2:$B$54,'RN 02'!$D$5) -> 0 | I71: =IF(E$63="","",G71*E$63) ->  | K71: =SUMIFS(P!G$4:G$103,P!$B$4:$B$103,'RN 02'!$R$5) -> 43 | M71: 15.8 | O71: =IF(I71="","",IF((I71-M71)<0,0,I71-M71)) ->  | R71: =IF(O71="",0,O71/$Q$7) -> 0 | W71: Difusores y microaspersores | X71: 0.8
D73: JUN | G73: =SUMIFS(ETo!H$2:H$54,ETo!$B$2:$B$54,'RN 02'!$D$5) -> 0 | I73: =IF(E$63="","",G73*E$63) ->  | K73: =SUMIFS(P!H$4:H$103,P!$B$4:$B$103,'RN 02'!$R$5) -> 35 | M73: 11 | O73: =IF(I73="","",IF((I73-M73)<0,0,I73-M73)) ->  | R73: =IF(O73="",0,O73/$Q$7) -> 0 | W73: Aspersores | X73: 0.75
D75: JUL | G75: =SUMIFS(ETo!I$2:I$54,ETo!$B$2:$B$54,'RN 02'!$D$5) -> 0 | I75: =IF(E$63="","",G75*E$63) ->  | K75: =SUMIFS(P!I$4:I$103,P!$B$4:$B$103,'RN 02'!$R$5) -> 9 | M75: -4.6 | O75: =IF(I75="","",IF((I75-M75)<0,0,I75-M75)) ->  | R75: =IF(O75="",0,O75/$Q$7) -> 0 | W75: Superficie | X75: 0.55
D77: AGO | G77: =SUMIFS(ETo!J$2:J$54,ETo!$B$2:$B$54,'RN 02'!$D$5) -> 0 | I77: =IF(E$63="","",G77*E$63) ->  | K77: =SUMIFS(P!J$4:J$103,P!$B$4:$B$103,'RN 02'!$R$5) -> 11 | M77: -3.4 | O77: =IF(I77="","",IF((I77-M77)<0,0,I77-M77)) ->  | R77: =IF(O77="",0,O77/$Q$7) -> 0
D79: SEP | G79: =SUMIFS(ETo!K$2:K$54,ETo!$B$2:$B$54,'RN 02'!$D$5) -> 0 | I79: =IF(E$63="","",G79*E$63) ->  | K79: =SUMIFS(P!K$4:K$103,P!$B$4:$B$103,'RN 02'!$R$5) -> 34 | M79: 10.4 | O79: =IF(I79="","",IF((I79-M79)<0,0,I79-M79)) ->  | R79: =IF(O79="",0,O79/$Q$7) -> 0
D81: OCT | G81: =SUMIFS(ETo!L$2:L$54,ETo!$B$2:$B$54,'RN 02'!$D$5) -> 0 | I81: =IF(E$63="","",G81*E$63) ->  | K81: =SUMIFS(P!L$4:L$103,P!$B$4:$B$103,'RN 02'!$R$5) -> 42 | M81: 15.2 | O81: =IF(I81="","",IF((I81-M81)<0,0,I81-M81)) ->  | R81: =IF(O81="",0,O81/$Q$7) -> 0
D83: NOV | G83: =SUMIFS(ETo!M$2:M$54,ETo!$B$2:$B$54,'RN 02'!$D$5) -> 0 | I83: =IF(E$63="","",G83*E$63) ->  | K83: =SUMIFS(P!M$4:M$103,P!$B$4:$B$103,'RN 02'!$R$5) -> 34 | M83: 10.4 | O83: =IF(I83="","",IF((I83-M83)<0,0,I83-M83)) ->  | R83: =IF(O83="",0,O83/$Q$7) -> 0
D85: DIC | G85: =SUMIFS(ETo!N$2:N$54,ETo!$B$2:$B$54,'RN 02'!$D$5) -> 0 | I85: =IF(E$63="","",G85*E$63) ->  | K85: =SUMIFS(P!N$4:N$103,P!$B$4:$B$103,'RN 02'!$R$5) -> 31 | M85: 8.6 | O85: =IF(I85="","",IF((I85-M85)<0,0,I85-M85)) ->  | R85: =IF(O85="",0,O85/$Q$7) -> 0
R87: =SUM(R63:R85) -> 0
E89: =IF('RN 02'!J7>0,'RN 02'!J7,"") -> 
E90: Kj | G90: Eto (mm) | I90: Etj (mm) | K90: P (mm) | M90: Pe (mm) | O90: N (mm) | R90: Nf (mm)
